Workbook

Sheet MainDisplay
O1: =TODAY() -> 2018-06-18
B2: =MOD(RTD("cqg.rtd", ,"SystemInfo", "Linetime"),1) -> 08:33:40 | F2: CQG CME Globex 10-Day Map | AA2: =RTD("cqg.rtd", ,"SystemInfo", "Linetime") -> 43269.35671
B4: Symbol | D4: Equities | F4: =IF(RTD("cqg.rtd", ,"ContractData",Sheet3!$D$12, "NetLastTradeToday",, "T")>=0,"+",0) -> 0 | G4: Last | H4: =TEXT(RTD("cqg.rtd", ,"ContractData",Sheet3!$D$12, "LastTradeToday",, "T"),Sheet3!$F$17) -> 2762.75 | J4: Net | K4: =IF(F4="+","+"&TEXT(RTD("cqg.rtd", ,"ContractData",Sheet3!$D$12, "NetLastTradeToday",, "T"),Sheet3!$F$17),TEXT(RTD("cqg.rtd", ,"ContractData",Sheet3!$D$12, "NetLastTradeToday",, "T"),Sheet3!$F$17)) -> -21.75 | M4: Net $ Change | R4: Symbol | T4: Energy | V4: =IF(RTD("cqg.rtd", ,"ContractData",'Sheet3 (2)'!$D$12, "NetLastTradeToday",, "T")>=0,"+",0) -> 0 | W4: Last | X4: =TEXT(RTD("cqg.rtd", ,"ContractData",'Sheet3 (2)'!$D$12, "LastTradeToday",, "T"),'Sheet3 (2)'!$F$17) -> 2.987 | Z4: Net | AA4: =IF(V4="+","+"&TEXT(RTD("cqg.rtd", ,"ContractData",'Sheet3 (2)'!$D$12, "NetLastTradeToday",, "T"),'Sheet3 (2)'!$F$17),TEXT(RTD("cqg.rtd", ,"ContractData",'Sheet3 (2)'!$D$12, "NetLastTradeToday",, "T"),'Sheet3 (2)'!$F$17)) -> -.035 | AC4: Net $ Change
B5: EP | C5: =" "&RTD("cqg.rtd", ,"ContractData",Sheet3!$D$12, "LongDescription",, "T")&" " -> E-Mini S&P 500, Sep 18 | G5: Trade | J5: Change | M5: =IFERROR(1/RTD("cqg.rtd",,"ContractData","Tsize("&B5&")","LastQuoteToday",,"T")*RTD("cqg.rtd",,"ContractData","PriceToDollar(Tsize("&B5&"))","LastQuoteToday")*RTD("cqg.rtd", ,"ContractData", B5, "NetLastTrade"),"") -> -1087.5 | R5: NGE | S5: =" "&RTD("cqg.rtd", ,"ContractData",'Sheet3 (2)'!D12, "LongDescription",, "T")&" " -> Natural Gas (Globex), Jul 18 | W5: Trade | Z5: Change | AC5: =IFERROR(1/RTD("cqg.rtd",,"ContractData","Tsize("&R5&")","LastQuoteToday",,"T")*RTD("cqg.rtd",,"ContractData","PriceToDollar(Tsize("&R5&"))","LastQuoteToday")*RTD("cqg.rtd", ,"ContractData", R5, "NetLastTrade"),"") -> -350
B6: =2*RTD("cqg.rtd",,"ContractData","Tsize("&B5&")","LastQuoteToday",,"T") -> 0.5 | G6: Open | H6: =TEXT(RTD("cqg.rtd", ,"ContractData",Sheet3!$D$12, "Open",, "T"),Sheet3!$F$17) -> 2780.00 | I6: High | J6: =TEXT(RTD("cqg.rtd", ,"ContractData",Sheet3!$D$12, "High",, "T"),Sheet3!$F$17) -> 2786.75 | K6: Low | L6: =TEXT(RTD("cqg.rtd", ,"ContractData",Sheet3!$D$12, "Low",, "T"),Sheet3!$F$17) -> 2762.25 | R6: =2*RTD("cqg.rtd",,"ContractData","Tsize("&R5&")","LastQuoteToday",,"T") -> 0.002 | W6: Open | X6: =TEXT(RTD("cqg.rtd", ,"ContractData",'Sheet3 (2)'!$D$12, "Open",, "T"),'Sheet3 (2)'!$F$17) -> 3.051 | Y6: High | Z6: =TEXT(RTD("cqg.rtd", ,"ContractData",'Sheet3 (2)'!$D$12, "High",, "T"),'Sheet3 (2)'!$F$17) -> 3.053 | AA6: Low | AB6: =TEXT(RTD("cqg.rtd", ,"ContractData",'Sheet3 (2)'!$D$12, "Low",, "T"),'Sheet3 (2)'!$F$17) -> 2.976
M7: =IF(J6-H4<=B6,1,0) -> 0 | O7: =IF(H4-L6<=B6,1,0) -> 1 | AC7: =IF(Z6-X4<=R6,1,0) -> 0 | AE7: =IF(X4-AB6<=R6,1,0) -> 0
B8: =Sheet4!I85+1 -> 2 | C8: =RTD("cqg.rtd", ,"ContractData",Sheet3!$D$12, "MT_LastBidVolume",, "T") -> 337 | E8: =TEXT(RTD("cqg.rtd", ,"ContractData",Sheet3!$D$12, "Bid",, "T"),Sheet3!$F$17) -> 2762.50 | G8: =TEXT(RTD("cqg.rtd", ,"ContractData",Sheet3!$D$12, "Ask",, "T"),Sheet3!$F$17) -> 2762.75 | I8: =RTD("cqg.rtd", ,"ContractData",Sheet3!$D$12, "MT_LastAskVolume",, "T") -> 587 | K8: Top Correlation to: | M8: Highlight | R8: ='Sheet4 (2)'!I85+1 -> 2 | S8: =RTD("cqg.rtd", ,"ContractData",'Sheet3 (2)'!$D$12, "MT_LastBidVolume",, "T") -> 56 | U8: =TEXT(RTD("cqg.rtd", ,"ContractData",'Sheet3 (2)'!$D$12, "Bid",, "T"),'Sheet3 (2)'!$F$17) -> 2.986 | W8: =TEXT(RTD("cqg.rtd", ,"ContractData",'Sheet3 (2)'!$D$12, "Ask",, "T"),'Sheet3 (2)'!$F$17) -> 2.987 | Y8: =RTD("cqg.rtd", ,"ContractData",'Sheet3 (2)'!$D$12, "MT_LastAskVolume",, "T") -> 61 | AA8: Top Correlation to: | AC8: Highlight
K9: =IFERROR(Sheet4!G85,"") ->  | L9: =IFERROR(Sheet4!H85,"") ->  | M9: Reset | AA9: =IFERROR('Sheet4 (2)'!G85,"") -> 2018-06-15 | AB9: =IFERROR('Sheet4 (2)'!H85,"") -> 0.6852482889 | AC9: Reset
A10: =IF(M14=$O$1,1,0) -> 0 | Q10: =IF(AC14=$O$1,1,0) -> 0
A11: =IF(M15=$O$1,1,0) -> 0 | Q11: =IF(AC15=$O$1,1,0) -> 0
A12: 0 | M12: Bar Time | N12: Corr | O12: =IFERROR(IF(TIME(0,5,0)-(MOD(B2,1)-M13)<0,1,TIME(0,5,0)-(MOD(B2,1)-M13)),"") -> 00:01:20 | Q12: 0 | AC12: Bar Time | AD12: Corr | AE12: =IFERROR(IF(TIME(0,5,0)-(MOD(B2,1)-AC13)<0,1,TIME(0,5,0)-(MOD(B2,1)-AC13)),"") -> 00:01:20
A13: 0 | M13: =IFERROR(Sheet3!AC12,"") -> 08:30:00 | N13: Now | O13: % NC | Q13: 0 | AC13: =IFERROR('Sheet3 (2)'!AC12,"") -> 08:30:00 | AD13: Now | AE13: % NC
A14: 0 | M14: =IFERROR(Sheet3!AG1,"") -> 2018-06-14 | N14: =IFERROR(VLOOKUP(M14,Sheet4!$G$85:$H$93,2,FALSE),"") ->  | O14: =IFERROR(Sheet3!AH1,"") -> 0.003508456279 | Q14: 0 | AC14: =IFERROR('Sheet3 (2)'!AG1,"") -> 2018-06-11 | AD14: =IFERROR(VLOOKUP(AC14,'Sheet4 (2)'!$G$85:$H$93,2,FALSE),"") -> -0.6440611887 | AE14: =IFERROR('Sheet3 (2)'!AH1,"") -> 0.02214532872
A15: 0 | M15: =IFERROR(Sheet3!AG2,"") -> 2018-06-12 | N15: =IFERROR(VLOOKUP(M15,Sheet4!$G$85:$H$93,2,FALSE),"") ->  | O15: =IFERROR(Sheet3!AH2,"") -> 0.001435363775 | Q15: 0 | AC15: =IFERROR('Sheet3 (2)'!AG2,"") -> 2018-06-07 | AD15: =IFERROR(VLOOKUP(AC15,'Sheet4 (2)'!$G$85:$H$93,2,FALSE),"") -> -0.2995940899 | AE15: =IFERROR('Sheet3 (2)'!AH2,"") -> 0.02209944751
A16: 0 | M16: =IFERROR(Sheet3!AG3,"") -> 2018-06-13 | N16: =IFERROR(VLOOKUP(M16,Sheet4!$G$85:$H$93,2,FALSE),"") ->  | O16: =IFERROR(Sheet3!AH3,"") -> 0.001255267641 | Q16: 0 | AC16: =IFERROR('Sheet3 (2)'!AG3,"") -> 2018-06-15 | AD16: =IFERROR(VLOOKUP(AC16,'Sheet4 (2)'!$G$85:$H$93,2,FALSE),"") -> 0.6852482889 | AE16: =IFERROR('Sheet3 (2)'!AH3,"") -> 0.01247892074
A17: 0 | M17: =IFERROR(Sheet3!AG4,"") -> 2018-06-06 | N17: =IFERROR(VLOOKUP(M17,Sheet4!$G$85:$H$93,2,FALSE),"") ->  | O17: =IFERROR(Sheet3!AH4,"") -> 0.001179459263 | Q17: 1 | AC17: =IFERROR('Sheet3 (2)'!AG4,"") -> 2018-06-13 | AD17: =IFERROR(VLOOKUP(AC17,'Sheet4 (2)'!$G$85:$H$93,2,FALSE),"") -> 0.2784450495 | AE17: =IFERROR('Sheet3 (2)'!AH4,"") -> 0.00646478394
A18: 0 | M18: =IFERROR(Sheet3!AG5,"") -> 2018-06-11 | N18: =IFERROR(VLOOKUP(M18,Sheet4!$G$85:$H$93,2,FALSE),"") ->  | O18: =IFERROR(Sheet3!AH5,"") -> 0.0008984725966 | Q18: 0 | AC18: =IFERROR('Sheet3 (2)'!AG5,"") -> 2018-06-06 | AD18: =IFERROR(VLOOKUP(AC18,'Sheet4 (2)'!$G$85:$H$93,2,FALSE),"") -> 0.3037916398 | AE18: =IFERROR('Sheet3 (2)'!AH5,"") -> 0.004152249135
A19: =IF(M23=$O$1,1,0) -> 1 | M19: =IFERROR(Sheet3!AG6,"") -> 2018-06-07 | N19: =IFERROR(VLOOKUP(M19,Sheet4!$G$85:$H$93,2,FALSE),"") ->  | O19: =IFERROR(Sheet3!AH6,"") -> 0.0007204610951 | Q19: 0 | AC19: =IFERROR('Sheet3 (2)'!AG6,"") -> 2018-06-14 | AD19: =IFERROR(VLOOKUP(AC19,'Sheet4 (2)'!$G$85:$H$93,2,FALSE),"") -> -0.6880624621 | AE19: =IFERROR('Sheet3 (2)'!AH6,"") -> -0.0003374957813
M20: =IFERROR(Sheet3!AG7,"") -> 2018-06-05 | N20: =IFERROR(VLOOKUP(M20,Sheet4!$G$85:$H$93,2,FALSE),"") ->  | O20: =IFERROR(Sheet3!AH7,"") -> 0.0006364214929 | AC20: =IFERROR('Sheet3 (2)'!AG7,"") -> 2018-06-12 | AD20: =IFERROR(VLOOKUP(AC20,'Sheet4 (2)'!$G$85:$H$93,2,FALSE),"") -> 0.06718976643 | AE20: =IFERROR('Sheet3 (2)'!AH7,"") -> -0.003730077993
M21: =IFERROR(Sheet3!AG8,"") -> 2018-06-08 | N21: =IFERROR(VLOOKUP(M21,Sheet4!$G$85:$H$93,2,FALSE),"") ->  | O21: =IFERROR(Sheet3!AH8,"") -> -0.002971902017 | AC21: =IFERROR('Sheet3 (2)'!AG8,"") -> 2018-06-18 | AD21: =IFERROR(VLOOKUP(AC21,'Sheet4 (2)'!$G$85:$H$93,2,FALSE),"") ->  | AE21: =IFERROR('Sheet3 (2)'!AH8,"") -> -0.01158173395
M22: =IFERROR(Sheet3!AG9,"") -> 2018-06-15 | N22: =IFERROR(VLOOKUP(M22,Sheet4!$G$85:$H$93,2,FALSE),"") ->  | O22: =IFERROR(Sheet3!AH9,"") -> -0.00448269679 | AC22: =IFERROR('Sheet3 (2)'!AG9,"") -> 2018-06-05 | AD22: =IFERROR(VLOOKUP(AC22,'Sheet4 (2)'!$G$85:$H$93,2,FALSE),"") -> 0.2537176761 | AE22: =IFERROR('Sheet3 (2)'!AH9,"") -> -0.01467576792
M23: =IFERROR(Sheet3!AG10,"") -> 2018-06-18 | N23: =IFERROR(VLOOKUP(M23,Sheet4!$G$85:$H$93,2,FALSE),"") ->  | O23: =IFERROR(Sheet3!AH10,"") -> -0.007811097145 | AC23: =IFERROR('Sheet3 (2)'!AG10,"") -> 2018-06-08 | AD23: =IFERROR(VLOOKUP(AC23,'Sheet4 (2)'!$G$85:$H$93,2,FALSE),"") -> 0.4037133836 | AE23: =IFERROR('Sheet3 (2)'!AH10,"") -> -0.0156996587
B28: Primary Session: 8:30 - 15:15 | R28: Primary Session 8:00 - 13:30
B30: Symbol | D30: FOREX | F30: =IF(RTD("cqg.rtd", ,"ContractData",'Sheet3 (3)'!$D$12, "NetLastTradeToday",, "T")="","",IF(RTD("cqg.rtd", ,"ContractData",'Sheet3 (3)'!$D$12, "NetLastTradeToday",, "T")>=0,"+",0)) -> 0 | G30: Last | H30: =TEXT(RTD("cqg.rtd", ,"ContractData",'Sheet3 (3)'!$D$12, "LastTradeToday",, "T"),'Sheet3 (3)'!$F$17) -> 1.16805 | J30: Net | K30: =IF(F30="","",IF(F30="+","+"&TEXT(RTD("cqg.rtd", ,"ContractData",'Sheet3 (3)'!$D$12, "NetLastTradeToday",, "T"),'Sheet3 (3)'!$F$17),TEXT(RTD("cqg.rtd", ,"ContractData",'Sheet3 (3)'!$D$12, "NetLastTradeToday",, "T"),'Sheet3 (3)'!$F$17))) -> -.00055 | M30: Net $ Change | R30: Symbol | T30: Fixed Income | V30: =IF(RTD("cqg.rtd", ,"ContractData",'Sheet3 (4)'!$D$12, "NetLastTradeToday",, "T")>=0,"+",0) -> + | W30: Last | X30: =IF('Sheet3 (4)'!F16="B",RTD("cqg.rtd", ,"ContractData",'Sheet3 (4)'!$D$12, "LastTradeToday",, "B"),TEXT(RTD("cqg.rtd", ,"ContractData",'Sheet3 (4)'!$D$12, "LastTradeToday",, "T"),'Sheet3 (4)'!$F$16)) -> 119.703125 | Z30: Net | AA30: =IF(V30="+",""&(IF('Sheet3 (4)'!F16="B",RTD("cqg.rtd",,"ContractData",'Sheet3 (4)'!$D$12,"NetLastTradeToday",,"B"),TEXT(RTD("cqg.rtd",,"ContractData",'Sheet3 (4)'!$D$12,"NetLastTradeToday",,"T"),'Sheet3 (4)'!$F$16))),IF('Sheet3 (4)'!F16="B",RTD("cqg.rtd",,"ContractData",'Sheet3 (4)'!$D$12,"NetLastTradeToday",,"B"),TEXT(RTD("cqg.rtd",,"ContractData",'Sheet3 (4)'!$D$12,"NetLastTradeToday",,"T"),'Sheet3 (4)'!$F$16))) -> +0.109375 | AC30: Net $ Change
B31: EU6 | C31: =" "&RTD("cqg.rtd", ,"ContractData",'Sheet3 (3)'!$D$12, "LongDescription",, "T")&" " -> Euro FX (Globex), Sep 18 | G31: Trade | J31: Change | M31: =IFERROR(1/RTD("cqg.rtd",,"ContractData","Tsize("&B31&")","LastQuoteToday",,"T")*RTD("cqg.rtd",,"ContractData","PriceToDollar(Tsize("&B31&"))","LastQuoteToday")*RTD("cqg.rtd", ,"ContractData", B31, "NetLastTrade"),"") -> -68.75 | R31: TYA | S31: =" "&RTD("cqg.rtd", ,"ContractData",'Sheet3 (4)'!D12, "LongDescription",, "T")&" " -> 10yr US Treasury Notes (Globex), Sep 18 | W31: Trade | Z31: Change | AC31: =IFERROR(1/RTD("cqg.rtd",,"ContractData","Tsize("&R31&")","LastQuoteToday",,"T")*RTD("cqg.rtd",,"ContractData","PriceToDollar(Tsize("&R31&"))","LastQuoteToday")*RTD("cqg.rtd", ,"ContractData", R31, "NetLastTrade",,"T"),"") -> 109.375
B32: =2*RTD("cqg.rtd",,"ContractData","Tsize("&B31&")","LastQuoteToday",,"T") -> 0.0001 | G32: Open | H32: =TEXT(RTD("cqg.rtd", ,"ContractData",'Sheet3 (3)'!$D$12, "Open",, "T"),'Sheet3 (3)'!$F$17) -> 1.16760 | I32: High | J32: =TEXT(RTD("cqg.rtd", ,"ContractData",'Sheet3 (3)'!$D$12, "High",, "T"),'Sheet3 (3)'!$F$17) -> 1.17040 | K32: Low | L32: =TEXT(RTD("cqg.rtd", ,"ContractData",'Sheet3 (3)'!$D$12, "Low",, "T"),'Sheet3 (3)'!$F$17) -> 1.16445 | R32: =2*RTD("cqg.rtd",,"ContractData","Tsize("&R31&")","LastQuoteToday",,"T") -> 0.03125 | W32: Open | X32: =IF('Sheet3 (4)'!F16="B",RTD("cqg.rtd", ,"ContractData",'Sheet3 (4)'!$D$12, "Open",, "B"),TEXT(RTD("cqg.rtd", ,"ContractData",'Sheet3 (4)'!$D$12, "Open",, "T"),'Sheet3 (4)'!$F$16)) -> 119.609375 | Y32: High | Z32: =IF('Sheet3 (4)'!F16="B",RTD("cqg.rtd", ,"ContractData",'Sheet3 (4)'!$D$12, "High",, "B"),TEXT(RTD("cqg.rtd", ,"ContractData",'Sheet3 (4)'!$D$12, "High",, "T"),'Sheet3 (4)'!$F$16)) -> 119.781250 | AA32: Low | AB32: =IF('Sheet3 (4)'!F16="B",RTD("cqg.rtd", ,"ContractData",'Sheet3 (4)'!$D$12, "Low",, "B"),TEXT(RTD("cqg.rtd", ,"ContractData",'Sheet3 (4)'!$D$12, "Low",, "T"),'Sheet3 (4)'!$F$16)) -> 119.593750
M33: =IF(J32-H30<=B32,1,0) -> 0 | O33: =IF(H30-L32<=B32,1,0) -> 0 | AC33: =IF(RTD("cqg.rtd", ,"ContractData",'Sheet3 (4)'!$D$12, "High",, "T")-RTD("cqg.rtd", ,"ContractData",'Sheet3 (4)'!$D$12, "LastTrade",, "T")<=R32,1,0) -> 0 | AE33: =IF(RTD("cqg.rtd", ,"ContractData",'Sheet3 (4)'!$D$12, "LastTrade",, "T")-RTD("cqg.rtd", ,"ContractData",'Sheet3 (4)'!$D$12, "Low",, "T")<=R32,1,0) -> 0
B34: ='Sheet4 (3)'!I93+1 -> 3 | C34: =RTD("cqg.rtd", ,"ContractData",'Sheet3 (3)'!$D$12, "MT_LastBidVolume",, "T") -> 21 | E34: =TEXT(RTD("cqg.rtd", ,"ContractData",'Sheet3 (3)'!$D$12, "Bid",, "T"),'Sheet3 (3)'!$F$17) -> 1.16805 | G34: =TEXT(RTD("cqg.rtd", ,"ContractData",'Sheet3 (3)'!$D$12, "Ask",, "T"),'Sheet3 (3)'!$F$17) -> 1.16810 | I34: =RTD("cqg.rtd", ,"ContractData",'Sheet3 (3)'!$D$12, "MT_LastAskVolume",, "T") -> 6 | K34: Top Correlation to: | M34: Highlight | R34: ='Sheet4 (4)'!I93+1 -> 10 | S34: =RTD("cqg.rtd", ,"ContractData",'Sheet3 (4)'!$D$12, "MT_LastBidVolume",, "T") -> 1462 | U34: =IF('Sheet3 (4)'!F16="B",RTD("cqg.rtd", ,"ContractData",'Sheet3 (4)'!$D$12, "Bid",, "B"),TEXT(RTD("cqg.rtd", ,"ContractData",'Sheet3 (4)'!$D$12, "Bid",, "T"),'Sheet3 (4)'!$F$16)) -> 119.703125 | W34: =IF('Sheet3 (4)'!F16="B",RTD("cqg.rtd", ,"ContractData",'Sheet3 (4)'!$D$12, "Ask",, "B"),TEXT(RTD("cqg.rtd", ,"ContractData",'Sheet3 (4)'!$D$12, "Ask",, "T"),'Sheet3 (4)'!$F$16)) -> 119.718750 | Y34: =RTD("cqg.rtd", ,"ContractData",'Sheet3 (4)'!$D$12, "MT_LastAskVolume",, "T") -> 2520 | AA34: Top Correlation to: | AC34: Highlight
K35: =IFERROR('Sheet4 (3)'!G93,"") -> 2018-06-14 | L35: =IFERROR('Sheet4 (3)'!H93,"") -> 0.8227824734 | M35: Reset | AA35: =IFERROR('Sheet4 (4)'!G93,"") -> 2018-06-05 | AB35: =IFERROR('Sheet4 (4)'!H93,"") -> 0.9536459298 | AC35: Reset
A36: =IF(M40=$O$1,1,0) -> 0 | Q36: =IF(AC40=$O$1,1,0) -> 0
A37: =IF(M41=$O$1,1,0) -> 0 | Q37: =IF(AC41=$O$1,1,0) -> 0
A38: 0 | M38: Bar Time | N38: Corr | O38: =IFERROR(IF(TIME(0,5,0)-(MOD(B2,1)-M39)<0,1,TIME(0,5,0)-(MOD(B2,1)-M39)),"") -> 00:01:20 | Q38: 0 | AC38: Bar Time | AD38: Corr | AE38: =IFERROR(IF(TIME(0,5,0)-(MOD(B2,1)-AC39)<0,1,TIME(0,5,0)-(MOD(B2,1)-AC39)),"") -> 00:01:20
A39: 0 | M39: =IFERROR('Sheet3 (3)'!AC12,"") -> 08:30:00 | N39: Now | O39: % NC | Q39: 1 | AC39: =IFERROR('Sheet3 (4)'!AC12,"") -> 08:30:00 | AD39: Now | AE39: % NC
A40: 0 | M40: =IFERROR('Sheet3 (3)'!AG1,"") -> 2018-06-06 | N40: =IFERROR(VLOOKUP(M40,'Sheet4 (3)'!$G$93:$H$101,2,FALSE),"") -> -0.2777493264 | O40: =IFERROR('Sheet3 (3)'!AH1,"") -> 0.005166864306 | Q40: 0 | AC40: =IFERROR('Sheet3 (4)'!AG1,"") -> 2018-06-15 | AD40: =IFERROR(VLOOKUP(AC40,'Sheet4 (4)'!$G$93:$H$101,2,FALSE),"") -> -0.3932917016 | AE40: =IFERROR('Sheet3 (4)'!AH1,"") -> 0.002485609628
A41: 0 | M41: =IFERROR('Sheet3 (3)'!AG2,"") -> 2018-06-07 | N41: =IFERROR(VLOOKUP(M41,'Sheet4 (3)'!$G$93:$H$101,2,FALSE),"") -> 0.3814562725 | O41: =IFERROR('Sheet3 (3)'!AH2,"") -> 0.004890181696 | Q41: 0 | AC41: =IFERROR('Sheet3 (4)'!AG2,"") -> 2018-06-14 | AD41: =IFERROR(VLOOKUP(AC41,'Sheet4 (4)'!$G$93:$H$101,2,FALSE),"") -> 0.7979614178 | AE41: =IFERROR('Sheet3 (4)'!AH2,"") -> 0.001835343471
A42: 1 | M42: =IFERROR('Sheet3 (3)'!AG3,"") -> 2018-06-11 | N42: =IFERROR(VLOOKUP(M42,'Sheet4 (3)'!$G$93:$H$101,2,FALSE),"") -> -0.2237314571 | O42: =IFERROR('Sheet3 (3)'!AH3,"") -> 0.002782462057 | Q42: 0 | AC42: =IFERROR('Sheet3 (4)'!AG3,"") -> 2018-06-05 | AD42: =IFERROR(VLOOKUP(AC42,'Sheet4 (4)'!$G$93:$H$101,2,FALSE),"") -> 0.9536459298 | AE42: =IFERROR('Sheet3 (4)'!AH3,"") -> 0.001307531381
A43: 0 | M43: =IFERROR('Sheet3 (3)'!AG4,"") -> 2018-06-15 | N43: =IFERROR(VLOOKUP(M43,'Sheet4 (3)'!$G$93:$H$101,2,FALSE),"") -> -0.8866966743 | O43: =IFERROR('Sheet3 (3)'!AH4,"") -> 0.0020561148 | Q43: 0 | AC43: =IFERROR('Sheet3 (4)'!AG4,"") -> 2018-06-18 | AD43: =IFERROR(VLOOKUP(AC43,'Sheet4 (4)'!$G$93:$H$101,2,FALSE),"") ->  | AE43: =IFERROR('Sheet3 (4)'!AH4,"") -> 0.0009145544813
A44: 0 | M44: =IFERROR('Sheet3 (3)'!AG5,"") -> 2018-06-13 | N44: =IFERROR(VLOOKUP(M44,'Sheet4 (3)'!$G$93:$H$101,2,FALSE),"") -> -0.3263779665 | O44: =IFERROR('Sheet3 (3)'!AH5,"") -> 0.001985468064 | Q44: 0 | AC44: =IFERROR('Sheet3 (4)'!AG5,"") -> 2018-06-08 | AD44: =IFERROR(VLOOKUP(AC44,'Sheet4 (4)'!$G$93:$H$101,2,FALSE),"") -> -0.2958039892 | AE44: =IFERROR('Sheet3 (4)'!AH5,"") -> 0.0001306506402
A45: 0 | M45: =IFERROR('Sheet3 (3)'!AG6,"") -> 2018-06-12 | N45: =IFERROR(VLOOKUP(M45,'Sheet4 (3)'!$G$93:$H$101,2,FALSE),"") -> 0.6344369414 | O45: =IFERROR('Sheet3 (3)'!AH6,"") -> 0.0003789154598 | Q45: 0 | AC45: =IFERROR('Sheet3 (4)'!AG6,"") -> 2018-06-13 | AD45: =IFERROR(VLOOKUP(AC45,'Sheet4 (4)'!$G$93:$H$101,2,FALSE),"") -> 1.526611706e-16 | AE45: =IFERROR('Sheet3 (4)'!AH6,"") -> 0
M46: =IFERROR('Sheet3 (3)'!AG7,"") -> 2018-06-18 | N46: =IFERROR(VLOOKUP(M46,'Sheet4 (3)'!$G$93:$H$101,2,FALSE),"") ->  | O46: =IFERROR('Sheet3 (3)'!AH7,"") -> -0.0004706486394 | AC46: =IFERROR('Sheet3 (4)'!AG7,"") -> 2018-06-07 | AD46: =IFERROR(VLOOKUP(AC46,'Sheet4 (4)'!$G$93:$H$101,2,FALSE),"") -> -0.1343709625 | AE46: =IFERROR('Sheet3 (4)'!AH7,"") -> 0
M47: =IFERROR('Sheet3 (3)'!AG8,"") -> 2018-06-05 | N47: =IFERROR(VLOOKUP(M47,'Sheet4 (3)'!$G$93:$H$101,2,FALSE),"") -> -0.6194396702 | O47: =IFERROR('Sheet3 (3)'!AH8,"") -> -0.002544205572 | AC47: =IFERROR('Sheet3 (4)'!AG8,"") -> 2018-06-12 | AD47: =IFERROR(VLOOKUP(AC47,'Sheet4 (4)'!$G$93:$H$101,2,FALSE),"") -> -0.7066887458 | AE47: =IFERROR('Sheet3 (4)'!AH8,"") -> -0.001046572475
M48: =IFERROR('Sheet3 (3)'!AG9,"") -> 2018-06-08 | N48: =IFERROR(VLOOKUP(M48,'Sheet4 (3)'!$G$93:$H$101,2,FALSE),"") -> -0.8583178347 | O48: =IFERROR('Sheet3 (3)'!AH9,"") -> -0.003487981173 | AC48: =IFERROR('Sheet3 (4)'!AG9,"") -> 2018-06-11 | AD48: =IFERROR(VLOOKUP(AC48,'Sheet4 (4)'!$G$93:$H$101,2,FALSE),"") -> 0.5642880936 | AE48: =IFERROR('Sheet3 (4)'!AH9,"") -> -0.001829108963
M49: =IFERROR('Sheet3 (3)'!AG10,"") -> 2018-06-14 | N49: =IFERROR(VLOOKUP(M49,'Sheet4 (3)'!$G$93:$H$101,2,FALSE),"") -> 0.8227824734 | O49: =IFERROR('Sheet3 (3)'!AH10,"") -> -0.008306278197 | AC49: =IFERROR('Sheet3 (4)'!AG10,"") -> 2018-06-06 | AD49: =IFERROR(VLOOKUP(AC49,'Sheet4 (4)'!$G$93:$H$101,2,FALSE),"") -> 0.4930066486 | AE49: =IFERROR('Sheet3 (4)'!AH10,"") -> -0.002219031458
B54: Session: 8:00 - 15:15 | R54: Session: 8:00 - 14:00
D55: Copyright © 2018 | J55: Designed by Thom Hartle

Sheet Sheet3 (hidden)
A1: 0 | B1: 08:30:00 | C1: =IF(WEEKDAY(TODAY())=7,TODAY()-1,IF(WEEKDAY(TODAY())=1,TODAY()-2,TODAY())) -> 2018-06-18 | D1: =YEAR(C1) -> 2018 | E1: =MONTH(C1) -> 6 | F1: =DAY(C1) -> 18 | H1: =RTD("cqg.rtd",,"StudyData", "Close("&$D$12&") when LocalYear("&$D$12&")="&$D$1&" and localMonth("&$D$12&") ="&$E$1&" and LocalDay("&$D$12&")="&$F$1&" and Barix("&$D$12&",reference:=StartOfSession)="&A1&"", "Bar", "", "Close","5","0","PrimaryOnly",,,"False","T","EveryTick") -> 2762.75 | I1: =IFERROR((H1-$G$2)/$G$2,NA()) -> -0.007811097145 | J1: =RTD("cqg.rtd",,"StudyData", "Close("&$D$12&") when LocalYear("&$D$12&")="&$D$2&" and localMonth("&$D$12&") ="&$E$2&" and LocalDay("&$D$12&")="&$F$2&" and Barix("&$D$12&",reference:=StartOfSession)="&A1&"", "Bar", "", "Close","5","0","PrimaryOnly",,,"False","T","EveryTick") -> 2776 | K1: =IFERROR((J1-$G$3)/$G$3,NA()) -> -0.00448269679 | L1: =RTD("cqg.rtd",,"StudyData", "Close("&$D$12&") when LocalYear("&$D$12&")="&$D$3&" and localMonth("&$D$12&") ="&$E$3&" and LocalDay("&$D$12&")="&$F$3&" and Barix("&$D$12&",reference:=StartOfSession)="&A1&"", "Bar", "", "Close","5","0","PrimaryOnly",,,"False","T","EveryTick") -> 2788.75 | M1: =IFERROR((L1-$G$4)/$G$4,NA()) -> 0.003508456279 | N1: =RTD("cqg.rtd",,"StudyData", "Close("&$D$12&") when LocalYear("&$D$12&")="&$D$4&" and localMonth("&$D$12&") ="&$E$4&" and LocalDay("&$D$12&")="&$F$4&" and Barix("&$D$12&",reference:=StartOfSession)="&A1&"", "Bar", "", "Close","5","0","PrimaryOnly",,,"False","T","EveryTick") -> 2791.75 | O1: =IFERROR((N1-$G$5)/$G$5,NA()) -> 0.001255267641 | P1: =RTD("cqg.rtd",,"StudyData", "Close("&$D$12&") when LocalYear("&$D$12&")="&$D$5&" and localMonth("&$D$12&") ="&$E$5&" and LocalDay("&$D$12&")="&$F$5&" and Barix("&$D$12&",reference:=StartOfSession)="&A1&"", "Bar", "", "Close","5","0","PrimaryOnly",,,"False","T","EveryTick") -> 2790.75 | Q1: =IFERROR((P1-$G$6)/$G$6,NA()) -> 0.001435363775 | R1: =RTD("cqg.rtd",,"StudyData", "Close("&$D$12&") when LocalYear("&$D$12&")="&$D$6&" and localMonth("&$D$12&") ="&$E$6&" and LocalDay("&$D$12&")="&$F$6&" and Barix("&$D$12&",reference:=StartOfSession)="&A1&"", "Bar", "", "Close","5","0","PrimaryOnly",,,"False","T","EveryTick") -> 2785 | S1: =IFERROR((R1-$G$7)/$G$7,NA()) -> 0.0008984725966 | T1: =RTD("cqg.rtd",,"StudyData", "Close("&$D$12&") when LocalYear("&$D$12&")="&$D$7&" and localMonth("&$D$12&") ="&$E$7&" and LocalDay("&$D$12&")="&$F$7&" and Barix("&$D$12&",reference:=StartOfSession)="&A1&"", "Bar", "", "Close","5","0","PrimaryOnly",,,"False","T","EveryTick") -> 2767.75 | U1: =IFERROR((T1-$G$8)/$G$8,NA()) -> -0.002971902017 | V1: =RTD("cqg.rtd",,"StudyData", "Close("&$D$12&") when LocalYear("&$D$12&")="&$D$8&" and localMonth("&$D$12&") ="&$E$8&" and LocalDay("&$D$12&")="&$F$8&" and Barix("&$D$12&",reference:=StartOfSession)="&A1&"", "Bar", "", "Close","5","0","PrimaryOnly",,,"False","T","EveryTick") -> 2778 | W1: =IFERROR((V1-$G$9)/$G$9,NA()) -> 0.0007204610951 | X1: =RTD("cqg.rtd",,"StudyData", "Close("&$D$12&") when LocalYear("&$D$12&")="&$D$9&" and localMonth("&$D$12&") ="&$E$9&" and LocalDay("&$D$12&")="&$F$9&" and Barix("&$D$12&",reference:=StartOfSession)="&A1&"", "Bar", "", "Close","5","0","PrimaryOnly",,,"False","T","EveryTick") -> 2758.75 | Y1: =IFERROR((X1-$G$10)/$G$10,NA()) -> 0.001179459263 | Z1: =RTD("cqg.rtd",,"StudyData", "Close("&$D$12&") when LocalYear("&$D$12&")="&$D$10&" and localMonth("&$D$12&") ="&$E$10&" and LocalDay("&$D$12&")="&$F$10&" and Barix("&$D$12&",reference:=StartOfSession)="&A1&"", "Bar", "", "Close","5","0","PrimaryOnly",,,"False","T","EveryTick") -> 2751.5 | AA1: =IFERROR((Z1-$G$11)/$G$11,NA()) -> 0.0006364214929 | AB1: =RANK(AD1,$AD$1:$AD$10)+COUNTIF($AD$1:AD1,AD1)-1 -> 10 | AC1: =DATE(D1,E1,F1) -> 2018-06-18 | AD1: =VLOOKUP(MAX(AE2:AE81),A1:I81,9,FALSE) -> -0.007811097145 | AF1: 1 | AG1: =VLOOKUP(AF1,$AB$1:$AD$10,2,FALSE) -> 2018-06-14 | AH1: =VLOOKUP(AF1,$AB$1:$AD$10,3,FALSE) -> 0.003508456279 | AK1: =AG1 -> 2018-06-14 | AL1: =AC1 -> 2018-06-18 | AM1: 0 | AN1: =VLOOKUP(AK1,$AL$1:$AM$10,2,FALSE) -> 2
A2: =A1+1 -> 1 | B2: 08:35:00 | C2: =WORKDAY(C1,-G27) -> 2018-06-15 | D2: =YEAR(C2) -> 2018 | E2: =MONTH(C2) -> 6 | F2: =DAY(C2) -> 15 | G2: =RTD("cqg.rtd",,"StudyData", "Close("&$D$12&") when LocalYear("&$D$12&")="&D2&" and localMonth("&$D$12&") ="&E2&" and LocalDay("&$D$12&")="&F2&" and Barix("&$D$12&",reference:=StartOfSession)=80", "Bar", "", "Close","5","0","PrimaryOnly",,,"False","T","EveryTick") -> 2784.5 | H2: =RTD("cqg.rtd",,"StudyData", "Close("&$D$12&") when LocalYear("&$D$12&")="&$D$1&" and localMonth("&$D$12&") ="&$E$1&" and LocalDay("&$D$12&")="&$F$1&" and Barix("&$D$12&",reference:=StartOfSession)="&A2&"", "Bar", "", "Close","5","0","PrimaryOnly",,,"False","T","EveryTick") ->  | I2: =IFERROR((H2-$G$2)/$G$2,NA()) ->  | J2: =RTD("cqg.rtd",,"StudyData", "Close("&$D$12&") when LocalYear("&$D$12&")="&$D$2&" and localMonth("&$D$12&") ="&$E$2&" and LocalDay("&$D$12&")="&$F$2&" and Barix("&$D$12&",reference:=StartOfSession)="&A2&"", "Bar", "", "Close","5","0","PrimaryOnly",,,"False","T","EveryTick") -> 2775.5 | K2: =IFERROR((J2-$G$3)/$G$3,NA()) -> -0.004662004662 | L2: =RTD("cqg.rtd",,"StudyData", "Close("&$D$12&") when LocalYear("&$D$12&")="&$D$3&" and localMonth("&$D$12&") ="&$E$3&" and LocalDay("&$D$12&")="&$F$3&" and Barix("&$D$12&",reference:=StartOfSession)="&A2&"", "Bar", "", "Close","5","0","PrimaryOnly",,,"False","T","EveryTick") -> 2789.5 | M2: =IFERROR((L2-$G$4)/$G$4,NA()) -> 0.003778337531 | N2: =RTD("cqg.rtd",,"StudyData", "Close("&$D$12&") when LocalYear("&$D$12&")="&$D$4&" and localMonth("&$D$12&") ="&$E$4&" and LocalDay("&$D$12&")="&$F$4&" and Barix("&$D$12&",reference:=StartOfSession)="&A2&"", "Bar", "", "Close","5","0","PrimaryOnly",,,"False","T","EveryTick") -> 2792.75 | O2: =IFERROR((N2-$G$5)/$G$5,NA()) -> 0.001613915538 | P2: =RTD("cqg.rtd",,"StudyData", "Close("&$D$12&") when LocalYear("&$D$12&")="&$D$5&" and localMonth("&$D$12&") ="&$E$5&" and LocalDay("&$D$12&")="&$F$5&" and Barix("&$D$12&",reference:=StartOfSession)="&A2&"", "Bar", "", "Close","5","0","PrimaryOnly",,,"False","T","EveryTick") -> 2789.25 | Q2: =IFERROR((P2-$G$6)/$G$6,NA()) -> 0.0008971023594 | R2: =RTD("cqg.rtd",,"StudyData", "Close("&$D$12&") when LocalYear("&$D$12&")="&$D$6&" and localMonth("&$D$12&") ="&$E$6&" and LocalDay("&$D$12&")="&$F$6&" and Barix("&$D$12&",reference:=StartOfSession)="&A2&"", "Bar", "", "Close","5","0","PrimaryOnly",,,"False","T","EveryTick") -> 2785.5 | S2: =IFERROR((R2-$G$7)/$G$7,NA()) -> 0.001078167116 | T2: =RTD("cqg.rtd",,"StudyData", "Close("&$D$12&") when LocalYear("&$D$12&")="&$D$7&" and localMonth("&$D$12&") ="&$E$7&" and LocalDay("&$D$12&")="&$F$7&" and Barix("&$D$12&",reference:=StartOfSession)="&A2&"", "Bar", "", "Close","5","0","PrimaryOnly",,,"False","T","EveryTick") -> 2769 | U2: =IFERROR((T2-$G$8)/$G$8,NA()) -> -0.002521613833 | V2: =RTD("cqg.rtd",,"StudyData", "Close("&$D$12&") when LocalYear("&$D$12&")="&$D$8&" and localMonth("&$D$12&") ="&$E$8&" and LocalDay("&$D$12&")="&$F$8&" and Barix("&$D$12&",reference:=StartOfSession)="&A2&"", "Bar", "", "Close","5","0","PrimaryOnly",,,"False","T","EveryTick") -> 2778.5 | W2: =IFERROR((V2-$G$9)/$G$9,NA()) -> 0.0009005763689 | X2: =RTD("cqg.rtd",,"StudyData", "Close("&$D$12&") when LocalYear("&$D$12&")="&$D$9&" and localMonth("&$D$12&") ="&$E$9&" and LocalDay("&$D$12&")="&$F$9&" and Barix("&$D$12&",reference:=StartOfSession)="&A2&"", "Bar", "", "Close","5","0","PrimaryOnly",,,"False","T","EveryTick") -> 2759.75 | Y2: =IFERROR((X2-$G$10)/$G$10,NA()) -> 0.001542369806 | Z2: =RTD("cqg.rtd",,"StudyData", "Close("&$D$12&") when LocalYear("&$D$12&")="&$D$10&" and localMonth("&$D$12&") ="&$E$10&" and LocalDay("&$D$12&")="&$F$10&" and Barix("&$D$12&",reference:=StartOfSession)="&A2&"", "Bar", "", "Close","5","0","PrimaryOnly",,,"False","T","EveryTick") -> 2751 | AA2: =IFERROR((Z2-$G$11)/$G$11,NA()) -> 0.0004545867806 | AB2: =RANK(AD2,$AD$1:$AD$10)+COUNTIF($AD$1:AD2,AD2)-1 -> 9 | AC2: =DATE(D2,E2,F2) -> 2018-06-15 | AD2: =VLOOKUP(MAX(AE2:AE81),A1:K81,11,FALSE) -> -0.00448269679 | AE2: =IF(AND(H1<>"",H2<>"",H3=""),A2,"") ->  | AF2: 2 | AG2: =VLOOKUP(AF2,$AB$1:$AD$10,2,FALSE) -> 2018-06-12 | AH2: =VLOOKUP(AF2,$AB$1:$AD$10,3,FALSE) -> 0.001435363775 | AK2: =AG2 -> 2018-06-12 | AL2: =AC2 -> 2018-06-15 | AM2: 1 | AN2: =VLOOKUP(AK2,$AL$1:$AM$10,2,FALSE) -> 4
A3: =A2+1 -> 2 | B3: 08:40:00 | C3: =WORKDAY(C2,-G28) -> 2018-06-14 | D3: 2018 | E3: 6 | F3: 14 | G3: =RTD("cqg.rtd",,"StudyData", "Close("&$D$12&") when LocalYear("&$D$12&")="&D3&" and localMonth("&$D$12&") ="&E3&" and LocalDay("&$D$12&")="&F3&" and Barix("&$D$12&",reference:=StartOfSession)=80", "Bar", "", "Close","5","0","PrimaryOnly",,,"False","T","EveryTick") -> 2788.5 | H3: =RTD("cqg.rtd",,"StudyData", "Close("&$D$12&") when LocalYear("&$D$12&")="&$D$1&" and localMonth("&$D$12&") ="&$E$1&" and LocalDay("&$D$12&")="&$F$1&" and Barix("&$D$12&",reference:=StartOfSession)="&A3&"", "Bar", "", "Close","5","0","PrimaryOnly",,,"False","T","EveryTick") ->  | I3: =IFERROR((H3-$G$2)/$G$2,NA()) ->  | J3: =RTD("cqg.rtd",,"StudyData", "Close("&$D$12&") when LocalYear("&$D$12&")="&$D$2&" and localMonth("&$D$12&") ="&$E$2&" and LocalDay("&$D$12&")="&$F$2&" and Barix("&$D$12&",reference:=StartOfSession)="&A3&"", "Bar", "", "Close","5","0","PrimaryOnly",,,"False","T","EveryTick") -> 2774.5 | K3: -0.005020620405 | L3: =RTD("cqg.rtd",,"StudyData", "Close("&$D$12&") when LocalYear("&$D$12&")="&$D$3&" and localMonth("&$D$12&") ="&$E$3&" and LocalDay("&$D$12&")="&$F$3&" and Barix("&$D$12&",reference:=StartOfSession)="&A3&"", "Bar", "", "Close","5","0","PrimaryOnly",,,"False","T","EveryTick") -> 2788.75 | M3: 0.003508456279 | N3: =RTD("cqg.rtd",,"StudyData", "Close("&$D$12&") when LocalYear("&$D$12&")="&$D$4&" and localMonth("&$D$12&") ="&$E$4&" and LocalDay("&$D$12&")="&$F$4&" and Barix("&$D$12&",reference:=StartOfSession)="&A3&"", "Bar", "", "Close","5","0","PrimaryOnly",,,"False","T","EveryTick") -> 2792.75 | O3: 0.001613915538 | P3: =RTD("cqg.rtd",,"StudyData", "Close("&$D$12&") when LocalYear("&$D$12&")="&$D$5&" and localMonth("&$D$12&") ="&$E$5&" and LocalDay("&$D$12&")="&$F$5&" and Barix("&$D$12&",reference:=StartOfSession)="&A3&"", "Bar", "", "Close","5","0","PrimaryOnly",,,"False","T","EveryTick") -> 2788.5 | Q3: 0.0006279716516 | R3: =RTD("cqg.rtd",,"StudyData", "Close("&$D$12&") when LocalYear("&$D$12&")="&$D$6&" and localMonth("&$D$12&") ="&$E$6&" and LocalDay("&$D$12&")="&$F$6&" and Barix("&$D$12&",reference:=StartOfSession)="&A3&"", "Bar", "", "Close","5","0","PrimaryOnly",,,"False","T","EveryTick") -> 2787.5 | S3: 0.001796945193 | T3: =RTD("cqg.rtd",,"StudyData", "Close("&$D$12&") when LocalYear("&$D$12&")="&$D$7&" and localMonth("&$D$12&") ="&$E$7&" and LocalDay("&$D$12&")="&$F$7&" and Barix("&$D$12&",reference:=StartOfSession)="&A3&"", "Bar", "", "Close","5","0","PrimaryOnly",,,"False","T","EveryTick") -> 2769.25 | U3: -0.002431556196 | V3: =RTD("cqg.rtd",,"StudyData", "Close("&$D$12&") when LocalYear("&$D$12&")="&$D$8&" and localMonth("&$D$12&") ="&$E$8&" and LocalDay("&$D$12&")="&$F$8&" and Barix("&$D$12&",reference:=StartOfSession)="&A3&"", "Bar", "", "Close","5","0","PrimaryOnly",,,"False","T","EveryTick") -> 2780.25 | W3: 0.001530979827 | X3: =RTD("cqg.rtd",,"StudyData", "Close("&$D$12&") when LocalYear("&$D$12&")="&$D$9&" and localMonth("&$D$12&") ="&$E$9&" and LocalDay("&$D$12&")="&$F$9&" and Barix("&$D$12&",reference:=StartOfSession)="&A3&"", "Bar", "", "Close","5","0","PrimaryOnly",,,"False","T","EveryTick") -> 2759.5 | Y3: 0.00145164217 | Z3: =RTD("cqg.rtd",,"StudyData", "Close("&$D$12&") when LocalYear("&$D$12&")="&$D$10&" and localMonth("&$D$12&") ="&$E$10&" and LocalDay("&$D$12&")="&$F$10&" and Barix("&$D$12&",reference:=StartOfSession)="&A3&"", "Bar", "", "Close","5","0","PrimaryOnly",,,"False","T","EveryTick") -> 2752.25 | AA3: 0.0009091735612 | AB3: =RANK(AD3,$AD$1:$AD$10)+COUNTIF($AD$1:AD3,AD3)-1 -> 1 | AC3: 2018-06-14 | AD3: =VLOOKUP(MAX(AE2:AE81),A1:M81,13,FALSE) -> 0.003508456279 | AE3: =IF(AND(H2<>"",H3<>"",H4=""),A3,"") ->  | AF3: 3 | AG3: 2018-06-13 | AH3: 0.001255267641 | AK3: 2018-06-13 | AL3: 2018-06-14 | AM3: 2 | AN3: 3
A4: 3 | B4: 08:45:00 | C4: 2018-06-13 | D4: 2018 | E4: 6 | F4: 13 | G4: =RTD("cqg.rtd",,"StudyData", "Close("&$D$12&") when LocalYear("&$D$12&")="&D4&" and localMonth("&$D$12&") ="&E4&" and LocalDay("&$D$12&")="&F4&" and Barix("&$D$12&",reference:=StartOfSession)=80", "Bar", "", "Close","5","0","PrimaryOnly",,,"False","T","EveryTick") -> 2779 | H4: =RTD("cqg.rtd",,"StudyData", "Close("&$D$12&") when LocalYear("&$D$12&")="&$D$1&" and localMonth("&$D$12&") ="&$E$1&" and LocalDay("&$D$12&")="&$F$1&" and Barix("&$D$12&",reference:=StartOfSession)="&A4&"", "Bar", "", "Close","5","0","PrimaryOnly",,,"False","T","EveryTick") ->  | J4: =RTD("cqg.rtd",,"StudyData", "Close("&$D$12&") when LocalYear("&$D$12&")="&$D$2&" and localMonth("&$D$12&") ="&$E$2&" and LocalDay("&$D$12&")="&$F$2&" and Barix("&$D$12&",reference:=StartOfSession)="&A4&"", "Bar", "", "Close","5","0","PrimaryOnly",,,"False","T","EveryTick") -> 2777 | K4: -0.004124081047 | L4: =RTD("cqg.rtd",,"StudyData", "Close("&$D$12&") when LocalYear("&$D$12&")="&$D$3&" and localMonth("&$D$12&") ="&$E$3&" and LocalDay("&$D$12&")="&$F$3&" and Barix("&$D$12&",reference:=StartOfSession)="&A4&"", "Bar", "", "Close","5","0","PrimaryOnly",,,"False","T","EveryTick") -> 2788 | M4: 0.003238575027 | N4: =RTD("cqg.rtd",,"StudyData", "Close("&$D$12&") when LocalYear("&$D$12&")="&$D$4&" and localMonth("&$D$12&") ="&$E$4&" and LocalDay("&$D$12&")="&$F$4&" and Barix("&$D$12&",reference:=StartOfSession)="&A4&"", "Bar", "", "Close","5","0","PrimaryOnly",,,"False","T","EveryTick") -> 2793.25 | O4: 0.001793239487 | P4: =RTD("cqg.rtd",,"StudyData", "Close("&$D$12&") when LocalYear("&$D$12&")="&$D$5&" and localMonth("&$D$12&") ="&$E$5&" and LocalDay("&$D$12&")="&$F$5&" and Barix("&$D$12&",reference:=StartOfSession)="&A4&"", "Bar", "", "Close","5","0","PrimaryOnly",,,"False","T","EveryTick") -> 2787.75 | Q4: 0.0003588409438 | R4: =RTD("cqg.rtd",,"StudyData", "Close("&$D$12&") when LocalYear("&$D$12&")="&$D$6&" and localMonth("&$D$12&") ="&$E$6&" and LocalDay("&$D$12&")="&$F$6&" and Barix("&$D$12&",reference:=StartOfSession)="&A4&"", "Bar", "", "Close","5","0","PrimaryOnly",,,"False","T","EveryTick") -> 2786.5 | S4: 0.001437556155 | T4: =RTD("cqg.rtd",,"StudyData", "Close("&$D$12&") when LocalYear("&$D$12&")="&$D$7&" and localMonth("&$D$12&") ="&$E$7&" and LocalDay("&$D$12&")="&$F$7&" and Barix("&$D$12&",reference:=StartOfSession)="&A4&"", "Bar", "", "Close","5","0","PrimaryOnly",,,"False","T","EveryTick") -> 2768.5 | U4: -0.002701729107 | V4: =RTD("cqg.rtd",,"StudyData", "Close("&$D$12&") when LocalYear("&$D$12&")="&$D$8&" and localMonth("&$D$12&") ="&$E$8&" and LocalDay("&$D$12&")="&$F$8&" and Barix("&$D$12&",reference:=StartOfSession)="&A4&"", "Bar", "", "Close","5","0","PrimaryOnly",,,"False","T","EveryTick") -> 2782.5 | W4: 0.002341498559 | X4: =RTD("cqg.rtd",,"StudyData", "Close("&$D$12&") when LocalYear("&$D$12&")="&$D$9&" and localMonth("&$D$12&") ="&$E$9&" and LocalDay("&$D$12&")="&$F$9&" and Barix("&$D$12&",reference:=StartOfSession)="&A4&"", "Bar", "", "Close","5","0","PrimaryOnly",,,"False","T","EveryTick") -> 2756.75 | Y4: 0.0004536381782 | Z4: =RTD("cqg.rtd",,"StudyData", "Close("&$D$12&") when LocalYear("&$D$12&")="&$D$10&" and localMonth("&$D$12&") ="&$E$10&" and LocalDay("&$D$12&")="&$F$10&" and Barix("&$D$12&",reference:=StartOfSession)="&A4&"", "Bar", "", "Close","5","0","PrimaryOnly",,,"False","T","EveryTick") -> 2752.5 | AA4: 0.001000090917 | AB4: =RANK(AD4,$AD$1:$AD$10)+COUNTIF($AD$1:AD4,AD4)-1 -> 3 | AC4: 2018-06-13 | AD4: =VLOOKUP(MAX(AE2:AE81),A1:O81,15,FALSE) -> 0.001255267641 | AF4: 4 | AG4: 2018-06-06 | AH4: 0.001179459263 | AK4: 2018-06-06 | AL4: 2018-06-13 | AM4: 3 | AN4: 8
A5: 4 | B5: 08:50:00 | C5: 2018-06-12 | D5: 2018 | E5: 6 | F5: 12 | G5: =RTD("cqg.rtd",,"StudyData", "Close("&$D$12&") when LocalYear("&$D$12&")="&D5&" and localMonth("&$D$12&") ="&E5&" and LocalDay("&$D$12&")="&F5&" and Barix("&$D$12&",reference:=StartOfSession)=80", "Bar", "", "Close","5","0","PrimaryOnly",,,"False","T","EveryTick") -> 2788.25 | H5: =RTD("cqg.rtd",,"StudyData", "Close("&$D$12&") when LocalYear("&$D$12&")="&$D$1&" and localMonth("&$D$12&") ="&$E$1&" and LocalDay("&$D$12&")="&$F$1&" and Barix("&$D$12&",reference:=StartOfSession)="&A5&"", "Bar", "", "Close","5","0","PrimaryOnly",,,"False","T","EveryTick") ->  | J5: =RTD("cqg.rtd",,"StudyData", "Close("&$D$12&") when LocalYear("&$D$12&")="&$D$2&" and localMonth("&$D$12&") ="&$E$2&" and LocalDay("&$D$12&")="&$F$2&" and Barix("&$D$12&",reference:=StartOfSession)="&A5&"", "Bar", "", "Close","5","0","PrimaryOnly",,,"False","T","EveryTick") -> 2776.25 | K5: -0.004393042855 | L5: =RTD("cqg.rtd",,"StudyData", "Close("&$D$12&") when LocalYear("&$D$12&")="&$D$3&" and localMonth("&$D$12&") ="&$E$3&" and LocalDay("&$D$12&")="&$F$3&" and Barix("&$D$12&",reference:=StartOfSession)="&A5&"", "Bar", "", "Close","5","0","PrimaryOnly",,,"False","T","EveryTick") -> 2787.75 | M5: 0.00314861461 | N5: =RTD("cqg.rtd",,"StudyData", "Close("&$D$12&") when LocalYear("&$D$12&")="&$D$4&" and localMonth("&$D$12&") ="&$E$4&" and LocalDay("&$D$12&")="&$F$4&" and Barix("&$D$12&",reference:=StartOfSession)="&A5&"", "Bar", "", "Close","5","0","PrimaryOnly",,,"False","T","EveryTick") -> 2792 | O5: 0.001344929615 | P5: =RTD("cqg.rtd",,"StudyData", "Close("&$D$12&") when LocalYear("&$D$12&")="&$D$5&" and localMonth("&$D$12&") ="&$E$5&" and LocalDay("&$D$12&")="&$F$5&" and Barix("&$D$12&",reference:=StartOfSession)="&A5&"", "Bar", "", "Close","5","0","PrimaryOnly",,,"False","T","EveryTick") -> 2787.5 | Q5: 0.0002691307078 | R5: =RTD("cqg.rtd",,"StudyData", "Close("&$D$12&") when LocalYear("&$D$12&")="&$D$6&" and localMonth("&$D$12&") ="&$E$6&" and LocalDay("&$D$12&")="&$F$6&" and Barix("&$D$12&",reference:=StartOfSession)="&A5&"", "Bar", "", "Close","5","0","PrimaryOnly",,,"False","T","EveryTick") -> 2785.5 | S5: 0.001078167116 | T5: =RTD("cqg.rtd",,"StudyData", "Close("&$D$12&") when LocalYear("&$D$12&")="&$D$7&" and localMonth("&$D$12&") ="&$E$7&" and LocalDay("&$D$12&")="&$F$7&" and Barix("&$D$12&",reference:=StartOfSession)="&A5&"", "Bar", "", "Close","5","0","PrimaryOnly",,,"False","T","EveryTick") -> 2770 | U5: -0.002161383285 | V5: =RTD("cqg.rtd",,"StudyData", "Close("&$D$12&") when LocalYear("&$D$12&")="&$D$8&" and localMonth("&$D$12&") ="&$E$8&" and LocalDay("&$D$12&")="&$F$8&" and Barix("&$D$12&",reference:=StartOfSession)="&A5&"", "Bar", "", "Close","5","0","PrimaryOnly",,,"False","T","EveryTick") -> 2781.75 | W5: 0.002071325648 | X5: =RTD("cqg.rtd",,"StudyData", "Close("&$D$12&") when LocalYear("&$D$12&")="&$D$9&" and localMonth("&$D$12&") ="&$E$9&" and LocalDay("&$D$12&")="&$F$9&" and Barix("&$D$12&",reference:=StartOfSession)="&A5&"", "Bar", "", "Close","5","0","PrimaryOnly",,,"False","T","EveryTick") -> 2758 | Y5: 0.0009072763564 | Z5: =RTD("cqg.rtd",,"StudyData", "Close("&$D$12&") when LocalYear("&$D$12&")="&$D$10&" and localMonth("&$D$12&") ="&$E$10&" and LocalDay("&$D$12&")="&$F$10&" and Barix("&$D$12&",reference:=StartOfSession)="&A5&"", "Bar", "", "Close","5","0","PrimaryOnly",,,"False","T","EveryTick") -> 2752.75 | AA5: 0.001091008273 | AB5: =RANK(AD5,$AD$1:$AD$10)+COUNTIF($AD$1:AD5,AD5)-1 -> 2 | AC5: 2018-06-12 | AD5: =VLOOKUP(MAX(AE2:AE81),A1:Q81,17,FALSE) -> 0.001435363775 | AF5: 5 | AG5: 2018-06-11 | AH5: 0.0008984725966 | AK5: 2018-06-11 | AL5: 2018-06-12 | AM5: 4 | AN5: 5
A6: 5 | B6: 08:55:00 | C6: 2018-06-11 | D6: 2018 | E6: 6 | F6: 11 | G6: =RTD("cqg.rtd",,"StudyData", "Close("&$D$12&") when LocalYear("&$D$12&")="&D6&" and localMonth("&$D$12&") ="&E6&" and LocalDay("&$D$12&")="&F6&" and Barix("&$D$12&",reference:=StartOfSession)=80", "Bar", "", "Close","5","0","PrimaryOnly",,,"False","T","EveryTick") -> 2786.75 | H6: =RTD("cqg.rtd",,"StudyData", "Close("&$D$12&") when LocalYear("&$D$12&")="&$D$1&" and localMonth("&$D$12&") ="&$E$1&" and LocalDay("&$D$12&")="&$F$1&" and Barix("&$D$12&",reference:=StartOfSession)="&A6&"", "Bar", "", "Close","5","0","PrimaryOnly",,,"False","T","EveryTick") ->  | J6: =RTD("cqg.rtd",,"StudyData", "Close("&$D$12&") when LocalYear("&$D$12&")="&$D$2&" and localMonth("&$D$12&") ="&$E$2&" and LocalDay("&$D$12&")="&$F$2&" and Barix("&$D$12&",reference:=StartOfSession)="&A6&"", "Bar", "", "Close","5","0","PrimaryOnly",,,"False","T","EveryTick") -> 2777.25 | K6: -0.004034427111 | L6: =RTD("cqg.rtd",,"StudyData", "Close("&$D$12&") when LocalYear("&$D$12&")="&$D$3&" and localMonth("&$D$12&") ="&$E$3&" and LocalDay("&$D$12&")="&$F$3&" and Barix("&$D$12&",reference:=StartOfSession)="&A6&"", "Bar", "", "Close","5","0","PrimaryOnly",,,"False","T","EveryTick") -> 2787.75 | M6: 0.00314861461 | N6: =RTD("cqg.rtd",,"StudyData", "Close("&$D$12&") when LocalYear("&$D$12&")="&$D$4&" and localMonth("&$D$12&") ="&$E$4&" and LocalDay("&$D$12&")="&$F$4&" and Barix("&$D$12&",reference:=StartOfSession)="&A6&"", "Bar", "", "Close","5","0","PrimaryOnly",,,"False","T","EveryTick") -> 2791.5 | O6: 0.001165605667 | P6: =RTD("cqg.rtd",,"StudyData", "Close("&$D$12&") when LocalYear("&$D$12&")="&$D$5&" and localMonth("&$D$12&") ="&$E$5&" and LocalDay("&$D$12&")="&$F$5&" and Barix("&$D$12&",reference:=StartOfSession)="&A6&"", "Bar", "", "Close","5","0","PrimaryOnly",,,"False","T","EveryTick") -> 2787.5 | Q6: 0.0002691307078 | R6: =RTD("cqg.rtd",,"StudyData", "Close("&$D$12&") when LocalYear("&$D$12&")="&$D$6&" and localMonth("&$D$12&") ="&$E$6&" and LocalDay("&$D$12&")="&$F$6&" and Barix("&$D$12&",reference:=StartOfSession)="&A6&"", "Bar", "", "Close","5","0","PrimaryOnly",,,"False","T","EveryTick") -> 2785 | S6: 0.0008984725966 | T6: =RTD("cqg.rtd",,"StudyData", "Close("&$D$12&") when LocalYear("&$D$12&")="&$D$7&" and localMonth("&$D$12&") ="&$E$7&" and LocalDay("&$D$12&")="&$F$7&" and Barix("&$D$12&",reference:=StartOfSession)="&A6&"", "Bar", "", "Close","5","0","PrimaryOnly",,,"False","T","EveryTick") -> 2773.25 | U6: -0.0009906340058 | V6: =RTD("cqg.rtd",,"StudyData", "Close("&$D$12&") when LocalYear("&$D$12&")="&$D$8&" and localMonth("&$D$12&") ="&$E$8&" and LocalDay("&$D$12&")="&$F$8&" and Barix("&$D$12&",reference:=StartOfSession)="&A6&"", "Bar", "", "Close","5","0","PrimaryOnly",,,"False","T","EveryTick") -> 2780.75 | W6: 0.001711095101 | X6: =RTD("cqg.rtd",,"StudyData", "Close("&$D$12&") when LocalYear("&$D$12&")="&$D$9&" and localMonth("&$D$12&") ="&$E$9&" and LocalDay("&$D$12&")="&$F$9&" and Barix("&$D$12&",reference:=StartOfSession)="&A6&"", "Bar", "", "Close","5","0","PrimaryOnly",,,"False","T","EveryTick") -> 2755 | Y6: -0.0001814552713 | Z6: =RTD("cqg.rtd",,"StudyData", "Close("&$D$12&") when LocalYear("&$D$12&")="&$D$10&" and localMonth("&$D$12&") ="&$E$10&" and LocalDay("&$D$12&")="&$F$10&" and Barix("&$D$12&",reference:=StartOfSession)="&A6&"", "Bar", "", "Close","5","0","PrimaryOnly",,,"False","T","EveryTick") -> 2753 | AA6: 0.00118192563 | AB6: =RANK(AD6,$AD$1:$AD$10)+COUNTIF($AD$1:AD6,AD6)-1 -> 5 | AC6: 2018-06-11 | AD6: =VLOOKUP(MAX(AE2:AE81),A1:S81,19,FALSE) -> 0.0008984725966 | AF6: 6 | AG6: 2018-06-07 | AH6: 0.0007204610951 | AK6: 2018-06-07 | AL6: 2018-06-11 | AM6: 5 | AN6: 7
A7: 6 | B7: 09:00:00 | C7: 2018-06-08 | D7: 2018 | E7: 6 | F7: 8 | G7: =RTD("cqg.rtd",,"StudyData", "Close("&$D$12&") when LocalYear("&$D$12&")="&D7&" and localMonth("&$D$12&") ="&E7&" and LocalDay("&$D$12&")="&F7&" and Barix("&$D$12&",reference:=StartOfSession)=80", "Bar", "", "Close","5","0","PrimaryOnly",,,"False","T","EveryTick") -> 2782.5 | H7: =RTD("cqg.rtd",,"StudyData", "Close("&$D$12&") when LocalYear("&$D$12&")="&$D$1&" and localMonth("&$D$12&") ="&$E$1&" and LocalDay("&$D$12&")="&$F$1&" and Barix("&$D$12&",reference:=StartOfSession)="&A7&"", "Bar", "", "Close","5","0","PrimaryOnly",,,"False","T","EveryTick") ->  | J7: =RTD("cqg.rtd",,"StudyData", "Close("&$D$12&") when LocalYear("&$D$12&")="&$D$2&" and localMonth("&$D$12&") ="&$E$2&" and LocalDay("&$D$12&")="&$F$2&" and Barix("&$D$12&",reference:=StartOfSession)="&A7&"", "Bar", "", "Close","5","0","PrimaryOnly",,,"False","T","EveryTick") -> 2778 | K7: -0.003765465304 | L7: =RTD("cqg.rtd",,"StudyData", "Close("&$D$12&") when LocalYear("&$D$12&")="&$D$3&" and localMonth("&$D$12&") ="&$E$3&" and LocalDay("&$D$12&")="&$F$3&" and Barix("&$D$12&",reference:=StartOfSession)="&A7&"", "Bar", "", "Close","5","0","PrimaryOnly",,,"False","T","EveryTick") -> 2791.75 | M7: 0.004587981288 | N7: =RTD("cqg.rtd",,"StudyData", "Close("&$D$12&") when LocalYear("&$D$12&")="&$D$4&" and localMonth("&$D$12&") ="&$E$4&" and LocalDay("&$D$12&")="&$F$4&" and Barix("&$D$12&",reference:=StartOfSession)="&A7&"", "Bar", "", "Close","5","0","PrimaryOnly",,,"False","T","EveryTick") -> 2792.25 | O7: 0.00143459159 | P7: =RTD("cqg.rtd",,"StudyData", "Close("&$D$12&") when LocalYear("&$D$12&")="&$D$5&" and localMonth("&$D$12&") ="&$E$5&" and LocalDay("&$D$12&")="&$F$5&" and Barix("&$D$12&",reference:=StartOfSession)="&A7&"", "Bar", "", "Close","5","0","PrimaryOnly",,,"False","T","EveryTick") -> 2789 | Q7: 0.0008073921234 | R7: =RTD("cqg.rtd",,"StudyData", "Close("&$D$12&") when LocalYear("&$D$12&")="&$D$6&" and localMonth("&$D$12&") ="&$E$6&" and LocalDay("&$D$12&")="&$F$6&" and Barix("&$D$12&",reference:=StartOfSession)="&A7&"", "Bar", "", "Close","5","0","PrimaryOnly",,,"False","T","EveryTick") -> 2784.25 | S7: 0.0006289308176 | T7: =RTD("cqg.rtd",,"StudyData", "Close("&$D$12&") when LocalYear("&$D$12&")="&$D$7&" and localMonth("&$D$12&") ="&$E$7&" and LocalDay("&$D$12&")="&$F$7&" and Barix("&$D$12&",reference:=StartOfSession)="&A7&"", "Bar", "", "Close","5","0","PrimaryOnly",,,"False","T","EveryTick") -> 2771 | U7: -0.001801152738 | V7: =RTD("cqg.rtd",,"StudyData", "Close("&$D$12&") when LocalYear("&$D$12&")="&$D$8&" and localMonth("&$D$12&") ="&$E$8&" and LocalDay("&$D$12&")="&$F$8&" and Barix("&$D$12&",reference:=StartOfSession)="&A7&"", "Bar", "", "Close","5","0","PrimaryOnly",,,"False","T","EveryTick") -> 2782 | W7: 0.002161383285 | X7: =RTD("cqg.rtd",,"StudyData", "Close("&$D$12&") when LocalYear("&$D$12&")="&$D$9&" and localMonth("&$D$12&") ="&$E$9&" and LocalDay("&$D$12&")="&$F$9&" and Barix("&$D$12&",reference:=StartOfSession)="&A7&"", "Bar", "", "Close","5","0","PrimaryOnly",,,"False","T","EveryTick") -> 2752.5 | Y7: -0.001088731628 | Z7: =RTD("cqg.rtd",,"StudyData", "Close("&$D$12&") when LocalYear("&$D$12&")="&$D$10&" and localMonth("&$D$12&") ="&$E$10&" and LocalDay("&$D$12&")="&$F$10&" and Barix("&$D$12&",reference:=StartOfSession)="&A7&"", "Bar", "", "Close","5","0","PrimaryOnly",,,"False","T","EveryTick") -> 2755.25 | AA7: 0.002000181835 | AB7: =RANK(AD7,$AD$1:$AD$10)+COUNTIF($AD$1:AD7,AD7)-1 -> 8 | AC7: 2018-06-08 | AD7: =VLOOKUP(MAX(AE2:AE81),A1:U81,21,FALSE) -> -0.002971902017 | AF7: 7 | AG7: 2018-06-05 | AH7: 0.0006364214929 | AK7: 2018-06-05 | AL7: 2018-06-08 | AM7: 6 | AN7: 9
A8: 7 | B8: 09:05:00 | C8: 2018-06-07 | D8: 2018 | E8: 6 | F8: 7 | G8: =RTD("cqg.rtd",,"StudyData", "Close("&$D$12&") when LocalYear("&$D$12&")="&D8&" and localMonth("&$D$12&") ="&E8&" and LocalDay("&$D$12&")="&F8&" and Barix("&$D$12&",reference:=StartOfSession)=80", "Bar", "", "Close","5","0","PrimaryOnly",,,"False","T","EveryTick") -> 2776 | H8: =RTD("cqg.rtd",,"StudyData", "Close("&$D$12&") when LocalYear("&$D$12&")="&$D$1&" and localMonth("&$D$12&") ="&$E$1&" and LocalDay("&$D$12&")="&$F$1&" and Barix("&$D$12&",reference:=StartOfSession)="&A8&"", "Bar", "", "Close","5","0","PrimaryOnly",,,"False","T","EveryTick") ->  | J8: =RTD("cqg.rtd",,"StudyData", "Close("&$D$12&") when LocalYear("&$D$12&")="&$D$2&" and localMonth("&$D$12&") ="&$E$2&" and LocalDay("&$D$12&")="&$F$2&" and Barix("&$D$12&",reference:=StartOfSession)="&A8&"", "Bar", "", "Close","5","0","PrimaryOnly",,,"False","T","EveryTick") -> 2776 | K8: -0.00448269679 | L8: =RTD("cqg.rtd",,"StudyData", "Close("&$D$12&") when LocalYear("&$D$12&")="&$D$3&" and localMonth("&$D$12&") ="&$E$3&" and LocalDay("&$D$12&")="&$F$3&" and Barix("&$D$12&",reference:=StartOfSession)="&A8&"", "Bar", "", "Close","5","0","PrimaryOnly",,,"False","T","EveryTick") -> 2792.75 | M8: 0.004947822958 | N8: =RTD("cqg.rtd",,"StudyData", "Close("&$D$12&") when LocalYear("&$D$12&")="&$D$4&" and localMonth("&$D$12&") ="&$E$4&" and LocalDay("&$D$12&")="&$F$4&" and Barix("&$D$12&",reference:=StartOfSession)="&A8&"", "Bar", "", "Close","5","0","PrimaryOnly",,,"False","T","EveryTick") -> 2793 | O8: 0.001703577513 | P8: =RTD("cqg.rtd",,"StudyData", "Close("&$D$12&") when LocalYear("&$D$12&")="&$D$5&" and localMonth("&$D$12&") ="&$E$5&" and LocalDay("&$D$12&")="&$F$5&" and Barix("&$D$12&",reference:=StartOfSession)="&A8&"", "Bar", "", "Close","5","0","PrimaryOnly",,,"False","T","EveryTick") -> 2789.5 | Q8: 0.0009868125953 | R8: =RTD("cqg.rtd",,"StudyData", "Close("&$D$12&") when LocalYear("&$D$12&")="&$D$6&" and localMonth("&$D$12&") ="&$E$6&" and LocalDay("&$D$12&")="&$F$6&" and Barix("&$D$12&",reference:=StartOfSession)="&A8&"", "Bar", "", "Close","5","0","PrimaryOnly",,,"False","T","EveryTick") -> 2786 | S8: 0.001257861635 | T8: =RTD("cqg.rtd",,"StudyData", "Close("&$D$12&") when LocalYear("&$D$12&")="&$D$7&" and localMonth("&$D$12&") ="&$E$7&" and LocalDay("&$D$12&")="&$F$7&" and Barix("&$D$12&",reference:=StartOfSession)="&A8&"", "Bar", "", "Close","5","0","PrimaryOnly",,,"False","T","EveryTick") -> 2771.5 | U8: -0.001621037464 | V8: =RTD("cqg.rtd",,"StudyData", "Close("&$D$12&") when LocalYear("&$D$12&")="&$D$8&" and localMonth("&$D$12&") ="&$E$8&" and LocalDay("&$D$12&")="&$F$8&" and Barix("&$D$12&",reference:=StartOfSession)="&A8&"", "Bar", "", "Close","5","0","PrimaryOnly",,,"False","T","EveryTick") -> 2778 | W8: 0.0007204610951 | X8: =RTD("cqg.rtd",,"StudyData", "Close("&$D$12&") when LocalYear("&$D$12&")="&$D$9&" and localMonth("&$D$12&") ="&$E$9&" and LocalDay("&$D$12&")="&$F$9&" and Barix("&$D$12&",reference:=StartOfSession)="&A8&"", "Bar", "", "Close","5","0","PrimaryOnly",,,"False","T","EveryTick") -> 2753.25 | Y8: -0.0008165487207 | Z8: =RTD("cqg.rtd",,"StudyData", "Close("&$D$12&") when LocalYear("&$D$12&")="&$D$10&" and localMonth("&$D$12&") ="&$E$10&" and LocalDay("&$D$12&")="&$F$10&" and Barix("&$D$12&",reference:=StartOfSession)="&A8&"", "Bar", "", "Close","5","0","PrimaryOnly",,,"False","T","EveryTick") -> 2754.75 | AA8: 0.001818347122 | AB8: =RANK(AD8,$AD$1:$AD$10)+COUNTIF($AD$1:AD8,AD8)-1 -> 6 | AC8: 2018-06-07 | AD8: =VLOOKUP(MAX(AE2:AE81),A1:W81,23,FALSE) -> 0.0007204610951 | AF8: 8 | AG8: 2018-06-08 | AH8: -0.002971902017 | AK8: 2018-06-08 | AL8: 2018-06-07 | AM8: 7 | AN8: 6
A9: 8 | B9: 09:10:00 | C9: 2018-06-06 | D9: 2018 | E9: 6 | F9: 6 | G9: =RTD("cqg.rtd",,"StudyData", "Close("&$D$12&") when LocalYear("&$D$12&")="&D9&" and localMonth("&$D$12&") ="&E9&" and LocalDay("&$D$12&")="&F9&" and Barix("&$D$12&",reference:=StartOfSession)=80", "Bar", "", "Close","5","0","PrimaryOnly",,,"False","T","EveryTick") -> 2776 | H9: =RTD("cqg.rtd",,"StudyData", "Close("&$D$12&") when LocalYear("&$D$12&")="&$D$1&" and localMonth("&$D$12&") ="&$E$1&" and LocalDay("&$D$12&")="&$F$1&" and Barix("&$D$12&",reference:=StartOfSession)="&A9&"", "Bar", "", "Close","5","0","PrimaryOnly",,,"False","T","EveryTick") ->  | J9: =RTD("cqg.rtd",,"StudyData", "Close("&$D$12&") when LocalYear("&$D$12&")="&$D$2&" and localMonth("&$D$12&") ="&$E$2&" and LocalDay("&$D$12&")="&$F$2&" and Barix("&$D$12&",reference:=StartOfSession)="&A9&"", "Bar", "", "Close","5","0","PrimaryOnly",,,"False","T","EveryTick") -> 2776.25 | K9: -0.004393042855 | L9: =RTD("cqg.rtd",,"StudyData", "Close("&$D$12&") when LocalYear("&$D$12&")="&$D$3&" and localMonth("&$D$12&") ="&$E$3&" and LocalDay("&$D$12&")="&$F$3&" and Barix("&$D$12&",reference:=StartOfSession)="&A9&"", "Bar", "", "Close","5","0","PrimaryOnly",,,"False","T","EveryTick") -> 2793 | M9: 0.005037783375 | N9: =RTD("cqg.rtd",,"StudyData", "Close("&$D$12&") when LocalYear("&$D$12&")="&$D$4&" and localMonth("&$D$12&") ="&$E$4&" and LocalDay("&$D$12&")="&$F$4&" and Barix("&$D$12&",reference:=StartOfSession)="&A9&"", "Bar", "", "Close","5","0","PrimaryOnly",,,"False","T","EveryTick") -> 2793 | O9: 0.001703577513 | P9: =RTD("cqg.rtd",,"StudyData", "Close("&$D$12&") when LocalYear("&$D$12&")="&$D$5&" and localMonth("&$D$12&") ="&$E$5&" and LocalDay("&$D$12&")="&$F$5&" and Barix("&$D$12&",reference:=StartOfSession)="&A9&"", "Bar", "", "Close","5","0","PrimaryOnly",,,"False","T","EveryTick") -> 2790 | Q9: 0.001166233067 | R9: =RTD("cqg.rtd",,"StudyData", "Close("&$D$12&") when LocalYear("&$D$12&")="&$D$6&" and localMonth("&$D$12&") ="&$E$6&" and LocalDay("&$D$12&")="&$F$6&" and Barix("&$D$12&",reference:=StartOfSession)="&A9&"", "Bar", "", "Close","5","0","PrimaryOnly",,,"False","T","EveryTick") -> 2787.5 | S9: 0.001796945193 | T9: =RTD("cqg.rtd",,"StudyData", "Close("&$D$12&") when LocalYear("&$D$12&")="&$D$7&" and localMonth("&$D$12&") ="&$E$7&" and LocalDay("&$D$12&")="&$F$7&" and Barix("&$D$12&",reference:=StartOfSession)="&A9&"", "Bar", "", "Close","5","0","PrimaryOnly",,,"False","T","EveryTick") -> 2771 | U9: -0.001801152738 | V9: =RTD("cqg.rtd",,"StudyData", "Close("&$D$12&") when LocalYear("&$D$12&")="&$D$8&" and localMonth("&$D$12&") ="&$E$8&" and LocalDay("&$D$12&")="&$F$8&" and Barix("&$D$12&",reference:=StartOfSession)="&A9&"", "Bar", "", "Close","5","0","PrimaryOnly",,,"False","T","EveryTick") -> 2777.75 | W9: 0.0006304034582 | X9: =RTD("cqg.rtd",,"StudyData", "Close("&$D$12&") when LocalYear("&$D$12&")="&$D$9&" and localMonth("&$D$12&") ="&$E$9&" and LocalDay("&$D$12&")="&$F$9&" and Barix("&$D$12&",reference:=StartOfSession)="&A9&"", "Bar", "", "Close","5","0","PrimaryOnly",,,"False","T","EveryTick") -> 2754.5 | Y9: -0.0003629105426 | Z9: =RTD("cqg.rtd",,"StudyData", "Close("&$D$12&") when LocalYear("&$D$12&")="&$D$10&" and localMonth("&$D$12&") ="&$E$10&" and LocalDay("&$D$12&")="&$F$10&" and Barix("&$D$12&",reference:=StartOfSession)="&A9&"", "Bar", "", "Close","5","0","PrimaryOnly",,,"False","T","EveryTick") -> 2754.25 | AA9: 0.00163651241 | AB9: =RANK(AD9,$AD$1:$AD$10)+COUNTIF($AD$1:AD9,AD9)-1 -> 4 | AC9: 2018-06-06 | AD9: =VLOOKUP(MAX(AE2:AE81),A1:Y81,25,FALSE) -> 0.001179459263 | AF9: 9 | AG9: 2018-06-15 | AH9: -0.00448269679 | AK9: 2018-06-15 | AL9: 2018-06-06 | AM9: 8 | AN9: 1
A10: 9 | B10: 09:15:00 | C10: 2018-06-05 | D10: 2018 | E10: 6 | F10: 5 | G10: =RTD("cqg.rtd",,"StudyData", "Close("&$D$12&") when LocalYear("&$D$12&")="&D10&" and localMonth("&$D$12&") ="&E10&" and LocalDay("&$D$12&")="&F10&" and Barix("&$D$12&",reference:=StartOfSession)=80", "Bar", "", "Close","5","0","PrimaryOnly",,,"False","T","EveryTick") -> 2755.5 | H10: =RTD("cqg.rtd",,"StudyData", "Close("&$D$12&") when LocalYear("&$D$12&")="&$D$1&" and localMonth("&$D$12&") ="&$E$1&" and LocalDay("&$D$12&")="&$F$1&" and Barix("&$D$12&",reference:=StartOfSession)="&A10&"", "Bar", "", "Close","5","0","PrimaryOnly",,,"False","T","EveryTick") ->  | J10: =RTD("cqg.rtd",,"StudyData", "Close("&$D$12&") when LocalYear("&$D$12&")="&$D$2&" and localMonth("&$D$12&") ="&$E$2&" and LocalDay("&$D$12&")="&$F$2&" and Barix("&$D$12&",reference:=StartOfSession)="&A10&"", "Bar", "", "Close","5","0","PrimaryOnly",,,"False","T","EveryTick") -> 2775.5 | K10: -0.004662004662 | L10: =RTD("cqg.rtd",,"StudyData", "Close("&$D$12&") when LocalYear("&$D$12&")="&$D$3&" and localMonth("&$D$12&") ="&$E$3&" and LocalDay("&$D$12&")="&$F$3&" and Barix("&$D$12&",reference:=StartOfSession)="&A10&"", "Bar", "", "Close","5","0","PrimaryOnly",,,"False","T","EveryTick") -> 2793 | M10: 0.005037783375 | N10: =RTD("cqg.rtd",,"StudyData", "Close("&$D$12&") when LocalYear("&$D$12&")="&$D$4&" and localMonth("&$D$12&") ="&$E$4&" and LocalDay("&$D$12&")="&$F$4&" and Barix("&$D$12&",reference:=StartOfSession)="&A10&"", "Bar", "", "Close","5","0","PrimaryOnly",,,"False","T","EveryTick") -> 2793.5 | O10: 0.001882901461 | P10: =RTD("cqg.rtd",,"StudyData", "Close("&$D$12&") when LocalYear("&$D$12&")="&$D$5&" and localMonth("&$D$12&") ="&$E$5&" and LocalDay("&$D$12&")="&$F$5&" and Barix("&$D$12&",reference:=StartOfSession)="&A10&"", "Bar", "", "Close","5","0","PrimaryOnly",,,"False","T","EveryTick") -> 2789 | Q10: 0.0008073921234 | R10: =RTD("cqg.rtd",,"StudyData", "Close("&$D$12&") when LocalYear("&$D$12&")="&$D$6&" and localMonth("&$D$12&") ="&$E$6&" and LocalDay("&$D$12&")="&$F$6&" and Barix("&$D$12&",reference:=StartOfSession)="&A10&"", "Bar", "", "Close","5","0","PrimaryOnly",,,"False","T","EveryTick") -> 2786.5 | S10: 0.001437556155 | T10: =RTD("cqg.rtd",,"StudyData", "Close("&$D$12&") when LocalYear("&$D$12&")="&$D$7&" and localMonth("&$D$12&") ="&$E$7&" and LocalDay("&$D$12&")="&$F$7&" and Barix("&$D$12&",reference:=StartOfSession)="&A10&"", "Bar", "", "Close","5","0","PrimaryOnly",,,"False","T","EveryTick") -> 2771.75 | U10: -0.001530979827 | V10: =RTD("cqg.rtd",,"StudyData", "Close("&$D$12&") when LocalYear("&$D$12&")="&$D$8&" and localMonth("&$D$12&") ="&$E$8&" and LocalDay("&$D$12&")="&$F$8&" and Barix("&$D$12&",reference:=StartOfSession)="&A10&"", "Bar", "", "Close","5","0","PrimaryOnly",,,"False","T","EveryTick") -> 2778 | W10: 0.0007204610951 | X10: =RTD("cqg.rtd",,"StudyData", "Close("&$D$12&") when LocalYear("&$D$12&")="&$D$9&" and localMonth("&$D$12&") ="&$E$9&" and LocalDay("&$D$12&")="&$F$9&" and Barix("&$D$12&",reference:=StartOfSession)="&A10&"", "Bar", "", "Close","5","0","PrimaryOnly",,,"False","T","EveryTick") -> 2753.25 | Y10: -0.0008165487207 | Z10: =RTD("cqg.rtd",,"StudyData", "Close("&$D$12&") when LocalYear("&$D$12&")="&$D$10&" and localMonth("&$D$12&") ="&$E$10&" and LocalDay("&$D$12&")="&$F$10&" and Barix("&$D$12&",reference:=StartOfSession)="&A10&"", "Bar", "", "Close","5","0","PrimaryOnly",,,"False","T","EveryTick") -> 2754.5 | AA10: 0.001727429766 | AB10: =RANK(AD10,$AD$1:$AD$10)+COUNTIF($AD$1:AD10,AD10)-1 -> 7 | AC10: 2018-06-05 | AD10: =VLOOKUP(MAX(AE2:AE81),A1:AA81,27,FALSE) -> 0.0006364214929 | AF10: 10 | AG10: 2018-06-18 | AH10: -0.007811097145 | AK10: 2018-06-18 | AL10: 2018-06-05 | AM10: 9 | AN10: 0
A11: 10 | B11: 09:20:00 | C11: 2018-06-04 | D11: 2018 | E11: =MONTH(C11) -> 6 | F11: =DAY(C11) -> 4 | G11: =RTD("cqg.rtd",,"StudyData", "Close("&$D$12&") when LocalYear("&$D$12&")="&D11&" and localMonth("&$D$12&") ="&E11&" and LocalDay("&$D$12&")="&F11&" and Barix("&$D$12&",reference:=StartOfSession)=80", "Bar", "", "Close","5","0","PrimaryOnly",,,"False","T","EveryTick") -> 2749.75 | H11: =RTD("cqg.rtd",,"StudyData", "Close("&$D$12&") when LocalYear("&$D$12&")="&$D$1&" and localMonth("&$D$12&") ="&$E$1&" and LocalDay("&$D$12&")="&$F$1&" and Barix("&$D$12&",reference:=StartOfSession)="&A11&"", "Bar", "", "Close","5","0","PrimaryOnly",,,"False","T","EveryTick") ->  | J11: =RTD("cqg.rtd",,"StudyData", "Close("&$D$12&") when LocalYear("&$D$12&")="&$D$2&" and localMonth("&$D$12&") ="&$E$2&" and LocalDay("&$D$12&")="&$F$2&" and Barix("&$D$12&",reference:=StartOfSession)="&A11&"", "Bar", "", "Close","5","0","PrimaryOnly",,,"False","T","EveryTick") -> 2774 | K11: -0.005199928277 | L11: =RTD("cqg.rtd",,"StudyData", "Close("&$D$12&") when LocalYear("&$D$12&")="&$D$3&" and localMonth("&$D$12&") ="&$E$3&" and LocalDay("&$D$12&")="&$F$3&" and Barix("&$D$12&",reference:=StartOfSession)="&A11&"", "Bar", "", "Close","5","0","PrimaryOnly",,,"False","T","EveryTick") -> 2791.75 | M11: 0.004587981288 | N11: =RTD("cqg.rtd",,"StudyData", "Close("&$D$12&") when LocalYear("&$D$12&")="&$D$4&" and localMonth("&$D$12&") ="&$E$4&" and LocalDay("&$D$12&")="&$F$4&" and Barix("&$D$12&",reference:=StartOfSession)="&A11&"", "Bar", "", "Close","5","0","PrimaryOnly",,,"False","T","EveryTick") -> 2793.75 | O11: 0.001972563436 | P11: =RTD("cqg.rtd",,"StudyData", "Close("&$D$12&") when LocalYear("&$D$12&")="&$D$5&" and localMonth("&$D$12&") ="&$E$5&" and LocalDay("&$D$12&")="&$F$5&" and Barix("&$D$12&",reference:=StartOfSession)="&A11&"", "Bar", "", "Close","5","0","PrimaryOnly",,,"False","T","EveryTick") -> 2788 | Q11: 0.0004485511797 | R11: =RTD("cqg.rtd",,"StudyData", "Close("&$D$12&") when LocalYear("&$D$12&")="&$D$6&" and localMonth("&$D$12&") ="&$E$6&" and LocalDay("&$D$12&")="&$F$6&" and Barix("&$D$12&",reference:=StartOfSession)="&A11&"", "Bar", "", "Close","5","0","PrimaryOnly",,,"False","T","EveryTick") -> 2787.25 | S11: 0.001707097934 | T11: =RTD("cqg.rtd",,"StudyData", "Close("&$D$12&") when LocalYear("&$D$12&")="&$D$7&" and localMonth("&$D$12&") ="&$E$7&" and LocalDay("&$D$12&")="&$F$7&" and Barix("&$D$12&",reference:=StartOfSession)="&A11&"", "Bar", "", "Close","5","0","PrimaryOnly",,,"False","T","EveryTick") -> 2771.5 | U11: -0.001621037464 | V11: =RTD("cqg.rtd",,"StudyData", "Close("&$D$12&") when LocalYear("&$D$12&")="&$D$8&" and localMonth("&$D$12&") ="&$E$8&" and LocalDay("&$D$12&")="&$F$8&" and Barix("&$D$12&",reference:=StartOfSession)="&A11&"", "Bar", "", "Close","5","0","PrimaryOnly",,,"False","T","EveryTick") -> 2775.5 | W11: -0.0001801152738 | X11: =RTD("cqg.rtd",,"StudyData", "Close("&$D$12&") when LocalYear("&$D$12&")="&$D$9&" and localMonth("&$D$12&") ="&$E$9&" and LocalDay("&$D$12&")="&$F$9&" and Barix("&$D$12&",reference:=StartOfSession)="&A11&"", "Bar", "", "Close","5","0","PrimaryOnly",,,"False","T","EveryTick") -> 2755.5 | Y11: 0 | Z11: =RTD("cqg.rtd",,"StudyData", "Close("&$D$12&") when LocalYear("&$D$12&")="&$D$10&" and localMonth("&$D$12&") ="&$E$10&" and LocalDay("&$D$12&")="&$F$10&" and Barix("&$D$12&",reference:=StartOfSession)="&A11&"", "Bar", "", "Close","5","0","PrimaryOnly",,,"False","T","EveryTick") -> 2753.5 | AA11: 0.001363760342
A12: 11 | B12: 09:25:00 | D12: =MainDisplay!B5 -> EP | H12: =RTD("cqg.rtd",,"StudyData", "Close("&$D$12&") when LocalYear("&$D$12&")="&$D$1&" and localMonth("&$D$12&") ="&$E$1&" and LocalDay("&$D$12&")="&$F$1&" and Barix("&$D$12&",reference:=StartOfSession)="&A12&"", "Bar", "", "Close","5","0","PrimaryOnly",,,"False","T","EveryTick") ->  | J12: =RTD("cqg.rtd",,"StudyData", "Close("&$D$12&") when LocalYear("&$D$12&")="&$D$2&" and localMonth("&$D$12&") ="&$E$2&" and LocalDay("&$D$12&")="&$F$2&" and Barix("&$D$12&",reference:=StartOfSession)="&A12&"", "Bar", "", "Close","5","0","PrimaryOnly",,,"False","T","EveryTick") -> 2773.5 | K12: -0.005379236148 | L12: =RTD("cqg.rtd",,"StudyData", "Close("&$D$12&") when LocalYear("&$D$12&")="&$D$3&" and localMonth("&$D$12&") ="&$E$3&" and LocalDay("&$D$12&")="&$F$3&" and Barix("&$D$12&",reference:=StartOfSession)="&A12&"", "Bar", "", "Close","5","0","PrimaryOnly",,,"False","T","EveryTick") -> 2792 | M12: 0.004677941706 | N12: =RTD("cqg.rtd",,"StudyData", "Close("&$D$12&") when LocalYear("&$D$12&")="&$D$4&" and localMonth("&$D$12&") ="&$E$4&" and LocalDay("&$D$12&")="&$F$4&" and Barix("&$D$12&",reference:=StartOfSession)="&A12&"", "Bar", "", "Close","5","0","PrimaryOnly",,,"False","T","EveryTick") -> 2794.25 | O12: 0.002151887385 | P12: =RTD("cqg.rtd",,"StudyData", "Close("&$D$12&") when LocalYear("&$D$12&")="&$D$5&" and localMonth("&$D$12&") ="&$E$5&" and LocalDay("&$D$12&")="&$F$5&" and Barix("&$D$12&",reference:=StartOfSession)="&A12&"", "Bar", "", "Close","5","0","PrimaryOnly",,,"False","T","EveryTick") -> 2787.25 | Q12: 0.0001794204719 | R12: =RTD("cqg.rtd",,"StudyData", "Close("&$D$12&") when LocalYear("&$D$12&")="&$D$6&" and localMonth("&$D$12&") ="&$E$6&" and LocalDay("&$D$12&")="&$F$6&" and Barix("&$D$12&",reference:=StartOfSession)="&A12&"", "Bar", "", "Close","5","0","PrimaryOnly",,,"False","T","EveryTick") -> 2787 | S12: 0.001617250674 | T12: =RTD("cqg.rtd",,"StudyData", "Close("&$D$12&") when LocalYear("&$D$12&")="&$D$7&" and localMonth("&$D$12&") ="&$E$7&" and LocalDay("&$D$12&")="&$F$7&" and Barix("&$D$12&",reference:=StartOfSession)="&A12&"", "Bar", "", "Close","5","0","PrimaryOnly",,,"False","T","EveryTick") -> 2770.25 | U12: -0.002071325648 | V12: =RTD("cqg.rtd",,"StudyData", "Close("&$D$12&") when LocalYear("&$D$12&")="&$D$8&" and localMonth("&$D$12&") ="&$E$8&" and LocalDay("&$D$12&")="&$F$8&" and Barix("&$D$12&",reference:=StartOfSession)="&A12&"", "Bar", "", "Close","5","0","PrimaryOnly",,,"False","T","EveryTick") -> 2775.5 | W12: -0.0001801152738 | X12: =RTD("cqg.rtd",,"StudyData", "Close("&$D$12&") when LocalYear("&$D$12&")="&$D$9&" and localMonth("&$D$12&") ="&$E$9&" and LocalDay("&$D$12&")="&$F$9&" and Barix("&$D$12&",reference:=StartOfSession)="&A12&"", "Bar", "", "Close","5","0","PrimaryOnly",,,"False","T","EveryTick") -> 2755.5 | Y12: 0 | Z12: =RTD("cqg.rtd",,"StudyData", "Close("&$D$12&") when LocalYear("&$D$12&")="&$D$10&" and localMonth("&$D$12&") ="&$E$10&" and LocalDay("&$D$12&")="&$F$10&" and Barix("&$D$12&",reference:=StartOfSession)="&A12&"", "Bar", "", "Close","5","0","PrimaryOnly",,,"False","T","EveryTick") -> 2755.25 | AA12: 0.002000181835 | AC12: =VLOOKUP(MAX(AE2:AE81),A1:B81,2,FALSE) -> 08:30:00
A13: 12 | B13: 09:30:00 | D13: =RTD("cqg.rtd", ,"ContractData",D12, "LastQuoteToday",, "T") -> 2762.5 | G13: =C1 -> 2018-06-18 | H13: =RTD("cqg.rtd",,"StudyData", "Close("&$D$12&") when LocalYear("&$D$12&")="&$D$1&" and localMonth("&$D$12&") ="&$E$1&" and LocalDay("&$D$12&")="&$F$1&" and Barix("&$D$12&",reference:=StartOfSession)="&A13&"", "Bar", "", "Close","5","0","PrimaryOnly",,,"False","T","EveryTick") ->  | J13: =RTD("cqg.rtd",,"StudyData", "Close("&$D$12&") when LocalYear("&$D$12&")="&$D$2&" and localMonth("&$D$12&") ="&$E$2&" and LocalDay("&$D$12&")="&$F$2&" and Barix("&$D$12&",reference:=StartOfSession)="&A13&"", "Bar", "", "Close","5","0","PrimaryOnly",,,"False","T","EveryTick") -> 2769.5 | K13: -0.006813699121 | L13: =RTD("cqg.rtd",,"StudyData", "Close("&$D$12&") when LocalYear("&$D$12&")="&$D$3&" and localMonth("&$D$12&") ="&$E$3&" and LocalDay("&$D$12&")="&$F$3&" and Barix("&$D$12&",reference:=StartOfSession)="&A13&"", "Bar", "", "Close","5","0","PrimaryOnly",,,"False","T","EveryTick") -> 2788.5 | M13: 0.003418495862 | N13: =RTD("cqg.rtd",,"StudyData", "Close("&$D$12&") when LocalYear("&$D$12&")="&$D$4&" and localMonth("&$D$12&") ="&$E$4&" and LocalDay("&$D$12&")="&$F$4&" and Barix("&$D$12&",reference:=StartOfSession)="&A13&"", "Bar", "", "Close","5","0","PrimaryOnly",,,"False","T","EveryTick") -> 2794 | O13: 0.00206222541 | P13: =RTD("cqg.rtd",,"StudyData", "Close("&$D$12&") when LocalYear("&$D$12&")="&$D$5&" and localMonth("&$D$12&") ="&$E$5&" and LocalDay("&$D$12&")="&$F$5&" and Barix("&$D$12&",reference:=StartOfSession)="&A13&"", "Bar", "", "Close","5","0","PrimaryOnly",,,"False","T","EveryTick") -> 2788.75 | Q13: 0.0007176818875 | R13: =RTD("cqg.rtd",,"StudyData", "Close("&$D$12&") when LocalYear("&$D$12&")="&$D$6&" and localMonth("&$D$12&") ="&$E$6&" and LocalDay("&$D$12&")="&$F$6&" and Barix("&$D$12&",reference:=StartOfSession)="&A13&"", "Bar", "", "Close","5","0","PrimaryOnly",,,"False","T","EveryTick") -> 2787 | S13: 0.001617250674 | T13: =RTD("cqg.rtd",,"StudyData", "Close("&$D$12&") when LocalYear("&$D$12&")="&$D$7&" and localMonth("&$D$12&") ="&$E$7&" and LocalDay("&$D$12&")="&$F$7&" and Barix("&$D$12&",reference:=StartOfSession)="&A13&"", "Bar", "", "Close","5","0","PrimaryOnly",,,"False","T","EveryTick") -> 2768.75 | U13: -0.00261167147 | V13: =RTD("cqg.rtd",,"StudyData", "Close("&$D$12&") when LocalYear("&$D$12&")="&$D$8&" and localMonth("&$D$12&") ="&$E$8&" and LocalDay("&$D$12&")="&$F$8&" and Barix("&$D$12&",reference:=StartOfSession)="&A13&"", "Bar", "", "Close","5","0","PrimaryOnly",,,"False","T","EveryTick") -> 2773 | W13: -0.001080691643 | X13: =RTD("cqg.rtd",,"StudyData", "Close("&$D$12&") when LocalYear("&$D$12&")="&$D$9&" and localMonth("&$D$12&") ="&$E$9&" and LocalDay("&$D$12&")="&$F$9&" and Barix("&$D$12&",reference:=StartOfSession)="&A13&"", "Bar", "", "Close","5","0","PrimaryOnly",,,"False","T","EveryTick") -> 2754.75 | Y13: -0.0002721829069 | Z13: =RTD("cqg.rtd",,"StudyData", "Close("&$D$12&") when LocalYear("&$D$12&")="&$D$10&" and localMonth("&$D$12&") ="&$E$10&" and LocalDay("&$D$12&")="&$F$10&" and Barix("&$D$12&",reference:=StartOfSession)="&A13&"", "Bar", "", "Close","5","0","PrimaryOnly",,,"False","T","EveryTick") -> 2753.75 | AA13: 0.001454677698
A14: 13 | B14: 09:35:00 | D14: =RTD("cqg.rtd", ,"ContractData",D12, "LongDescription",, "T") -> E-Mini S&P 500, Sep 18 | G14: =C2 -> 2018-06-15 | H14: =RTD("cqg.rtd",,"StudyData", "Close("&$D$12&") when LocalYear("&$D$12&")="&$D$1&" and localMonth("&$D$12&") ="&$E$1&" and LocalDay("&$D$12&")="&$F$1&" and Barix("&$D$12&",reference:=StartOfSession)="&A14&"", "Bar", "", "Close","5","0","PrimaryOnly",,,"False","T","EveryTick") ->  | J14: =RTD("cqg.rtd",,"StudyData", "Close("&$D$12&") when LocalYear("&$D$12&")="&$D$2&" and localMonth("&$D$12&") ="&$E$2&" and LocalDay("&$D$12&")="&$F$2&" and Barix("&$D$12&",reference:=StartOfSession)="&A14&"", "Bar", "", "Close","5","0","PrimaryOnly",,,"False","T","EveryTick") -> 2767.25 | K14: -0.007620584544 | L14: =RTD("cqg.rtd",,"StudyData", "Close("&$D$12&") when LocalYear("&$D$12&")="&$D$3&" and localMonth("&$D$12&") ="&$E$3&" and LocalDay("&$D$12&")="&$F$3&" and Barix("&$D$12&",reference:=StartOfSession)="&A14&"", "Bar", "", "Close","5","0","PrimaryOnly",,,"False","T","EveryTick") -> 2788.25 | M14: 0.003328535444 | N14: =RTD("cqg.rtd",,"StudyData", "Close("&$D$12&") when LocalYear("&$D$12&")="&$D$4&" and localMonth("&$D$12&") ="&$E$4&" and LocalDay("&$D$12&")="&$F$4&" and Barix("&$D$12&",reference:=StartOfSession)="&A14&"", "Bar", "", "Close","5","0","PrimaryOnly",,,"False","T","EveryTick") -> 2792.75 | O14: 0.001613915538 | P14: =RTD("cqg.rtd",,"StudyData", "Close("&$D$12&") when LocalYear("&$D$12&")="&$D$5&" and localMonth("&$D$12&") ="&$E$5&" and LocalDay("&$D$12&")="&$F$5&" and Barix("&$D$12&",reference:=StartOfSession)="&A14&"", "Bar", "", "Close","5","0","PrimaryOnly",,,"False","T","EveryTick") -> 2787.75 | Q14: 0.0003588409438 | R14: =RTD("cqg.rtd",,"StudyData", "Close("&$D$12&") when LocalYear("&$D$12&")="&$D$6&" and localMonth("&$D$12&") ="&$E$6&" and LocalDay("&$D$12&")="&$F$6&" and Barix("&$D$12&",reference:=StartOfSession)="&A14&"", "Bar", "", "Close","5","0","PrimaryOnly",,,"False","T","EveryTick") -> 2786.25 | S14: 0.001347708895 | T14: =RTD("cqg.rtd",,"StudyData", "Close("&$D$12&") when LocalYear("&$D$12&")="&$D$7&" and localMonth("&$D$12&") ="&$E$7&" and LocalDay("&$D$12&")="&$F$7&" and Barix("&$D$12&",reference:=StartOfSession)="&A14&"", "Bar", "", "Close","5","0","PrimaryOnly",,,"False","T","EveryTick") -> 2767.5 | U14: -0.003061959654 | V14: =RTD("cqg.rtd",,"StudyData", "Close("&$D$12&") when LocalYear("&$D$12&")="&$D$8&" and localMonth("&$D$12&") ="&$E$8&" and LocalDay("&$D$12&")="&$F$8&" and Barix("&$D$12&",reference:=StartOfSession)="&A14&"", "Bar", "", "Close","5","0","PrimaryOnly",,,"False","T","EveryTick") -> 2772 | W14: -0.00144092219 | X14: =RTD("cqg.rtd",,"StudyData", "Close("&$D$12&") when LocalYear("&$D$12&")="&$D$9&" and localMonth("&$D$12&") ="&$E$9&" and LocalDay("&$D$12&")="&$F$9&" and Barix("&$D$12&",reference:=StartOfSession)="&A14&"", "Bar", "", "Close","5","0","PrimaryOnly",,,"False","T","EveryTick") -> 2756 | Y14: 0.0001814552713 | Z14: =RTD("cqg.rtd",,"StudyData", "Close("&$D$12&") when LocalYear("&$D$12&")="&$D$10&" and localMonth("&$D$12&") ="&$E$10&" and LocalDay("&$D$12&")="&$F$10&" and Barix("&$D$12&",reference:=StartOfSession)="&A14&"", "Bar", "", "Close","5","0","PrimaryOnly",,,"False","T","EveryTick") -> 2752 | AA14: 0.0008182562051
A15: 14 | B15: 09:40:00 | G15: 2018-06-14 | H15: =RTD("cqg.rtd",,"StudyData", "Close("&$D$12&") when LocalYear("&$D$12&")="&$D$1&" and localMonth("&$D$12&") ="&$E$1&" and LocalDay("&$D$12&")="&$F$1&" and Barix("&$D$12&",reference:=StartOfSession)="&A15&"", "Bar", "", "Close","5","0","PrimaryOnly",,,"False","T","EveryTick") ->  | J15: =RTD("cqg.rtd",,"StudyData", "Close("&$D$12&") when LocalYear("&$D$12&")="&$D$2&" and localMonth("&$D$12&") ="&$E$2&" and LocalDay("&$D$12&")="&$F$2&" and Barix("&$D$12&",reference:=StartOfSession)="&A15&"", "Bar", "", "Close","5","0","PrimaryOnly",,,"False","T","EveryTick") -> 2771 | K15: -0.006275775507 | L15: =RTD("cqg.rtd",,"StudyData", "Close("&$D$12&") when LocalYear("&$D$12&")="&$D$3&" and localMonth("&$D$12&") ="&$E$3&" and LocalDay("&$D$12&")="&$F$3&" and Barix("&$D$12&",reference:=StartOfSession)="&A15&"", "Bar", "", "Close","5","0","PrimaryOnly",,,"False","T","EveryTick") -> 2788.25 | M15: 0.003328535444 | N15: =RTD("cqg.rtd",,"StudyData", "Close("&$D$12&") when LocalYear("&$D$12&")="&$D$4&" and localMonth("&$D$12&") ="&$E$4&" and LocalDay("&$D$12&")="&$F$4&" and Barix("&$D$12&",reference:=StartOfSession)="&A15&"", "Bar", "", "Close","5","0","PrimaryOnly",,,"False","T","EveryTick") -> 2792.75 | O15: 0.001613915538 | P15: =RTD("cqg.rtd",,"StudyData", "Close("&$D$12&") when LocalYear("&$D$12&")="&$D$5&" and localMonth("&$D$12&") ="&$E$5&" and LocalDay("&$D$12&")="&$F$5&" and Barix("&$D$12&",reference:=StartOfSession)="&A15&"", "Bar", "", "Close","5","0","PrimaryOnly",,,"False","T","EveryTick") -> 2789 | Q15: 0.0008073921234 | R15: =RTD("cqg.rtd",,"StudyData", "Close("&$D$12&") when LocalYear("&$D$12&")="&$D$6&" and localMonth("&$D$12&") ="&$E$6&" and LocalDay("&$D$12&")="&$F$6&" and Barix("&$D$12&",reference:=StartOfSession)="&A15&"", "Bar", "", "Close","5","0","PrimaryOnly",,,"False","T","EveryTick") -> 2786.5 | S15: 0.001437556155 | T15: =RTD("cqg.rtd",,"StudyData", "Close("&$D$12&") when LocalYear("&$D$12&")="&$D$7&" and localMonth("&$D$12&") ="&$E$7&" and LocalDay("&$D$12&")="&$F$7&" and Barix("&$D$12&",reference:=StartOfSession)="&A15&"", "Bar", "", "Close","5","0","PrimaryOnly",,,"False","T","EveryTick") -> 2768.25 | U15: -0.002791786744 | V15: =RTD("cqg.rtd",,"StudyData", "Close("&$D$12&") when LocalYear("&$D$12&")="&$D$8&" and localMonth("&$D$12&") ="&$E$8&" and LocalDay("&$D$12&")="&$F$8&" and Barix("&$D$12&",reference:=StartOfSession)="&A15&"", "Bar", "", "Close","5","0","PrimaryOnly",,,"False","T","EveryTick") -> 2773.5 | W15: -0.0009005763689 | X15: =RTD("cqg.rtd",,"StudyData", "Close("&$D$12&") when LocalYear("&$D$12&")="&$D$9&" and localMonth("&$D$12&") ="&$E$9&" and LocalDay("&$D$12&")="&$F$9&" and Barix("&$D$12&",reference:=StartOfSession)="&A15&"", "Bar", "", "Close","5","0","PrimaryOnly",,,"False","T","EveryTick") -> 2754.75 | Y15: -0.0002721829069 | Z15: =RTD("cqg.rtd",,"StudyData", "Close("&$D$12&") when LocalYear("&$D$12&")="&$D$10&" and localMonth("&$D$12&") ="&$E$10&" and LocalDay("&$D$12&")="&$F$10&" and Barix("&$D$12&",reference:=StartOfSession)="&A15&"", "Bar", "", "Close","5","0","PrimaryOnly",,,"False","T","EveryTick") -> 2751.5 | AA15: 0.0006364214929
A16: 15 | B16: 09:45:00 | D16: =RTD("cqg.rtd", ,"ContractData",D12, "Ticksize",, "T") -> 0.25 | G16: 2018-06-13 | H16: =RTD("cqg.rtd",,"StudyData", "Close("&$D$12&") when LocalYear("&$D$12&")="&$D$1&" and localMonth("&$D$12&") ="&$E$1&" and LocalDay("&$D$12&")="&$F$1&" and Barix("&$D$12&",reference:=StartOfSession)="&A16&"", "Bar", "", "Close","5","0","PrimaryOnly",,,"False","T","EveryTick") ->  | J16: =RTD("cqg.rtd",,"StudyData", "Close("&$D$12&") when LocalYear("&$D$12&")="&$D$2&" and localMonth("&$D$12&") ="&$E$2&" and LocalDay("&$D$12&")="&$F$2&" and Barix("&$D$12&",reference:=StartOfSession)="&A16&"", "Bar", "", "Close","5","0","PrimaryOnly",,,"False","T","EveryTick") -> 2773.75 | K16: -0.005289582213 | L16: =RTD("cqg.rtd",,"StudyData", "Close("&$D$12&") when LocalYear("&$D$12&")="&$D$3&" and localMonth("&$D$12&") ="&$E$3&" and LocalDay("&$D$12&")="&$F$3&" and Barix("&$D$12&",reference:=StartOfSession)="&A16&"", "Bar", "", "Close","5","0","PrimaryOnly",,,"False","T","EveryTick") -> 2788 | M16: 0.003238575027 | N16: =RTD("cqg.rtd",,"StudyData", "Close("&$D$12&") when LocalYear("&$D$12&")="&$D$4&" and localMonth("&$D$12&") ="&$E$4&" and LocalDay("&$D$12&")="&$F$4&" and Barix("&$D$12&",reference:=StartOfSession)="&A16&"", "Bar", "", "Close","5","0","PrimaryOnly",,,"False","T","EveryTick") -> 2792.25 | O16: 0.00143459159 | P16: =RTD("cqg.rtd",,"StudyData", "Close("&$D$12&") when LocalYear("&$D$12&")="&$D$5&" and localMonth("&$D$12&") ="&$E$5&" and LocalDay("&$D$12&")="&$F$5&" and Barix("&$D$12&",reference:=StartOfSession)="&A16&"", "Bar", "", "Close","5","0","PrimaryOnly",,,"False","T","EveryTick") -> 2788.75 | Q16: 0.0007176818875 | R16: =RTD("cqg.rtd",,"StudyData", "Close("&$D$12&") when LocalYear("&$D$12&")="&$D$6&" and localMonth("&$D$12&") ="&$E$6&" and LocalDay("&$D$12&")="&$F$6&" and Barix("&$D$12&",reference:=StartOfSession)="&A16&"", "Bar", "", "Close","5","0","PrimaryOnly",,,"False","T","EveryTick") -> 2786 | S16: 0.001257861635 | T16: =RTD("cqg.rtd",,"StudyData", "Close("&$D$12&") when LocalYear("&$D$12&")="&$D$7&" and localMonth("&$D$12&") ="&$E$7&" and LocalDay("&$D$12&")="&$F$7&" and Barix("&$D$12&",reference:=StartOfSession)="&A16&"", "Bar", "", "Close","5","0","PrimaryOnly",,,"False","T","EveryTick") -> 2769.25 | U16: -0.002431556196 | V16: =RTD("cqg.rtd",,"StudyData", "Close("&$D$12&") when LocalYear("&$D$12&")="&$D$8&" and localMonth("&$D$12&") ="&$E$8&" and LocalDay("&$D$12&")="&$F$8&" and Barix("&$D$12&",reference:=StartOfSession)="&A16&"", "Bar", "", "Close","5","0","PrimaryOnly",,,"False","T","EveryTick") -> 2774 | W16: -0.0007204610951 | X16: =RTD("cqg.rtd",,"StudyData", "Close("&$D$12&") when LocalYear("&$D$12&")="&$D$9&" and localMonth("&$D$12&") ="&$E$9&" and LocalDay("&$D$12&")="&$F$9&" and Barix("&$D$12&",reference:=StartOfSession)="&A16&"", "Bar", "", "Close","5","0","PrimaryOnly",,,"False","T","EveryTick") -> 2752 | Y16: -0.001270186899 | Z16: =RTD("cqg.rtd",,"StudyData", "Close("&$D$12&") when LocalYear("&$D$12&")="&$D$10&" and localMonth("&$D$12&") ="&$E$10&" and LocalDay("&$D$12&")="&$F$10&" and Barix("&$D$12&",reference:=StartOfSession)="&A16&"", "Bar", "", "Close","5","0","PrimaryOnly",,,"False","T","EveryTick") -> 2750.75 | AA16: 0.0003636694245
A17: 16 | B17: 09:50:00 | D17: =IF(D16>=1,0,IF(LEN(D16)-2=1,2,LEN(D16)-2)) -> 2 | F17: =VLOOKUP(D17,D18:E25,2,FALSE) -> #.00 | G17: 2018-06-12 | H17: =RTD("cqg.rtd",,"StudyData", "Close("&$D$12&") when LocalYear("&$D$12&")="&$D$1&" and localMonth("&$D$12&") ="&$E$1&" and LocalDay("&$D$12&")="&$F$1&" and Barix("&$D$12&",reference:=StartOfSession)="&A17&"", "Bar", "", "Close","5","0","PrimaryOnly",,,"False","T","EveryTick") ->  | J17: =RTD("cqg.rtd",,"StudyData", "Close("&$D$12&") when LocalYear("&$D$12&")="&$D$2&" and localMonth("&$D$12&") ="&$E$2&" and LocalDay("&$D$12&")="&$F$2&" and Barix("&$D$12&",reference:=StartOfSession)="&A17&"", "Bar", "", "Close","5","0","PrimaryOnly",,,"False","T","EveryTick") -> 2773.75 | K17: -0.005289582213 | L17: =RTD("cqg.rtd",,"StudyData", "Close("&$D$12&") when LocalYear("&$D$12&")="&$D$3&" and localMonth("&$D$12&") ="&$E$3&" and LocalDay("&$D$12&")="&$F$3&" and Barix("&$D$12&",reference:=StartOfSession)="&A17&"", "Bar", "", "Close","5","0","PrimaryOnly",,,"False","T","EveryTick") -> 2786.5 | M17: 0.002698812522 | N17: =RTD("cqg.rtd",,"StudyData", "Close("&$D$12&") when LocalYear("&$D$12&")="&$D$4&" and localMonth("&$D$12&") ="&$E$4&" and LocalDay("&$D$12&")="&$F$4&" and Barix("&$D$12&",reference:=StartOfSession)="&A17&"", "Bar", "", "Close","5","0","PrimaryOnly",,,"False","T","EveryTick") -> 2793 | O17: 0.001703577513 | P17: =RTD("cqg.rtd",,"StudyData", "Close("&$D$12&") when LocalYear("&$D$12&")="&$D$5&" and localMonth("&$D$12&") ="&$E$5&" and LocalDay("&$D$12&")="&$F$5&" and Barix("&$D$12&",reference:=StartOfSession)="&A17&"", "Bar", "", "Close","5","0","PrimaryOnly",,,"False","T","EveryTick") -> 2788.25 | Q17: 0.0005382614156 | R17: =RTD("cqg.rtd",,"StudyData", "Close("&$D$12&") when LocalYear("&$D$12&")="&$D$6&" and localMonth("&$D$12&") ="&$E$6&" and LocalDay("&$D$12&")="&$F$6&" and Barix("&$D$12&",reference:=StartOfSession)="&A17&"", "Bar", "", "Close","5","0","PrimaryOnly",,,"False","T","EveryTick") -> 2785.75 | S17: 0.001168014376 | T17: =RTD("cqg.rtd",,"StudyData", "Close("&$D$12&") when LocalYear("&$D$12&")="&$D$7&" and localMonth("&$D$12&") ="&$E$7&" and LocalDay("&$D$12&")="&$F$7&" and Barix("&$D$12&",reference:=StartOfSession)="&A17&"", "Bar", "", "Close","5","0","PrimaryOnly",,,"False","T","EveryTick") -> 2772.75 | U17: -0.00117074928 | V17: =RTD("cqg.rtd",,"StudyData", "Close("&$D$12&") when LocalYear("&$D$12&")="&$D$8&" and localMonth("&$D$12&") ="&$E$8&" and LocalDay("&$D$12&")="&$F$8&" and Barix("&$D$12&",reference:=StartOfSession)="&A17&"", "Bar", "", "Close","5","0","PrimaryOnly",,,"False","T","EveryTick") -> 2773.5 | W17: -0.0009005763689 | X17: =RTD("cqg.rtd",,"StudyData", "Close("&$D$12&") when LocalYear("&$D$12&")="&$D$9&" and localMonth("&$D$12&") ="&$E$9&" and LocalDay("&$D$12&")="&$F$9&" and Barix("&$D$12&",reference:=StartOfSession)="&A17&"", "Bar", "", "Close","5","0","PrimaryOnly",,,"False","T","EveryTick") -> 2754.25 | Y17: -0.0004536381782 | Z17: =RTD("cqg.rtd",,"StudyData", "Close("&$D$12&") when LocalYear("&$D$12&")="&$D$10&" and localMonth("&$D$12&") ="&$E$10&" and LocalDay("&$D$12&")="&$F$10&" and Barix("&$D$12&",reference:=StartOfSession)="&A17&"", "Bar", "", "Close","5","0","PrimaryOnly",,,"False","T","EveryTick") -> 2752.5 | AA17: 0.001000090917
A18: 17 | B18: 09:55:00 | D18: 0 | E18: # | G18: 2018-06-11 | H18: =RTD("cqg.rtd",,"StudyData", "Close("&$D$12&") when LocalYear("&$D$12&")="&$D$1&" and localMonth("&$D$12&") ="&$E$1&" and LocalDay("&$D$12&")="&$F$1&" and Barix("&$D$12&",reference:=StartOfSession)="&A18&"", "Bar", "", "Close","5","0","PrimaryOnly",,,"False","T","EveryTick") ->  | J18: =RTD("cqg.rtd",,"StudyData", "Close("&$D$12&") when LocalYear("&$D$12&")="&$D$2&" and localMonth("&$D$12&") ="&$E$2&" and LocalDay("&$D$12&")="&$F$2&" and Barix("&$D$12&",reference:=StartOfSession)="&A18&"", "Bar", "", "Close","5","0","PrimaryOnly",,,"False","T","EveryTick") -> 2774.5 | K18: -0.005020620405 | L18: =RTD("cqg.rtd",,"StudyData", "Close("&$D$12&") when LocalYear("&$D$12&")="&$D$3&" and localMonth("&$D$12&") ="&$E$3&" and LocalDay("&$D$12&")="&$F$3&" and Barix("&$D$12&",reference:=StartOfSession)="&A18&"", "Bar", "", "Close","5","0","PrimaryOnly",,,"False","T","EveryTick") -> 2783.5 | M18: 0.001619287513 | N18: =RTD("cqg.rtd",,"StudyData", "Close("&$D$12&") when LocalYear("&$D$12&")="&$D$4&" and localMonth("&$D$12&") ="&$E$4&" and LocalDay("&$D$12&")="&$F$4&" and Barix("&$D$12&",reference:=StartOfSession)="&A18&"", "Bar", "", "Close","5","0","PrimaryOnly",,,"False","T","EveryTick") -> 2792.75 | O18: 0.001613915538 | P18: =RTD("cqg.rtd",,"StudyData", "Close("&$D$12&") when LocalYear("&$D$12&")="&$D$5&" and localMonth("&$D$12&") ="&$E$5&" and LocalDay("&$D$12&")="&$F$5&" and Barix("&$D$12&",reference:=StartOfSession)="&A18&"", "Bar", "", "Close","5","0","PrimaryOnly",,,"False","T","EveryTick") -> 2789.5 | Q18: 0.0009868125953 | R18: =RTD("cqg.rtd",,"StudyData", "Close("&$D$12&") when LocalYear("&$D$12&")="&$D$6&" and localMonth("&$D$12&") ="&$E$6&" and LocalDay("&$D$12&")="&$F$6&" and Barix("&$D$12&",reference:=StartOfSession)="&A18&"", "Bar", "", "Close","5","0","PrimaryOnly",,,"False","T","EveryTick") -> 2785.75 | S18: 0.001168014376 | T18: =RTD("cqg.rtd",,"StudyData", "Close("&$D$12&") when LocalYear("&$D$12&")="&$D$7&" and localMonth("&$D$12&") ="&$E$7&" and LocalDay("&$D$12&")="&$F$7&" and Barix("&$D$12&",reference:=StartOfSession)="&A18&"", "Bar", "", "Close","5","0","PrimaryOnly",,,"False","T","EveryTick") -> 2772.25 | U18: -0.001350864553 | V18: =RTD("cqg.rtd",,"StudyData", "Close("&$D$12&") when LocalYear("&$D$12&")="&$D$8&" and localMonth("&$D$12&") ="&$E$8&" and LocalDay("&$D$12&")="&$F$8&" and Barix("&$D$12&",reference:=StartOfSession)="&A18&"", "Bar", "", "Close","5","0","PrimaryOnly",,,"False","T","EveryTick") -> 2775.25 | W18: -0.0002701729107 | X18: =RTD("cqg.rtd",,"StudyData", "Close("&$D$12&") when LocalYear("&$D$12&")="&$D$9&" and localMonth("&$D$12&") ="&$E$9&" and LocalDay("&$D$12&")="&$F$9&" and Barix("&$D$12&",reference:=StartOfSession)="&A18&"", "Bar", "", "Close","5","0","PrimaryOnly",,,"False","T","EveryTick") -> 2757.25 | Y18: 0.0006350934495 | Z18: =RTD("cqg.rtd",,"StudyData", "Close("&$D$12&") when LocalYear("&$D$12&")="&$D$10&" and localMonth("&$D$12&") ="&$E$10&" and LocalDay("&$D$12&")="&$F$10&" and Barix("&$D$12&",reference:=StartOfSession)="&A18&"", "Bar", "", "Close","5","0","PrimaryOnly",,,"False","T","EveryTick") -> 2752.75 | AA18: 0.001091008273
A19: 18 | B19: 10:00:00 | D19: 1 | E19: #.0 | G19: 2018-06-08 | H19: =RTD("cqg.rtd",,"StudyData", "Close("&$D$12&") when LocalYear("&$D$12&")="&$D$1&" and localMonth("&$D$12&") ="&$E$1&" and LocalDay("&$D$12&")="&$F$1&" and Barix("&$D$12&",reference:=StartOfSession)="&A19&"", "Bar", "", "Close","5","0","PrimaryOnly",,,"False","T","EveryTick") ->  | J19: =RTD("cqg.rtd",,"StudyData", "Close("&$D$12&") when LocalYear("&$D$12&")="&$D$2&" and localMonth("&$D$12&") ="&$E$2&" and LocalDay("&$D$12&")="&$F$2&" and Barix("&$D$12&",reference:=StartOfSession)="&A19&"", "Bar", "", "Close","5","0","PrimaryOnly",,,"False","T","EveryTick") -> 2776.5 | K19: -0.004303388919 | L19: =RTD("cqg.rtd",,"StudyData", "Close("&$D$12&") when LocalYear("&$D$12&")="&$D$3&" and localMonth("&$D$12&") ="&$E$3&" and LocalDay("&$D$12&")="&$F$3&" and Barix("&$D$12&",reference:=StartOfSession)="&A19&"", "Bar", "", "Close","5","0","PrimaryOnly",,,"False","T","EveryTick") -> 2784 | M19: 0.001799208348 | N19: =RTD("cqg.rtd",,"StudyData", "Close("&$D$12&") when LocalYear("&$D$12&")="&$D$4&" and localMonth("&$D$12&") ="&$E$4&" and LocalDay("&$D$12&")="&$F$4&" and Barix("&$D$12&",reference:=StartOfSession)="&A19&"", "Bar", "", "Close","5","0","PrimaryOnly",,,"False","T","EveryTick") -> 2794.75 | O19: 0.002331211333 | P19: =RTD("cqg.rtd",,"StudyData", "Close("&$D$12&") when LocalYear("&$D$12&")="&$D$5&" and localMonth("&$D$12&") ="&$E$5&" and LocalDay("&$D$12&")="&$F$5&" and Barix("&$D$12&",reference:=StartOfSession)="&A19&"", "Bar", "", "Close","5","0","PrimaryOnly",,,"False","T","EveryTick") -> 2789 | Q19: 0.0008073921234 | R19: =RTD("cqg.rtd",,"StudyData", "Close("&$D$12&") when LocalYear("&$D$12&")="&$D$6&" and localMonth("&$D$12&") ="&$E$6&" and LocalDay("&$D$12&")="&$F$6&" and Barix("&$D$12&",reference:=StartOfSession)="&A19&"", "Bar", "", "Close","5","0","PrimaryOnly",,,"False","T","EveryTick") -> 2785.5 | S19: 0.001078167116 | T19: =RTD("cqg.rtd",,"StudyData", "Close("&$D$12&") when LocalYear("&$D$12&")="&$D$7&" and localMonth("&$D$12&") ="&$E$7&" and LocalDay("&$D$12&")="&$F$7&" and Barix("&$D$12&",reference:=StartOfSession)="&A19&"", "Bar", "", "Close","5","0","PrimaryOnly",,,"False","T","EveryTick") -> 2770.75 | U19: -0.001891210375 | V19: =RTD("cqg.rtd",,"StudyData", "Close("&$D$12&") when LocalYear("&$D$12&")="&$D$8&" and localMonth("&$D$12&") ="&$E$8&" and LocalDay("&$D$12&")="&$F$8&" and Barix("&$D$12&",reference:=StartOfSession)="&A19&"", "Bar", "", "Close","5","0","PrimaryOnly",,,"False","T","EveryTick") -> 2774.75 | W19: -0.0004502881844 | X19: =RTD("cqg.rtd",,"StudyData", "Close("&$D$12&") when LocalYear("&$D$12&")="&$D$9&" and localMonth("&$D$12&") ="&$E$9&" and LocalDay("&$D$12&")="&$F$9&" and Barix("&$D$12&",reference:=StartOfSession)="&A19&"", "Bar", "", "Close","5","0","PrimaryOnly",,,"False","T","EveryTick") -> 2758.5 | Y19: 0.001088731628 | Z19: =RTD("cqg.rtd",,"StudyData", "Close("&$D$12&") when LocalYear("&$D$12&")="&$D$10&" and localMonth("&$D$12&") ="&$E$10&" and LocalDay("&$D$12&")="&$F$10&" and Barix("&$D$12&",reference:=StartOfSession)="&A19&"", "Bar", "", "Close","5","0","PrimaryOnly",,,"False","T","EveryTick") -> 2751.5 | AA19: 0.0006364214929
A20: 19 | B20: 10:05:00 | D20: 2 | E20: #.00 | G20: 2018-06-07 | H20: =RTD("cqg.rtd",,"StudyData", "Close("&$D$12&") when LocalYear("&$D$12&")="&$D$1&" and localMonth("&$D$12&") ="&$E$1&" and LocalDay("&$D$12&")="&$F$1&" and Barix("&$D$12&",reference:=StartOfSession)="&A20&"", "Bar", "", "Close","5","0","PrimaryOnly",,,"False","T","EveryTick") ->  | J20: =RTD("cqg.rtd",,"StudyData", "Close("&$D$12&") when LocalYear("&$D$12&")="&$D$2&" and localMonth("&$D$12&") ="&$E$2&" and LocalDay("&$D$12&")="&$F$2&" and Barix("&$D$12&",reference:=StartOfSession)="&A20&"", "Bar", "", "Close","5","0","PrimaryOnly",,,"False","T","EveryTick") -> 2775.75 | K20: -0.004572350726 | L20: =RTD("cqg.rtd",,"StudyData", "Close("&$D$12&") when LocalYear("&$D$12&")="&$D$3&" and localMonth("&$D$12&") ="&$E$3&" and LocalDay("&$D$12&")="&$F$3&" and Barix("&$D$12&",reference:=StartOfSession)="&A20&"", "Bar", "", "Close","5","0","PrimaryOnly",,,"False","T","EveryTick") -> 2783.75 | M20: 0.001709247931 | N20: =RTD("cqg.rtd",,"StudyData", "Close("&$D$12&") when LocalYear("&$D$12&")="&$D$4&" and localMonth("&$D$12&") ="&$E$4&" and LocalDay("&$D$12&")="&$F$4&" and Barix("&$D$12&",reference:=StartOfSession)="&A20&"", "Bar", "", "Close","5","0","PrimaryOnly",,,"False","T","EveryTick") -> 2795 | O20: 0.002420873308 | P20: =RTD("cqg.rtd",,"StudyData", "Close("&$D$12&") when LocalYear("&$D$12&")="&$D$5&" and localMonth("&$D$12&") ="&$E$5&" and LocalDay("&$D$12&")="&$F$5&" and Barix("&$D$12&",reference:=StartOfSession)="&A20&"", "Bar", "", "Close","5","0","PrimaryOnly",,,"False","T","EveryTick") -> 2789.25 | Q20: 0.0008971023594 | R20: =RTD("cqg.rtd",,"StudyData", "Close("&$D$12&") when LocalYear("&$D$12&")="&$D$6&" and localMonth("&$D$12&") ="&$E$6&" and LocalDay("&$D$12&")="&$F$6&" and Barix("&$D$12&",reference:=StartOfSession)="&A20&"", "Bar", "", "Close","5","0","PrimaryOnly",,,"False","T","EveryTick") -> 2785.5 | S20: 0.001078167116 | T20: =RTD("cqg.rtd",,"StudyData", "Close("&$D$12&") when LocalYear("&$D$12&")="&$D$7&" and localMonth("&$D$12&") ="&$E$7&" and LocalDay("&$D$12&")="&$F$7&" and Barix("&$D$12&",reference:=StartOfSession)="&A20&"", "Bar", "", "Close","5","0","PrimaryOnly",,,"False","T","EveryTick") -> 2772.5 | U20: -0.001260806916 | V20: =RTD("cqg.rtd",,"StudyData", "Close("&$D$12&") when LocalYear("&$D$12&")="&$D$8&" and localMonth("&$D$12&") ="&$E$8&" and LocalDay("&$D$12&")="&$F$8&" and Barix("&$D$12&",reference:=StartOfSession)="&A20&"", "Bar", "", "Close","5","0","PrimaryOnly",,,"False","T","EveryTick") -> 2774.5 | W20: -0.0005403458213 | X20: =RTD("cqg.rtd",,"StudyData", "Close("&$D$12&") when LocalYear("&$D$12&")="&$D$9&" and localMonth("&$D$12&") ="&$E$9&" and LocalDay("&$D$12&")="&$F$9&" and Barix("&$D$12&",reference:=StartOfSession)="&A20&"", "Bar", "", "Close","5","0","PrimaryOnly",,,"False","T","EveryTick") -> 2758.25 | Y20: 0.000998003992 | Z20: =RTD("cqg.rtd",,"StudyData", "Close("&$D$12&") when LocalYear("&$D$12&")="&$D$10&" and localMonth("&$D$12&") ="&$E$10&" and LocalDay("&$D$12&")="&$F$10&" and Barix("&$D$12&",reference:=StartOfSession)="&A20&"", "Bar", "", "Close","5","0","PrimaryOnly",,,"False","T","EveryTick") -> 2746.25 | AA20: -0.001272842986
A21: 20 | B21: 10:10:00 | D21: 3 | E21: #.000 | G21: 2018-06-06 | H21: =RTD("cqg.rtd",,"StudyData", "Close("&$D$12&") when LocalYear("&$D$12&")="&$D$1&" and localMonth("&$D$12&") ="&$E$1&" and LocalDay("&$D$12&")="&$F$1&" and Barix("&$D$12&",reference:=StartOfSession)="&A21&"", "Bar", "", "Close","5","0","PrimaryOnly",,,"False","T","EveryTick") ->  | J21: =RTD("cqg.rtd",,"StudyData", "Close("&$D$12&") when LocalYear("&$D$12&")="&$D$2&" and localMonth("&$D$12&") ="&$E$2&" and LocalDay("&$D$12&")="&$F$2&" and Barix("&$D$12&",reference:=StartOfSession)="&A21&"", "Bar", "", "Close","5","0","PrimaryOnly",,,"False","T","EveryTick") -> 2776 | K21: -0.00448269679 | L21: =RTD("cqg.rtd",,"StudyData", "Close("&$D$12&") when LocalYear("&$D$12&")="&$D$3&" and localMonth("&$D$12&") ="&$E$3&" and LocalDay("&$D$12&")="&$F$3&" and Barix("&$D$12&",reference:=StartOfSession)="&A21&"", "Bar", "", "Close","5","0","PrimaryOnly",,,"False","T","EveryTick") -> 2784.5 | M21: 0.001979129183 | N21: =RTD("cqg.rtd",,"StudyData", "Close("&$D$12&") when LocalYear("&$D$12&")="&$D$4&" and localMonth("&$D$12&") ="&$E$4&" and LocalDay("&$D$12&")="&$F$4&" and Barix("&$D$12&",reference:=StartOfSession)="&A21&"", "Bar", "", "Close","5","0","PrimaryOnly",,,"False","T","EveryTick") -> 2793.75 | O21: 0.001972563436 | P21: =RTD("cqg.rtd",,"StudyData", "Close("&$D$12&") when LocalYear("&$D$12&")="&$D$5&" and localMonth("&$D$12&") ="&$E$5&" and LocalDay("&$D$12&")="&$F$5&" and Barix("&$D$12&",reference:=StartOfSession)="&A21&"", "Bar", "", "Close","5","0","PrimaryOnly",,,"False","T","EveryTick") -> 2787.75 | Q21: 0.0003588409438 | R21: =RTD("cqg.rtd",,"StudyData", "Close("&$D$12&") when LocalYear("&$D$12&")="&$D$6&" and localMonth("&$D$12&") ="&$E$6&" and LocalDay("&$D$12&")="&$F$6&" and Barix("&$D$12&",reference:=StartOfSession)="&A21&"", "Bar", "", "Close","5","0","PrimaryOnly",,,"False","T","EveryTick") -> 2785.25 | S21: 0.0009883198562 | T21: =RTD("cqg.rtd",,"StudyData", "Close("&$D$12&") when LocalYear("&$D$12&")="&$D$7&" and localMonth("&$D$12&") ="&$E$7&" and LocalDay("&$D$12&")="&$F$7&" and Barix("&$D$12&",reference:=StartOfSession)="&A21&"", "Bar", "", "Close","5","0","PrimaryOnly",,,"False","T","EveryTick") -> 2773.75 | U21: -0.000810518732 | V21: =RTD("cqg.rtd",,"StudyData", "Close("&$D$12&") when LocalYear("&$D$12&")="&$D$8&" and localMonth("&$D$12&") ="&$E$8&" and LocalDay("&$D$12&")="&$F$8&" and Barix("&$D$12&",reference:=StartOfSession)="&A21&"", "Bar", "", "Close","5","0","PrimaryOnly",,,"False","T","EveryTick") -> 2778.25 | W21: 0.000810518732 | X21: =RTD("cqg.rtd",,"StudyData", "Close("&$D$12&") when LocalYear("&$D$12&")="&$D$9&" and localMonth("&$D$12&") ="&$E$9&" and LocalDay("&$D$12&")="&$F$9&" and Barix("&$D$12&",reference:=StartOfSession)="&A21&"", "Bar", "", "Close","5","0","PrimaryOnly",,,"False","T","EveryTick") -> 2759.25 | Y21: 0.001360914535 | Z21: =RTD("cqg.rtd",,"StudyData", "Close("&$D$12&") when LocalYear("&$D$12&")="&$D$10&" and localMonth("&$D$12&") ="&$E$10&" and LocalDay("&$D$12&")="&$F$10&" and Barix("&$D$12&",reference:=StartOfSession)="&A21&"", "Bar", "", "Close","5","0","PrimaryOnly",,,"False","T","EveryTick") -> 2749 | AA21: -0.0002727520684
A22: 21 | B22: 10:15:00 | D22: 4 | E22: #.0000 | G22: 2018-06-05 | H22: =RTD("cqg.rtd",,"StudyData", "Close("&$D$12&") when LocalYear("&$D$12&")="&$D$1&" and localMonth("&$D$12&") ="&$E$1&" and LocalDay("&$D$12&")="&$F$1&" and Barix("&$D$12&",reference:=StartOfSession)="&A22&"", "Bar", "", "Close","5","0","PrimaryOnly",,,"False","T","EveryTick") ->  | J22: =RTD("cqg.rtd",,"StudyData", "Close("&$D$12&") when LocalYear("&$D$12&")="&$D$2&" and localMonth("&$D$12&") ="&$E$2&" and LocalDay("&$D$12&")="&$F$2&" and Barix("&$D$12&",reference:=StartOfSession)="&A22&"", "Bar", "", "Close","5","0","PrimaryOnly",,,"False","T","EveryTick") -> 2775.25 | K22: -0.004751658598 | L22: =RTD("cqg.rtd",,"StudyData", "Close("&$D$12&") when LocalYear("&$D$12&")="&$D$3&" and localMonth("&$D$12&") ="&$E$3&" and LocalDay("&$D$12&")="&$F$3&" and Barix("&$D$12&",reference:=StartOfSession)="&A22&"", "Bar", "", "Close","5","0","PrimaryOnly",,,"False","T","EveryTick") -> 2784.5 | M22: 0.001979129183 | N22: =RTD("cqg.rtd",,"StudyData", "Close("&$D$12&") when LocalYear("&$D$12&")="&$D$4&" and localMonth("&$D$12&") ="&$E$4&" and LocalDay("&$D$12&")="&$F$4&" and Barix("&$D$12&",reference:=StartOfSession)="&A22&"", "Bar", "", "Close","5","0","PrimaryOnly",,,"False","T","EveryTick") -> 2795 | O22: 0.002420873308 | P22: =RTD("cqg.rtd",,"StudyData", "Close("&$D$12&") when LocalYear("&$D$12&")="&$D$5&" and localMonth("&$D$12&") ="&$E$5&" and LocalDay("&$D$12&")="&$F$5&" and Barix("&$D$12&",reference:=StartOfSession)="&A22&"", "Bar", "", "Close","5","0","PrimaryOnly",,,"False","T","EveryTick") -> 2787.5 | Q22: 0.0002691307078 | R22: =RTD("cqg.rtd",,"StudyData", "Close("&$D$12&") when LocalYear("&$D$12&")="&$D$6&" and localMonth("&$D$12&") ="&$E$6&" and LocalDay("&$D$12&")="&$F$6&" and Barix("&$D$12&",reference:=StartOfSession)="&A22&"", "Bar", "", "Close","5","0","PrimaryOnly",,,"False","T","EveryTick") -> 2785.75 | S22: 0.001168014376 | T22: =RTD("cqg.rtd",,"StudyData", "Close("&$D$12&") when LocalYear("&$D$12&")="&$D$7&" and localMonth("&$D$12&") ="&$E$7&" and LocalDay("&$D$12&")="&$F$7&" and Barix("&$D$12&",reference:=StartOfSession)="&A22&"", "Bar", "", "Close","5","0","PrimaryOnly",,,"False","T","EveryTick") -> 2773.5 | U22: -0.0009005763689 | V22: =RTD("cqg.rtd",,"StudyData", "Close("&$D$12&") when LocalYear("&$D$12&")="&$D$8&" and localMonth("&$D$12&") ="&$E$8&" and LocalDay("&$D$12&")="&$F$8&" and Barix("&$D$12&",reference:=StartOfSession)="&A22&"", "Bar", "", "Close","5","0","PrimaryOnly",,,"False","T","EveryTick") -> 2777.25 | W22: 0.0004502881844 | X22: =RTD("cqg.rtd",,"StudyData", "Close("&$D$12&") when LocalYear("&$D$12&")="&$D$9&" and localMonth("&$D$12&") ="&$E$9&" and LocalDay("&$D$12&")="&$F$9&" and Barix("&$D$12&",reference:=StartOfSession)="&A22&"", "Bar", "", "Close","5","0","PrimaryOnly",,,"False","T","EveryTick") -> 2759.5 | Y22: 0.00145164217 | Z22: =RTD("cqg.rtd",,"StudyData", "Close("&$D$12&") when LocalYear("&$D$12&")="&$D$10&" and localMonth("&$D$12&") ="&$E$10&" and LocalDay("&$D$12&")="&$F$10&" and Barix("&$D$12&",reference:=StartOfSession)="&A22&"", "Bar", "", "Close","5","0","PrimaryOnly",,,"False","T","EveryTick") -> 2750.25 | AA22: 0.0001818347122
A23: 22 | B23: 10:20:00 | D23: 5 | E23: #.00000 | H23: =RTD("cqg.rtd",,"StudyData", "Close("&$D$12&") when LocalYear("&$D$12&")="&$D$1&" and localMonth("&$D$12&") ="&$E$1&" and LocalDay("&$D$12&")="&$F$1&" and Barix("&$D$12&",reference:=StartOfSession)="&A23&"", "Bar", "", "Close","5","0","PrimaryOnly",,,"False","T","EveryTick") ->  | J23: =RTD("cqg.rtd",,"StudyData", "Close("&$D$12&") when LocalYear("&$D$12&")="&$D$2&" and localMonth("&$D$12&") ="&$E$2&" and LocalDay("&$D$12&")="&$F$2&" and Barix("&$D$12&",reference:=StartOfSession)="&A23&"", "Bar", "", "Close","5","0","PrimaryOnly",,,"False","T","EveryTick") -> 2776.25 | K23: -0.004393042855 | L23: =RTD("cqg.rtd",,"StudyData", "Close("&$D$12&") when LocalYear("&$D$12&")="&$D$3&" and localMonth("&$D$12&") ="&$E$3&" and LocalDay("&$D$12&")="&$F$3&" and Barix("&$D$12&",reference:=StartOfSession)="&A23&"", "Bar", "", "Close","5","0","PrimaryOnly",,,"False","T","EveryTick") -> 2786 | M23: 0.002518891688 | N23: =RTD("cqg.rtd",,"StudyData", "Close("&$D$12&") when LocalYear("&$D$12&")="&$D$4&" and localMonth("&$D$12&") ="&$E$4&" and LocalDay("&$D$12&")="&$F$4&" and Barix("&$D$12&",reference:=StartOfSession)="&A23&"", "Bar", "", "Close","5","0","PrimaryOnly",,,"False","T","EveryTick") -> 2795 | O23: 0.002420873308 | P23: =RTD("cqg.rtd",,"StudyData", "Close("&$D$12&") when LocalYear("&$D$12&")="&$D$5&" and localMonth("&$D$12&") ="&$E$5&" and LocalDay("&$D$12&")="&$F$5&" and Barix("&$D$12&",reference:=StartOfSession)="&A23&"", "Bar", "", "Close","5","0","PrimaryOnly",,,"False","T","EveryTick") -> 2788.75 | Q23: 0.0007176818875 | R23: =RTD("cqg.rtd",,"StudyData", "Close("&$D$12&") when LocalYear("&$D$12&")="&$D$6&" and localMonth("&$D$12&") ="&$E$6&" and LocalDay("&$D$12&")="&$F$6&" and Barix("&$D$12&",reference:=StartOfSession)="&A23&"", "Bar", "", "Close","5","0","PrimaryOnly",,,"False","T","EveryTick") -> 2787.5 | S23: 0.001796945193 | T23: =RTD("cqg.rtd",,"StudyData", "Close("&$D$12&") when LocalYear("&$D$12&")="&$D$7&" and localMonth("&$D$12&") ="&$E$7&" and LocalDay("&$D$12&")="&$F$7&" and Barix("&$D$12&",reference:=StartOfSession)="&A23&"", "Bar", "", "Close","5","0","PrimaryOnly",,,"False","T","EveryTick") -> 2772.25 | U23: -0.001350864553 | V23: =RTD("cqg.rtd",,"StudyData", "Close("&$D$12&") when LocalYear("&$D$12&")="&$D$8&" and localMonth("&$D$12&") ="&$E$8&" and LocalDay("&$D$12&")="&$F$8&" and Barix("&$D$12&",reference:=StartOfSession)="&A23&"", "Bar", "", "Close","5","0","PrimaryOnly",,,"False","T","EveryTick") -> 2777 | W23: 0.0003602305476 | X23: =RTD("cqg.rtd",,"StudyData", "Close("&$D$12&") when LocalYear("&$D$12&")="&$D$9&" and localMonth("&$D$12&") ="&$E$9&" and LocalDay("&$D$12&")="&$F$9&" and Barix("&$D$12&",reference:=StartOfSession)="&A23&"", "Bar", "", "Close","5","0","PrimaryOnly",,,"False","T","EveryTick") -> 2761.25 | Y23: 0.00208673562 | Z23: =RTD("cqg.rtd",,"StudyData", "Close("&$D$12&") when LocalYear("&$D$12&")="&$D$10&" and localMonth("&$D$12&") ="&$E$10&" and LocalDay("&$D$12&")="&$F$10&" and Barix("&$D$12&",reference:=StartOfSession)="&A23&"", "Bar", "", "Close","5","0","PrimaryOnly",,,"False","T","EveryTick") -> 2749 | AA23: -0.0002727520684
A24: 23 | B24: 10:25:00 | D24: 6 | E24: #.000000 | H24: =RTD("cqg.rtd",,"StudyData", "Close("&$D$12&") when LocalYear("&$D$12&")="&$D$1&" and localMonth("&$D$12&") ="&$E$1&" and LocalDay("&$D$12&")="&$F$1&" and Barix("&$D$12&",reference:=StartOfSession)="&A24&"", "Bar", "", "Close","5","0","PrimaryOnly",,,"False","T","EveryTick") ->  | J24: =RTD("cqg.rtd",,"StudyData", "Close("&$D$12&") when LocalYear("&$D$12&")="&$D$2&" and localMonth("&$D$12&") ="&$E$2&" and LocalDay("&$D$12&")="&$F$2&" and Barix("&$D$12&",reference:=StartOfSession)="&A24&"", "Bar", "", "Close","5","0","PrimaryOnly",,,"False","T","EveryTick") -> 2772.5 | K24: -0.005737851892 | L24: =RTD("cqg.rtd",,"StudyData", "Close("&$D$12&") when LocalYear("&$D$12&")="&$D$3&" and localMonth("&$D$12&") ="&$E$3&" and LocalDay("&$D$12&")="&$F$3&" and Barix("&$D$12&",reference:=StartOfSession)="&A24&"", "Bar", "", "Close","5","0","PrimaryOnly",,,"False","T","EveryTick") -> 2786.5 | M24: 0.002698812522 | N24: =RTD("cqg.rtd",,"StudyData", "Close("&$D$12&") when LocalYear("&$D$12&")="&$D$4&" and localMonth("&$D$12&") ="&$E$4&" and LocalDay("&$D$12&")="&$F$4&" and Barix("&$D$12&",reference:=StartOfSession)="&A24&"", "Bar", "", "Close","5","0","PrimaryOnly",,,"False","T","EveryTick") -> 2795.25 | O24: 0.002510535282 | P24: =RTD("cqg.rtd",,"StudyData", "Close("&$D$12&") when LocalYear("&$D$12&")="&$D$5&" and localMonth("&$D$12&") ="&$E$5&" and LocalDay("&$D$12&")="&$F$5&" and Barix("&$D$12&",reference:=StartOfSession)="&A24&"", "Bar", "", "Close","5","0","PrimaryOnly",,,"False","T","EveryTick") -> 2788.75 | Q24: 0.0007176818875 | R24: =RTD("cqg.rtd",,"StudyData", "Close("&$D$12&") when LocalYear("&$D$12&")="&$D$6&" and localMonth("&$D$12&") ="&$E$6&" and LocalDay("&$D$12&")="&$F$6&" and Barix("&$D$12&",reference:=StartOfSession)="&A24&"", "Bar", "", "Close","5","0","PrimaryOnly",,,"False","T","EveryTick") -> 2787 | S24: 0.001617250674 | T24: =RTD("cqg.rtd",,"StudyData", "Close("&$D$12&") when LocalYear("&$D$12&")="&$D$7&" and localMonth("&$D$12&") ="&$E$7&" and LocalDay("&$D$12&")="&$F$7&" and Barix("&$D$12&",reference:=StartOfSession)="&A24&"", "Bar", "", "Close","5","0","PrimaryOnly",,,"False","T","EveryTick") -> 2772.75 | U24: -0.00117074928 | V24: =RTD("cqg.rtd",,"StudyData", "Close("&$D$12&") when LocalYear("&$D$12&")="&$D$8&" and localMonth("&$D$12&") ="&$E$8&" and LocalDay("&$D$12&")="&$F$8&" and Barix("&$D$12&",reference:=StartOfSession)="&A24&"", "Bar", "", "Close","5","0","PrimaryOnly",,,"False","T","EveryTick") -> 2776.5 | W24: 0.0001801152738 | X24: =RTD("cqg.rtd",,"StudyData", "Close("&$D$12&") when LocalYear("&$D$12&")="&$D$9&" and localMonth("&$D$12&") ="&$E$9&" and LocalDay("&$D$12&")="&$F$9&" and Barix("&$D$12&",reference:=StartOfSession)="&A24&"", "Bar", "", "Close","5","0","PrimaryOnly",,,"False","T","EveryTick") -> 2762.5 | Y24: 0.002540373798 | Z24: =RTD("cqg.rtd",,"StudyData", "Close("&$D$12&") when LocalYear("&$D$12&")="&$D$10&" and localMonth("&$D$12&") ="&$E$10&" and LocalDay("&$D$12&")="&$F$10&" and Barix("&$D$12&",reference:=StartOfSession)="&A24&"", "Bar", "", "Close","5","0","PrimaryOnly",,,"False","T","EveryTick") -> 2748.5 | AA24: -0.0004545867806
A25: 24 | B25: 10:30:00 | D25: 7 | E25: #.0000000 | H25: =RTD("cqg.rtd",,"StudyData", "Close("&$D$12&") when LocalYear("&$D$12&")="&$D$1&" and localMonth("&$D$12&") ="&$E$1&" and LocalDay("&$D$12&")="&$F$1&" and Barix("&$D$12&",reference:=StartOfSession)="&A25&"", "Bar", "", "Close","5","0","PrimaryOnly",,,"False","T","EveryTick") ->  | J25: =RTD("cqg.rtd",,"StudyData", "Close("&$D$12&") when LocalYear("&$D$12&")="&$D$2&" and localMonth("&$D$12&") ="&$E$2&" and LocalDay("&$D$12&")="&$F$2&" and Barix("&$D$12&",reference:=StartOfSession)="&A25&"", "Bar", "", "Close","5","0","PrimaryOnly",,,"False","T","EveryTick") -> 2771.25 | K25: -0.006186121571 | L25: =RTD("cqg.rtd",,"StudyData", "Close("&$D$12&") when LocalYear("&$D$12&")="&$D$3&" and localMonth("&$D$12&") ="&$E$3&" and LocalDay("&$D$12&")="&$F$3&" and Barix("&$D$12&",reference:=StartOfSession)="&A25&"", "Bar", "", "Close","5","0","PrimaryOnly",,,"False","T","EveryTick") -> 2787 | M25: 0.002878733357 | N25: =RTD("cqg.rtd",,"StudyData", "Close("&$D$12&") when LocalYear("&$D$12&")="&$D$4&" and localMonth("&$D$12&") ="&$E$4&" and LocalDay("&$D$12&")="&$F$4&" and Barix("&$D$12&",reference:=StartOfSession)="&A25&"", "Bar", "", "Close","5","0","PrimaryOnly",,,"False","T","EveryTick") -> 2795.25 | O25: 0.002510535282 | P25: =RTD("cqg.rtd",,"StudyData", "Close("&$D$12&") when LocalYear("&$D$12&")="&$D$5&" and localMonth("&$D$12&") ="&$E$5&" and LocalDay("&$D$12&")="&$F$5&" and Barix("&$D$12&",reference:=StartOfSession)="&A25&"", "Bar", "", "Close","5","0","PrimaryOnly",,,"False","T","EveryTick") -> 2789.25 | Q25: 0.0008971023594 | R25: =RTD("cqg.rtd",,"StudyData", "Close("&$D$12&") when LocalYear("&$D$12&")="&$D$6&" and localMonth("&$D$12&") ="&$E$6&" and LocalDay("&$D$12&")="&$F$6&" and Barix("&$D$12&",reference:=StartOfSession)="&A25&"", "Bar", "", "Close","5","0","PrimaryOnly",,,"False","T","EveryTick") -> 2787.25 | S25: 0.001707097934 | T25: =RTD("cqg.rtd",,"StudyData", "Close("&$D$12&") when LocalYear("&$D$12&")="&$D$7&" and localMonth("&$D$12&") ="&$E$7&" and LocalDay("&$D$12&")="&$F$7&" and Barix("&$D$12&",reference:=StartOfSession)="&A25&"", "Bar", "", "Close","5","0","PrimaryOnly",,,"False","T","EveryTick") -> 2770.5 | U25: -0.001981268012 | V25: =RTD("cqg.rtd",,"StudyData", "Close("&$D$12&") when LocalYear("&$D$12&")="&$D$8&" and localMonth("&$D$12&") ="&$E$8&" and LocalDay("&$D$12&")="&$F$8&" and Barix("&$D$12&",reference:=StartOfSession)="&A25&"", "Bar", "", "Close","5","0","PrimaryOnly",,,"False","T","EveryTick") -> 2775.75 | W25: -9.005763689e-05 | X25: =RTD("cqg.rtd",,"StudyData", "Close("&$D$12&") when LocalYear("&$D$12&")="&$D$9&" and localMonth("&$D$12&") ="&$E$9&" and LocalDay("&$D$12&")="&$F$9&" and Barix("&$D$12&",reference:=StartOfSession)="&A25&"", "Bar", "", "Close","5","0","PrimaryOnly",,,"False","T","EveryTick") -> 2762.75 | Y25: 0.002631101433 | Z25: =RTD("cqg.rtd",,"StudyData", "Close("&$D$12&") when LocalYear("&$D$12&")="&$D$10&" and localMonth("&$D$12&") ="&$E$10&" and LocalDay("&$D$12&")="&$F$10&" and Barix("&$D$12&",reference:=StartOfSession)="&A25&"", "Bar", "", "Close","5","0","PrimaryOnly",,,"False","T","EveryTick") -> 2747.25 | AA25: -0.0009091735612
A26: 25 | B26: 10:35:00 | C26: =IF(WEEKDAY(TODAY())=7,TODAY()-1,IF(WEEKDAY(TODAY())=1,TODAY()-2,TODAY())) -> 2018-06-18 | D26: =YEAR(C26) -> 2018 | E26: =MONTH(C26) -> 6 | F26: =DAY(C26) -> 18 | H26: =RTD("cqg.rtd",,"StudyData", "Close("&$D$12&") when LocalYear("&$D$12&")="&$D$1&" and localMonth("&$D$12&") ="&$E$1&" and LocalDay("&$D$12&")="&$F$1&" and Barix("&$D$12&",reference:=StartOfSession)="&A26&"", "Bar", "", "Close","5","0","PrimaryOnly",,,"False","T","EveryTick") ->  | J26: =RTD("cqg.rtd",,"StudyData", "Close("&$D$12&") when LocalYear("&$D$12&")="&$D$2&" and localMonth("&$D$12&") ="&$E$2&" and LocalDay("&$D$12&")="&$F$2&" and Barix("&$D$12&",reference:=StartOfSession)="&A26&"", "Bar", "", "Close","5","0","PrimaryOnly",,,"False","T","EveryTick") -> 2772 | K26: -0.005917159763 | L26: =RTD("cqg.rtd",,"StudyData", "Close("&$D$12&") when LocalYear("&$D$12&")="&$D$3&" and localMonth("&$D$12&") ="&$E$3&" and LocalDay("&$D$12&")="&$F$3&" and Barix("&$D$12&",reference:=StartOfSession)="&A26&"", "Bar", "", "Close","5","0","PrimaryOnly",,,"False","T","EveryTick") -> 2788 | M26: 0.003238575027 | N26: =RTD("cqg.rtd",,"StudyData", "Close("&$D$12&") when LocalYear("&$D$12&")="&$D$4&" and localMonth("&$D$12&") ="&$E$4&" and LocalDay("&$D$12&")="&$F$4&" and Barix("&$D$12&",reference:=StartOfSession)="&A26&"", "Bar", "", "Close","5","0","PrimaryOnly",,,"False","T","EveryTick") -> 2795 | O26: 0.002420873308 | P26: =RTD("cqg.rtd",,"StudyData", "Close("&$D$12&") when LocalYear("&$D$12&")="&$D$5&" and localMonth("&$D$12&") ="&$E$5&" and LocalDay("&$D$12&")="&$F$5&" and Barix("&$D$12&",reference:=StartOfSession)="&A26&"", "Bar", "", "Close","5","0","PrimaryOnly",,,"False","T","EveryTick") -> 2789.75 | Q26: 0.001076522831 | R26: =RTD("cqg.rtd",,"StudyData", "Close("&$D$12&") when LocalYear("&$D$12&")="&$D$6&" and localMonth("&$D$12&") ="&$E$6&" and LocalDay("&$D$12&")="&$F$6&" and Barix("&$D$12&",reference:=StartOfSession)="&A26&"", "Bar", "", "Close","5","0","PrimaryOnly",,,"False","T","EveryTick") -> 2788.5 | S26: 0.002156334232 | T26: =RTD("cqg.rtd",,"StudyData", "Close("&$D$12&") when LocalYear("&$D$12&")="&$D$7&" and localMonth("&$D$12&") ="&$E$7&" and LocalDay("&$D$12&")="&$F$7&" and Barix("&$D$12&",reference:=StartOfSession)="&A26&"", "Bar", "", "Close","5","0","PrimaryOnly",,,"False","T","EveryTick") -> 2770.5 | U26: -0.001981268012 | V26: =RTD("cqg.rtd",,"StudyData", "Close("&$D$12&") when LocalYear("&$D$12&")="&$D$8&" and localMonth("&$D$12&") ="&$E$8&" and LocalDay("&$D$12&")="&$F$8&" and Barix("&$D$12&",reference:=StartOfSession)="&A26&"", "Bar", "", "Close","5","0","PrimaryOnly",,,"False","T","EveryTick") -> 2776.75 | W26: 0.0002701729107 | X26: =RTD("cqg.rtd",,"StudyData", "Close("&$D$12&") when LocalYear("&$D$12&")="&$D$9&" and localMonth("&$D$12&") ="&$E$9&" and LocalDay("&$D$12&")="&$F$9&" and Barix("&$D$12&",reference:=StartOfSession)="&A26&"", "Bar", "", "Close","5","0","PrimaryOnly",,,"False","T","EveryTick") -> 2762.5 | Y26: 0.002540373798 | Z26: =RTD("cqg.rtd",,"StudyData", "Close("&$D$12&") when LocalYear("&$D$12&")="&$D$10&" and localMonth("&$D$12&") ="&$E$10&" and LocalDay("&$D$12&")="&$F$10&" and Barix("&$D$12&",reference:=StartOfSession)="&A26&"", "Bar", "", "Close","5","0","PrimaryOnly",,,"False","T","EveryTick") -> 2747.25 | AA26: -0.0009091735612
A27: 26 | B27: 10:40:00 | C27: =WORKDAY(C26,-1) -> 2018-06-15 | D27: =YEAR(C27) -> 2018 | E27: =MONTH(C27) -> 6 | F27: =DAY(C27) -> 15 | G27: =IF(RTD("cqg.rtd",,"StudyData", "Close(EP) when LocalYear("&$D$12&")="&D27&" and localMonth("&$D$12&") ="&E27&" and LocalDay("&$D$12&")="&F27&" and Barix("&$D$12&",reference:=StartOfSession)=80", "Bar", "", "Close","5","0","PrimaryOnly",,,"False","T","EveryTick")="",2,1) -> 1 | H27: =RTD("cqg.rtd",,"StudyData", "Close("&$D$12&") when LocalYear("&$D$12&")="&$D$1&" and localMonth("&$D$12&") ="&$E$1&" and LocalDay("&$D$12&")="&$F$1&" and Barix("&$D$12&",reference:=StartOfSession)="&A27&"", "Bar", "", "Close","5","0","PrimaryOnly",,,"False","T","EveryTick") ->  | J27: =RTD("cqg.rtd",,"StudyData", "Close("&$D$12&") when LocalYear("&$D$12&")="&$D$2&" and localMonth("&$D$12&") ="&$E$2&" and LocalDay("&$D$12&")="&$F$2&" and Barix("&$D$12&",reference:=StartOfSession)="&A27&"", "Bar", "", "Close","5","0","PrimaryOnly",,,"False","T","EveryTick") -> 2772.5 | K27: -0.005737851892 | L27: =RTD("cqg.rtd",,"StudyData", "Close("&$D$12&") when LocalYear("&$D$12&")="&$D$3&" and localMonth("&$D$12&") ="&$E$3&" and LocalDay("&$D$12&")="&$F$3&" and Barix("&$D$12&",reference:=StartOfSession)="&A27&"", "Bar", "", "Close","5","0","PrimaryOnly",,,"False","T","EveryTick") -> 2787.75 | M27: 0.00314861461 | N27: =RTD("cqg.rtd",,"StudyData", "Close("&$D$12&") when LocalYear("&$D$12&")="&$D$4&" and localMonth("&$D$12&") ="&$E$4&" and LocalDay("&$D$12&")="&$F$4&" and Barix("&$D$12&",reference:=StartOfSession)="&A27&"", "Bar", "", "Close","5","0","PrimaryOnly",,,"False","T","EveryTick") -> 2795 | O27: 0.002420873308 | P27: =RTD("cqg.rtd",,"StudyData", "Close("&$D$12&") when LocalYear("&$D$12&")="&$D$5&" and localMonth("&$D$12&") ="&$E$5&" and LocalDay("&$D$12&")="&$F$5&" and Barix("&$D$12&",reference:=StartOfSession)="&A27&"", "Bar", "", "Close","5","0","PrimaryOnly",,,"False","T","EveryTick") -> 2791 | Q27: 0.001525074011 | R27: =RTD("cqg.rtd",,"StudyData", "Close("&$D$12&") when LocalYear("&$D$12&")="&$D$6&" and localMonth("&$D$12&") ="&$E$6&" and LocalDay("&$D$12&")="&$F$6&" and Barix("&$D$12&",reference:=StartOfSession)="&A27&"", "Bar", "", "Close","5","0","PrimaryOnly",,,"False","T","EveryTick") -> 2790.5 | S27: 0.002875112309 | T27: =RTD("cqg.rtd",,"StudyData", "Close("&$D$12&") when LocalYear("&$D$12&")="&$D$7&" and localMonth("&$D$12&") ="&$E$7&" and LocalDay("&$D$12&")="&$F$7&" and Barix("&$D$12&",reference:=StartOfSession)="&A27&"", "Bar", "", "Close","5","0","PrimaryOnly",,,"False","T","EveryTick") -> 2772 | U27: -0.00144092219 | V27: =RTD("cqg.rtd",,"StudyData", "Close("&$D$12&") when LocalYear("&$D$12&")="&$D$8&" and localMonth("&$D$12&") ="&$E$8&" and LocalDay("&$D$12&")="&$F$8&" and Barix("&$D$12&",reference:=StartOfSession)="&A27&"", "Bar", "", "Close","5","0","PrimaryOnly",,,"False","T","EveryTick") -> 2776.25 | W27: 9.005763689e-05 | X27: =RTD("cqg.rtd",,"StudyData", "Close("&$D$12&") when LocalYear("&$D$12&")="&$D$9&" and localMonth("&$D$12&") ="&$E$9&" and LocalDay("&$D$12&")="&$F$9&" and Barix("&$D$12&",reference:=StartOfSession)="&A27&"", "Bar", "", "Close","5","0","PrimaryOnly",,,"False","T","EveryTick") -> 2764.25 | Y27: 0.003175467247 | Z27: =RTD("cqg.rtd",,"StudyData", "Close("&$D$12&") when LocalYear("&$D$12&")="&$D$10&" and localMonth("&$D$12&") ="&$E$10&" and LocalDay("&$D$12&")="&$F$10&" and Barix("&$D$12&",reference:=StartOfSession)="&A27&"", "Bar", "", "Close","5","0","PrimaryOnly",,,"False","T","EveryTick") -> 2743.75 | AA27: -0.002182016547
A28: 27 | B28: 10:45:00 | C28: =WORKDAY(C27,-1) -> 2018-06-14 | D28: 2018 | E28: 6 | F28: 14 | G28: =IF(RTD("cqg.rtd",,"StudyData", "Close(EP) when LocalYear("&$D$12&")="&D28&" and localMonth("&$D$12&") ="&E28&" and LocalDay("&$D$12&")="&F28&" and Barix("&$D$12&",reference:=StartOfSession)=80", "Bar", "", "Close","5","0","PrimaryOnly",,,"False","T","EveryTick")="",2,1) -> 1 | H28: =RTD("cqg.rtd",,"StudyData", "Close("&$D$12&") when LocalYear("&$D$12&")="&$D$1&" and localMonth("&$D$12&") ="&$E$1&" and LocalDay("&$D$12&")="&$F$1&" and Barix("&$D$12&",reference:=StartOfSession)="&A28&"", "Bar", "", "Close","5","0","PrimaryOnly",,,"False","T","EveryTick") ->  | J28: =RTD("cqg.rtd",,"StudyData", "Close("&$D$12&") when LocalYear("&$D$12&")="&$D$2&" and localMonth("&$D$12&") ="&$E$2&" and LocalDay("&$D$12&")="&$F$2&" and Barix("&$D$12&",reference:=StartOfSession)="&A28&"", "Bar", "", "Close","5","0","PrimaryOnly",,,"False","T","EveryTick") -> 2772.25 | K28: -0.005827505828 | L28: =RTD("cqg.rtd",,"StudyData", "Close("&$D$12&") when LocalYear("&$D$12&")="&$D$3&" and localMonth("&$D$12&") ="&$E$3&" and LocalDay("&$D$12&")="&$F$3&" and Barix("&$D$12&",reference:=StartOfSession)="&A28&"", "Bar", "", "Close","5","0","PrimaryOnly",,,"False","T","EveryTick") -> 2787.5 | M28: 0.003058654192 | N28: =RTD("cqg.rtd",,"StudyData", "Close("&$D$12&") when LocalYear("&$D$12&")="&$D$4&" and localMonth("&$D$12&") ="&$E$4&" and LocalDay("&$D$12&")="&$F$4&" and Barix("&$D$12&",reference:=StartOfSession)="&A28&"", "Bar", "", "Close","5","0","PrimaryOnly",,,"False","T","EveryTick") -> 2794.75 | O28: 0.002331211333 | P28: =RTD("cqg.rtd",,"StudyData", "Close("&$D$12&") when LocalYear("&$D$12&")="&$D$5&" and localMonth("&$D$12&") ="&$E$5&" and LocalDay("&$D$12&")="&$F$5&" and Barix("&$D$12&",reference:=StartOfSession)="&A28&"", "Bar", "", "Close","5","0","PrimaryOnly",,,"False","T","EveryTick") -> 2791.25 | Q28: 0.001614784247 | R28: =RTD("cqg.rtd",,"StudyData", "Close("&$D$12&") when LocalYear("&$D$12&")="&$D$6&" and localMonth("&$D$12&") ="&$E$6&" and LocalDay("&$D$12&")="&$F$6&" and Barix("&$D$12&",reference:=StartOfSession)="&A28&"", "Bar", "", "Close","5","0","PrimaryOnly",,,"False","T","EveryTick") -> 2790.5 | S28: 0.002875112309 | T28: =RTD("cqg.rtd",,"StudyData", "Close("&$D$12&") when LocalYear("&$D$12&")="&$D$7&" and localMonth("&$D$12&") ="&$E$7&" and LocalDay("&$D$12&")="&$F$7&" and Barix("&$D$12&",reference:=StartOfSession)="&A28&"", "Bar", "", "Close","5","0","PrimaryOnly",,,"False","T","EveryTick") -> 2771.5 | U28: -0.001621037464 | V28: =RTD("cqg.rtd",,"StudyData", "Close("&$D$12&") when LocalYear("&$D$12&")="&$D$8&" and localMonth("&$D$12&") ="&$E$8&" and LocalDay("&$D$12&")="&$F$8&" and Barix("&$D$12&",reference:=StartOfSession)="&A28&"", "Bar", "", "Close","5","0","PrimaryOnly",,,"False","T","EveryTick") -> 2773.5 | W28: -0.0009005763689 | X28: =RTD("cqg.rtd",,"StudyData", "Close("&$D$12&") when LocalYear("&$D$12&")="&$D$9&" and localMonth("&$D$12&") ="&$E$9&" and LocalDay("&$D$12&")="&$F$9&" and Barix("&$D$12&",reference:=StartOfSession)="&A28&"", "Bar", "", "Close","5","0","PrimaryOnly",,,"False","T","EveryTick") -> 2764.25 | Y28: 0.003175467247 | Z28: =RTD("cqg.rtd",,"StudyData", "Close("&$D$12&") when LocalYear("&$D$12&")="&$D$10&" and localMonth("&$D$12&") ="&$E$10&" and LocalDay("&$D$12&")="&$F$10&" and Barix("&$D$12&",reference:=StartOfSession)="&A28&"", "Bar", "", "Close","5","0","PrimaryOnly",,,"False","T","EveryTick") -> 2745.25 | AA28: -0.00163651241
A29: 28 | B29: 10:50:00 | C29: 2018-06-13 | D29: 2018 | E29: 6 | F29: 13 | G29: =IF(RTD("cqg.rtd",,"StudyData", "Close(EP) when LocalYear("&$D$12&")="&D29&" and localMonth("&$D$12&") ="&E29&" and LocalDay("&$D$12&")="&F29&" and Barix("&$D$12&",reference:=StartOfSession)=80", "Bar", "", "Close","5","0","PrimaryOnly",,,"False","T","EveryTick")="",2,1) -> 1 | H29: =RTD("cqg.rtd",,"StudyData", "Close("&$D$12&") when LocalYear("&$D$12&")="&$D$1&" and localMonth("&$D$12&") ="&$E$1&" and LocalDay("&$D$12&")="&$F$1&" and Barix("&$D$12&",reference:=StartOfSession)="&A29&"", "Bar", "", "Close","5","0","PrimaryOnly",,,"False","T","EveryTick") ->  | J29: =RTD("cqg.rtd",,"StudyData", "Close("&$D$12&") when LocalYear("&$D$12&")="&$D$2&" and localMonth("&$D$12&") ="&$E$2&" and LocalDay("&$D$12&")="&$F$2&" and Barix("&$D$12&",reference:=StartOfSession)="&A29&"", "Bar", "", "Close","5","0","PrimaryOnly",,,"False","T","EveryTick") -> 2775.25 | K29: -0.004751658598 | L29: =RTD("cqg.rtd",,"StudyData", "Close("&$D$12&") when LocalYear("&$D$12&")="&$D$3&" and localMonth("&$D$12&") ="&$E$3&" and LocalDay("&$D$12&")="&$F$3&" and Barix("&$D$12&",reference:=StartOfSession)="&A29&"", "Bar", "", "Close","5","0","PrimaryOnly",,,"False","T","EveryTick") -> 2787.5 | M29: 0.003058654192 | N29: =RTD("cqg.rtd",,"StudyData", "Close("&$D$12&") when LocalYear("&$D$12&")="&$D$4&" and localMonth("&$D$12&") ="&$E$4&" and LocalDay("&$D$12&")="&$F$4&" and Barix("&$D$12&",reference:=StartOfSession)="&A29&"", "Bar", "", "Close","5","0","PrimaryOnly",,,"False","T","EveryTick") -> 2794.75 | O29: 0.002331211333 | P29: =RTD("cqg.rtd",,"StudyData", "Close("&$D$12&") when LocalYear("&$D$12&")="&$D$5&" and localMonth("&$D$12&") ="&$E$5&" and LocalDay("&$D$12&")="&$F$5&" and Barix("&$D$12&",reference:=StartOfSession)="&A29&"", "Bar", "", "Close","5","0","PrimaryOnly",,,"False","T","EveryTick") -> 2792.75 | Q29: 0.002153045663 | R29: =RTD("cqg.rtd",,"StudyData", "Close("&$D$12&") when LocalYear("&$D$12&")="&$D$6&" and localMonth("&$D$12&") ="&$E$6&" and LocalDay("&$D$12&")="&$F$6&" and Barix("&$D$12&",reference:=StartOfSession)="&A29&"", "Bar", "", "Close","5","0","PrimaryOnly",,,"False","T","EveryTick") -> 2790.5 | S29: 0.002875112309 | T29: =RTD("cqg.rtd",,"StudyData", "Close("&$D$12&") when LocalYear("&$D$12&")="&$D$7&" and localMonth("&$D$12&") ="&$E$7&" and LocalDay("&$D$12&")="&$F$7&" and Barix("&$D$12&",reference:=StartOfSession)="&A29&"", "Bar", "", "Close","5","0","PrimaryOnly",,,"False","T","EveryTick") -> 2772.75 | U29: -0.00117074928 | V29: =RTD("cqg.rtd",,"StudyData", "Close("&$D$12&") when LocalYear("&$D$12&")="&$D$8&" and localMonth("&$D$12&") ="&$E$8&" and LocalDay("&$D$12&")="&$F$8&" and Barix("&$D$12&",reference:=StartOfSession)="&A29&"", "Bar", "", "Close","5","0","PrimaryOnly",,,"False","T","EveryTick") -> 2773 | W29: -0.001080691643 | X29: =RTD("cqg.rtd",,"StudyData", "Close("&$D$12&") when LocalYear("&$D$12&")="&$D$9&" and localMonth("&$D$12&") ="&$E$9&" and LocalDay("&$D$12&")="&$F$9&" and Barix("&$D$12&",reference:=StartOfSession)="&A29&"", "Bar", "", "Close","5","0","PrimaryOnly",,,"False","T","EveryTick") -> 2762.5 | Y29: 0.002540373798 | Z29: =RTD("cqg.rtd",,"StudyData", "Close("&$D$12&") when LocalYear("&$D$12&")="&$D$10&" and localMonth("&$D$12&") ="&$E$10&" and LocalDay("&$D$12&")="&$F$10&" and Barix("&$D$12&",reference:=StartOfSession)="&A29&"", "Bar", "", "Close","5","0","PrimaryOnly",,,"False","T","EveryTick") -> 2745.75 | AA29: -0.001454677698
A30: 29 | B30: 10:55:00 | C30: 2018-06-12 | D30: 2018 | E30: 6 | F30: 12 | G30: =IF(RTD("cqg.rtd",,"StudyData", "Close(EP) when LocalYear("&$D$12&")="&D30&" and localMonth("&$D$12&") ="&E30&" and LocalDay("&$D$12&")="&F30&" and Barix("&$D$12&",reference:=StartOfSession)=80", "Bar", "", "Close","5","0","PrimaryOnly",,,"False","T","EveryTick")="",2,1) -> 1 | H30: =RTD("cqg.rtd",,"StudyData", "Close("&$D$12&") when LocalYear("&$D$12&")="&$D$1&" and localMonth("&$D$12&") ="&$E$1&" and LocalDay("&$D$12&")="&$F$1&" and Barix("&$D$12&",reference:=StartOfSession)="&A30&"", "Bar", "", "Close","5","0","PrimaryOnly",,,"False","T","EveryTick") ->  | J30: =RTD("cqg.rtd",,"StudyData", "Close("&$D$12&") when LocalYear("&$D$12&")="&$D$2&" and localMonth("&$D$12&") ="&$E$2&" and LocalDay("&$D$12&")="&$F$2&" and Barix("&$D$12&",reference:=StartOfSession)="&A30&"", "Bar", "", "Close","5","0","PrimaryOnly",,,"False","T","EveryTick") -> 2775.5 | K30: -0.004662004662 | L30: =RTD("cqg.rtd",,"StudyData", "Close("&$D$12&") when LocalYear("&$D$12&")="&$D$3&" and localMonth("&$D$12&") ="&$E$3&" and LocalDay("&$D$12&")="&$F$3&" and Barix("&$D$12&",reference:=StartOfSession)="&A30&"", "Bar", "", "Close","5","0","PrimaryOnly",,,"False","T","EveryTick") -> 2788.5 | M30: 0.003418495862 | N30: =RTD("cqg.rtd",,"StudyData", "Close("&$D$12&") when LocalYear("&$D$12&")="&$D$4&" and localMonth("&$D$12&") ="&$E$4&" and LocalDay("&$D$12&")="&$F$4&" and Barix("&$D$12&",reference:=StartOfSession)="&A30&"", "Bar", "", "Close","5","0","PrimaryOnly",,,"False","T","EveryTick") -> 2794.75 | O30: 0.002331211333 | P30: =RTD("cqg.rtd",,"StudyData", "Close("&$D$12&") when LocalYear("&$D$12&")="&$D$5&" and localMonth("&$D$12&") ="&$E$5&" and LocalDay("&$D$12&")="&$F$5&" and Barix("&$D$12&",reference:=StartOfSession)="&A30&"", "Bar", "", "Close","5","0","PrimaryOnly",,,"False","T","EveryTick") -> 2792.5 | Q30: 0.002063335427 | R30: =RTD("cqg.rtd",,"StudyData", "Close("&$D$12&") when LocalYear("&$D$12&")="&$D$6&" and localMonth("&$D$12&") ="&$E$6&" and LocalDay("&$D$12&")="&$F$6&" and Barix("&$D$12&",reference:=StartOfSession)="&A30&"", "Bar", "", "Close","5","0","PrimaryOnly",,,"False","T","EveryTick") -> 2791 | S30: 0.003054806828 | T30: =RTD("cqg.rtd",,"StudyData", "Close("&$D$12&") when LocalYear("&$D$12&")="&$D$7&" and localMonth("&$D$12&") ="&$E$7&" and LocalDay("&$D$12&")="&$F$7&" and Barix("&$D$12&",reference:=StartOfSession)="&A30&"", "Bar", "", "Close","5","0","PrimaryOnly",,,"False","T","EveryTick") -> 2772.75 | U30: -0.00117074928 | V30: =RTD("cqg.rtd",,"StudyData", "Close("&$D$12&") when LocalYear("&$D$12&")="&$D$8&" and localMonth("&$D$12&") ="&$E$8&" and LocalDay("&$D$12&")="&$F$8&" and Barix("&$D$12&",reference:=StartOfSession)="&A30&"", "Bar", "", "Close","5","0","PrimaryOnly",,,"False","T","EveryTick") -> 2774.5 | W30: -0.0005403458213 | X30: =RTD("cqg.rtd",,"StudyData", "Close("&$D$12&") when LocalYear("&$D$12&")="&$D$9&" and localMonth("&$D$12&") ="&$E$9&" and LocalDay("&$D$12&")="&$F$9&" and Barix("&$D$12&",reference:=StartOfSession)="&A30&"", "Bar", "", "Close","5","0","PrimaryOnly",,,"False","T","EveryTick") -> 2765.25 | Y30: 0.00353837779 | Z30: =RTD("cqg.rtd",,"StudyData", "Close("&$D$12&") when LocalYear("&$D$12&")="&$D$10&" and localMonth("&$D$12&") ="&$E$10&" and LocalDay("&$D$12&")="&$F$10&" and Barix("&$D$12&",reference:=StartOfSession)="&A30&"", "Bar", "", "Close","5","0","PrimaryOnly",,,"False","T","EveryTick") -> 2746.25 | AA30: -0.001272842986
A31: 30 | B31: 11:00:00 | C31: 2018-06-11 | D31: 2018 | E31: 6 | F31: 11 | G31: =IF(RTD("cqg.rtd",,"StudyData", "Close(EP) when LocalYear("&$D$12&")="&D31&" and localMonth("&$D$12&") ="&E31&" and LocalDay("&$D$12&")="&F31&" and Barix("&$D$12&",reference:=StartOfSession)=80", "Bar", "", "Close","5","0","PrimaryOnly",,,"False","T","EveryTick")="",2,1) -> 1 | H31: =RTD("cqg.rtd",,"StudyData", "Close("&$D$12&") when LocalYear("&$D$12&")="&$D$1&" and localMonth("&$D$12&") ="&$E$1&" and LocalDay("&$D$12&")="&$F$1&" and Barix("&$D$12&",reference:=StartOfSession)="&A31&"", "Bar", "", "Close","5","0","PrimaryOnly",,,"False","T","EveryTick") ->  | J31: =RTD("cqg.rtd",,"StudyData", "Close("&$D$12&") when LocalYear("&$D$12&")="&$D$2&" and localMonth("&$D$12&") ="&$E$2&" and LocalDay("&$D$12&")="&$F$2&" and Barix("&$D$12&",reference:=StartOfSession)="&A31&"", "Bar", "", "Close","5","0","PrimaryOnly",,,"False","T","EveryTick") -> 2774.75 | K31: -0.004930966469 | L31: =RTD("cqg.rtd",,"StudyData", "Close("&$D$12&") when LocalYear("&$D$12&")="&$D$3&" and localMonth("&$D$12&") ="&$E$3&" and LocalDay("&$D$12&")="&$F$3&" and Barix("&$D$12&",reference:=StartOfSession)="&A31&"", "Bar", "", "Close","5","0","PrimaryOnly",,,"False","T","EveryTick") -> 2789 | M31: 0.003598416697 | N31: =RTD("cqg.rtd",,"StudyData", "Close("&$D$12&") when LocalYear("&$D$12&")="&$D$4&" and localMonth("&$D$12&") ="&$E$4&" and LocalDay("&$D$12&")="&$F$4&" and Barix("&$D$12&",reference:=StartOfSession)="&A31&"", "Bar", "", "Close","5","0","PrimaryOnly",,,"False","T","EveryTick") -> 2793.5 | O31: 0.001882901461 | P31: =RTD("cqg.rtd",,"StudyData", "Close("&$D$12&") when LocalYear("&$D$12&")="&$D$5&" and localMonth("&$D$12&") ="&$E$5&" and LocalDay("&$D$12&")="&$F$5&" and Barix("&$D$12&",reference:=StartOfSession)="&A31&"", "Bar", "", "Close","5","0","PrimaryOnly",,,"False","T","EveryTick") -> 2793.25 | Q31: 0.002332466134 | R31: =RTD("cqg.rtd",,"StudyData", "Close("&$D$12&") when LocalYear("&$D$12&")="&$D$6&" and localMonth("&$D$12&") ="&$E$6&" and LocalDay("&$D$12&")="&$F$6&" and Barix("&$D$12&",reference:=StartOfSession)="&A31&"", "Bar", "", "Close","5","0","PrimaryOnly",,,"False","T","EveryTick") -> 2790.75 | S31: 0.002964959569 | T31: =RTD("cqg.rtd",,"StudyData", "Close("&$D$12&") when LocalYear("&$D$12&")="&$D$7&" and localMonth("&$D$12&") ="&$E$7&" and LocalDay("&$D$12&")="&$F$7&" and Barix("&$D$12&",reference:=StartOfSession)="&A31&"", "Bar", "", "Close","5","0","PrimaryOnly",,,"False","T","EveryTick") -> 2773.75 | U31: -0.000810518732 | V31: =RTD("cqg.rtd",,"StudyData", "Close("&$D$12&") when LocalYear("&$D$12&")="&$D$8&" and localMonth("&$D$12&") ="&$E$8&" and LocalDay("&$D$12&")="&$F$8&" and Barix("&$D$12&",reference:=StartOfSession)="&A31&"", "Bar", "", "Close","5","0","PrimaryOnly",,,"False","T","EveryTick") -> 2775.5 | W31: -0.0001801152738 | X31: =RTD("cqg.rtd",,"StudyData", "Close("&$D$12&") when LocalYear("&$D$12&")="&$D$9&" and localMonth("&$D$12&") ="&$E$9&" and LocalDay("&$D$12&")="&$F$9&" and Barix("&$D$12&",reference:=StartOfSession)="&A31&"", "Bar", "", "Close","5","0","PrimaryOnly",,,"False","T","EveryTick") -> 2764.25 | Y31: 0.003175467247 | Z31: =RTD("cqg.rtd",,"StudyData", "Close("&$D$12&") when LocalYear("&$D$12&")="&$D$10&" and localMonth("&$D$12&") ="&$E$10&" and LocalDay("&$D$12&")="&$F$10&" and Barix("&$D$12&",reference:=StartOfSession)="&A31&"", "Bar", "", "Close","5","0","PrimaryOnly",,,"False","T","EveryTick") -> 2744.25 | AA31: -0.002000181835
A32: 31 | B32: 11:05:00 | C32: 2018-06-08 | D32: 2018 | E32: 6 | F32: 8 | G32: =IF(RTD("cqg.rtd",,"StudyData", "Close(EP) when LocalYear("&$D$12&")="&D32&" and localMonth("&$D$12&") ="&E32&" and LocalDay("&$D$12&")="&F32&" and Barix("&$D$12&",reference:=StartOfSession)=80", "Bar", "", "Close","5","0","PrimaryOnly",,,"False","T","EveryTick")="",2,1) -> 1 | H32: =RTD("cqg.rtd",,"StudyData", "Close("&$D$12&") when LocalYear("&$D$12&")="&$D$1&" and localMonth("&$D$12&") ="&$E$1&" and LocalDay("&$D$12&")="&$F$1&" and Barix("&$D$12&",reference:=StartOfSession)="&A32&"", "Bar", "", "Close","5","0","PrimaryOnly",,,"False","T","EveryTick") ->  | J32: =RTD("cqg.rtd",,"StudyData", "Close("&$D$12&") when LocalYear("&$D$12&")="&$D$2&" and localMonth("&$D$12&") ="&$E$2&" and LocalDay("&$D$12&")="&$F$2&" and Barix("&$D$12&",reference:=StartOfSession)="&A32&"", "Bar", "", "Close","5","0","PrimaryOnly",,,"False","T","EveryTick") -> 2773.5 | K32: -0.005379236148 | L32: =RTD("cqg.rtd",,"StudyData", "Close("&$D$12&") when LocalYear("&$D$12&")="&$D$3&" and localMonth("&$D$12&") ="&$E$3&" and LocalDay("&$D$12&")="&$F$3&" and Barix("&$D$12&",reference:=StartOfSession)="&A32&"", "Bar", "", "Close","5","0","PrimaryOnly",,,"False","T","EveryTick") -> 2789 | M32: 0.003598416697 | N32: =RTD("cqg.rtd",,"StudyData", "Close("&$D$12&") when LocalYear("&$D$12&")="&$D$4&" and localMonth("&$D$12&") ="&$E$4&" and LocalDay("&$D$12&")="&$F$4&" and Barix("&$D$12&",reference:=StartOfSession)="&A32&"", "Bar", "", "Close","5","0","PrimaryOnly",,,"False","T","EveryTick") -> 2794 | O32: 0.00206222541 | P32: =RTD("cqg.rtd",,"StudyData", "Close("&$D$12&") when LocalYear("&$D$12&")="&$D$5&" and localMonth("&$D$12&") ="&$E$5&" and LocalDay("&$D$12&")="&$F$5&" and Barix("&$D$12&",reference:=StartOfSession)="&A32&"", "Bar", "", "Close","5","0","PrimaryOnly",,,"False","T","EveryTick") -> 2792 | Q32: 0.001883914955 | R32: =RTD("cqg.rtd",,"StudyData", "Close("&$D$12&") when LocalYear("&$D$12&")="&$D$6&" and localMonth("&$D$12&") ="&$E$6&" and LocalDay("&$D$12&")="&$F$6&" and Barix("&$D$12&",reference:=StartOfSession)="&A32&"", "Bar", "", "Close","5","0","PrimaryOnly",,,"False","T","EveryTick") -> 2791.75 | S32: 0.003324348607 | T32: =RTD("cqg.rtd",,"StudyData", "Close("&$D$12&") when LocalYear("&$D$12&")="&$D$7&" and localMonth("&$D$12&") ="&$E$7&" and LocalDay("&$D$12&")="&$F$7&" and Barix("&$D$12&",reference:=StartOfSession)="&A32&"", "Bar", "", "Close","5","0","PrimaryOnly",,,"False","T","EveryTick") -> 2774 | U32: -0.0007204610951 | V32: =RTD("cqg.rtd",,"StudyData", "Close("&$D$12&") when LocalYear("&$D$12&")="&$D$8&" and localMonth("&$D$12&") ="&$E$8&" and LocalDay("&$D$12&")="&$F$8&" and Barix("&$D$12&",reference:=StartOfSession)="&A32&"", "Bar", "", "Close","5","0","PrimaryOnly",,,"False","T","EveryTick") -> 2775.75 | W32: -9.005763689e-05 | X32: =RTD("cqg.rtd",,"StudyData", "Close("&$D$12&") when LocalYear("&$D$12&")="&$D$9&" and localMonth("&$D$12&") ="&$E$9&" and LocalDay("&$D$12&")="&$F$9&" and Barix("&$D$12&",reference:=StartOfSession)="&A32&"", "Bar", "", "Close","5","0","PrimaryOnly",,,"False","T","EveryTick") -> 2763.25 | Y32: 0.002812556705 | Z32: =RTD("cqg.rtd",,"StudyData", "Close("&$D$12&") when LocalYear("&$D$12&")="&$D$10&" and localMonth("&$D$12&") ="&$E$10&" and LocalDay("&$D$12&")="&$F$10&" and Barix("&$D$12&",reference:=StartOfSession)="&A32&"", "Bar", "", "Close","5","0","PrimaryOnly",,,"False","T","EveryTick") -> 2746.75 | AA32: -0.001091008273
A33: 32 | B33: 11:10:00 | C33: 2018-06-07 | D33: 2018 | E33: 6 | F33: 7 | G33: =IF(RTD("cqg.rtd",,"StudyData", "Close(EP) when LocalYear("&$D$12&")="&D33&" and localMonth("&$D$12&") ="&E33&" and LocalDay("&$D$12&")="&F33&" and Barix("&$D$12&",reference:=StartOfSession)=80", "Bar", "", "Close","5","0","PrimaryOnly",,,"False","T","EveryTick")="",2,1) -> 1 | H33: =RTD("cqg.rtd",,"StudyData", "Close("&$D$12&") when LocalYear("&$D$12&")="&$D$1&" and localMonth("&$D$12&") ="&$E$1&" and LocalDay("&$D$12&")="&$F$1&" and Barix("&$D$12&",reference:=StartOfSession)="&A33&"", "Bar", "", "Close","5","0","PrimaryOnly",,,"False","T","EveryTick") ->  | J33: =RTD("cqg.rtd",,"StudyData", "Close("&$D$12&") when LocalYear("&$D$12&")="&$D$2&" and localMonth("&$D$12&") ="&$E$2&" and LocalDay("&$D$12&")="&$F$2&" and Barix("&$D$12&",reference:=StartOfSession)="&A33&"", "Bar", "", "Close","5","0","PrimaryOnly",,,"False","T","EveryTick") -> 2773.5 | K33: -0.005379236148 | L33: =RTD("cqg.rtd",,"StudyData", "Close("&$D$12&") when LocalYear("&$D$12&")="&$D$3&" and localMonth("&$D$12&") ="&$E$3&" and LocalDay("&$D$12&")="&$F$3&" and Barix("&$D$12&",reference:=StartOfSession)="&A33&"", "Bar", "", "Close","5","0","PrimaryOnly",,,"False","T","EveryTick") -> 2788.75 | M33: 0.003508456279 | N33: =RTD("cqg.rtd",,"StudyData", "Close("&$D$12&") when LocalYear("&$D$12&")="&$D$4&" and localMonth("&$D$12&") ="&$E$4&" and LocalDay("&$D$12&")="&$F$4&" and Barix("&$D$12&",reference:=StartOfSession)="&A33&"", "Bar", "", "Close","5","0","PrimaryOnly",,,"False","T","EveryTick") -> 2793.75 | O33: 0.001972563436 | P33: =RTD("cqg.rtd",,"StudyData", "Close("&$D$12&") when LocalYear("&$D$12&")="&$D$5&" and localMonth("&$D$12&") ="&$E$5&" and LocalDay("&$D$12&")="&$F$5&" and Barix("&$D$12&",reference:=StartOfSession)="&A33&"", "Bar", "", "Close","5","0","PrimaryOnly",,,"False","T","EveryTick") -> 2792.5 | Q33: 0.002063335427 | R33: =RTD("cqg.rtd",,"StudyData", "Close("&$D$12&") when LocalYear("&$D$12&")="&$D$6&" and localMonth("&$D$12&") ="&$E$6&" and LocalDay("&$D$12&")="&$F$6&" and Barix("&$D$12&",reference:=StartOfSession)="&A33&"", "Bar", "", "Close","5","0","PrimaryOnly",,,"False","T","EveryTick") -> 2791.5 | S33: 0.003234501348 | T33: =RTD("cqg.rtd",,"StudyData", "Close("&$D$12&") when LocalYear("&$D$12&")="&$D$7&" and localMonth("&$D$12&") ="&$E$7&" and LocalDay("&$D$12&")="&$F$7&" and Barix("&$D$12&",reference:=StartOfSession)="&A33&"", "Bar", "", "Close","5","0","PrimaryOnly",,,"False","T","EveryTick") -> 2774.5 | U33: -0.0005403458213 | V33: =RTD("cqg.rtd",,"StudyData", "Close("&$D$12&") when LocalYear("&$D$12&")="&$D$8&" and localMonth("&$D$12&") ="&$E$8&" and LocalDay("&$D$12&")="&$F$8&" and Barix("&$D$12&",reference:=StartOfSession)="&A33&"", "Bar", "", "Close","5","0","PrimaryOnly",,,"False","T","EveryTick") -> 2776 | W33: 0 | X33: =RTD("cqg.rtd",,"StudyData", "Close("&$D$12&") when LocalYear("&$D$12&")="&$D$9&" and localMonth("&$D$12&") ="&$E$9&" and LocalDay("&$D$12&")="&$F$9&" and Barix("&$D$12&",reference:=StartOfSession)="&A33&"", "Bar", "", "Close","5","0","PrimaryOnly",,,"False","T","EveryTick") -> 2764 | Y33: 0.003084739612 | Z33: =RTD("cqg.rtd",,"StudyData", "Close("&$D$12&") when LocalYear("&$D$12&")="&$D$10&" and localMonth("&$D$12&") ="&$E$10&" and LocalDay("&$D$12&")="&$F$10&" and Barix("&$D$12&",reference:=StartOfSession)="&A33&"", "Bar", "", "Close","5","0","PrimaryOnly",,,"False","T","EveryTick") -> 2747.75 | AA33: -0.000727338849
A34: 33 | B34: 11:15:00 | C34: 2018-06-06 | D34: 2018 | E34: 6 | F34: 6 | G34: =IF(RTD("cqg.rtd",,"StudyData", "Close(EP) when LocalYear("&$D$12&")="&D34&" and localMonth("&$D$12&") ="&E34&" and LocalDay("&$D$12&")="&F34&" and Barix("&$D$12&",reference:=StartOfSession)=80", "Bar", "", "Close","5","0","PrimaryOnly",,,"False","T","EveryTick")="",2,1) -> 1 | H34: =RTD("cqg.rtd",,"StudyData", "Close("&$D$12&") when LocalYear("&$D$12&")="&$D$1&" and localMonth("&$D$12&") ="&$E$1&" and LocalDay("&$D$12&")="&$F$1&" and Barix("&$D$12&",reference:=StartOfSession)="&A34&"", "Bar", "", "Close","5","0","PrimaryOnly",,,"False","T","EveryTick") ->  | J34: =RTD("cqg.rtd",,"StudyData", "Close("&$D$12&") when LocalYear("&$D$12&")="&$D$2&" and localMonth("&$D$12&") ="&$E$2&" and LocalDay("&$D$12&")="&$F$2&" and Barix("&$D$12&",reference:=StartOfSession)="&A34&"", "Bar", "", "Close","5","0","PrimaryOnly",,,"False","T","EveryTick") -> 2774.75 | K34: -0.004930966469 | L34: =RTD("cqg.rtd",,"StudyData", "Close("&$D$12&") when LocalYear("&$D$12&")="&$D$3&" and localMonth("&$D$12&") ="&$E$3&" and LocalDay("&$D$12&")="&$F$3&" and Barix("&$D$12&",reference:=StartOfSession)="&A34&"", "Bar", "", "Close","5","0","PrimaryOnly",,,"False","T","EveryTick") -> 2788 | M34: 0.003238575027 | N34: =RTD("cqg.rtd",,"StudyData", "Close("&$D$12&") when LocalYear("&$D$12&")="&$D$4&" and localMonth("&$D$12&") ="&$E$4&" and LocalDay("&$D$12&")="&$F$4&" and Barix("&$D$12&",reference:=StartOfSession)="&A34&"", "Bar", "", "Close","5","0","PrimaryOnly",,,"False","T","EveryTick") -> 2792.5 | O34: 0.001524253564 | P34: =RTD("cqg.rtd",,"StudyData", "Close("&$D$12&") when LocalYear("&$D$12&")="&$D$5&" and localMonth("&$D$12&") ="&$E$5&" and LocalDay("&$D$12&")="&$F$5&" and Barix("&$D$12&",reference:=StartOfSession)="&A34&"", "Bar", "", "Close","5","0","PrimaryOnly",,,"False","T","EveryTick") -> 2792.75 | Q34: 0.002153045663 | R34: =RTD("cqg.rtd",,"StudyData", "Close("&$D$12&") when LocalYear("&$D$12&")="&$D$6&" and localMonth("&$D$12&") ="&$E$6&" and LocalDay("&$D$12&")="&$F$6&" and Barix("&$D$12&",reference:=StartOfSession)="&A34&"", "Bar", "", "Close","5","0","PrimaryOnly",,,"False","T","EveryTick") -> 2792.25 | S34: 0.003504043127 | T34: =RTD("cqg.rtd",,"StudyData", "Close("&$D$12&") when LocalYear("&$D$12&")="&$D$7&" and localMonth("&$D$12&") ="&$E$7&" and LocalDay("&$D$12&")="&$F$7&" and Barix("&$D$12&",reference:=StartOfSession)="&A34&"", "Bar", "", "Close","5","0","PrimaryOnly",,,"False","T","EveryTick") -> 2774.75 | U34: -0.0004502881844 | V34: =RTD("cqg.rtd",,"StudyData", "Close("&$D$12&") when LocalYear("&$D$12&")="&$D$8&" and localMonth("&$D$12&") ="&$E$8&" and LocalDay("&$D$12&")="&$F$8&" and Barix("&$D$12&",reference:=StartOfSession)="&A34&"", "Bar", "", "Close","5","0","PrimaryOnly",,,"False","T","EveryTick") -> 2776.25 | W34: 9.005763689e-05 | X34: =RTD("cqg.rtd",,"StudyData", "Close("&$D$12&") when LocalYear("&$D$12&")="&$D$9&" and localMonth("&$D$12&") ="&$E$9&" and LocalDay("&$D$12&")="&$F$9&" and Barix("&$D$12&",reference:=StartOfSession)="&A34&"", "Bar", "", "Close","5","0","PrimaryOnly",,,"False","T","EveryTick") -> 2765.25 | Y34: 0.00353837779 | Z34: =RTD("cqg.rtd",,"StudyData", "Close("&$D$12&") when LocalYear("&$D$12&")="&$D$10&" and localMonth("&$D$12&") ="&$E$10&" and LocalDay("&$D$12&")="&$F$10&" and Barix("&$D$12&",reference:=StartOfSession)="&A34&"", "Bar", "", "Close","5","0","PrimaryOnly",,,"False","T","EveryTick") -> 2746.75 | AA34: -0.001091008273
A35: 34 | B35: 11:20:00 | C35: 2018-06-05 | D35: 2018 | E35: 6 | F35: 5 | G35: =IF(RTD("cqg.rtd",,"StudyData", "Close(EP) when LocalYear("&$D$12&")="&D35&" and localMonth("&$D$12&") ="&E35&" and LocalDay("&$D$12&")="&F35&" and Barix("&$D$12&",reference:=StartOfSession)=80", "Bar", "", "Close","5","0","PrimaryOnly",,,"False","T","EveryTick")="",2,1) -> 1 | H35: =RTD("cqg.rtd",,"StudyData", "Close("&$D$12&") when LocalYear("&$D$12&")="&$D$1&" and localMonth("&$D$12&") ="&$E$1&" and LocalDay("&$D$12&")="&$F$1&" and Barix("&$D$12&",reference:=StartOfSession)="&A35&"", "Bar", "", "Close","5","0","PrimaryOnly",,,"False","T","EveryTick") ->  | J35: =RTD("cqg.rtd",,"StudyData", "Close("&$D$12&") when LocalYear("&$D$12&")="&$D$2&" and localMonth("&$D$12&") ="&$E$2&" and LocalDay("&$D$12&")="&$F$2&" and Barix("&$D$12&",reference:=StartOfSession)="&A35&"", "Bar", "", "Close","5","0","PrimaryOnly",,,"False","T","EveryTick") -> 2774.75 | K35: -0.004930966469 | L35: =RTD("cqg.rtd",,"StudyData", "Close("&$D$12&") when LocalYear("&$D$12&")="&$D$3&" and localMonth("&$D$12&") ="&$E$3&" and LocalDay("&$D$12&")="&$F$3&" and Barix("&$D$12&",reference:=StartOfSession)="&A35&"", "Bar", "", "Close","5","0","PrimaryOnly",,,"False","T","EveryTick") -> 2787.25 | M35: 0.002968693775 | N35: =RTD("cqg.rtd",,"StudyData", "Close("&$D$12&") when LocalYear("&$D$12&")="&$D$4&" and localMonth("&$D$12&") ="&$E$4&" and LocalDay("&$D$12&")="&$F$4&" and Barix("&$D$12&",reference:=StartOfSession)="&A35&"", "Bar", "", "Close","5","0","PrimaryOnly",,,"False","T","EveryTick") -> 2792.5 | O35: 0.001524253564 | P35: =RTD("cqg.rtd",,"StudyData", "Close("&$D$12&") when LocalYear("&$D$12&")="&$D$5&" and localMonth("&$D$12&") ="&$E$5&" and LocalDay("&$D$12&")="&$F$5&" and Barix("&$D$12&",reference:=StartOfSession)="&A35&"", "Bar", "", "Close","5","0","PrimaryOnly",,,"False","T","EveryTick") -> 2792 | Q35: 0.001883914955 | R35: =RTD("cqg.rtd",,"StudyData", "Close("&$D$12&") when LocalYear("&$D$12&")="&$D$6&" and localMonth("&$D$12&") ="&$E$6&" and LocalDay("&$D$12&")="&$F$6&" and Barix("&$D$12&",reference:=StartOfSession)="&A35&"", "Bar", "", "Close","5","0","PrimaryOnly",,,"False","T","EveryTick") -> 2792.5 | S35: 0.003593890386 | T35: =RTD("cqg.rtd",,"StudyData", "Close("&$D$12&") when LocalYear("&$D$12&")="&$D$7&" and localMonth("&$D$12&") ="&$E$7&" and LocalDay("&$D$12&")="&$F$7&" and Barix("&$D$12&",reference:=StartOfSession)="&A35&"", "Bar", "", "Close","5","0","PrimaryOnly",,,"False","T","EveryTick") -> 2777 | U35: 0.0003602305476 | V35: =RTD("cqg.rtd",,"StudyData", "Close("&$D$12&") when LocalYear("&$D$12&")="&$D$8&" and localMonth("&$D$12&") ="&$E$8&" and LocalDay("&$D$12&")="&$F$8&" and Barix("&$D$12&",reference:=StartOfSession)="&A35&"", "Bar", "", "Close","5","0","PrimaryOnly",,,"False","T","EveryTick") -> 2777 | W35: 0.0003602305476 | X35: =RTD("cqg.rtd",,"StudyData", "Close("&$D$12&") when LocalYear("&$D$12&")="&$D$9&" and localMonth("&$D$12&") ="&$E$9&" and LocalDay("&$D$12&")="&$F$9&" and Barix("&$D$12&",reference:=StartOfSession)="&A35&"", "Bar", "", "Close","5","0","PrimaryOnly",,,"False","T","EveryTick") -> 2765 | Y35: 0.003447650154 | Z35: =RTD("cqg.rtd",,"StudyData", "Close("&$D$12&") when LocalYear("&$D$12&")="&$D$10&" and localMonth("&$D$12&") ="&$E$10&" and LocalDay("&$D$12&")="&$F$10&" and Barix("&$D$12&",reference:=StartOfSession)="&A35&"", "Bar", "", "Close","5","0","PrimaryOnly",,,"False","T","EveryTick") -> 2744.75 | AA35: -0.001818347122
A36: 35 | B36: 11:25:00 | C36: 2018-06-04 | D36: 2018 | E36: 6 | F36: 4 | G36: =IF(RTD("cqg.rtd",,"StudyData", "Close(EP) when LocalYear("&$D$12&")="&D36&" and localMonth("&$D$12&") ="&E36&" and LocalDay("&$D$12&")="&F36&" and Barix("&$D$12&",reference:=StartOfSession)=80", "Bar", "", "Close","5","0","PrimaryOnly",,,"False","T","EveryTick")="",2,1) -> 1 | H36: =RTD("cqg.rtd",,"StudyData", "Close("&$D$12&") when LocalYear("&$D$12&")="&$D$1&" and localMonth("&$D$12&") ="&$E$1&" and LocalDay("&$D$12&")="&$F$1&" and Barix("&$D$12&",reference:=StartOfSession)="&A36&"", "Bar", "", "Close","5","0","PrimaryOnly",,,"False","T","EveryTick") ->  | J36: =RTD("cqg.rtd",,"StudyData", "Close("&$D$12&") when LocalYear("&$D$12&")="&$D$2&" and localMonth("&$D$12&") ="&$E$2&" and LocalDay("&$D$12&")="&$F$2&" and Barix("&$D$12&",reference:=StartOfSession)="&A36&"", "Bar", "", "Close","5","0","PrimaryOnly",,,"False","T","EveryTick") -> 2774.75 | K36: -0.004930966469 | L36: =RTD("cqg.rtd",,"StudyData", "Close("&$D$12&") when LocalYear("&$D$12&")="&$D$3&" and localMonth("&$D$12&") ="&$E$3&" and LocalDay("&$D$12&")="&$F$3&" and Barix("&$D$12&",reference:=StartOfSession)="&A36&"", "Bar", "", "Close","5","0","PrimaryOnly",,,"False","T","EveryTick") -> 2786.75 | M36: 0.00278877294 | N36: =RTD("cqg.rtd",,"StudyData", "Close("&$D$12&") when LocalYear("&$D$12&")="&$D$4&" and localMonth("&$D$12&") ="&$E$4&" and LocalDay("&$D$12&")="&$F$4&" and Barix("&$D$12&",reference:=StartOfSession)="&A36&"", "Bar", "", "Close","5","0","PrimaryOnly",,,"False","T","EveryTick") -> 2792.5 | O36: 0.001524253564 | P36: =RTD("cqg.rtd",,"StudyData", "Close("&$D$12&") when LocalYear("&$D$12&")="&$D$5&" and localMonth("&$D$12&") ="&$E$5&" and LocalDay("&$D$12&")="&$F$5&" and Barix("&$D$12&",reference:=StartOfSession)="&A36&"", "Bar", "", "Close","5","0","PrimaryOnly",,,"False","T","EveryTick") -> 2791.75 | Q36: 0.001794204719 | R36: =RTD("cqg.rtd",,"StudyData", "Close("&$D$12&") when LocalYear("&$D$12&")="&$D$6&" and localMonth("&$D$12&") ="&$E$6&" and LocalDay("&$D$12&")="&$F$6&" and Barix("&$D$12&",reference:=StartOfSession)="&A36&"", "Bar", "", "Close","5","0","PrimaryOnly",,,"False","T","EveryTick") -> 2792.75 | S36: 0.003683737646 | T36: =RTD("cqg.rtd",,"StudyData", "Close("&$D$12&") when LocalYear("&$D$12&")="&$D$7&" and localMonth("&$D$12&") ="&$E$7&" and LocalDay("&$D$12&")="&$F$7&" and Barix("&$D$12&",reference:=StartOfSession)="&A36&"", "Bar", "", "Close","5","0","PrimaryOnly",,,"False","T","EveryTick") -> 2779 | U36: 0.001080691643 | V36: =RTD("cqg.rtd",,"StudyData", "Close("&$D$12&") when LocalYear("&$D$12&")="&$D$8&" and localMonth("&$D$12&") ="&$E$8&" and LocalDay("&$D$12&")="&$F$8&" and Barix("&$D$12&",reference:=StartOfSession)="&A36&"", "Bar", "", "Close","5","0","PrimaryOnly",,,"False","T","EveryTick") -> 2777.25 | W36: 0.0004502881844 | X36: =RTD("cqg.rtd",,"StudyData", "Close("&$D$12&") when LocalYear("&$D$12&")="&$D$9&" and localMonth("&$D$12&") ="&$E$9&" and LocalDay("&$D$12&")="&$F$9&" and Barix("&$D$12&",reference:=StartOfSession)="&A36&"", "Bar", "", "Close","5","0","PrimaryOnly",,,"False","T","EveryTick") -> 2764.75 | Y36: 0.003356922519 | Z36: =RTD("cqg.rtd",,"StudyData", "Close("&$D$12&") when LocalYear("&$D$12&")="&$D$10&" and localMonth("&$D$12&") ="&$E$10&" and LocalDay("&$D$12&")="&$F$10&" and Barix("&$D$12&",reference:=StartOfSession)="&A36&"", "Bar", "", "Close","5","0","PrimaryOnly",,,"False","T","EveryTick") -> 2747 | AA36: -0.001000090917
A37: 36 | B37: 11:30:00 | H37: =RTD("cqg.rtd",,"StudyData", "Close("&$D$12&") when LocalYear("&$D$12&")="&$D$1&" and localMonth("&$D$12&") ="&$E$1&" and LocalDay("&$D$12&")="&$F$1&" and Barix("&$D$12&",reference:=StartOfSession)="&A37&"", "Bar", "", "Close","5","0","PrimaryOnly",,,"False","T","EveryTick") ->  | J37: =RTD("cqg.rtd",,"StudyData", "Close("&$D$12&") when LocalYear("&$D$12&")="&$D$2&" and localMonth("&$D$12&") ="&$E$2&" and LocalDay("&$D$12&")="&$F$2&" and Barix("&$D$12&",reference:=StartOfSession)="&A37&"", "Bar", "", "Close","5","0","PrimaryOnly",,,"False","T","EveryTick") -> 2774.25 | K37: -0.005110274341 | L37: =RTD("cqg.rtd",,"StudyData", "Close("&$D$12&") when LocalYear("&$D$12&")="&$D$3&" and localMonth("&$D$12&") ="&$E$3&" and LocalDay("&$D$12&")="&$F$3&" and Barix("&$D$12&",reference:=StartOfSession)="&A37&"", "Bar", "", "Close","5","0","PrimaryOnly",,,"False","T","EveryTick") -> 2787 | M37: 0.002878733357 | N37: =RTD("cqg.rtd",,"StudyData", "Close("&$D$12&") when LocalYear("&$D$12&")="&$D$4&" and localMonth("&$D$12&") ="&$E$4&" and LocalDay("&$D$12&")="&$F$4&" and Barix("&$D$12&",reference:=StartOfSession)="&A37&"", "Bar", "", "Close","5","0","PrimaryOnly",,,"False","T","EveryTick") -> 2792.25 | O37: 0.00143459159 | P37: =RTD("cqg.rtd",,"StudyData", "Close("&$D$12&") when LocalYear("&$D$12&")="&$D$5&" and localMonth("&$D$12&") ="&$E$5&" and LocalDay("&$D$12&")="&$F$5&" and Barix("&$D$12&",reference:=StartOfSession)="&A37&"", "Bar", "", "Close","5","0","PrimaryOnly",,,"False","T","EveryTick") -> 2790.75 | Q37: 0.001435363775 | R37: =RTD("cqg.rtd",,"StudyData", "Close("&$D$12&") when LocalYear("&$D$12&")="&$D$6&" and localMonth("&$D$12&") ="&$E$6&" and LocalDay("&$D$12&")="&$F$6&" and Barix("&$D$12&",reference:=StartOfSession)="&A37&"", "Bar", "", "Close","5","0","PrimaryOnly",,,"False","T","EveryTick") -> 2793 | S37: 0.003773584906 | T37: =RTD("cqg.rtd",,"StudyData", "Close("&$D$12&") when LocalYear("&$D$12&")="&$D$7&" and localMonth("&$D$12&") ="&$E$7&" and LocalDay("&$D$12&")="&$F$7&" and Barix("&$D$12&",reference:=StartOfSession)="&A37&"", "Bar", "", "Close","5","0","PrimaryOnly",,,"False","T","EveryTick") -> 2779.75 | U37: 0.001350864553 | V37: =RTD("cqg.rtd",,"StudyData", "Close("&$D$12&") when LocalYear("&$D$12&")="&$D$8&" and localMonth("&$D$12&") ="&$E$8&" and LocalDay("&$D$12&")="&$F$8&" and Barix("&$D$12&",reference:=StartOfSession)="&A37&"", "Bar", "", "Close","5","0","PrimaryOnly",,,"False","T","EveryTick") -> 2773.5 | W37: -0.0009005763689 | X37: =RTD("cqg.rtd",,"StudyData", "Close("&$D$12&") when LocalYear("&$D$12&")="&$D$9&" and localMonth("&$D$12&") ="&$E$9&" and LocalDay("&$D$12&")="&$F$9&" and Barix("&$D$12&",reference:=StartOfSession)="&A37&"", "Bar", "", "Close","5","0","PrimaryOnly",,,"False","T","EveryTick") -> 2764.75 | Y37: 0.003356922519 | Z37: =RTD("cqg.rtd",,"StudyData", "Close("&$D$12&") when LocalYear("&$D$12&")="&$D$10&" and localMonth("&$D$12&") ="&$E$10&" and LocalDay("&$D$12&")="&$F$10&" and Barix("&$D$12&",reference:=StartOfSession)="&A37&"", "Bar", "", "Close","5","0","PrimaryOnly",,,"False","T","EveryTick") -> 2746.5 | AA37: -0.00118192563
A38: 37 | B38: 11:35:00 | C38: -40 | D38: =RTD("cqg.rtd",,"StudyData", $D$12, "Tick", "FlatTicks=0", "Tick","D",C38,"PrimaryOnly") -> 2762.25 | F38: EP | H38: =RTD("cqg.rtd",,"StudyData", "Close("&$D$12&") when LocalYear("&$D$12&")="&$D$1&" and localMonth("&$D$12&") ="&$E$1&" and LocalDay("&$D$12&")="&$F$1&" and Barix("&$D$12&",reference:=StartOfSession)="&A38&"", "Bar", "", "Close","5","0","PrimaryOnly",,,"False","T","EveryTick") ->  | J38: =RTD("cqg.rtd",,"StudyData", "Close("&$D$12&") when LocalYear("&$D$12&")="&$D$2&" and localMonth("&$D$12&") ="&$E$2&" and LocalDay("&$D$12&")="&$F$2&" and Barix("&$D$12&",reference:=StartOfSession)="&A38&"", "Bar", "", "Close","5","0","PrimaryOnly",,,"False","T","EveryTick") -> 2775.25 | K38: -0.004751658598 | L38: =RTD("cqg.rtd",,"StudyData", "Close("&$D$12&") when LocalYear("&$D$12&")="&$D$3&" and localMonth("&$D$12&") ="&$E$3&" and LocalDay("&$D$12&")="&$F$3&" and Barix("&$D$12&",reference:=StartOfSession)="&A38&"", "Bar", "", "Close","5","0","PrimaryOnly",,,"False","T","EveryTick") -> 2786.25 | M38: 0.002608852105 | N38: =RTD("cqg.rtd",,"StudyData", "Close("&$D$12&") when LocalYear("&$D$12&")="&$D$4&" and localMonth("&$D$12&") ="&$E$4&" and LocalDay("&$D$12&")="&$F$4&" and Barix("&$D$12&",reference:=StartOfSession)="&A38&"", "Bar", "", "Close","5","0","PrimaryOnly",,,"False","T","EveryTick") -> 2792.25 | O38: 0.00143459159 | P38: =RTD("cqg.rtd",,"StudyData", "Close("&$D$12&") when LocalYear("&$D$12&")="&$D$5&" and localMonth("&$D$12&") ="&$E$5&" and LocalDay("&$D$12&")="&$F$5&" and Barix("&$D$12&",reference:=StartOfSession)="&A38&"", "Bar", "", "Close","5","0","PrimaryOnly",,,"False","T","EveryTick") -> 2791 | Q38: 0.001525074011 | R38: =RTD("cqg.rtd",,"StudyData", "Close("&$D$12&") when LocalYear("&$D$12&")="&$D$6&" and localMonth("&$D$12&") ="&$E$6&" and LocalDay("&$D$12&")="&$F$6&" and Barix("&$D$12&",reference:=StartOfSession)="&A38&"", "Bar", "", "Close","5","0","PrimaryOnly",,,"False","T","EveryTick") -> 2792.5 | S38: 0.003593890386 | T38: =RTD("cqg.rtd",,"StudyData", "Close("&$D$12&") when LocalYear("&$D$12&")="&$D$7&" and localMonth("&$D$12&") ="&$E$7&" and LocalDay("&$D$12&")="&$F$7&" and Barix("&$D$12&",reference:=StartOfSession)="&A38&"", "Bar", "", "Close","5","0","PrimaryOnly",,,"False","T","EveryTick") -> 2778.25 | U38: 0.000810518732 | V38: =RTD("cqg.rtd",,"StudyData", "Close("&$D$12&") when LocalYear("&$D$12&")="&$D$8&" and localMonth("&$D$12&") ="&$E$8&" and LocalDay("&$D$12&")="&$F$8&" and Barix("&$D$12&",reference:=StartOfSession)="&A38&"", "Bar", "", "Close","5","0","PrimaryOnly",,,"False","T","EveryTick") -> 2774.25 | W38: -0.0006304034582 | X38: =RTD("cqg.rtd",,"StudyData", "Close("&$D$12&") when LocalYear("&$D$12&")="&$D$9&" and localMonth("&$D$12&") ="&$E$9&" and LocalDay("&$D$12&")="&$F$9&" and Barix("&$D$12&",reference:=StartOfSession)="&A38&"", "Bar", "", "Close","5","0","PrimaryOnly",,,"False","T","EveryTick") -> 2763.5 | Y38: 0.00290328434 | Z38: =RTD("cqg.rtd",,"StudyData", "Close("&$D$12&") when LocalYear("&$D$12&")="&$D$10&" and localMonth("&$D$12&") ="&$E$10&" and LocalDay("&$D$12&")="&$F$10&" and Barix("&$D$12&",reference:=StartOfSession)="&A38&"", "Bar", "", "Close","5","0","PrimaryOnly",,,"False","T","EveryTick") -> 2747.5 | AA38: -0.0008182562051
A39: 38 | B39: 11:40:00 | C39: =C38+1 -> -39 | D39: =RTD("cqg.rtd",,"StudyData", $D$12, "Tick", "FlatTicks=0", "Tick","D",C39,"PrimaryOnly") -> 2762.5 | F39: ENQ | H39: =RTD("cqg.rtd",,"StudyData", "Close("&$D$12&") when LocalYear("&$D$12&")="&$D$1&" and localMonth("&$D$12&") ="&$E$1&" and LocalDay("&$D$12&")="&$F$1&" and Barix("&$D$12&",reference:=StartOfSession)="&A39&"", "Bar", "", "Close","5","0","PrimaryOnly",,,"False","T","EveryTick") ->  | J39: =RTD("cqg.rtd",,"StudyData", "Close("&$D$12&") when LocalYear("&$D$12&")="&$D$2&" and localMonth("&$D$12&") ="&$E$2&" and LocalDay("&$D$12&")="&$F$2&" and Barix("&$D$12&",reference:=StartOfSession)="&A39&"", "Bar", "", "Close","5","0","PrimaryOnly",,,"False","T","EveryTick") -> 2775 | K39: -0.004841312534 | L39: =RTD("cqg.rtd",,"StudyData", "Close("&$D$12&") when LocalYear("&$D$12&")="&$D$3&" and localMonth("&$D$12&") ="&$E$3&" and LocalDay("&$D$12&")="&$F$3&" and Barix("&$D$12&",reference:=StartOfSession)="&A39&"", "Bar", "", "Close","5","0","PrimaryOnly",,,"False","T","EveryTick") -> 2786.25 | M39: 0.002608852105 | N39: =RTD("cqg.rtd",,"StudyData", "Close("&$D$12&") when LocalYear("&$D$12&")="&$D$4&" and localMonth("&$D$12&") ="&$E$4&" and LocalDay("&$D$12&")="&$F$4&" and Barix("&$D$12&",reference:=StartOfSession)="&A39&"", "Bar", "", "Close","5","0","PrimaryOnly",,,"False","T","EveryTick") -> 2792.75 | O39: 0.001613915538 | P39: =RTD("cqg.rtd",,"StudyData", "Close("&$D$12&") when LocalYear("&$D$12&")="&$D$5&" and localMonth("&$D$12&") ="&$E$5&" and LocalDay("&$D$12&")="&$F$5&" and Barix("&$D$12&",reference:=StartOfSession)="&A39&"", "Bar", "", "Close","5","0","PrimaryOnly",,,"False","T","EveryTick") -> 2790.5 | Q39: 0.001345653539 | R39: =RTD("cqg.rtd",,"StudyData", "Close("&$D$12&") when LocalYear("&$D$12&")="&$D$6&" and localMonth("&$D$12&") ="&$E$6&" and LocalDay("&$D$12&")="&$F$6&" and Barix("&$D$12&",reference:=StartOfSession)="&A39&"", "Bar", "", "Close","5","0","PrimaryOnly",,,"False","T","EveryTick") -> 2792 | S39: 0.003414195867 | T39: =RTD("cqg.rtd",,"StudyData", "Close("&$D$12&") when LocalYear("&$D$12&")="&$D$7&" and localMonth("&$D$12&") ="&$E$7&" and LocalDay("&$D$12&")="&$F$7&" and Barix("&$D$12&",reference:=StartOfSession)="&A39&"", "Bar", "", "Close","5","0","PrimaryOnly",,,"False","T","EveryTick") -> 2778.25 | U39: 0.000810518732 | V39: =RTD("cqg.rtd",,"StudyData", "Close("&$D$12&") when LocalYear("&$D$12&")="&$D$8&" and localMonth("&$D$12&") ="&$E$8&" and LocalDay("&$D$12&")="&$F$8&" and Barix("&$D$12&",reference:=StartOfSession)="&A39&"", "Bar", "", "Close","5","0","PrimaryOnly",,,"False","T","EveryTick") -> 2773.25 | W39: -0.0009906340058 | X39: =RTD("cqg.rtd",,"StudyData", "Close("&$D$12&") when LocalYear("&$D$12&")="&$D$9&" and localMonth("&$D$12&") ="&$E$9&" and LocalDay("&$D$12&")="&$F$9&" and Barix("&$D$12&",reference:=StartOfSession)="&A39&"", "Bar", "", "Close","5","0","PrimaryOnly",,,"False","T","EveryTick") -> 2764.25 | Y39: 0.003175467247 | Z39: =RTD("cqg.rtd",,"StudyData", "Close("&$D$12&") when LocalYear("&$D$12&")="&$D$10&" and localMonth("&$D$12&") ="&$E$10&" and LocalDay("&$D$12&")="&$F$10&" and Barix("&$D$12&",reference:=StartOfSession)="&A39&"", "Bar", "", "Close","5","0","PrimaryOnly",,,"False","T","EveryTick") -> 2748.75 | AA39: -0.0003636694245
A40: 39 | B40: 11:45:00 | C40: =C39+1 -> -38 | D40: =RTD("cqg.rtd",,"StudyData", $D$12, "Tick", "FlatTicks=0", "Tick","D",C40,"PrimaryOnly") -> 2762.25 | F40: YM | H40: =RTD("cqg.rtd",,"StudyData", "Close("&$D$12&") when LocalYear("&$D$12&")="&$D$1&" and localMonth("&$D$12&") ="&$E$1&" and LocalDay("&$D$12&")="&$F$1&" and Barix("&$D$12&",reference:=StartOfSession)="&A40&"", "Bar", "", "Close","5","0","PrimaryOnly",,,"False","T","EveryTick") ->  | J40: =RTD("cqg.rtd",,"StudyData", "Close("&$D$12&") when LocalYear("&$D$12&")="&$D$2&" and localMonth("&$D$12&") ="&$E$2&" and LocalDay("&$D$12&")="&$F$2&" and Barix("&$D$12&",reference:=StartOfSession)="&A40&"", "Bar", "", "Close","5","0","PrimaryOnly",,,"False","T","EveryTick") -> 2775.75 | K40: -0.004572350726 | L40: =RTD("cqg.rtd",,"StudyData", "Close("&$D$12&") when LocalYear("&$D$12&")="&$D$3&" and localMonth("&$D$12&") ="&$E$3&" and LocalDay("&$D$12&")="&$F$3&" and Barix("&$D$12&",reference:=StartOfSession)="&A40&"", "Bar", "", "Close","5","0","PrimaryOnly",,,"False","T","EveryTick") -> 2786 | M40: 0.002518891688 | N40: =RTD("cqg.rtd",,"StudyData", "Close("&$D$12&") when LocalYear("&$D$12&")="&$D$4&" and localMonth("&$D$12&") ="&$E$4&" and LocalDay("&$D$12&")="&$F$4&" and Barix("&$D$12&",reference:=StartOfSession)="&A40&"", "Bar", "", "Close","5","0","PrimaryOnly",,,"False","T","EveryTick") -> 2792.5 | O40: 0.001524253564 | P40: =RTD("cqg.rtd",,"StudyData", "Close("&$D$12&") when LocalYear("&$D$12&")="&$D$5&" and localMonth("&$D$12&") ="&$E$5&" and LocalDay("&$D$12&")="&$F$5&" and Barix("&$D$12&",reference:=StartOfSession)="&A40&"", "Bar", "", "Close","5","0","PrimaryOnly",,,"False","T","EveryTick") -> 2791 | Q40: 0.001525074011 | R40: =RTD("cqg.rtd",,"StudyData", "Close("&$D$12&") when LocalYear("&$D$12&")="&$D$6&" and localMonth("&$D$12&") ="&$E$6&" and LocalDay("&$D$12&")="&$F$6&" and Barix("&$D$12&",reference:=StartOfSession)="&A40&"", "Bar", "", "Close","5","0","PrimaryOnly",,,"False","T","EveryTick") -> 2792.25 | S40: 0.003504043127 | T40: =RTD("cqg.rtd",,"StudyData", "Close("&$D$12&") when LocalYear("&$D$12&")="&$D$7&" and localMonth("&$D$12&") ="&$E$7&" and LocalDay("&$D$12&")="&$F$7&" and Barix("&$D$12&",reference:=StartOfSession)="&A40&"", "Bar", "", "Close","5","0","PrimaryOnly",,,"False","T","EveryTick") -> 2778.25 | U40: 0.000810518732 | V40: =RTD("cqg.rtd",,"StudyData", "Close("&$D$12&") when LocalYear("&$D$12&")="&$D$8&" and localMonth("&$D$12&") ="&$E$8&" and LocalDay("&$D$12&")="&$F$8&" and Barix("&$D$12&",reference:=StartOfSession)="&A40&"", "Bar", "", "Close","5","0","PrimaryOnly",,,"False","T","EveryTick") -> 2771.25 | W40: -0.001711095101 | X40: =RTD("cqg.rtd",,"StudyData", "Close("&$D$12&") when LocalYear("&$D$12&")="&$D$9&" and localMonth("&$D$12&") ="&$E$9&" and LocalDay("&$D$12&")="&$F$9&" and Barix("&$D$12&",reference:=StartOfSession)="&A40&"", "Bar", "", "Close","5","0","PrimaryOnly",,,"False","T","EveryTick") -> 2763.5 | Y40: 0.00290328434 | Z40: =RTD("cqg.rtd",,"StudyData", "Close("&$D$12&") when LocalYear("&$D$12&")="&$D$10&" and localMonth("&$D$12&") ="&$E$10&" and LocalDay("&$D$12&")="&$F$10&" and Barix("&$D$12&",reference:=StartOfSession)="&A40&"", "Bar", "", "Close","5","0","PrimaryOnly",,,"False","T","EveryTick") -> 2747 | AA40: -0.001000090917
A41: 40 | B41: 11:50:00 | C41: -37 | D41: =RTD("cqg.rtd",,"StudyData", $D$12, "Tick", "FlatTicks=0", "Tick","D",C41,"PrimaryOnly") -> 2762.5 | F41: RTY | H41: =RTD("cqg.rtd",,"StudyData", "Close("&$D$12&") when LocalYear("&$D$12&")="&$D$1&" and localMonth("&$D$12&") ="&$E$1&" and LocalDay("&$D$12&")="&$F$1&" and Barix("&$D$12&",reference:=StartOfSession)="&A41&"", "Bar", "", "Close","5","0","PrimaryOnly",,,"False","T","EveryTick") ->  | J41: =RTD("cqg.rtd",,"StudyData", "Close("&$D$12&") when LocalYear("&$D$12&")="&$D$2&" and localMonth("&$D$12&") ="&$E$2&" and LocalDay("&$D$12&")="&$F$2&" and Barix("&$D$12&",reference:=StartOfSession)="&A41&"", "Bar", "", "Close","5","0","PrimaryOnly",,,"False","T","EveryTick") -> 2776.25 | K41: -0.004393042855 | L41: =RTD("cqg.rtd",,"StudyData", "Close("&$D$12&") when LocalYear("&$D$12&")="&$D$3&" and localMonth("&$D$12&") ="&$E$3&" and LocalDay("&$D$12&")="&$F$3&" and Barix("&$D$12&",reference:=StartOfSession)="&A41&"", "Bar", "", "Close","5","0","PrimaryOnly",,,"False","T","EveryTick") -> 2786.25 | M41: 0.002608852105 | N41: =RTD("cqg.rtd",,"StudyData", "Close("&$D$12&") when LocalYear("&$D$12&")="&$D$4&" and localMonth("&$D$12&") ="&$E$4&" and LocalDay("&$D$12&")="&$F$4&" and Barix("&$D$12&",reference:=StartOfSession)="&A41&"", "Bar", "", "Close","5","0","PrimaryOnly",,,"False","T","EveryTick") -> 2791.75 | O41: 0.001255267641 | P41: =RTD("cqg.rtd",,"StudyData", "Close("&$D$12&") when LocalYear("&$D$12&")="&$D$5&" and localMonth("&$D$12&") ="&$E$5&" and LocalDay("&$D$12&")="&$F$5&" and Barix("&$D$12&",reference:=StartOfSession)="&A41&"", "Bar", "", "Close","5","0","PrimaryOnly",,,"False","T","EveryTick") -> 2791 | Q41: 0.001525074011 | R41: =RTD("cqg.rtd",,"StudyData", "Close("&$D$12&") when LocalYear("&$D$12&")="&$D$6&" and localMonth("&$D$12&") ="&$E$6&" and LocalDay("&$D$12&")="&$F$6&" and Barix("&$D$12&",reference:=StartOfSession)="&A41&"", "Bar", "", "Close","5","0","PrimaryOnly",,,"False","T","EveryTick") -> 2793 | S41: 0.003773584906 | T41: =RTD("cqg.rtd",,"StudyData", "Close("&$D$12&") when LocalYear("&$D$12&")="&$D$7&" and localMonth("&$D$12&") ="&$E$7&" and LocalDay("&$D$12&")="&$F$7&" and Barix("&$D$12&",reference:=StartOfSession)="&A41&"", "Bar", "", "Close","5","0","PrimaryOnly",,,"False","T","EveryTick") -> 2779 | U41: 0.001080691643 | V41: =RTD("cqg.rtd",,"StudyData", "Close("&$D$12&") when LocalYear("&$D$12&")="&$D$8&" and localMonth("&$D$12&") ="&$E$8&" and LocalDay("&$D$12&")="&$F$8&" and Barix("&$D$12&",reference:=StartOfSession)="&A41&"", "Bar", "", "Close","5","0","PrimaryOnly",,,"False","T","EveryTick") -> 2772.25 | W41: -0.001350864553 | X41: =RTD("cqg.rtd",,"StudyData", "Close("&$D$12&") when LocalYear("&$D$12&")="&$D$9&" and localMonth("&$D$12&") ="&$E$9&" and LocalDay("&$D$12&")="&$F$9&" and Barix("&$D$12&",reference:=StartOfSession)="&A41&"", "Bar", "", "Close","5","0","PrimaryOnly",,,"False","T","EveryTick") -> 2763.5 | Y41: 0.00290328434 | Z41: =RTD("cqg.rtd",,"StudyData", "Close("&$D$12&") when LocalYear("&$D$12&")="&$D$10&" and localMonth("&$D$12&") ="&$E$10&" and LocalDay("&$D$12&")="&$F$10&" and Barix("&$D$12&",reference:=StartOfSession)="&A41&"", "Bar", "", "Close","5","0","PrimaryOnly",,,"False","T","EveryTick") -> 2748.25 | AA41: -0.0005455041367
A42: 41 | B42: 11:55:00 | C42: -36 | D42: =RTD("cqg.rtd",,"StudyData", $D$12, "Tick", "FlatTicks=0", "Tick","D",C42,"PrimaryOnly") -> 2762.25 | F42: EMD | H42: =RTD("cqg.rtd",,"StudyData", "Close("&$D$12&") when LocalYear("&$D$12&")="&$D$1&" and localMonth("&$D$12&") ="&$E$1&" and LocalDay("&$D$12&")="&$F$1&" and Barix("&$D$12&",reference:=StartOfSession)="&A42&"", "Bar", "", "Close","5","0","PrimaryOnly",,,"False","T","EveryTick") ->  | J42: =RTD("cqg.rtd",,"StudyData", "Close("&$D$12&") when LocalYear("&$D$12&")="&$D$2&" and localMonth("&$D$12&") ="&$E$2&" and LocalDay("&$D$12&")="&$F$2&" and Barix("&$D$12&",reference:=StartOfSession)="&A42&"", "Bar", "", "Close","5","0","PrimaryOnly",,,"False","T","EveryTick") -> 2777.5 | K42: -0.003944773176 | L42: =RTD("cqg.rtd",,"StudyData", "Close("&$D$12&") when LocalYear("&$D$12&")="&$D$3&" and localMonth("&$D$12&") ="&$E$3&" and LocalDay("&$D$12&")="&$F$3&" and Barix("&$D$12&",reference:=StartOfSession)="&A42&"", "Bar", "", "Close","5","0","PrimaryOnly",,,"False","T","EveryTick") -> 2785.25 | M42: 0.002249010435 | N42: =RTD("cqg.rtd",,"StudyData", "Close("&$D$12&") when LocalYear("&$D$12&")="&$D$4&" and localMonth("&$D$12&") ="&$E$4&" and LocalDay("&$D$12&")="&$F$4&" and Barix("&$D$12&",reference:=StartOfSession)="&A42&"", "Bar", "", "Close","5","0","PrimaryOnly",,,"False","T","EveryTick") -> 2791 | O42: 0.0009862817179 | P42: =RTD("cqg.rtd",,"StudyData", "Close("&$D$12&") when LocalYear("&$D$12&")="&$D$5&" and localMonth("&$D$12&") ="&$E$5&" and LocalDay("&$D$12&")="&$F$5&" and Barix("&$D$12&",reference:=StartOfSession)="&A42&"", "Bar", "", "Close","5","0","PrimaryOnly",,,"False","T","EveryTick") -> 2791.25 | Q42: 0.001614784247 | R42: =RTD("cqg.rtd",,"StudyData", "Close("&$D$12&") when LocalYear("&$D$12&")="&$D$6&" and localMonth("&$D$12&") ="&$E$6&" and LocalDay("&$D$12&")="&$F$6&" and Barix("&$D$12&",reference:=StartOfSession)="&A42&"", "Bar", "", "Close","5","0","PrimaryOnly",,,"False","T","EveryTick") -> 2793 | S42: 0.003773584906 | T42: =RTD("cqg.rtd",,"StudyData", "Close("&$D$12&") when LocalYear("&$D$12&")="&$D$7&" and localMonth("&$D$12&") ="&$E$7&" and LocalDay("&$D$12&")="&$F$7&" and Barix("&$D$12&",reference:=StartOfSession)="&A42&"", "Bar", "", "Close","5","0","PrimaryOnly",,,"False","T","EveryTick") -> 2779 | U42: 0.001080691643 | V42: =RTD("cqg.rtd",,"StudyData", "Close("&$D$12&") when LocalYear("&$D$12&")="&$D$8&" and localMonth("&$D$12&") ="&$E$8&" and LocalDay("&$D$12&")="&$F$8&" and Barix("&$D$12&",reference:=StartOfSession)="&A42&"", "Bar", "", "Close","5","0","PrimaryOnly",,,"False","T","EveryTick") -> 2773.25 | W42: -0.0009906340058 | X42: =RTD("cqg.rtd",,"StudyData", "Close("&$D$12&") when LocalYear("&$D$12&")="&$D$9&" and localMonth("&$D$12&") ="&$E$9&" and LocalDay("&$D$12&")="&$F$9&" and Barix("&$D$12&",reference:=StartOfSession)="&A42&"", "Bar", "", "Close","5","0","PrimaryOnly",,,"False","T","EveryTick") -> 2764.25 | Y42: 0.003175467247 | Z42: =RTD("cqg.rtd",,"StudyData", "Close("&$D$12&") when LocalYear("&$D$12&")="&$D$10&" and localMonth("&$D$12&") ="&$E$10&" and LocalDay("&$D$12&")="&$F$10&" and Barix("&$D$12&",reference:=StartOfSession)="&A42&"", "Bar", "", "Close","5","0","PrimaryOnly",,,"False","T","EveryTick") -> 2748.25 | AA42: -0.0005455041367
A43: 42 | B43: 12:00:00 | C43: -35 | D43: =RTD("cqg.rtd",,"StudyData", $D$12, "Tick", "FlatTicks=0", "Tick","D",C43,"PrimaryOnly") -> 2762.5 | F43: FT5 | H43: =RTD("cqg.rtd",,"StudyData", "Close("&$D$12&") when LocalYear("&$D$12&")="&$D$1&" and localMonth("&$D$12&") ="&$E$1&" and LocalDay("&$D$12&")="&$F$1&" and Barix("&$D$12&",reference:=StartOfSession)="&A43&"", "Bar", "", "Close","5","0","PrimaryOnly",,,"False","T","EveryTick") ->  | J43: =RTD("cqg.rtd",,"StudyData", "Close("&$D$12&") when LocalYear("&$D$12&")="&$D$2&" and localMonth("&$D$12&") ="&$E$2&" and LocalDay("&$D$12&")="&$F$2&" and Barix("&$D$12&",reference:=StartOfSession)="&A43&"", "Bar", "", "Close","5","0","PrimaryOnly",,,"False","T","EveryTick") -> 2777.75 | K43: -0.00385511924 | L43: =RTD("cqg.rtd",,"StudyData", "Close("&$D$12&") when LocalYear("&$D$12&")="&$D$3&" and localMonth("&$D$12&") ="&$E$3&" and LocalDay("&$D$12&")="&$F$3&" and Barix("&$D$12&",reference:=StartOfSession)="&A43&"", "Bar", "", "Close","5","0","PrimaryOnly",,,"False","T","EveryTick") -> 2785.75 | M43: 0.00242893127 | N43: =RTD("cqg.rtd",,"StudyData", "Close("&$D$12&") when LocalYear("&$D$12&")="&$D$4&" and localMonth("&$D$12&") ="&$E$4&" and LocalDay("&$D$12&")="&$F$4&" and Barix("&$D$12&",reference:=StartOfSession)="&A43&"", "Bar", "", "Close","5","0","PrimaryOnly",,,"False","T","EveryTick") -> 2791.25 | O43: 0.001075943692 | P43: =RTD("cqg.rtd",,"StudyData", "Close("&$D$12&") when LocalYear("&$D$12&")="&$D$5&" and localMonth("&$D$12&") ="&$E$5&" and LocalDay("&$D$12&")="&$F$5&" and Barix("&$D$12&",reference:=StartOfSession)="&A43&"", "Bar", "", "Close","5","0","PrimaryOnly",,,"False","T","EveryTick") -> 2791.5 | Q43: 0.001704494483 | R43: =RTD("cqg.rtd",,"StudyData", "Close("&$D$12&") when LocalYear("&$D$12&")="&$D$6&" and localMonth("&$D$12&") ="&$E$6&" and LocalDay("&$D$12&")="&$F$6&" and Barix("&$D$12&",reference:=StartOfSession)="&A43&"", "Bar", "", "Close","5","0","PrimaryOnly",,,"False","T","EveryTick") -> 2792 | S43: 0.003414195867 | T43: =RTD("cqg.rtd",,"StudyData", "Close("&$D$12&") when LocalYear("&$D$12&")="&$D$7&" and localMonth("&$D$12&") ="&$E$7&" and LocalDay("&$D$12&")="&$F$7&" and Barix("&$D$12&",reference:=StartOfSession)="&A43&"", "Bar", "", "Close","5","0","PrimaryOnly",,,"False","T","EveryTick") -> 2777.5 | U43: 0.0005403458213 | V43: =RTD("cqg.rtd",,"StudyData", "Close("&$D$12&") when LocalYear("&$D$12&")="&$D$8&" and localMonth("&$D$12&") ="&$E$8&" and LocalDay("&$D$12&")="&$F$8&" and Barix("&$D$12&",reference:=StartOfSession)="&A43&"", "Bar", "", "Close","5","0","PrimaryOnly",,,"False","T","EveryTick") -> 2773.75 | W43: -0.000810518732 | X43: =RTD("cqg.rtd",,"StudyData", "Close("&$D$12&") when LocalYear("&$D$12&")="&$D$9&" and localMonth("&$D$12&") ="&$E$9&" and LocalDay("&$D$12&")="&$F$9&" and Barix("&$D$12&",reference:=StartOfSession)="&A43&"", "Bar", "", "Close","5","0","PrimaryOnly",,,"False","T","EveryTick") -> 2764.5 | Y43: 0.003266194883 | Z43: =RTD("cqg.rtd",,"StudyData", "Close("&$D$12&") when LocalYear("&$D$12&")="&$D$10&" and localMonth("&$D$12&") ="&$E$10&" and LocalDay("&$D$12&")="&$F$10&" and Barix("&$D$12&",reference:=StartOfSession)="&A43&"", "Bar", "", "Close","5","0","PrimaryOnly",,,"False","T","EveryTick") -> 2749 | AA43: -0.0002727520684
A44: 43 | B44: 12:05:00 | C44: -34 | D44: =RTD("cqg.rtd",,"StudyData", $D$12, "Tick", "FlatTicks=0", "Tick","D",C44,"PrimaryOnly") -> 2762.25 | F44: BTC | H44: =RTD("cqg.rtd",,"StudyData", "Close("&$D$12&") when LocalYear("&$D$12&")="&$D$1&" and localMonth("&$D$12&") ="&$E$1&" and LocalDay("&$D$12&")="&$F$1&" and Barix("&$D$12&",reference:=StartOfSession)="&A44&"", "Bar", "", "Close","5","0","PrimaryOnly",,,"False","T","EveryTick") ->  | J44: =RTD("cqg.rtd",,"StudyData", "Close("&$D$12&") when LocalYear("&$D$12&")="&$D$2&" and localMonth("&$D$12&") ="&$E$2&" and LocalDay("&$D$12&")="&$F$2&" and Barix("&$D$12&",reference:=StartOfSession)="&A44&"", "Bar", "", "Close","5","0","PrimaryOnly",,,"False","T","EveryTick") -> 2777.75 | K44: -0.00385511924 | L44: =RTD("cqg.rtd",,"StudyData", "Close("&$D$12&") when LocalYear("&$D$12&")="&$D$3&" and localMonth("&$D$12&") ="&$E$3&" and LocalDay("&$D$12&")="&$F$3&" and Barix("&$D$12&",reference:=StartOfSession)="&A44&"", "Bar", "", "Close","5","0","PrimaryOnly",,,"False","T","EveryTick") -> 2787.5 | M44: 0.003058654192 | N44: =RTD("cqg.rtd",,"StudyData", "Close("&$D$12&") when LocalYear("&$D$12&")="&$D$4&" and localMonth("&$D$12&") ="&$E$4&" and LocalDay("&$D$12&")="&$F$4&" and Barix("&$D$12&",reference:=StartOfSession)="&A44&"", "Bar", "", "Close","5","0","PrimaryOnly",,,"False","T","EveryTick") -> 2790.75 | O44: 0.0008966197436 | P44: =RTD("cqg.rtd",,"StudyData", "Close("&$D$12&") when LocalYear("&$D$12&")="&$D$5&" and localMonth("&$D$12&") ="&$E$5&" and LocalDay("&$D$12&")="&$F$5&" and Barix("&$D$12&",reference:=StartOfSession)="&A44&"", "Bar", "", "Close","5","0","PrimaryOnly",,,"False","T","EveryTick") -> 2791.25 | Q44: 0.001614784247 | R44: =RTD("cqg.rtd",,"StudyData", "Close("&$D$12&") when LocalYear("&$D$12&")="&$D$6&" and localMonth("&$D$12&") ="&$E$6&" and LocalDay("&$D$12&")="&$F$6&" and Barix("&$D$12&",reference:=StartOfSession)="&A44&"", "Bar", "", "Close","5","0","PrimaryOnly",,,"False","T","EveryTick") -> 2793.25 | S44: 0.003863432165 | T44: =RTD("cqg.rtd",,"StudyData", "Close("&$D$12&") when LocalYear("&$D$12&")="&$D$7&" and localMonth("&$D$12&") ="&$E$7&" and LocalDay("&$D$12&")="&$F$7&" and Barix("&$D$12&",reference:=StartOfSession)="&A44&"", "Bar", "", "Close","5","0","PrimaryOnly",,,"False","T","EveryTick") -> 2777.5 | U44: 0.0005403458213 | V44: =RTD("cqg.rtd",,"StudyData", "Close("&$D$12&") when LocalYear("&$D$12&")="&$D$8&" and localMonth("&$D$12&") ="&$E$8&" and LocalDay("&$D$12&")="&$F$8&" and Barix("&$D$12&",reference:=StartOfSession)="&A44&"", "Bar", "", "Close","5","0","PrimaryOnly",,,"False","T","EveryTick") -> 2772 | W44: -0.00144092219 | X44: =RTD("cqg.rtd",,"StudyData", "Close("&$D$12&") when LocalYear("&$D$12&")="&$D$9&" and localMonth("&$D$12&") ="&$E$9&" and LocalDay("&$D$12&")="&$F$9&" and Barix("&$D$12&",reference:=StartOfSession)="&A44&"", "Bar", "", "Close","5","0","PrimaryOnly",,,"False","T","EveryTick") -> 2765.25 | Y44: 0.00353837779 | Z44: =RTD("cqg.rtd",,"StudyData", "Close("&$D$12&") when LocalYear("&$D$12&")="&$D$10&" and localMonth("&$D$12&") ="&$E$10&" and LocalDay("&$D$12&")="&$F$10&" and Barix("&$D$12&",reference:=StartOfSession)="&A44&"", "Bar", "", "Close","5","0","PrimaryOnly",,,"False","T","EveryTick") -> 2749.5 | AA44: -9.091735612e-05
A45: 44 | B45: 12:10:00 | C45: -33 | D45: =RTD("cqg.rtd",,"StudyData", $D$12, "Tick", "FlatTicks=0", "Tick","D",C45,"PrimaryOnly") -> 2762.5 | H45: =RTD("cqg.rtd",,"StudyData", "Close("&$D$12&") when LocalYear("&$D$12&")="&$D$1&" and localMonth("&$D$12&") ="&$E$1&" and LocalDay("&$D$12&")="&$F$1&" and Barix("&$D$12&",reference:=StartOfSession)="&A45&"", "Bar", "", "Close","5","0","PrimaryOnly",,,"False","T","EveryTick") ->  | J45: =RTD("cqg.rtd",,"StudyData", "Close("&$D$12&") when LocalYear("&$D$12&")="&$D$2&" and localMonth("&$D$12&") ="&$E$2&" and LocalDay("&$D$12&")="&$F$2&" and Barix("&$D$12&",reference:=StartOfSession)="&A45&"", "Bar", "", "Close","5","0","PrimaryOnly",,,"False","T","EveryTick") -> 2777.25 | K45: -0.004034427111 | L45: =RTD("cqg.rtd",,"StudyData", "Close("&$D$12&") when LocalYear("&$D$12&")="&$D$3&" and localMonth("&$D$12&") ="&$E$3&" and LocalDay("&$D$12&")="&$F$3&" and Barix("&$D$12&",reference:=StartOfSession)="&A45&"", "Bar", "", "Close","5","0","PrimaryOnly",,,"False","T","EveryTick") -> 2787.25 | M45: 0.002968693775 | N45: =RTD("cqg.rtd",,"StudyData", "Close("&$D$12&") when LocalYear("&$D$12&")="&$D$4&" and localMonth("&$D$12&") ="&$E$4&" and LocalDay("&$D$12&")="&$F$4&" and Barix("&$D$12&",reference:=StartOfSession)="&A45&"", "Bar", "", "Close","5","0","PrimaryOnly",,,"False","T","EveryTick") -> 2790.75 | O45: 0.0008966197436 | P45: =RTD("cqg.rtd",,"StudyData", "Close("&$D$12&") when LocalYear("&$D$12&")="&$D$5&" and localMonth("&$D$12&") ="&$E$5&" and LocalDay("&$D$12&")="&$F$5&" and Barix("&$D$12&",reference:=StartOfSession)="&A45&"", "Bar", "", "Close","5","0","PrimaryOnly",,,"False","T","EveryTick") -> 2790.5 | Q45: 0.001345653539 | R45: =RTD("cqg.rtd",,"StudyData", "Close("&$D$12&") when LocalYear("&$D$12&")="&$D$6&" and localMonth("&$D$12&") ="&$E$6&" and LocalDay("&$D$12&")="&$F$6&" and Barix("&$D$12&",reference:=StartOfSession)="&A45&"", "Bar", "", "Close","5","0","PrimaryOnly",,,"False","T","EveryTick") -> 2794.25 | S45: 0.004222821204 | T45: =RTD("cqg.rtd",,"StudyData", "Close("&$D$12&") when LocalYear("&$D$12&")="&$D$7&" and localMonth("&$D$12&") ="&$E$7&" and LocalDay("&$D$12&")="&$F$7&" and Barix("&$D$12&",reference:=StartOfSession)="&A45&"", "Bar", "", "Close","5","0","PrimaryOnly",,,"False","T","EveryTick") -> 2777.75 | U45: 0.0006304034582 | V45: =RTD("cqg.rtd",,"StudyData", "Close("&$D$12&") when LocalYear("&$D$12&")="&$D$8&" and localMonth("&$D$12&") ="&$E$8&" and LocalDay("&$D$12&")="&$F$8&" and Barix("&$D$12&",reference:=StartOfSession)="&A45&"", "Bar", "", "Close","5","0","PrimaryOnly",,,"False","T","EveryTick") -> 2771.25 | W45: -0.001711095101 | X45: =RTD("cqg.rtd",,"StudyData", "Close("&$D$12&") when LocalYear("&$D$12&")="&$D$9&" and localMonth("&$D$12&") ="&$E$9&" and LocalDay("&$D$12&")="&$F$9&" and Barix("&$D$12&",reference:=StartOfSession)="&A45&"", "Bar", "", "Close","5","0","PrimaryOnly",,,"False","T","EveryTick") -> 2765.25 | Y45: 0.00353837779 | Z45: =RTD("cqg.rtd",,"StudyData", "Close("&$D$12&") when LocalYear("&$D$12&")="&$D$10&" and localMonth("&$D$12&") ="&$E$10&" and LocalDay("&$D$12&")="&$F$10&" and Barix("&$D$12&",reference:=StartOfSession)="&A45&"", "Bar", "", "Close","5","0","PrimaryOnly",,,"False","T","EveryTick") -> 2750.75 | AA45: 0.0003636694245
A46: 45 | B46: 12:15:00 | C46: -32 | D46: =RTD("cqg.rtd",,"StudyData", $D$12, "Tick", "FlatTicks=0", "Tick","D",C46,"PrimaryOnly") -> 2762.75 | H46: =RTD("cqg.rtd",,"StudyData", "Close("&$D$12&") when LocalYear("&$D$12&")="&$D$1&" and localMonth("&$D$12&") ="&$E$1&" and LocalDay("&$D$12&")="&$F$1&" and Barix("&$D$12&",reference:=StartOfSession)="&A46&"", "Bar", "", "Close","5","0","PrimaryOnly",,,"False","T","EveryTick") ->  | J46: =RTD("cqg.rtd",,"StudyData", "Close("&$D$12&") when LocalYear("&$D$12&")="&$D$2&" and localMonth("&$D$12&") ="&$E$2&" and LocalDay("&$D$12&")="&$F$2&" and Barix("&$D$12&",reference:=StartOfSession)="&A46&"", "Bar", "", "Close","5","0","PrimaryOnly",,,"False","T","EveryTick") -> 2778 | K46: -0.003765465304 | L46: =RTD("cqg.rtd",,"StudyData", "Close("&$D$12&") when LocalYear("&$D$12&")="&$D$3&" and localMonth("&$D$12&") ="&$E$3&" and LocalDay("&$D$12&")="&$F$3&" and Barix("&$D$12&",reference:=StartOfSession)="&A46&"", "Bar", "", "Close","5","0","PrimaryOnly",,,"False","T","EveryTick") -> 2788 | M46: 0.003238575027 | N46: =RTD("cqg.rtd",,"StudyData", "Close("&$D$12&") when LocalYear("&$D$12&")="&$D$4&" and localMonth("&$D$12&") ="&$E$4&" and LocalDay("&$D$12&")="&$F$4&" and Barix("&$D$12&",reference:=StartOfSession)="&A46&"", "Bar", "", "Close","5","0","PrimaryOnly",,,"False","T","EveryTick") -> 2791.25 | O46: 0.001075943692 | P46: =RTD("cqg.rtd",,"StudyData", "Close("&$D$12&") when LocalYear("&$D$12&")="&$D$5&" and localMonth("&$D$12&") ="&$E$5&" and LocalDay("&$D$12&")="&$F$5&" and Barix("&$D$12&",reference:=StartOfSession)="&A46&"", "Bar", "", "Close","5","0","PrimaryOnly",,,"False","T","EveryTick") -> 2789.5 | Q46: 0.0009868125953 | R46: =RTD("cqg.rtd",,"StudyData", "Close("&$D$12&") when LocalYear("&$D$12&")="&$D$6&" and localMonth("&$D$12&") ="&$E$6&" and LocalDay("&$D$12&")="&$F$6&" and Barix("&$D$12&",reference:=StartOfSession)="&A46&"", "Bar", "", "Close","5","0","PrimaryOnly",,,"False","T","EveryTick") -> 2793.25 | S46: 0.003863432165 | T46: =RTD("cqg.rtd",,"StudyData", "Close("&$D$12&") when LocalYear("&$D$12&")="&$D$7&" and localMonth("&$D$12&") ="&$E$7&" and LocalDay("&$D$12&")="&$F$7&" and Barix("&$D$12&",reference:=StartOfSession)="&A46&"", "Bar", "", "Close","5","0","PrimaryOnly",,,"False","T","EveryTick") -> 2777.5 | U46: 0.0005403458213 | V46: =RTD("cqg.rtd",,"StudyData", "Close("&$D$12&") when LocalYear("&$D$12&")="&$D$8&" and localMonth("&$D$12&") ="&$E$8&" and LocalDay("&$D$12&")="&$F$8&" and Barix("&$D$12&",reference:=StartOfSession)="&A46&"", "Bar", "", "Close","5","0","PrimaryOnly",,,"False","T","EveryTick") -> 2770.25 | W46: -0.002071325648 | X46: =RTD("cqg.rtd",,"StudyData", "Close("&$D$12&") when LocalYear("&$D$12&")="&$D$9&" and localMonth("&$D$12&") ="&$E$9&" and LocalDay("&$D$12&")="&$F$9&" and Barix("&$D$12&",reference:=StartOfSession)="&A46&"", "Bar", "", "Close","5","0","PrimaryOnly",,,"False","T","EveryTick") -> 2765 | Y46: 0.003447650154 | Z46: =RTD("cqg.rtd",,"StudyData", "Close("&$D$12&") when LocalYear("&$D$12&")="&$D$10&" and localMonth("&$D$12&") ="&$E$10&" and LocalDay("&$D$12&")="&$F$10&" and Barix("&$D$12&",reference:=StartOfSession)="&A46&"", "Bar", "", "Close","5","0","PrimaryOnly",,,"False","T","EveryTick") -> 2751.25 | AA46: 0.0005455041367
A47: 46 | B47: 12:20:00 | C47: -31 | D47: =RTD("cqg.rtd",,"StudyData", $D$12, "Tick", "FlatTicks=0", "Tick","D",C47,"PrimaryOnly") -> 2762.5 | H47: =RTD("cqg.rtd",,"StudyData", "Close("&$D$12&") when LocalYear("&$D$12&")="&$D$1&" and localMonth("&$D$12&") ="&$E$1&" and LocalDay("&$D$12&")="&$F$1&" and Barix("&$D$12&",reference:=StartOfSession)="&A47&"", "Bar", "", "Close","5","0","PrimaryOnly",,,"False","T","EveryTick") ->  | J47: =RTD("cqg.rtd",,"StudyData", "Close("&$D$12&") when LocalYear("&$D$12&")="&$D$2&" and localMonth("&$D$12&") ="&$E$2&" and LocalDay("&$D$12&")="&$F$2&" and Barix("&$D$12&",reference:=StartOfSession)="&A47&"", "Bar", "", "Close","5","0","PrimaryOnly",,,"False","T","EveryTick") -> 2777.25 | K47: -0.004034427111 | L47: =RTD("cqg.rtd",,"StudyData", "Close("&$D$12&") when LocalYear("&$D$12&")="&$D$3&" and localMonth("&$D$12&") ="&$E$3&" and LocalDay("&$D$12&")="&$F$3&" and Barix("&$D$12&",reference:=StartOfSession)="&A47&"", "Bar", "", "Close","5","0","PrimaryOnly",,,"False","T","EveryTick") -> 2788.5 | M47: 0.003418495862 | N47: =RTD("cqg.rtd",,"StudyData", "Close("&$D$12&") when LocalYear("&$D$12&")="&$D$4&" and localMonth("&$D$12&") ="&$E$4&" and LocalDay("&$D$12&")="&$F$4&" and Barix("&$D$12&",reference:=StartOfSession)="&A47&"", "Bar", "", "Close","5","0","PrimaryOnly",,,"False","T","EveryTick") -> 2791 | O47: 0.0009862817179 | P47: =RTD("cqg.rtd",,"StudyData", "Close("&$D$12&") when LocalYear("&$D$12&")="&$D$5&" and localMonth("&$D$12&") ="&$E$5&" and LocalDay("&$D$12&")="&$F$5&" and Barix("&$D$12&",reference:=StartOfSession)="&A47&"", "Bar", "", "Close","5","0","PrimaryOnly",,,"False","T","EveryTick") -> 2790 | Q47: 0.001166233067 | R47: =RTD("cqg.rtd",,"StudyData", "Close("&$D$12&") when LocalYear("&$D$12&")="&$D$6&" and localMonth("&$D$12&") ="&$E$6&" and LocalDay("&$D$12&")="&$F$6&" and Barix("&$D$12&",reference:=StartOfSession)="&A47&"", "Bar", "", "Close","5","0","PrimaryOnly",,,"False","T","EveryTick") -> 2792.5 | S47: 0.003593890386 | T47: =RTD("cqg.rtd",,"StudyData", "Close("&$D$12&") when LocalYear("&$D$12&")="&$D$7&" and localMonth("&$D$12&") ="&$E$7&" and LocalDay("&$D$12&")="&$F$7&" and Barix("&$D$12&",reference:=StartOfSession)="&A47&"", "Bar", "", "Close","5","0","PrimaryOnly",,,"False","T","EveryTick") -> 2777.5 | U47: 0.0005403458213 | V47: =RTD("cqg.rtd",,"StudyData", "Close("&$D$12&") when LocalYear("&$D$12&")="&$D$8&" and localMonth("&$D$12&") ="&$E$8&" and LocalDay("&$D$12&")="&$F$8&" and Barix("&$D$12&",reference:=StartOfSession)="&A47&"", "Bar", "", "Close","5","0","PrimaryOnly",,,"False","T","EveryTick") -> 2771.5 | W47: -0.001621037464 | X47: =RTD("cqg.rtd",,"StudyData", "Close("&$D$12&") when LocalYear("&$D$12&")="&$D$9&" and localMonth("&$D$12&") ="&$E$9&" and LocalDay("&$D$12&")="&$F$9&" and Barix("&$D$12&",reference:=StartOfSession)="&A47&"", "Bar", "", "Close","5","0","PrimaryOnly",,,"False","T","EveryTick") -> 2764.5 | Y47: 0.003266194883 | Z47: =RTD("cqg.rtd",,"StudyData", "Close("&$D$12&") when LocalYear("&$D$12&")="&$D$10&" and localMonth("&$D$12&") ="&$E$10&" and LocalDay("&$D$12&")="&$F$10&" and Barix("&$D$12&",reference:=StartOfSession)="&A47&"", "Bar", "", "Close","5","0","PrimaryOnly",,,"False","T","EveryTick") -> 2751 | AA47: 0.0004545867806
A48: 47 | B48: 12:25:00 | C48: -30 | D48: =RTD("cqg.rtd",,"StudyData", $D$12, "Tick", "FlatTicks=0", "Tick","D",C48,"PrimaryOnly") -> 2762.25 | H48: =RTD("cqg.rtd",,"StudyData", "Close("&$D$12&") when LocalYear("&$D$12&")="&$D$1&" and localMonth("&$D$12&") ="&$E$1&" and LocalDay("&$D$12&")="&$F$1&" and Barix("&$D$12&",reference:=StartOfSession)="&A48&"", "Bar", "", "Close","5","0","PrimaryOnly",,,"False","T","EveryTick") ->  | J48: =RTD("cqg.rtd",,"StudyData", "Close("&$D$12&") when LocalYear("&$D$12&")="&$D$2&" and localMonth("&$D$12&") ="&$E$2&" and LocalDay("&$D$12&")="&$F$2&" and Barix("&$D$12&",reference:=StartOfSession)="&A48&"", "Bar", "", "Close","5","0","PrimaryOnly",,,"False","T","EveryTick") -> 2777 | K48: -0.004124081047 | L48: =RTD("cqg.rtd",,"StudyData", "Close("&$D$12&") when LocalYear("&$D$12&")="&$D$3&" and localMonth("&$D$12&") ="&$E$3&" and LocalDay("&$D$12&")="&$F$3&" and Barix("&$D$12&",reference:=StartOfSession)="&A48&"", "Bar", "", "Close","5","0","PrimaryOnly",,,"False","T","EveryTick") -> 2788.75 | M48: 0.003508456279 | N48: =RTD("cqg.rtd",,"StudyData", "Close("&$D$12&") when LocalYear("&$D$12&")="&$D$4&" and localMonth("&$D$12&") ="&$E$4&" and LocalDay("&$D$12&")="&$F$4&" and Barix("&$D$12&",reference:=StartOfSession)="&A48&"", "Bar", "", "Close","5","0","PrimaryOnly",,,"False","T","EveryTick") -> 2791 | O48: 0.0009862817179 | P48: =RTD("cqg.rtd",,"StudyData", "Close("&$D$12&") when LocalYear("&$D$12&")="&$D$5&" and localMonth("&$D$12&") ="&$E$5&" and LocalDay("&$D$12&")="&$F$5&" and Barix("&$D$12&",reference:=StartOfSession)="&A48&"", "Bar", "", "Close","5","0","PrimaryOnly",,,"False","T","EveryTick") -> 2789.75 | Q48: 0.001076522831 | R48: =RTD("cqg.rtd",,"StudyData", "Close("&$D$12&") when LocalYear("&$D$12&")="&$D$6&" and localMonth("&$D$12&") ="&$E$6&" and LocalDay("&$D$12&")="&$F$6&" and Barix("&$D$12&",reference:=StartOfSession)="&A48&"", "Bar", "", "Close","5","0","PrimaryOnly",,,"False","T","EveryTick") -> 2793 | S48: 0.003773584906 | T48: =RTD("cqg.rtd",,"StudyData", "Close("&$D$12&") when LocalYear("&$D$12&")="&$D$7&" and localMonth("&$D$12&") ="&$E$7&" and LocalDay("&$D$12&")="&$F$7&" and Barix("&$D$12&",reference:=StartOfSession)="&A48&"", "Bar", "", "Close","5","0","PrimaryOnly",,,"False","T","EveryTick") -> 2778.75 | U48: 0.0009906340058 | V48: =RTD("cqg.rtd",,"StudyData", "Close("&$D$12&") when LocalYear("&$D$12&")="&$D$8&" and localMonth("&$D$12&") ="&$E$8&" and LocalDay("&$D$12&")="&$F$8&" and Barix("&$D$12&",reference:=StartOfSession)="&A48&"", "Bar", "", "Close","5","0","PrimaryOnly",,,"False","T","EveryTick") -> 2768.5 | W48: -0.002701729107 | X48: =RTD("cqg.rtd",,"StudyData", "Close("&$D$12&") when LocalYear("&$D$12&")="&$D$9&" and localMonth("&$D$12&") ="&$E$9&" and LocalDay("&$D$12&")="&$F$9&" and Barix("&$D$12&",reference:=StartOfSession)="&A48&"", "Bar", "", "Close","5","0","PrimaryOnly",,,"False","T","EveryTick") -> 2765.25 | Y48: 0.00353837779 | Z48: =RTD("cqg.rtd",,"StudyData", "Close("&$D$12&") when LocalYear("&$D$12&")="&$D$10&" and localMonth("&$D$12&") ="&$E$10&" and LocalDay("&$D$12&")="&$F$10&" and Barix("&$D$12&",reference:=StartOfSession)="&A48&"", "Bar", "", "Close","5","0","PrimaryOnly",,,"False","T","EveryTick") -> 2751 | AA48: 0.0004545867806
A49: 48 | B49: 12:30:00 | C49: -29 | D49: =RTD("cqg.rtd",,"StudyData", $D$12, "Tick", "FlatTicks=0", "Tick","D",C49,"PrimaryOnly") -> 2762.5 | H49: =RTD("cqg.rtd",,"StudyData", "Close("&$D$12&") when LocalYear("&$D$12&")="&$D$1&" and localMonth("&$D$12&") ="&$E$1&" and LocalDay("&$D$12&")="&$F$1&" and Barix("&$D$12&",reference:=StartOfSession)="&A49&"", "Bar", "", "Close","5","0","PrimaryOnly",,,"False","T","EveryTick") ->  | J49: =RTD("cqg.rtd",,"StudyData", "Close("&$D$12&") when LocalYear("&$D$12&")="&$D$2&" and localMonth("&$D$12&") ="&$E$2&" and LocalDay("&$D$12&")="&$F$2&" and Barix("&$D$12&",reference:=StartOfSession)="&A49&"", "Bar", "", "Close","5","0","PrimaryOnly",,,"False","T","EveryTick") -> 2777 | K49: -0.004124081047 | L49: =RTD("cqg.rtd",,"StudyData", "Close("&$D$12&") when LocalYear("&$D$12&")="&$D$3&" and localMonth("&$D$12&") ="&$E$3&" and LocalDay("&$D$12&")="&$F$3&" and Barix("&$D$12&",reference:=StartOfSession)="&A49&"", "Bar", "", "Close","5","0","PrimaryOnly",,,"False","T","EveryTick") -> 2790.25 | M49: 0.004048218784 | N49: =RTD("cqg.rtd",,"StudyData", "Close("&$D$12&") when LocalYear("&$D$12&")="&$D$4&" and localMonth("&$D$12&") ="&$E$4&" and LocalDay("&$D$12&")="&$F$4&" and Barix("&$D$12&",reference:=StartOfSession)="&A49&"", "Bar", "", "Close","5","0","PrimaryOnly",,,"False","T","EveryTick") -> 2791 | O49: 0.0009862817179 | P49: =RTD("cqg.rtd",,"StudyData", "Close("&$D$12&") when LocalYear("&$D$12&")="&$D$5&" and localMonth("&$D$12&") ="&$E$5&" and LocalDay("&$D$12&")="&$F$5&" and Barix("&$D$12&",reference:=StartOfSession)="&A49&"", "Bar", "", "Close","5","0","PrimaryOnly",,,"False","T","EveryTick") -> 2789.5 | Q49: 0.0009868125953 | R49: =RTD("cqg.rtd",,"StudyData", "Close("&$D$12&") when LocalYear("&$D$12&")="&$D$6&" and localMonth("&$D$12&") ="&$E$6&" and LocalDay("&$D$12&")="&$F$6&" and Barix("&$D$12&",reference:=StartOfSession)="&A49&"", "Bar", "", "Close","5","0","PrimaryOnly",,,"False","T","EveryTick") -> 2792.5 | S49: 0.003593890386 | T49: =RTD("cqg.rtd",,"StudyData", "Close("&$D$12&") when LocalYear("&$D$12&")="&$D$7&" and localMonth("&$D$12&") ="&$E$7&" and LocalDay("&$D$12&")="&$F$7&" and Barix("&$D$12&",reference:=StartOfSession)="&A49&"", "Bar", "", "Close","5","0","PrimaryOnly",,,"False","T","EveryTick") -> 2779.25 | U49: 0.00117074928 | V49: =RTD("cqg.rtd",,"StudyData", "Close("&$D$12&") when LocalYear("&$D$12&")="&$D$8&" and localMonth("&$D$12&") ="&$E$8&" and LocalDay("&$D$12&")="&$F$8&" and Barix("&$D$12&",reference:=StartOfSession)="&A49&"", "Bar", "", "Close","5","0","PrimaryOnly",,,"False","T","EveryTick") -> 2770 | W49: -0.002161383285 | X49: =RTD("cqg.rtd",,"StudyData", "Close("&$D$12&") when LocalYear("&$D$12&")="&$D$9&" and localMonth("&$D$12&") ="&$E$9&" and LocalDay("&$D$12&")="&$F$9&" and Barix("&$D$12&",reference:=StartOfSession)="&A49&"", "Bar", "", "Close","5","0","PrimaryOnly",,,"False","T","EveryTick") -> 2765 | Y49: 0.003447650154 | Z49: =RTD("cqg.rtd",,"StudyData", "Close("&$D$12&") when LocalYear("&$D$12&")="&$D$10&" and localMonth("&$D$12&") ="&$E$10&" and LocalDay("&$D$12&")="&$F$10&" and Barix("&$D$12&",reference:=StartOfSession)="&A49&"", "Bar", "", "Close","5","0","PrimaryOnly",,,"False","T","EveryTick") -> 2750.25 | AA49: 0.0001818347122
A50: 49 | B50: 12:35:00 | C50: -28 | D50: =RTD("cqg.rtd",,"StudyData", $D$12, "Tick", "FlatTicks=0", "Tick","D",C50,"PrimaryOnly") -> 2762.25 | H50: =RTD("cqg.rtd",,"StudyData", "Close("&$D$12&") when LocalYear("&$D$12&")="&$D$1&" and localMonth("&$D$12&") ="&$E$1&" and LocalDay("&$D$12&")="&$F$1&" and Barix("&$D$12&",reference:=StartOfSession)="&A50&"", "Bar", "", "Close","5","0","PrimaryOnly",,,"False","T","EveryTick") ->  | J50: =RTD("cqg.rtd",,"StudyData", "Close("&$D$12&") when LocalYear("&$D$12&")="&$D$2&" and localMonth("&$D$12&") ="&$E$2&" and LocalDay("&$D$12&")="&$F$2&" and Barix("&$D$12&",reference:=StartOfSession)="&A50&"", "Bar", "", "Close","5","0","PrimaryOnly",,,"False","T","EveryTick") -> 2776.75 | K50: -0.004213734983 | L50: =RTD("cqg.rtd",,"StudyData", "Close("&$D$12&") when LocalYear("&$D$12&")="&$D$3&" and localMonth("&$D$12&") ="&$E$3&" and LocalDay("&$D$12&")="&$F$3&" and Barix("&$D$12&",reference:=StartOfSession)="&A50&"", "Bar", "", "Close","5","0","PrimaryOnly",,,"False","T","EveryTick") -> 2789.75 | M50: 0.003868297949 | N50: =RTD("cqg.rtd",,"StudyData", "Close("&$D$12&") when LocalYear("&$D$12&")="&$D$4&" and localMonth("&$D$12&") ="&$E$4&" and LocalDay("&$D$12&")="&$F$4&" and Barix("&$D$12&",reference:=StartOfSession)="&A50&"", "Bar", "", "Close","5","0","PrimaryOnly",,,"False","T","EveryTick") -> 2791.75 | O50: 0.001255267641 | P50: =RTD("cqg.rtd",,"StudyData", "Close("&$D$12&") when LocalYear("&$D$12&")="&$D$5&" and localMonth("&$D$12&") ="&$E$5&" and LocalDay("&$D$12&")="&$F$5&" and Barix("&$D$12&",reference:=StartOfSession)="&A50&"", "Bar", "", "Close","5","0","PrimaryOnly",,,"False","T","EveryTick") -> 2789.25 | Q50: 0.0008971023594 | R50: =RTD("cqg.rtd",,"StudyData", "Close("&$D$12&") when LocalYear("&$D$12&")="&$D$6&" and localMonth("&$D$12&") ="&$E$6&" and LocalDay("&$D$12&")="&$F$6&" and Barix("&$D$12&",reference:=StartOfSession)="&A50&"", "Bar", "", "Close","5","0","PrimaryOnly",,,"False","T","EveryTick") -> 2792.75 | S50: 0.003683737646 | T50: =RTD("cqg.rtd",,"StudyData", "Close("&$D$12&") when LocalYear("&$D$12&")="&$D$7&" and localMonth("&$D$12&") ="&$E$7&" and LocalDay("&$D$12&")="&$F$7&" and Barix("&$D$12&",reference:=StartOfSession)="&A50&"", "Bar", "", "Close","5","0","PrimaryOnly",,,"False","T","EveryTick") -> 2778.25 | U50: 0.000810518732 | V50: =RTD("cqg.rtd",,"StudyData", "Close("&$D$12&") when LocalYear("&$D$12&")="&$D$8&" and localMonth("&$D$12&") ="&$E$8&" and LocalDay("&$D$12&")="&$F$8&" and Barix("&$D$12&",reference:=StartOfSession)="&A50&"", "Bar", "", "Close","5","0","PrimaryOnly",,,"False","T","EveryTick") -> 2765 | W50: -0.003962536023 | X50: =RTD("cqg.rtd",,"StudyData", "Close("&$D$12&") when LocalYear("&$D$12&")="&$D$9&" and localMonth("&$D$12&") ="&$E$9&" and LocalDay("&$D$12&")="&$F$9&" and Barix("&$D$12&",reference:=StartOfSession)="&A50&"", "Bar", "", "Close","5","0","PrimaryOnly",,,"False","T","EveryTick") -> 2765.25 | Y50: 0.00353837779 | Z50: =RTD("cqg.rtd",,"StudyData", "Close("&$D$12&") when LocalYear("&$D$12&")="&$D$10&" and localMonth("&$D$12&") ="&$E$10&" and LocalDay("&$D$12&")="&$F$10&" and Barix("&$D$12&",reference:=StartOfSession)="&A50&"", "Bar", "", "Close","5","0","PrimaryOnly",,,"False","T","EveryTick") -> 2750.75 | AA50: 0.0003636694245
A51: 50 | B51: 12:40:00 | C51: -27 | D51: =RTD("cqg.rtd",,"StudyData", $D$12, "Tick", "FlatTicks=0", "Tick","D",C51,"PrimaryOnly") -> 2762.5 | H51: =RTD("cqg.rtd",,"StudyData", "Close("&$D$12&") when LocalYear("&$D$12&")="&$D$1&" and localMonth("&$D$12&") ="&$E$1&" and LocalDay("&$D$12&")="&$F$1&" and Barix("&$D$12&",reference:=StartOfSession)="&A51&"", "Bar", "", "Close","5","0","PrimaryOnly",,,"False","T","EveryTick") ->  | J51: =RTD("cqg.rtd",,"StudyData", "Close("&$D$12&") when LocalYear("&$D$12&")="&$D$2&" and localMonth("&$D$12&") ="&$E$2&" and LocalDay("&$D$12&")="&$F$2&" and Barix("&$D$12&",reference:=StartOfSession)="&A51&"", "Bar", "", "Close","5","0","PrimaryOnly",,,"False","T","EveryTick") -> 2776.25 | K51: -0.004393042855 | L51: =RTD("cqg.rtd",,"StudyData", "Close("&$D$12&") when LocalYear("&$D$12&")="&$D$3&" and localMonth("&$D$12&") ="&$E$3&" and LocalDay("&$D$12&")="&$F$3&" and Barix("&$D$12&",reference:=StartOfSession)="&A51&"", "Bar", "", "Close","5","0","PrimaryOnly",,,"False","T","EveryTick") -> 2789.5 | M51: 0.003778337531 | N51: =RTD("cqg.rtd",,"StudyData", "Close("&$D$12&") when LocalYear("&$D$12&")="&$D$4&" and localMonth("&$D$12&") ="&$E$4&" and LocalDay("&$D$12&")="&$F$4&" and Barix("&$D$12&",reference:=StartOfSession)="&A51&"", "Bar", "", "Close","5","0","PrimaryOnly",,,"False","T","EveryTick") -> 2791.75 | O51: 0.001255267641 | P51: =RTD("cqg.rtd",,"StudyData", "Close("&$D$12&") when LocalYear("&$D$12&")="&$D$5&" and localMonth("&$D$12&") ="&$E$5&" and LocalDay("&$D$12&")="&$F$5&" and Barix("&$D$12&",reference:=StartOfSession)="&A51&"", "Bar", "", "Close","5","0","PrimaryOnly",,,"False","T","EveryTick") -> 2789 | Q51: 0.0008073921234 | R51: =RTD("cqg.rtd",,"StudyData", "Close("&$D$12&") when LocalYear("&$D$12&")="&$D$6&" and localMonth("&$D$12&") ="&$E$6&" and LocalDay("&$D$12&")="&$F$6&" and Barix("&$D$12&",reference:=StartOfSession)="&A51&"", "Bar", "", "Close","5","0","PrimaryOnly",,,"False","T","EveryTick") -> 2792.75 | S51: 0.003683737646 | T51: =RTD("cqg.rtd",,"StudyData", "Close("&$D$12&") when LocalYear("&$D$12&")="&$D$7&" and localMonth("&$D$12&") ="&$E$7&" and LocalDay("&$D$12&")="&$F$7&" and Barix("&$D$12&",reference:=StartOfSession)="&A51&"", "Bar", "", "Close","5","0","PrimaryOnly",,,"False","T","EveryTick") -> 2778 | U51: 0.0007204610951 | V51: =RTD("cqg.rtd",,"StudyData", "Close("&$D$12&") when LocalYear("&$D$12&")="&$D$8&" and localMonth("&$D$12&") ="&$E$8&" and LocalDay("&$D$12&")="&$F$8&" and Barix("&$D$12&",reference:=StartOfSession)="&A51&"", "Bar", "", "Close","5","0","PrimaryOnly",,,"False","T","EveryTick") -> 2766.5 | W51: -0.003422190202 | X51: =RTD("cqg.rtd",,"StudyData", "Close("&$D$12&") when LocalYear("&$D$12&")="&$D$9&" and localMonth("&$D$12&") ="&$E$9&" and LocalDay("&$D$12&")="&$F$9&" and Barix("&$D$12&",reference:=StartOfSession)="&A51&"", "Bar", "", "Close","5","0","PrimaryOnly",,,"False","T","EveryTick") -> 2764.75 | Y51: 0.003356922519 | Z51: =RTD("cqg.rtd",,"StudyData", "Close("&$D$12&") when LocalYear("&$D$12&")="&$D$10&" and localMonth("&$D$12&") ="&$E$10&" and LocalDay("&$D$12&")="&$F$10&" and Barix("&$D$12&",reference:=StartOfSession)="&A51&"", "Bar", "", "Close","5","0","PrimaryOnly",,,"False","T","EveryTick") -> 2751 | AA51: 0.0004545867806
A52: 51 | B52: 12:45:00 | C52: -26 | D52: =RTD("cqg.rtd",,"StudyData", $D$12, "Tick", "FlatTicks=0", "Tick","D",C52,"PrimaryOnly") -> 2762.25 | H52: =RTD("cqg.rtd",,"StudyData", "Close("&$D$12&") when LocalYear("&$D$12&")="&$D$1&" and localMonth("&$D$12&") ="&$E$1&" and LocalDay("&$D$12&")="&$F$1&" and Barix("&$D$12&",reference:=StartOfSession)="&A52&"", "Bar", "", "Close","5","0","PrimaryOnly",,,"False","T","EveryTick") ->  | J52: =RTD("cqg.rtd",,"StudyData", "Close("&$D$12&") when LocalYear("&$D$12&")="&$D$2&" and localMonth("&$D$12&") ="&$E$2&" and LocalDay("&$D$12&")="&$F$2&" and Barix("&$D$12&",reference:=StartOfSession)="&A52&"", "Bar", "", "Close","5","0","PrimaryOnly",,,"False","T","EveryTick") -> 2775.5 | K52: -0.004662004662 | L52: =RTD("cqg.rtd",,"StudyData", "Close("&$D$12&") when LocalYear("&$D$12&")="&$D$3&" and localMonth("&$D$12&") ="&$E$3&" and LocalDay("&$D$12&")="&$F$3&" and Barix("&$D$12&",reference:=StartOfSession)="&A52&"", "Bar", "", "Close","5","0","PrimaryOnly",,,"False","T","EveryTick") -> 2788 | M52: 0.003238575027 | N52: =RTD("cqg.rtd",,"StudyData", "Close("&$D$12&") when LocalYear("&$D$12&")="&$D$4&" and localMonth("&$D$12&") ="&$E$4&" and LocalDay("&$D$12&")="&$F$4&" and Barix("&$D$12&",reference:=StartOfSession)="&A52&"", "Bar", "", "Close","5","0","PrimaryOnly",,,"False","T","EveryTick") -> 2792 | O52: 0.001344929615 | P52: =RTD("cqg.rtd",,"StudyData", "Close("&$D$12&") when LocalYear("&$D$12&")="&$D$5&" and localMonth("&$D$12&") ="&$E$5&" and LocalDay("&$D$12&")="&$F$5&" and Barix("&$D$12&",reference:=StartOfSession)="&A52&"", "Bar", "", "Close","5","0","PrimaryOnly",,,"False","T","EveryTick") -> 2789.5 | Q52: 0.0009868125953 | R52: =RTD("cqg.rtd",,"StudyData", "Close("&$D$12&") when LocalYear("&$D$12&")="&$D$6&" and localMonth("&$D$12&") ="&$E$6&" and LocalDay("&$D$12&")="&$F$6&" and Barix("&$D$12&",reference:=StartOfSession)="&A52&"", "Bar", "", "Close","5","0","PrimaryOnly",,,"False","T","EveryTick") -> 2792 | S52: 0.003414195867 | T52: =RTD("cqg.rtd",,"StudyData", "Close("&$D$12&") when LocalYear("&$D$12&")="&$D$7&" and localMonth("&$D$12&") ="&$E$7&" and LocalDay("&$D$12&")="&$F$7&" and Barix("&$D$12&",reference:=StartOfSession)="&A52&"", "Bar", "", "Close","5","0","PrimaryOnly",,,"False","T","EveryTick") -> 2778.5 | U52: 0.0009005763689 | V52: =RTD("cqg.rtd",,"StudyData", "Close("&$D$12&") when LocalYear("&$D$12&")="&$D$8&" and localMonth("&$D$12&") ="&$E$8&" and LocalDay("&$D$12&")="&$F$8&" and Barix("&$D$12&",reference:=StartOfSession)="&A52&"", "Bar", "", "Close","5","0","PrimaryOnly",,,"False","T","EveryTick") -> 2770.75 | W52: -0.001891210375 | X52: =RTD("cqg.rtd",,"StudyData", "Close("&$D$12&") when LocalYear("&$D$12&")="&$D$9&" and localMonth("&$D$12&") ="&$E$9&" and LocalDay("&$D$12&")="&$F$9&" and Barix("&$D$12&",reference:=StartOfSession)="&A52&"", "Bar", "", "Close","5","0","PrimaryOnly",,,"False","T","EveryTick") -> 2764.5 | Y52: 0.003266194883 | Z52: =RTD("cqg.rtd",,"StudyData", "Close("&$D$12&") when LocalYear("&$D$12&")="&$D$10&" and localMonth("&$D$12&") ="&$E$10&" and LocalDay("&$D$12&")="&$F$10&" and Barix("&$D$12&",reference:=StartOfSession)="&A52&"", "Bar", "", "Close","5","0","PrimaryOnly",,,"False","T","EveryTick") -> 2751.25 | AA52: 0.0005455041367
A53: 52 | B53: 12:50:00 | C53: -25 | D53: =RTD("cqg.rtd",,"StudyData", $D$12, "Tick", "FlatTicks=0", "Tick","D",C53,"PrimaryOnly") -> 2762.5 | H53: =RTD("cqg.rtd",,"StudyData", "Close("&$D$12&") when LocalYear("&$D$12&")="&$D$1&" and localMonth("&$D$12&") ="&$E$1&" and LocalDay("&$D$12&")="&$F$1&" and Barix("&$D$12&",reference:=StartOfSession)="&A53&"", "Bar", "", "Close","5","0","PrimaryOnly",,,"False","T","EveryTick") ->  | J53: =RTD("cqg.rtd",,"StudyData", "Close("&$D$12&") when LocalYear("&$D$12&")="&$D$2&" and localMonth("&$D$12&") ="&$E$2&" and LocalDay("&$D$12&")="&$F$2&" and Barix("&$D$12&",reference:=StartOfSession)="&A53&"", "Bar", "", "Close","5","0","PrimaryOnly",,,"False","T","EveryTick") -> 2775 | K53: -0.004841312534 | L53: =RTD("cqg.rtd",,"StudyData", "Close("&$D$12&") when LocalYear("&$D$12&")="&$D$3&" and localMonth("&$D$12&") ="&$E$3&" and LocalDay("&$D$12&")="&$F$3&" and Barix("&$D$12&",reference:=StartOfSession)="&A53&"", "Bar", "", "Close","5","0","PrimaryOnly",,,"False","T","EveryTick") -> 2789 | M53: 0.003598416697 | N53: =RTD("cqg.rtd",,"StudyData", "Close("&$D$12&") when LocalYear("&$D$12&")="&$D$4&" and localMonth("&$D$12&") ="&$E$4&" and LocalDay("&$D$12&")="&$F$4&" and Barix("&$D$12&",reference:=StartOfSession)="&A53&"", "Bar", "", "Close","5","0","PrimaryOnly",,,"False","T","EveryTick") -> 2792.5 | O53: 0.001524253564 | P53: =RTD("cqg.rtd",,"StudyData", "Close("&$D$12&") when LocalYear("&$D$12&")="&$D$5&" and localMonth("&$D$12&") ="&$E$5&" and LocalDay("&$D$12&")="&$F$5&" and Barix("&$D$12&",reference:=StartOfSession)="&A53&"", "Bar", "", "Close","5","0","PrimaryOnly",,,"False","T","EveryTick") -> 2790 | Q53: 0.001166233067 | R53: =RTD("cqg.rtd",,"StudyData", "Close("&$D$12&") when LocalYear("&$D$12&")="&$D$6&" and localMonth("&$D$12&") ="&$E$6&" and LocalDay("&$D$12&")="&$F$6&" and Barix("&$D$12&",reference:=StartOfSession)="&A53&"", "Bar", "", "Close","5","0","PrimaryOnly",,,"False","T","EveryTick") -> 2791 | S53: 0.003054806828 | T53: =RTD("cqg.rtd",,"StudyData", "Close("&$D$12&") when LocalYear("&$D$12&")="&$D$7&" and localMonth("&$D$12&") ="&$E$7&" and LocalDay("&$D$12&")="&$F$7&" and Barix("&$D$12&",reference:=StartOfSession)="&A53&"", "Bar", "", "Close","5","0","PrimaryOnly",,,"False","T","EveryTick") -> 2777.5 | U53: 0.0005403458213 | V53: =RTD("cqg.rtd",,"StudyData", "Close("&$D$12&") when LocalYear("&$D$12&")="&$D$8&" and localMonth("&$D$12&") ="&$E$8&" and LocalDay("&$D$12&")="&$F$8&" and Barix("&$D$12&",reference:=StartOfSession)="&A53&"", "Bar", "", "Close","5","0","PrimaryOnly",,,"False","T","EveryTick") -> 2767 | W53: -0.003242074928 | X53: =RTD("cqg.rtd",,"StudyData", "Close("&$D$12&") when LocalYear("&$D$12&")="&$D$9&" and localMonth("&$D$12&") ="&$E$9&" and LocalDay("&$D$12&")="&$F$9&" and Barix("&$D$12&",reference:=StartOfSession)="&A53&"", "Bar", "", "Close","5","0","PrimaryOnly",,,"False","T","EveryTick") -> 2764.5 | Y53: 0.003266194883 | Z53: =RTD("cqg.rtd",,"StudyData", "Close("&$D$12&") when LocalYear("&$D$12&")="&$D$10&" and localMonth("&$D$12&") ="&$E$10&" and LocalDay("&$D$12&")="&$F$10&" and Barix("&$D$12&",reference:=StartOfSession)="&A53&"", "Bar", "", "Close","5","0","PrimaryOnly",,,"False","T","EveryTick") -> 2750.25 | AA53: 0.0001818347122
A54: 53 | B54: 12:55:00 | C54: -24 | D54: =RTD("cqg.rtd",,"StudyData", $D$12, "Tick", "FlatTicks=0", "Tick","D",C54,"PrimaryOnly") -> 2762.25 | H54: =RTD("cqg.rtd",,"StudyData", "Close("&$D$12&") when LocalYear("&$D$12&")="&$D$1&" and localMonth("&$D$12&") ="&$E$1&" and LocalDay("&$D$12&")="&$F$1&" and Barix("&$D$12&",reference:=StartOfSession)="&A54&"", "Bar", "", "Close","5","0","PrimaryOnly",,,"False","T","EveryTick") ->  | J54: =RTD("cqg.rtd",,"StudyData", "Close("&$D$12&") when LocalYear("&$D$12&")="&$D$2&" and localMonth("&$D$12&") ="&$E$2&" and LocalDay("&$D$12&")="&$F$2&" and Barix("&$D$12&",reference:=StartOfSession)="&A54&"", "Bar", "", "Close","5","0","PrimaryOnly",,,"False","T","EveryTick") -> 2774.5 | K54: -0.005020620405 | L54: =RTD("cqg.rtd",,"StudyData", "Close("&$D$12&") when LocalYear("&$D$12&")="&$D$3&" and localMonth("&$D$12&") ="&$E$3&" and LocalDay("&$D$12&")="&$F$3&" and Barix("&$D$12&",reference:=StartOfSession)="&A54&"", "Bar", "", "Close","5","0","PrimaryOnly",,,"False","T","EveryTick") -> 2787.5 | M54: 0.003058654192 | N54: =RTD("cqg.rtd",,"StudyData", "Close("&$D$12&") when LocalYear("&$D$12&")="&$D$4&" and localMonth("&$D$12&") ="&$E$4&" and LocalDay("&$D$12&")="&$F$4&" and Barix("&$D$12&",reference:=StartOfSession)="&A54&"", "Bar", "", "Close","5","0","PrimaryOnly",,,"False","T","EveryTick") -> 2792 | O54: 0.001344929615 | P54: =RTD("cqg.rtd",,"StudyData", "Close("&$D$12&") when LocalYear("&$D$12&")="&$D$5&" and localMonth("&$D$12&") ="&$E$5&" and LocalDay("&$D$12&")="&$F$5&" and Barix("&$D$12&",reference:=StartOfSession)="&A54&"", "Bar", "", "Close","5","0","PrimaryOnly",,,"False","T","EveryTick") -> 2791.25 | Q54: 0.001614784247 | R54: =RTD("cqg.rtd",,"StudyData", "Close("&$D$12&") when LocalYear("&$D$12&")="&$D$6&" and localMonth("&$D$12&") ="&$E$6&" and LocalDay("&$D$12&")="&$F$6&" and Barix("&$D$12&",reference:=StartOfSession)="&A54&"", "Bar", "", "Close","5","0","PrimaryOnly",,,"False","T","EveryTick") -> 2792 | S54: 0.003414195867 | T54: =RTD("cqg.rtd",,"StudyData", "Close("&$D$12&") when LocalYear("&$D$12&")="&$D$7&" and localMonth("&$D$12&") ="&$E$7&" and LocalDay("&$D$12&")="&$F$7&" and Barix("&$D$12&",reference:=StartOfSession)="&A54&"", "Bar", "", "Close","5","0","PrimaryOnly",,,"False","T","EveryTick") -> 2777.25 | U54: 0.0004502881844 | V54: =RTD("cqg.rtd",,"StudyData", "Close("&$D$12&") when LocalYear("&$D$12&")="&$D$8&" and localMonth("&$D$12&") ="&$E$8&" and LocalDay("&$D$12&")="&$F$8&" and Barix("&$D$12&",reference:=StartOfSession)="&A54&"", "Bar", "", "Close","5","0","PrimaryOnly",,,"False","T","EveryTick") -> 2765.25 | W54: -0.003872478386 | X54: =RTD("cqg.rtd",,"StudyData", "Close("&$D$12&") when LocalYear("&$D$12&")="&$D$9&" and localMonth("&$D$12&") ="&$E$9&" and LocalDay("&$D$12&")="&$F$9&" and Barix("&$D$12&",reference:=StartOfSession)="&A54&"", "Bar", "", "Close","5","0","PrimaryOnly",,,"False","T","EveryTick") -> 2764.25 | Y54: 0.003175467247 | Z54: =RTD("cqg.rtd",,"StudyData", "Close("&$D$12&") when LocalYear("&$D$12&")="&$D$10&" and localMonth("&$D$12&") ="&$E$10&" and LocalDay("&$D$12&")="&$F$10&" and Barix("&$D$12&",reference:=StartOfSession)="&A54&"", "Bar", "", "Close","5","0","PrimaryOnly",,,"False","T","EveryTick") -> 2750.5 | AA54: 0.0002727520684
A55: 54 | B55: 13:00:00 | C55: -23 | D55: =RTD("cqg.rtd",,"StudyData", $D$12, "Tick", "FlatTicks=0", "Tick","D",C55,"PrimaryOnly") -> 2762.5 | H55: =RTD("cqg.rtd",,"StudyData", "Close("&$D$12&") when LocalYear("&$D$12&")="&$D$1&" and localMonth("&$D$12&") ="&$E$1&" and LocalDay("&$D$12&")="&$F$1&" and Barix("&$D$12&",reference:=StartOfSession)="&A55&"", "Bar", "", "Close","5","0","PrimaryOnly",,,"False","T","EveryTick") ->  | J55: =RTD("cqg.rtd",,"StudyData", "Close("&$D$12&") when LocalYear("&$D$12&")="&$D$2&" and localMonth("&$D$12&") ="&$E$2&" and LocalDay("&$D$12&")="&$F$2&" and Barix("&$D$12&",reference:=StartOfSession)="&A55&"", "Bar", "", "Close","5","0","PrimaryOnly",,,"False","T","EveryTick") -> 2774.75 | K55: -0.004930966469 | L55: =RTD("cqg.rtd",,"StudyData", "Close("&$D$12&") when LocalYear("&$D$12&")="&$D$3&" and localMonth("&$D$12&") ="&$E$3&" and LocalDay("&$D$12&")="&$F$3&" and Barix("&$D$12&",reference:=StartOfSession)="&A55&"", "Bar", "", "Close","5","0","PrimaryOnly",,,"False","T","EveryTick") -> 2787.5 | M55: 0.003058654192 | N55: =RTD("cqg.rtd",,"StudyData", "Close("&$D$12&") when LocalYear("&$D$12&")="&$D$4&" and localMonth("&$D$12&") ="&$E$4&" and LocalDay("&$D$12&")="&$F$4&" and Barix("&$D$12&",reference:=StartOfSession)="&A55&"", "Bar", "", "Close","5","0","PrimaryOnly",,,"False","T","EveryTick") -> 2786.5 | O55: -0.0006276338205 | P55: =RTD("cqg.rtd",,"StudyData", "Close("&$D$12&") when LocalYear("&$D$12&")="&$D$5&" and localMonth("&$D$12&") ="&$E$5&" and LocalDay("&$D$12&")="&$F$5&" and Barix("&$D$12&",reference:=StartOfSession)="&A55&"", "Bar", "", "Close","5","0","PrimaryOnly",,,"False","T","EveryTick") -> 2790.25 | Q55: 0.001255943303 | R55: =RTD("cqg.rtd",,"StudyData", "Close("&$D$12&") when LocalYear("&$D$12&")="&$D$6&" and localMonth("&$D$12&") ="&$E$6&" and LocalDay("&$D$12&")="&$F$6&" and Barix("&$D$12&",reference:=StartOfSession)="&A55&"", "Bar", "", "Close","5","0","PrimaryOnly",,,"False","T","EveryTick") -> 2790.75 | S55: 0.002964959569 | T55: =RTD("cqg.rtd",,"StudyData", "Close("&$D$12&") when LocalYear("&$D$12&")="&$D$7&" and localMonth("&$D$12&") ="&$E$7&" and LocalDay("&$D$12&")="&$F$7&" and Barix("&$D$12&",reference:=StartOfSession)="&A55&"", "Bar", "", "Close","5","0","PrimaryOnly",,,"False","T","EveryTick") -> 2777.5 | U55: 0.0005403458213 | V55: =RTD("cqg.rtd",,"StudyData", "Close("&$D$12&") when LocalYear("&$D$12&")="&$D$8&" and localMonth("&$D$12&") ="&$E$8&" and LocalDay("&$D$12&")="&$F$8&" and Barix("&$D$12&",reference:=StartOfSession)="&A55&"", "Bar", "", "Close","5","0","PrimaryOnly",,,"False","T","EveryTick") -> 2768 | W55: -0.00288184438 | X55: =RTD("cqg.rtd",,"StudyData", "Close("&$D$12&") when LocalYear("&$D$12&")="&$D$9&" and localMonth("&$D$12&") ="&$E$9&" and LocalDay("&$D$12&")="&$F$9&" and Barix("&$D$12&",reference:=StartOfSession)="&A55&"", "Bar", "", "Close","5","0","PrimaryOnly",,,"False","T","EveryTick") -> 2765 | Y55: 0.003447650154 | Z55: =RTD("cqg.rtd",,"StudyData", "Close("&$D$12&") when LocalYear("&$D$12&")="&$D$10&" and localMonth("&$D$12&") ="&$E$10&" and LocalDay("&$D$12&")="&$F$10&" and Barix("&$D$12&",reference:=StartOfSession)="&A55&"", "Bar", "", "Close","5","0","PrimaryOnly",,,"False","T","EveryTick") -> 2749.5 | AA55: -9.091735612e-05
A56: 55 | B56: 13:05:00 | C56: -22 | D56: =RTD("cqg.rtd",,"StudyData", $D$12, "Tick", "FlatTicks=0", "Tick","D",C56,"PrimaryOnly") -> 2762.25 | H56: =RTD("cqg.rtd",,"StudyData", "Close("&$D$12&") when LocalYear("&$D$12&")="&$D$1&" and localMonth("&$D$12&") ="&$E$1&" and LocalDay("&$D$12&")="&$F$1&" and Barix("&$D$12&",reference:=StartOfSession)="&A56&"", "Bar", "", "Close","5","0","PrimaryOnly",,,"False","T","EveryTick") ->  | J56: =RTD("cqg.rtd",,"StudyData", "Close("&$D$12&") when LocalYear("&$D$12&")="&$D$2&" and localMonth("&$D$12&") ="&$E$2&" and LocalDay("&$D$12&")="&$F$2&" and Barix("&$D$12&",reference:=StartOfSession)="&A56&"", "Bar", "", "Close","5","0","PrimaryOnly",,,"False","T","EveryTick") -> 2776.25 | K56: -0.004393042855 | L56: =RTD("cqg.rtd",,"StudyData", "Close("&$D$12&") when LocalYear("&$D$12&")="&$D$3&" and localMonth("&$D$12&") ="&$E$3&" and LocalDay("&$D$12&")="&$F$3&" and Barix("&$D$12&",reference:=StartOfSession)="&A56&"", "Bar", "", "Close","5","0","PrimaryOnly",,,"False","T","EveryTick") -> 2787.25 | M56: 0.002968693775 | N56: =RTD("cqg.rtd",,"StudyData", "Close("&$D$12&") when LocalYear("&$D$12&")="&$D$4&" and localMonth("&$D$12&") ="&$E$4&" and LocalDay("&$D$12&")="&$F$4&" and Barix("&$D$12&",reference:=StartOfSession)="&A56&"", "Bar", "", "Close","5","0","PrimaryOnly",,,"False","T","EveryTick") -> 2784.75 | O56: -0.001255267641 | P56: =RTD("cqg.rtd",,"StudyData", "Close("&$D$12&") when LocalYear("&$D$12&")="&$D$5&" and localMonth("&$D$12&") ="&$E$5&" and LocalDay("&$D$12&")="&$F$5&" and Barix("&$D$12&",reference:=StartOfSession)="&A56&"", "Bar", "", "Close","5","0","PrimaryOnly",,,"False","T","EveryTick") -> 2789 | Q56: 0.0008073921234 | R56: =RTD("cqg.rtd",,"StudyData", "Close("&$D$12&") when LocalYear("&$D$12&")="&$D$6&" and localMonth("&$D$12&") ="&$E$6&" and LocalDay("&$D$12&")="&$F$6&" and Barix("&$D$12&",reference:=StartOfSession)="&A56&"", "Bar", "", "Close","5","0","PrimaryOnly",,,"False","T","EveryTick") -> 2790.5 | S56: 0.002875112309 | T56: =RTD("cqg.rtd",,"StudyData", "Close("&$D$12&") when LocalYear("&$D$12&")="&$D$7&" and localMonth("&$D$12&") ="&$E$7&" and LocalDay("&$D$12&")="&$F$7&" and Barix("&$D$12&",reference:=StartOfSession)="&A56&"", "Bar", "", "Close","5","0","PrimaryOnly",,,"False","T","EveryTick") -> 2778 | U56: 0.0007204610951 | V56: =RTD("cqg.rtd",,"StudyData", "Close("&$D$12&") when LocalYear("&$D$12&")="&$D$8&" and localMonth("&$D$12&") ="&$E$8&" and LocalDay("&$D$12&")="&$F$8&" and Barix("&$D$12&",reference:=StartOfSession)="&A56&"", "Bar", "", "Close","5","0","PrimaryOnly",,,"False","T","EveryTick") -> 2768.25 | W56: -0.002791786744 | X56: =RTD("cqg.rtd",,"StudyData", "Close("&$D$12&") when LocalYear("&$D$12&")="&$D$9&" and localMonth("&$D$12&") ="&$E$9&" and LocalDay("&$D$12&")="&$F$9&" and Barix("&$D$12&",reference:=StartOfSession)="&A56&"", "Bar", "", "Close","5","0","PrimaryOnly",,,"False","T","EveryTick") -> 2765.5 | Y56: 0.003629105426 | Z56: =RTD("cqg.rtd",,"StudyData", "Close("&$D$12&") when LocalYear("&$D$12&")="&$D$10&" and localMonth("&$D$12&") ="&$E$10&" and LocalDay("&$D$12&")="&$F$10&" and Barix("&$D$12&",reference:=StartOfSession)="&A56&"", "Bar", "", "Close","5","0","PrimaryOnly",,,"False","T","EveryTick") -> 2750.25 | AA56: 0.0001818347122
A57: 56 | B57: 13:10:00 | C57: -21 | D57: =RTD("cqg.rtd",,"StudyData", $D$12, "Tick", "FlatTicks=0", "Tick","D",C57,"PrimaryOnly") -> 2762.5 | H57: =RTD("cqg.rtd",,"StudyData", "Close("&$D$12&") when LocalYear("&$D$12&")="&$D$1&" and localMonth("&$D$12&") ="&$E$1&" and LocalDay("&$D$12&")="&$F$1&" and Barix("&$D$12&",reference:=StartOfSession)="&A57&"", "Bar", "", "Close","5","0","PrimaryOnly",,,"False","T","EveryTick") ->  | J57: =RTD("cqg.rtd",,"StudyData", "Close("&$D$12&") when LocalYear("&$D$12&")="&$D$2&" and localMonth("&$D$12&") ="&$E$2&" and LocalDay("&$D$12&")="&$F$2&" and Barix("&$D$12&",reference:=StartOfSession)="&A57&"", "Bar", "", "Close","5","0","PrimaryOnly",,,"False","T","EveryTick") -> 2777.25 | K57: -0.004034427111 | L57: =RTD("cqg.rtd",,"StudyData", "Close("&$D$12&") when LocalYear("&$D$12&")="&$D$3&" and localMonth("&$D$12&") ="&$E$3&" and LocalDay("&$D$12&")="&$F$3&" and Barix("&$D$12&",reference:=StartOfSession)="&A57&"", "Bar", "", "Close","5","0","PrimaryOnly",,,"False","T","EveryTick") -> 2787.75 | M57: 0.00314861461 | N57: =RTD("cqg.rtd",,"StudyData", "Close("&$D$12&") when LocalYear("&$D$12&")="&$D$4&" and localMonth("&$D$12&") ="&$E$4&" and LocalDay("&$D$12&")="&$F$4&" and Barix("&$D$12&",reference:=StartOfSession)="&A57&"", "Bar", "", "Close","5","0","PrimaryOnly",,,"False","T","EveryTick") -> 2788.25 | O57: 0 | P57: =RTD("cqg.rtd",,"StudyData", "Close("&$D$12&") when LocalYear("&$D$12&")="&$D$5&" and localMonth("&$D$12&") ="&$E$5&" and LocalDay("&$D$12&")="&$F$5&" and Barix("&$D$12&",reference:=StartOfSession)="&A57&"", "Bar", "", "Close","5","0","PrimaryOnly",,,"False","T","EveryTick") -> 2788.75 | Q57: 0.0007176818875 | R57: =RTD("cqg.rtd",,"StudyData", "Close("&$D$12&") when LocalYear("&$D$12&")="&$D$6&" and localMonth("&$D$12&") ="&$E$6&" and LocalDay("&$D$12&")="&$F$6&" and Barix("&$D$12&",reference:=StartOfSession)="&A57&"", "Bar", "", "Close","5","0","PrimaryOnly",,,"False","T","EveryTick") -> 2790 | S57: 0.00269541779 | T57: =RTD("cqg.rtd",,"StudyData", "Close("&$D$12&") when LocalYear("&$D$12&")="&$D$7&" and localMonth("&$D$12&") ="&$E$7&" and LocalDay("&$D$12&")="&$F$7&" and Barix("&$D$12&",reference:=StartOfSession)="&A57&"", "Bar", "", "Close","5","0","PrimaryOnly",,,"False","T","EveryTick") -> 2781 | U57: 0.001801152738 | V57: =RTD("cqg.rtd",,"StudyData", "Close("&$D$12&") when LocalYear("&$D$12&")="&$D$8&" and localMonth("&$D$12&") ="&$E$8&" and LocalDay("&$D$12&")="&$F$8&" and Barix("&$D$12&",reference:=StartOfSession)="&A57&"", "Bar", "", "Close","5","0","PrimaryOnly",,,"False","T","EveryTick") -> 2770 | W57: -0.002161383285 | X57: =RTD("cqg.rtd",,"StudyData", "Close("&$D$12&") when LocalYear("&$D$12&")="&$D$9&" and localMonth("&$D$12&") ="&$E$9&" and LocalDay("&$D$12&")="&$F$9&" and Barix("&$D$12&",reference:=StartOfSession)="&A57&"", "Bar", "", "Close","5","0","PrimaryOnly",,,"False","T","EveryTick") -> 2765.75 | Y57: 0.003719833061 | Z57: =RTD("cqg.rtd",,"StudyData", "Close("&$D$12&") when LocalYear("&$D$12&")="&$D$10&" and localMonth("&$D$12&") ="&$E$10&" and LocalDay("&$D$12&")="&$F$10&" and Barix("&$D$12&",reference:=StartOfSession)="&A57&"", "Bar", "", "Close","5","0","PrimaryOnly",,,"False","T","EveryTick") -> 2751 | AA57: 0.0004545867806
A58: 57 | B58: 13:15:00 | C58: -20 | D58: =RTD("cqg.rtd",,"StudyData", $D$12, "Tick", "FlatTicks=0", "Tick","D",C58,"PrimaryOnly") -> 2762.25 | H58: =RTD("cqg.rtd",,"StudyData", "Close("&$D$12&") when LocalYear("&$D$12&")="&$D$1&" and localMonth("&$D$12&") ="&$E$1&" and LocalDay("&$D$12&")="&$F$1&" and Barix("&$D$12&",reference:=StartOfSession)="&A58&"", "Bar", "", "Close","5","0","PrimaryOnly",,,"False","T","EveryTick") ->  | J58: =RTD("cqg.rtd",,"StudyData", "Close("&$D$12&") when LocalYear("&$D$12&")="&$D$2&" and localMonth("&$D$12&") ="&$E$2&" and LocalDay("&$D$12&")="&$F$2&" and Barix("&$D$12&",reference:=StartOfSession)="&A58&"", "Bar", "", "Close","5","0","PrimaryOnly",,,"False","T","EveryTick") -> 2778.75 | K58: -0.003496503497 | L58: =RTD("cqg.rtd",,"StudyData", "Close("&$D$12&") when LocalYear("&$D$12&")="&$D$3&" and localMonth("&$D$12&") ="&$E$3&" and LocalDay("&$D$12&")="&$F$3&" and Barix("&$D$12&",reference:=StartOfSession)="&A58&"", "Bar", "", "Close","5","0","PrimaryOnly",,,"False","T","EveryTick") -> 2786.25 | M58: 0.002608852105 | N58: =RTD("cqg.rtd",,"StudyData", "Close("&$D$12&") when LocalYear("&$D$12&")="&$D$4&" and localMonth("&$D$12&") ="&$E$4&" and LocalDay("&$D$12&")="&$F$4&" and Barix("&$D$12&",reference:=StartOfSession)="&A58&"", "Bar", "", "Close","5","0","PrimaryOnly",,,"False","T","EveryTick") -> 2787.75 | O58: -0.0001793239487 | P58: =RTD("cqg.rtd",,"StudyData", "Close("&$D$12&") when LocalYear("&$D$12&")="&$D$5&" and localMonth("&$D$12&") ="&$E$5&" and LocalDay("&$D$12&")="&$F$5&" and Barix("&$D$12&",reference:=StartOfSession)="&A58&"", "Bar", "", "Close","5","0","PrimaryOnly",,,"False","T","EveryTick") -> 2788.25 | Q58: 0.0005382614156 | R58: =RTD("cqg.rtd",,"StudyData", "Close("&$D$12&") when LocalYear("&$D$12&")="&$D$6&" and localMonth("&$D$12&") ="&$E$6&" and LocalDay("&$D$12&")="&$F$6&" and Barix("&$D$12&",reference:=StartOfSession)="&A58&"", "Bar", "", "Close","5","0","PrimaryOnly",,,"False","T","EveryTick") -> 2790.5 | S58: 0.002875112309 | T58: =RTD("cqg.rtd",,"StudyData", "Close("&$D$12&") when LocalYear("&$D$12&")="&$D$7&" and localMonth("&$D$12&") ="&$E$7&" and LocalDay("&$D$12&")="&$F$7&" and Barix("&$D$12&",reference:=StartOfSession)="&A58&"", "Bar", "", "Close","5","0","PrimaryOnly",,,"False","T","EveryTick") -> 2780 | U58: 0.00144092219 | V58: =RTD("cqg.rtd",,"StudyData", "Close("&$D$12&") when LocalYear("&$D$12&")="&$D$8&" and localMonth("&$D$12&") ="&$E$8&" and LocalDay("&$D$12&")="&$F$8&" and Barix("&$D$12&",reference:=StartOfSession)="&A58&"", "Bar", "", "Close","5","0","PrimaryOnly",,,"False","T","EveryTick") -> 2770.5 | W58: -0.001981268012 | X58: =RTD("cqg.rtd",,"StudyData", "Close("&$D$12&") when LocalYear("&$D$12&")="&$D$9&" and localMonth("&$D$12&") ="&$E$9&" and LocalDay("&$D$12&")="&$F$9&" and Barix("&$D$12&",reference:=StartOfSession)="&A58&"", "Bar", "", "Close","5","0","PrimaryOnly",,,"False","T","EveryTick") -> 2765.75 | Y58: 0.003719833061 | Z58: =RTD("cqg.rtd",,"StudyData", "Close("&$D$12&") when LocalYear("&$D$12&")="&$D$10&" and localMonth("&$D$12&") ="&$E$10&" and LocalDay("&$D$12&")="&$F$10&" and Barix("&$D$12&",reference:=StartOfSession)="&A58&"", "Bar", "", "Close","5","0","PrimaryOnly",,,"False","T","EveryTick") -> 2752.75 | AA58: 0.001091008273
A59: 58 | B59: 13:20:00 | C59: =C58+1 -> -19 | D59: =RTD("cqg.rtd",,"StudyData", $D$12, "Tick", "FlatTicks=0", "Tick","D",C59,"PrimaryOnly") -> 2762.5 | H59: =RTD("cqg.rtd",,"StudyData", "Close("&$D$12&") when LocalYear("&$D$12&")="&$D$1&" and localMonth("&$D$12&") ="&$E$1&" and LocalDay("&$D$12&")="&$F$1&" and Barix("&$D$12&",reference:=StartOfSession)="&A59&"", "Bar", "", "Close","5","0","PrimaryOnly",,,"False","T","EveryTick") ->  | J59: =RTD("cqg.rtd",,"StudyData", "Close("&$D$12&") when LocalYear("&$D$12&")="&$D$2&" and localMonth("&$D$12&") ="&$E$2&" and LocalDay("&$D$12&")="&$F$2&" and Barix("&$D$12&",reference:=StartOfSession)="&A59&"", "Bar", "", "Close","5","0","PrimaryOnly",,,"False","T","EveryTick") -> 2782 | K59: -0.002331002331 | L59: =RTD("cqg.rtd",,"StudyData", "Close("&$D$12&") when LocalYear("&$D$12&")="&$D$3&" and localMonth("&$D$12&") ="&$E$3&" and LocalDay("&$D$12&")="&$F$3&" and Barix("&$D$12&",reference:=StartOfSession)="&A59&"", "Bar", "", "Close","5","0","PrimaryOnly",,,"False","T","EveryTick") -> 2787.25 | M59: 0.002968693775 | N59: =RTD("cqg.rtd",,"StudyData", "Close("&$D$12&") when LocalYear("&$D$12&")="&$D$4&" and localMonth("&$D$12&") ="&$E$4&" and LocalDay("&$D$12&")="&$F$4&" and Barix("&$D$12&",reference:=StartOfSession)="&A59&"", "Bar", "", "Close","5","0","PrimaryOnly",,,"False","T","EveryTick") -> 2784 | O59: -0.001524253564 | P59: =RTD("cqg.rtd",,"StudyData", "Close("&$D$12&") when LocalYear("&$D$12&")="&$D$5&" and localMonth("&$D$12&") ="&$E$5&" and LocalDay("&$D$12&")="&$F$5&" and Barix("&$D$12&",reference:=StartOfSession)="&A59&"", "Bar", "", "Close","5","0","PrimaryOnly",,,"False","T","EveryTick") -> 2787.25 | Q59: 0.0001794204719 | R59: =RTD("cqg.rtd",,"StudyData", "Close("&$D$12&") when LocalYear("&$D$12&")="&$D$6&" and localMonth("&$D$12&") ="&$E$6&" and LocalDay("&$D$12&")="&$F$6&" and Barix("&$D$12&",reference:=StartOfSession)="&A59&"", "Bar", "", "Close","5","0","PrimaryOnly",,,"False","T","EveryTick") -> 2791.75 | S59: 0.003324348607 | T59: =RTD("cqg.rtd",,"StudyData", "Close("&$D$12&") when LocalYear("&$D$12&")="&$D$7&" and localMonth("&$D$12&") ="&$E$7&" and LocalDay("&$D$12&")="&$F$7&" and Barix("&$D$12&",reference:=StartOfSession)="&A59&"", "Bar", "", "Close","5","0","PrimaryOnly",,,"False","T","EveryTick") -> 2779.25 | U59: 0.00117074928 | V59: =RTD("cqg.rtd",,"StudyData", "Close("&$D$12&") when LocalYear("&$D$12&")="&$D$8&" and localMonth("&$D$12&") ="&$E$8&" and LocalDay("&$D$12&")="&$F$8&" and Barix("&$D$12&",reference:=StartOfSession)="&A59&"", "Bar", "", "Close","5","0","PrimaryOnly",,,"False","T","EveryTick") -> 2771 | W59: -0.001801152738 | X59: =RTD("cqg.rtd",,"StudyData", "Close("&$D$12&") when LocalYear("&$D$12&")="&$D$9&" and localMonth("&$D$12&") ="&$E$9&" and LocalDay("&$D$12&")="&$F$9&" and Barix("&$D$12&",reference:=StartOfSession)="&A59&"", "Bar", "", "Close","5","0","PrimaryOnly",,,"False","T","EveryTick") -> 2766.25 | Y59: 0.003901288332 | Z59: =RTD("cqg.rtd",,"StudyData", "Close("&$D$12&") when LocalYear("&$D$12&")="&$D$10&" and localMonth("&$D$12&") ="&$E$10&" and LocalDay("&$D$12&")="&$F$10&" and Barix("&$D$12&",reference:=StartOfSession)="&A59&"", "Bar", "", "Close","5","0","PrimaryOnly",,,"False","T","EveryTick") -> 2752.5 | AA59: 0.001000090917
A60: 59 | B60: 13:25:00 | C60: =C59+1 -> -18 | D60: =RTD("cqg.rtd",,"StudyData", $D$12, "Tick", "FlatTicks=0", "Tick","D",C60,"PrimaryOnly") -> 2762.25 | H60: =RTD("cqg.rtd",,"StudyData", "Close("&$D$12&") when LocalYear("&$D$12&")="&$D$1&" and localMonth("&$D$12&") ="&$E$1&" and LocalDay("&$D$12&")="&$F$1&" and Barix("&$D$12&",reference:=StartOfSession)="&A60&"", "Bar", "", "Close","5","0","PrimaryOnly",,,"False","T","EveryTick") ->  | J60: =RTD("cqg.rtd",,"StudyData", "Close("&$D$12&") when LocalYear("&$D$12&")="&$D$2&" and localMonth("&$D$12&") ="&$E$2&" and LocalDay("&$D$12&")="&$F$2&" and Barix("&$D$12&",reference:=StartOfSession)="&A60&"", "Bar", "", "Close","5","0","PrimaryOnly",,,"False","T","EveryTick") -> 2785.25 | K60: -0.001165501166 | L60: =RTD("cqg.rtd",,"StudyData", "Close("&$D$12&") when LocalYear("&$D$12&")="&$D$3&" and localMonth("&$D$12&") ="&$E$3&" and LocalDay("&$D$12&")="&$F$3&" and Barix("&$D$12&",reference:=StartOfSession)="&A60&"", "Bar", "", "Close","5","0","PrimaryOnly",,,"False","T","EveryTick") -> 2786.75 | M60: 0.00278877294 | N60: =RTD("cqg.rtd",,"StudyData", "Close("&$D$12&") when LocalYear("&$D$12&")="&$D$4&" and localMonth("&$D$12&") ="&$E$4&" and LocalDay("&$D$12&")="&$F$4&" and Barix("&$D$12&",reference:=StartOfSession)="&A60&"", "Bar", "", "Close","5","0","PrimaryOnly",,,"False","T","EveryTick") -> 2784.25 | O60: -0.00143459159 | P60: =RTD("cqg.rtd",,"StudyData", "Close("&$D$12&") when LocalYear("&$D$12&")="&$D$5&" and localMonth("&$D$12&") ="&$E$5&" and LocalDay("&$D$12&")="&$F$5&" and Barix("&$D$12&",reference:=StartOfSession)="&A60&"", "Bar", "", "Close","5","0","PrimaryOnly",,,"False","T","EveryTick") -> 2785.25 | Q60: -0.0005382614156 | R60: =RTD("cqg.rtd",,"StudyData", "Close("&$D$12&") when LocalYear("&$D$12&")="&$D$6&" and localMonth("&$D$12&") ="&$E$6&" and LocalDay("&$D$12&")="&$F$6&" and Barix("&$D$12&",reference:=StartOfSession)="&A60&"", "Bar", "", "Close","5","0","PrimaryOnly",,,"False","T","EveryTick") -> 2790.75 | S60: 0.002964959569 | T60: =RTD("cqg.rtd",,"StudyData", "Close("&$D$12&") when LocalYear("&$D$12&")="&$D$7&" and localMonth("&$D$12&") ="&$E$7&" and LocalDay("&$D$12&")="&$F$7&" and Barix("&$D$12&",reference:=StartOfSession)="&A60&"", "Bar", "", "Close","5","0","PrimaryOnly",,,"False","T","EveryTick") -> 2779.25 | U60: 0.00117074928 | V60: =RTD("cqg.rtd",,"StudyData", "Close("&$D$12&") when LocalYear("&$D$12&")="&$D$8&" and localMonth("&$D$12&") ="&$E$8&" and LocalDay("&$D$12&")="&$F$8&" and Barix("&$D$12&",reference:=StartOfSession)="&A60&"", "Bar", "", "Close","5","0","PrimaryOnly",,,"False","T","EveryTick") -> 2770.5 | W60: -0.001981268012 | X60: =RTD("cqg.rtd",,"StudyData", "Close("&$D$12&") when LocalYear("&$D$12&")="&$D$9&" and localMonth("&$D$12&") ="&$E$9&" and LocalDay("&$D$12&")="&$F$9&" and Barix("&$D$12&",reference:=StartOfSession)="&A60&"", "Bar", "", "Close","5","0","PrimaryOnly",,,"False","T","EveryTick") -> 2767.25 | Y60: 0.004264198875 | Z60: =RTD("cqg.rtd",,"StudyData", "Close("&$D$12&") when LocalYear("&$D$12&")="&$D$10&" and localMonth("&$D$12&") ="&$E$10&" and LocalDay("&$D$12&")="&$F$10&" and Barix("&$D$12&",reference:=StartOfSession)="&A60&"", "Bar", "", "Close","5","0","PrimaryOnly",,,"False","T","EveryTick") -> 2752.75 | AA60: 0.001091008273
A61: 60 | B61: 13:30:00 | C61: -17 | D61: =RTD("cqg.rtd",,"StudyData", $D$12, "Tick", "FlatTicks=0", "Tick","D",C61,"PrimaryOnly") -> 2762.5 | H61: =RTD("cqg.rtd",,"StudyData", "Close("&$D$12&") when LocalYear("&$D$12&")="&$D$1&" and localMonth("&$D$12&") ="&$E$1&" and LocalDay("&$D$12&")="&$F$1&" and Barix("&$D$12&",reference:=StartOfSession)="&A61&"", "Bar", "", "Close","5","0","PrimaryOnly",,,"False","T","EveryTick") ->  | J61: =RTD("cqg.rtd",,"StudyData", "Close("&$D$12&") when LocalYear("&$D$12&")="&$D$2&" and localMonth("&$D$12&") ="&$E$2&" and LocalDay("&$D$12&")="&$F$2&" and Barix("&$D$12&",reference:=StartOfSession)="&A61&"", "Bar", "", "Close","5","0","PrimaryOnly",,,"False","T","EveryTick") -> 2786.25 | K61: -0.0008068854223 | L61: =RTD("cqg.rtd",,"StudyData", "Close("&$D$12&") when LocalYear("&$D$12&")="&$D$3&" and localMonth("&$D$12&") ="&$E$3&" and LocalDay("&$D$12&")="&$F$3&" and Barix("&$D$12&",reference:=StartOfSession)="&A61&"", "Bar", "", "Close","5","0","PrimaryOnly",,,"False","T","EveryTick") -> 2786 | M61: 0.002518891688 | N61: =RTD("cqg.rtd",,"StudyData", "Close("&$D$12&") when LocalYear("&$D$12&")="&$D$4&" and localMonth("&$D$12&") ="&$E$4&" and LocalDay("&$D$12&")="&$F$4&" and Barix("&$D$12&",reference:=StartOfSession)="&A61&"", "Bar", "", "Close","5","0","PrimaryOnly",,,"False","T","EveryTick") -> 2785 | O61: -0.001165605667 | P61: =RTD("cqg.rtd",,"StudyData", "Close("&$D$12&") when LocalYear("&$D$12&")="&$D$5&" and localMonth("&$D$12&") ="&$E$5&" and LocalDay("&$D$12&")="&$F$5&" and Barix("&$D$12&",reference:=StartOfSession)="&A61&"", "Bar", "", "Close","5","0","PrimaryOnly",,,"False","T","EveryTick") -> 2785 | Q61: -0.0006279716516 | R61: =RTD("cqg.rtd",,"StudyData", "Close("&$D$12&") when LocalYear("&$D$12&")="&$D$6&" and localMonth("&$D$12&") ="&$E$6&" and LocalDay("&$D$12&")="&$F$6&" and Barix("&$D$12&",reference:=StartOfSession)="&A61&"", "Bar", "", "Close","5","0","PrimaryOnly",,,"False","T","EveryTick") -> 2790.5 | S61: 0.002875112309 | T61: =RTD("cqg.rtd",,"StudyData", "Close("&$D$12&") when LocalYear("&$D$12&")="&$D$7&" and localMonth("&$D$12&") ="&$E$7&" and LocalDay("&$D$12&")="&$F$7&" and Barix("&$D$12&",reference:=StartOfSession)="&A61&"", "Bar", "", "Close","5","0","PrimaryOnly",,,"False","T","EveryTick") -> 2779.5 | U61: 0.001260806916 | V61: =RTD("cqg.rtd",,"StudyData", "Close("&$D$12&") when LocalYear("&$D$12&")="&$D$8&" and localMonth("&$D$12&") ="&$E$8&" and LocalDay("&$D$12&")="&$F$8&" and Barix("&$D$12&",reference:=StartOfSession)="&A61&"", "Bar", "", "Close","5","0","PrimaryOnly",,,"False","T","EveryTick") -> 2771.75 | W61: -0.001530979827 | X61: =RTD("cqg.rtd",,"StudyData", "Close("&$D$12&") when LocalYear("&$D$12&")="&$D$9&" and localMonth("&$D$12&") ="&$E$9&" and LocalDay("&$D$12&")="&$F$9&" and Barix("&$D$12&",reference:=StartOfSession)="&A61&"", "Bar", "", "Close","5","0","PrimaryOnly",,,"False","T","EveryTick") -> 2767.25 | Y61: 0.004264198875 | Z61: =RTD("cqg.rtd",,"StudyData", "Close("&$D$12&") when LocalYear("&$D$12&")="&$D$10&" and localMonth("&$D$12&") ="&$E$10&" and LocalDay("&$D$12&")="&$F$10&" and Barix("&$D$12&",reference:=StartOfSession)="&A61&"", "Bar", "", "Close","5","0","PrimaryOnly",,,"False","T","EveryTick") -> 2753 | AA61: 0.00118192563
A62: 61 | B62: 13:35:00 | C62: -16 | D62: =RTD("cqg.rtd",,"StudyData", $D$12, "Tick", "FlatTicks=0", "Tick","D",C62,"PrimaryOnly") -> 2762.25 | H62: =RTD("cqg.rtd",,"StudyData", "Close("&$D$12&") when LocalYear("&$D$12&")="&$D$1&" and localMonth("&$D$12&") ="&$E$1&" and LocalDay("&$D$12&")="&$F$1&" and Barix("&$D$12&",reference:=StartOfSession)="&A62&"", "Bar", "", "Close","5","0","PrimaryOnly",,,"False","T","EveryTick") ->  | J62: =RTD("cqg.rtd",,"StudyData", "Close("&$D$12&") when LocalYear("&$D$12&")="&$D$2&" and localMonth("&$D$12&") ="&$E$2&" and LocalDay("&$D$12&")="&$F$2&" and Barix("&$D$12&",reference:=StartOfSession)="&A62&"", "Bar", "", "Close","5","0","PrimaryOnly",,,"False","T","EveryTick") -> 2784.75 | K62: -0.001344809037 | L62: =RTD("cqg.rtd",,"StudyData", "Close("&$D$12&") when LocalYear("&$D$12&")="&$D$3&" and localMonth("&$D$12&") ="&$E$3&" and LocalDay("&$D$12&")="&$F$3&" and Barix("&$D$12&",reference:=StartOfSession)="&A62&"", "Bar", "", "Close","5","0","PrimaryOnly",,,"False","T","EveryTick") -> 2786 | M62: 0.002518891688 | N62: =RTD("cqg.rtd",,"StudyData", "Close("&$D$12&") when LocalYear("&$D$12&")="&$D$4&" and localMonth("&$D$12&") ="&$E$4&" and LocalDay("&$D$12&")="&$F$4&" and Barix("&$D$12&",reference:=StartOfSession)="&A62&"", "Bar", "", "Close","5","0","PrimaryOnly",,,"False","T","EveryTick") -> 2787.5 | O62: -0.0002689859231 | P62: =RTD("cqg.rtd",,"StudyData", "Close("&$D$12&") when LocalYear("&$D$12&")="&$D$5&" and localMonth("&$D$12&") ="&$E$5&" and LocalDay("&$D$12&")="&$F$5&" and Barix("&$D$12&",reference:=StartOfSession)="&A62&"", "Bar", "", "Close","5","0","PrimaryOnly",,,"False","T","EveryTick") -> 2785.5 | Q62: -0.0004485511797 | R62: =RTD("cqg.rtd",,"StudyData", "Close("&$D$12&") when LocalYear("&$D$12&")="&$D$6&" and localMonth("&$D$12&") ="&$E$6&" and LocalDay("&$D$12&")="&$F$6&" and Barix("&$D$12&",reference:=StartOfSession)="&A62&"", "Bar", "", "Close","5","0","PrimaryOnly",,,"False","T","EveryTick") -> 2790 | S62: 0.00269541779 | T62: =RTD("cqg.rtd",,"StudyData", "Close("&$D$12&") when LocalYear("&$D$12&")="&$D$7&" and localMonth("&$D$12&") ="&$E$7&" and LocalDay("&$D$12&")="&$F$7&" and Barix("&$D$12&",reference:=StartOfSession)="&A62&"", "Bar", "", "Close","5","0","PrimaryOnly",,,"False","T","EveryTick") -> 2779.75 | U62: 0.001350864553 | V62: =RTD("cqg.rtd",,"StudyData", "Close("&$D$12&") when LocalYear("&$D$12&")="&$D$8&" and localMonth("&$D$12&") ="&$E$8&" and LocalDay("&$D$12&")="&$F$8&" and Barix("&$D$12&",reference:=StartOfSession)="&A62&"", "Bar", "", "Close","5","0","PrimaryOnly",,,"False","T","EveryTick") -> 2772.5 | W62: -0.001260806916 | X62: =RTD("cqg.rtd",,"StudyData", "Close("&$D$12&") when LocalYear("&$D$12&")="&$D$9&" and localMonth("&$D$12&") ="&$E$9&" and LocalDay("&$D$12&")="&$F$9&" and Barix("&$D$12&",reference:=StartOfSession)="&A62&"", "Bar", "", "Close","5","0","PrimaryOnly",,,"False","T","EveryTick") -> 2769.25 | Y62: 0.00499001996 | Z62: =RTD("cqg.rtd",,"StudyData", "Close("&$D$12&") when LocalYear("&$D$12&")="&$D$10&" and localMonth("&$D$12&") ="&$E$10&" and LocalDay("&$D$12&")="&$F$10&" and Barix("&$D$12&",reference:=StartOfSession)="&A62&"", "Bar", "", "Close","5","0","PrimaryOnly",,,"False","T","EveryTick") -> 2752.75 | AA62: 0.001091008273
A63: 62 | B63: 13:40:00 | C63: -15 | D63: =RTD("cqg.rtd",,"StudyData", $D$12, "Tick", "FlatTicks=0", "Tick","D",C63,"PrimaryOnly") -> 2762.5 | H63: =RTD("cqg.rtd",,"StudyData", "Close("&$D$12&") when LocalYear("&$D$12&")="&$D$1&" and localMonth("&$D$12&") ="&$E$1&" and LocalDay("&$D$12&")="&$F$1&" and Barix("&$D$12&",reference:=StartOfSession)="&A63&"", "Bar", "", "Close","5","0","PrimaryOnly",,,"False","T","EveryTick") ->  | J63: =RTD("cqg.rtd",,"StudyData", "Close("&$D$12&") when LocalYear("&$D$12&")="&$D$2&" and localMonth("&$D$12&") ="&$E$2&" and LocalDay("&$D$12&")="&$F$2&" and Barix("&$D$12&",reference:=StartOfSession)="&A63&"", "Bar", "", "Close","5","0","PrimaryOnly",,,"False","T","EveryTick") -> 2784.75 | K63: -0.001344809037 | L63: =RTD("cqg.rtd",,"StudyData", "Close("&$D$12&") when LocalYear("&$D$12&")="&$D$3&" and localMonth("&$D$12&") ="&$E$3&" and LocalDay("&$D$12&")="&$F$3&" and Barix("&$D$12&",reference:=StartOfSession)="&A63&"", "Bar", "", "Close","5","0","PrimaryOnly",,,"False","T","EveryTick") -> 2786.75 | M63: 0.00278877294 | N63: =RTD("cqg.rtd",,"StudyData", "Close("&$D$12&") when LocalYear("&$D$12&")="&$D$4&" and localMonth("&$D$12&") ="&$E$4&" and LocalDay("&$D$12&")="&$F$4&" and Barix("&$D$12&",reference:=StartOfSession)="&A63&"", "Bar", "", "Close","5","0","PrimaryOnly",,,"False","T","EveryTick") -> 2787 | O63: -0.0004483098718 | P63: =RTD("cqg.rtd",,"StudyData", "Close("&$D$12&") when LocalYear("&$D$12&")="&$D$5&" and localMonth("&$D$12&") ="&$E$5&" and LocalDay("&$D$12&")="&$F$5&" and Barix("&$D$12&",reference:=StartOfSession)="&A63&"", "Bar", "", "Close","5","0","PrimaryOnly",,,"False","T","EveryTick") -> 2785.5 | Q63: -0.0004485511797 | R63: =RTD("cqg.rtd",,"StudyData", "Close("&$D$12&") when LocalYear("&$D$12&")="&$D$6&" and localMonth("&$D$12&") ="&$E$6&" and LocalDay("&$D$12&")="&$F$6&" and Barix("&$D$12&",reference:=StartOfSession)="&A63&"", "Bar", "", "Close","5","0","PrimaryOnly",,,"False","T","EveryTick") -> 2790.25 | S63: 0.002785265049 | T63: =RTD("cqg.rtd",,"StudyData", "Close("&$D$12&") when LocalYear("&$D$12&")="&$D$7&" and localMonth("&$D$12&") ="&$E$7&" and LocalDay("&$D$12&")="&$F$7&" and Barix("&$D$12&",reference:=StartOfSession)="&A63&"", "Bar", "", "Close","5","0","PrimaryOnly",,,"False","T","EveryTick") -> 2781 | U63: 0.001801152738 | V63: =RTD("cqg.rtd",,"StudyData", "Close("&$D$12&") when LocalYear("&$D$12&")="&$D$8&" and localMonth("&$D$12&") ="&$E$8&" and LocalDay("&$D$12&")="&$F$8&" and Barix("&$D$12&",reference:=StartOfSession)="&A63&"", "Bar", "", "Close","5","0","PrimaryOnly",,,"False","T","EveryTick") -> 2771.25 | W63: -0.001711095101 | X63: =RTD("cqg.rtd",,"StudyData", "Close("&$D$12&") when LocalYear("&$D$12&")="&$D$9&" and localMonth("&$D$12&") ="&$E$9&" and LocalDay("&$D$12&")="&$F$9&" and Barix("&$D$12&",reference:=StartOfSession)="&A63&"", "Bar", "", "Close","5","0","PrimaryOnly",,,"False","T","EveryTick") -> 2771.25 | Y63: 0.005715841045 | Z63: =RTD("cqg.rtd",,"StudyData", "Close("&$D$12&") when LocalYear("&$D$12&")="&$D$10&" and localMonth("&$D$12&") ="&$E$10&" and LocalDay("&$D$12&")="&$F$10&" and Barix("&$D$12&",reference:=StartOfSession)="&A63&"", "Bar", "", "Close","5","0","PrimaryOnly",,,"False","T","EveryTick") -> 2753.25 | AA63: 0.001272842986
A64: 63 | B64: 13:45:00 | C64: -14 | D64: =RTD("cqg.rtd",,"StudyData", $D$12, "Tick", "FlatTicks=0", "Tick","D",C64,"PrimaryOnly") -> 2762.25 | H64: =RTD("cqg.rtd",,"StudyData", "Close("&$D$12&") when LocalYear("&$D$12&")="&$D$1&" and localMonth("&$D$12&") ="&$E$1&" and LocalDay("&$D$12&")="&$F$1&" and Barix("&$D$12&",reference:=StartOfSession)="&A64&"", "Bar", "", "Close","5","0","PrimaryOnly",,,"False","T","EveryTick") ->  | J64: =RTD("cqg.rtd",,"StudyData", "Close("&$D$12&") when LocalYear("&$D$12&")="&$D$2&" and localMonth("&$D$12&") ="&$E$2&" and LocalDay("&$D$12&")="&$F$2&" and Barix("&$D$12&",reference:=StartOfSession)="&A64&"", "Bar", "", "Close","5","0","PrimaryOnly",,,"False","T","EveryTick") -> 2783.75 | K64: -0.00170342478 | L64: =RTD("cqg.rtd",,"StudyData", "Close("&$D$12&") when LocalYear("&$D$12&")="&$D$3&" and localMonth("&$D$12&") ="&$E$3&" and LocalDay("&$D$12&")="&$F$3&" and Barix("&$D$12&",reference:=StartOfSession)="&A64&"", "Bar", "", "Close","5","0","PrimaryOnly",,,"False","T","EveryTick") -> 2786.75 | M64: 0.00278877294 | N64: =RTD("cqg.rtd",,"StudyData", "Close("&$D$12&") when LocalYear("&$D$12&")="&$D$4&" and localMonth("&$D$12&") ="&$E$4&" and LocalDay("&$D$12&")="&$F$4&" and Barix("&$D$12&",reference:=StartOfSession)="&A64&"", "Bar", "", "Close","5","0","PrimaryOnly",,,"False","T","EveryTick") -> 2785.75 | O64: -0.0008966197436 | P64: =RTD("cqg.rtd",,"StudyData", "Close("&$D$12&") when LocalYear("&$D$12&")="&$D$5&" and localMonth("&$D$12&") ="&$E$5&" and LocalDay("&$D$12&")="&$F$5&" and Barix("&$D$12&",reference:=StartOfSession)="&A64&"", "Bar", "", "Close","5","0","PrimaryOnly",,,"False","T","EveryTick") -> 2785.25 | Q64: -0.0005382614156 | R64: =RTD("cqg.rtd",,"StudyData", "Close("&$D$12&") when LocalYear("&$D$12&")="&$D$6&" and localMonth("&$D$12&") ="&$E$6&" and LocalDay("&$D$12&")="&$F$6&" and Barix("&$D$12&",reference:=StartOfSession)="&A64&"", "Bar", "", "Close","5","0","PrimaryOnly",,,"False","T","EveryTick") -> 2790.25 | S64: 0.002785265049 | T64: =RTD("cqg.rtd",,"StudyData", "Close("&$D$12&") when LocalYear("&$D$12&")="&$D$7&" and localMonth("&$D$12&") ="&$E$7&" and LocalDay("&$D$12&")="&$F$7&" and Barix("&$D$12&",reference:=StartOfSession)="&A64&"", "Bar", "", "Close","5","0","PrimaryOnly",,,"False","T","EveryTick") -> 2780.75 | U64: 0.001711095101 | V64: =RTD("cqg.rtd",,"StudyData", "Close("&$D$12&") when LocalYear("&$D$12&")="&$D$8&" and localMonth("&$D$12&") ="&$E$8&" and LocalDay("&$D$12&")="&$F$8&" and Barix("&$D$12&",reference:=StartOfSession)="&A64&"", "Bar", "", "Close","5","0","PrimaryOnly",,,"False","T","EveryTick") -> 2773.75 | W64: -0.000810518732 | X64: =RTD("cqg.rtd",,"StudyData", "Close("&$D$12&") when LocalYear("&$D$12&")="&$D$9&" and localMonth("&$D$12&") ="&$E$9&" and LocalDay("&$D$12&")="&$F$9&" and Barix("&$D$12&",reference:=StartOfSession)="&A64&"", "Bar", "", "Close","5","0","PrimaryOnly",,,"False","T","EveryTick") -> 2772 | Y64: 0.005988023952 | Z64: =RTD("cqg.rtd",,"StudyData", "Close("&$D$12&") when LocalYear("&$D$12&")="&$D$10&" and localMonth("&$D$12&") ="&$E$10&" and LocalDay("&$D$12&")="&$F$10&" and Barix("&$D$12&",reference:=StartOfSession)="&A64&"", "Bar", "", "Close","5","0","PrimaryOnly",,,"False","T","EveryTick") -> 2753.75 | AA64: 0.001454677698
A65: 64 | B65: 13:50:00 | C65: -13 | D65: =RTD("cqg.rtd",,"StudyData", $D$12, "Tick", "FlatTicks=0", "Tick","D",C65,"PrimaryOnly") -> 2762.5 | H65: =RTD("cqg.rtd",,"StudyData", "Close("&$D$12&") when LocalYear("&$D$12&")="&$D$1&" and localMonth("&$D$12&") ="&$E$1&" and LocalDay("&$D$12&")="&$F$1&" and Barix("&$D$12&",reference:=StartOfSession)="&A65&"", "Bar", "", "Close","5","0","PrimaryOnly",,,"False","T","EveryTick") ->  | J65: =RTD("cqg.rtd",,"StudyData", "Close("&$D$12&") when LocalYear("&$D$12&")="&$D$2&" and localMonth("&$D$12&") ="&$E$2&" and LocalDay("&$D$12&")="&$F$2&" and Barix("&$D$12&",reference:=StartOfSession)="&A65&"", "Bar", "", "Close","5","0","PrimaryOnly",,,"False","T","EveryTick") -> 2785.5 | K65: -0.00107584723 | L65: =RTD("cqg.rtd",,"StudyData", "Close("&$D$12&") when LocalYear("&$D$12&")="&$D$3&" and localMonth("&$D$12&") ="&$E$3&" and LocalDay("&$D$12&")="&$F$3&" and Barix("&$D$12&",reference:=StartOfSession)="&A65&"", "Bar", "", "Close","5","0","PrimaryOnly",,,"False","T","EveryTick") -> 2785.75 | M65: 0.00242893127 | N65: =RTD("cqg.rtd",,"StudyData", "Close("&$D$12&") when LocalYear("&$D$12&")="&$D$4&" and localMonth("&$D$12&") ="&$E$4&" and LocalDay("&$D$12&")="&$F$4&" and Barix("&$D$12&",reference:=StartOfSession)="&A65&"", "Bar", "", "Close","5","0","PrimaryOnly",,,"False","T","EveryTick") -> 2786 | O65: -0.0008069577692 | P65: =RTD("cqg.rtd",,"StudyData", "Close("&$D$12&") when LocalYear("&$D$12&")="&$D$5&" and localMonth("&$D$12&") ="&$E$5&" and LocalDay("&$D$12&")="&$F$5&" and Barix("&$D$12&",reference:=StartOfSession)="&A65&"", "Bar", "", "Close","5","0","PrimaryOnly",,,"False","T","EveryTick") -> 2785.25 | Q65: -0.0005382614156 | R65: =RTD("cqg.rtd",,"StudyData", "Close("&$D$12&") when LocalYear("&$D$12&")="&$D$6&" and localMonth("&$D$12&") ="&$E$6&" and LocalDay("&$D$12&")="&$F$6&" and Barix("&$D$12&",reference:=StartOfSession)="&A65&"", "Bar", "", "Close","5","0","PrimaryOnly",,,"False","T","EveryTick") -> 2789.75 | S65: 0.00260557053 | T65: =RTD("cqg.rtd",,"StudyData", "Close("&$D$12&") when LocalYear("&$D$12&")="&$D$7&" and localMonth("&$D$12&") ="&$E$7&" and LocalDay("&$D$12&")="&$F$7&" and Barix("&$D$12&",reference:=StartOfSession)="&A65&"", "Bar", "", "Close","5","0","PrimaryOnly",,,"False","T","EveryTick") -> 2780.5 | U65: 0.001621037464 | V65: =RTD("cqg.rtd",,"StudyData", "Close("&$D$12&") when LocalYear("&$D$12&")="&$D$8&" and localMonth("&$D$12&") ="&$E$8&" and LocalDay("&$D$12&")="&$F$8&" and Barix("&$D$12&",reference:=StartOfSession)="&A65&"", "Bar", "", "Close","5","0","PrimaryOnly",,,"False","T","EveryTick") -> 2773 | W65: -0.001080691643 | X65: =RTD("cqg.rtd",,"StudyData", "Close("&$D$12&") when LocalYear("&$D$12&")="&$D$9&" and localMonth("&$D$12&") ="&$E$9&" and LocalDay("&$D$12&")="&$F$9&" and Barix("&$D$12&",reference:=StartOfSession)="&A65&"", "Bar", "", "Close","5","0","PrimaryOnly",,,"False","T","EveryTick") -> 2770.5 | Y65: 0.005443658138 | Z65: =RTD("cqg.rtd",,"StudyData", "Close("&$D$12&") when LocalYear("&$D$12&")="&$D$10&" and localMonth("&$D$12&") ="&$E$10&" and LocalDay("&$D$12&")="&$F$10&" and Barix("&$D$12&",reference:=StartOfSession)="&A65&"", "Bar", "", "Close","5","0","PrimaryOnly",,,"False","T","EveryTick") -> 2754.75 | AA65: 0.001818347122
A66: 65 | B66: 13:55:00 | C66: -12 | D66: =RTD("cqg.rtd",,"StudyData", $D$12, "Tick", "FlatTicks=0", "Tick","D",C66,"PrimaryOnly") -> 2762.75 | H66: =RTD("cqg.rtd",,"StudyData", "Close("&$D$12&") when LocalYear("&$D$12&")="&$D$1&" and localMonth("&$D$12&") ="&$E$1&" and LocalDay("&$D$12&")="&$F$1&" and Barix("&$D$12&",reference:=StartOfSession)="&A66&"", "Bar", "", "Close","5","0","PrimaryOnly",,,"False","T","EveryTick") ->  | J66: =RTD("cqg.rtd",,"StudyData", "Close("&$D$12&") when LocalYear("&$D$12&")="&$D$2&" and localMonth("&$D$12&") ="&$E$2&" and LocalDay("&$D$12&")="&$F$2&" and Barix("&$D$12&",reference:=StartOfSession)="&A66&"", "Bar", "", "Close","5","0","PrimaryOnly",,,"False","T","EveryTick") -> 2784.75 | K66: =IFERROR((J66-$G$3)/$G$3,NA()) -> -0.001344809037 | L66: =RTD("cqg.rtd",,"StudyData", "Close("&$D$12&") when LocalYear("&$D$12&")="&$D$3&" and localMonth("&$D$12&") ="&$E$3&" and LocalDay("&$D$12&")="&$F$3&" and Barix("&$D$12&",reference:=StartOfSession)="&A66&"", "Bar", "", "Close","5","0","PrimaryOnly",,,"False","T","EveryTick") -> 2784.25 | M66: =IFERROR((L66-$G$4)/$G$4,NA()) -> 0.001889168766 | N66: =RTD("cqg.rtd",,"StudyData", "Close("&$D$12&") when LocalYear("&$D$12&")="&$D$4&" and localMonth("&$D$12&") ="&$E$4&" and LocalDay("&$D$12&")="&$F$4&" and Barix("&$D$12&",reference:=StartOfSession)="&A66&"", "Bar", "", "Close","5","0","PrimaryOnly",,,"False","T","EveryTick") -> 2788.25 | O66: =IFERROR((N66-$G$5)/$G$5,NA()) -> 0 | P66: =RTD("cqg.rtd",,"StudyData", "Close("&$D$12&") when LocalYear("&$D$12&")="&$D$5&" and localMonth("&$D$12&") ="&$E$5&" and LocalDay("&$D$12&")="&$F$5&" and Barix("&$D$12&",reference:=StartOfSession)="&A66&"", "Bar", "", "Close","5","0","PrimaryOnly",,,"False","T","EveryTick") -> 2783.25 | Q66: =IFERROR((P66-$G$6)/$G$6,NA()) -> -0.001255943303 | R66: =RTD("cqg.rtd",,"StudyData", "Close("&$D$12&") when LocalYear("&$D$12&")="&$D$6&" and localMonth("&$D$12&") ="&$E$6&" and LocalDay("&$D$12&")="&$F$6&" and Barix("&$D$12&",reference:=StartOfSession)="&A66&"", "Bar", "", "Close","5","0","PrimaryOnly",,,"False","T","EveryTick") -> 2791.25 | S66: =IFERROR((R66-$G$7)/$G$7,NA()) -> 0.003144654088 | T66: =RTD("cqg.rtd",,"StudyData", "Close("&$D$12&") when LocalYear("&$D$12&")="&$D$7&" and localMonth("&$D$12&") ="&$E$7&" and LocalDay("&$D$12&")="&$F$7&" and Barix("&$D$12&",reference:=StartOfSession)="&A66&"", "Bar", "", "Close","5","0","PrimaryOnly",,,"False","T","EveryTick") -> 2779.5 | U66: =IFERROR((T66-$G$8)/$G$8,NA()) -> 0.001260806916 | V66: =RTD("cqg.rtd",,"StudyData", "Close("&$D$12&") when LocalYear("&$D$12&")="&$D$8&" and localMonth("&$D$12&") ="&$E$8&" and LocalDay("&$D$12&")="&$F$8&" and Barix("&$D$12&",reference:=StartOfSession)="&A66&"", "Bar", "", "Close","5","0","PrimaryOnly",,,"False","T","EveryTick") -> 2772.25 | W66: =IFERROR((V66-$G$9)/$G$9,NA()) -> -0.001350864553 | X66: =RTD("cqg.rtd",,"StudyData", "Close("&$D$12&") when LocalYear("&$D$12&")="&$D$9&" and localMonth("&$D$12&") ="&$E$9&" and LocalDay("&$D$12&")="&$F$9&" and Barix("&$D$12&",reference:=StartOfSession)="&A66&"", "Bar", "", "Close","5","0","PrimaryOnly",,,"False","T","EveryTick") -> 2771 | Y66: =IFERROR((X66-$G$10)/$G$10,NA()) -> 0.00562511341 | Z66: =RTD("cqg.rtd",,"StudyData", "Close("&$D$12&") when LocalYear("&$D$12&")="&$D$10&" and localMonth("&$D$12&") ="&$E$10&" and LocalDay("&$D$12&")="&$F$10&" and Barix("&$D$12&",reference:=StartOfSession)="&A66&"", "Bar", "", "Close","5","0","PrimaryOnly",,,"False","T","EveryTick") -> 2754.5 | AA66: =IFERROR((Z66-$G$11)/$G$11,NA()) -> 0.001727429766
A67: =A66+1 -> 66 | B67: 14:00:00 | C67: -11 | D67: =RTD("cqg.rtd",,"StudyData", $D$12, "Tick", "FlatTicks=0", "Tick","D",C67,"PrimaryOnly") -> 2762.5 | H67: =RTD("cqg.rtd",,"StudyData", "Close("&$D$12&") when LocalYear("&$D$12&")="&$D$1&" and localMonth("&$D$12&") ="&$E$1&" and LocalDay("&$D$12&")="&$F$1&" and Barix("&$D$12&",reference:=StartOfSession)="&A67&"", "Bar", "", "Close","5","0","PrimaryOnly",,,"False","T","EveryTick") ->  | I67: =IFERROR((H67-$G$2)/$G$2,NA()) ->  | J67: =RTD("cqg.rtd",,"StudyData", "Close("&$D$12&") when LocalYear("&$D$12&")="&$D$2&" and localMonth("&$D$12&") ="&$E$2&" and LocalDay("&$D$12&")="&$F$2&" and Barix("&$D$12&",reference:=StartOfSession)="&A67&"", "Bar", "", "Close","5","0","PrimaryOnly",,,"False","T","EveryTick") -> 2783.25 | K67: -0.001882732652 | L67: =RTD("cqg.rtd",,"StudyData", "Close("&$D$12&") when LocalYear("&$D$12&")="&$D$3&" and localMonth("&$D$12&") ="&$E$3&" and LocalDay("&$D$12&")="&$F$3&" and Barix("&$D$12&",reference:=StartOfSession)="&A67&"", "Bar", "", "Close","5","0","PrimaryOnly",,,"False","T","EveryTick") -> 2784.25 | M67: 0.001889168766 | N67: =RTD("cqg.rtd",,"StudyData", "Close("&$D$12&") when LocalYear("&$D$12&")="&$D$4&" and localMonth("&$D$12&") ="&$E$4&" and LocalDay("&$D$12&")="&$F$4&" and Barix("&$D$12&",reference:=StartOfSession)="&A67&"", "Bar", "", "Close","5","0","PrimaryOnly",,,"False","T","EveryTick") -> 2792.25 | O67: 0.00143459159 | P67: =RTD("cqg.rtd",,"StudyData", "Close("&$D$12&") when LocalYear("&$D$12&")="&$D$5&" and localMonth("&$D$12&") ="&$E$5&" and LocalDay("&$D$12&")="&$F$5&" and Barix("&$D$12&",reference:=StartOfSession)="&A67&"", "Bar", "", "Close","5","0","PrimaryOnly",,,"False","T","EveryTick") -> 2785.75 | Q67: -0.0003588409438 | R67: =RTD("cqg.rtd",,"StudyData", "Close("&$D$12&") when LocalYear("&$D$12&")="&$D$6&" and localMonth("&$D$12&") ="&$E$6&" and LocalDay("&$D$12&")="&$F$6&" and Barix("&$D$12&",reference:=StartOfSession)="&A67&"", "Bar", "", "Close","5","0","PrimaryOnly",,,"False","T","EveryTick") -> 2791.5 | S67: 0.003234501348 | T67: =RTD("cqg.rtd",,"StudyData", "Close("&$D$12&") when LocalYear("&$D$12&")="&$D$7&" and localMonth("&$D$12&") ="&$E$7&" and LocalDay("&$D$12&")="&$F$7&" and Barix("&$D$12&",reference:=StartOfSession)="&A67&"", "Bar", "", "Close","5","0","PrimaryOnly",,,"False","T","EveryTick") -> 2779 | U67: 0.001080691643 | V67: =RTD("cqg.rtd",,"StudyData", "Close("&$D$12&") when LocalYear("&$D$12&")="&$D$8&" and localMonth("&$D$12&") ="&$E$8&" and LocalDay("&$D$12&")="&$F$8&" and Barix("&$D$12&",reference:=StartOfSession)="&A67&"", "Bar", "", "Close","5","0","PrimaryOnly",,,"False","T","EveryTick") -> 2772 | W67: -0.00144092219 | X67: =RTD("cqg.rtd",,"StudyData", "Close("&$D$12&") when LocalYear("&$D$12&")="&$D$9&" and localMonth("&$D$12&") ="&$E$9&" and LocalDay("&$D$12&")="&$F$9&" and Barix("&$D$12&",reference:=StartOfSession)="&A67&"", "Bar", "", "Close","5","0","PrimaryOnly",,,"False","T","EveryTick") -> 2771.25 | Y67: 0.005715841045 | Z67: =RTD("cqg.rtd",,"StudyData", "Close("&$D$12&") when LocalYear("&$D$12&")="&$D$10&" and localMonth("&$D$12&") ="&$E$10&" and LocalDay("&$D$12&")="&$F$10&" and Barix("&$D$12&",reference:=StartOfSession)="&A67&"", "Bar", "", "Close","5","0","PrimaryOnly",,,"False","T","EveryTick") -> 2753.75 | AA67: 0.001454677698 | AE67: =IF(AND(H66<>"",H67<>"",H68=""),A67,"") -> 
A68: 67 | B68: 14:05:00 | C68: -10 | D68: =RTD("cqg.rtd",,"StudyData", $D$12, "Tick", "FlatTicks=0", "Tick","D",C68,"PrimaryOnly") -> 2762.75 | H68: =RTD("cqg.rtd",,"StudyData", "Close("&$D$12&") when LocalYear("&$D$12&")="&$D$1&" and localMonth("&$D$12&") ="&$E$1&" and LocalDay("&$D$12&")="&$F$1&" and Barix("&$D$12&",reference:=StartOfSession)="&A68&"", "Bar", "", "Close","5","0","PrimaryOnly",,,"False","T","EveryTick") ->  | J68: =RTD("cqg.rtd",,"StudyData", "Close("&$D$12&") when LocalYear("&$D$12&")="&$D$2&" and localMonth("&$D$12&") ="&$E$2&" and LocalDay("&$D$12&")="&$F$2&" and Barix("&$D$12&",reference:=StartOfSession)="&A68&"", "Bar", "", "Close","5","0","PrimaryOnly",,,"False","T","EveryTick") -> 2783.25 | K68: -0.001882732652 | L68: =RTD("cqg.rtd",,"StudyData", "Close("&$D$12&") when LocalYear("&$D$12&")="&$D$3&" and localMonth("&$D$12&") ="&$E$3&" and LocalDay("&$D$12&")="&$F$3&" and Barix("&$D$12&",reference:=StartOfSession)="&A68&"", "Bar", "", "Close","5","0","PrimaryOnly",,,"False","T","EveryTick") -> 2785.5 | M68: 0.002338970853 | N68: =RTD("cqg.rtd",,"StudyData", "Close("&$D$12&") when LocalYear("&$D$12&")="&$D$4&" and localMonth("&$D$12&") ="&$E$4&" and LocalDay("&$D$12&")="&$F$4&" and Barix("&$D$12&",reference:=StartOfSession)="&A68&"", "Bar", "", "Close","5","0","PrimaryOnly",,,"False","T","EveryTick") -> 2791.5 | O68: 0.001165605667 | P68: =RTD("cqg.rtd",,"StudyData", "Close("&$D$12&") when LocalYear("&$D$12&")="&$D$5&" and localMonth("&$D$12&") ="&$E$5&" and LocalDay("&$D$12&")="&$F$5&" and Barix("&$D$12&",reference:=StartOfSession)="&A68&"", "Bar", "", "Close","5","0","PrimaryOnly",,,"False","T","EveryTick") -> 2786.5 | Q68: -8.971023594e-05 | R68: =RTD("cqg.rtd",,"StudyData", "Close("&$D$12&") when LocalYear("&$D$12&")="&$D$6&" and localMonth("&$D$12&") ="&$E$6&" and LocalDay("&$D$12&")="&$F$6&" and Barix("&$D$12&",reference:=StartOfSession)="&A68&"", "Bar", "", "Close","5","0","PrimaryOnly",,,"False","T","EveryTick") -> 2791.75 | S68: 0.003324348607 | T68: =RTD("cqg.rtd",,"StudyData", "Close("&$D$12&") when LocalYear("&$D$12&")="&$D$7&" and localMonth("&$D$12&") ="&$E$7&" and LocalDay("&$D$12&")="&$F$7&" and Barix("&$D$12&",reference:=StartOfSession)="&A68&"", "Bar", "", "Close","5","0","PrimaryOnly",,,"False","T","EveryTick") -> 2779 | U68: 0.001080691643 | V68: =RTD("cqg.rtd",,"StudyData", "Close("&$D$12&") when LocalYear("&$D$12&")="&$D$8&" and localMonth("&$D$12&") ="&$E$8&" and LocalDay("&$D$12&")="&$F$8&" and Barix("&$D$12&",reference:=StartOfSession)="&A68&"", "Bar", "", "Close","5","0","PrimaryOnly",,,"False","T","EveryTick") -> 2769 | W68: -0.002521613833 | X68: =RTD("cqg.rtd",,"StudyData", "Close("&$D$12&") when LocalYear("&$D$12&")="&$D$9&" and localMonth("&$D$12&") ="&$E$9&" and LocalDay("&$D$12&")="&$F$9&" and Barix("&$D$12&",reference:=StartOfSession)="&A68&"", "Bar", "", "Close","5","0","PrimaryOnly",,,"False","T","EveryTick") -> 2770.25 | Y68: 0.005352930503 | Z68: =RTD("cqg.rtd",,"StudyData", "Close("&$D$12&") when LocalYear("&$D$12&")="&$D$10&" and localMonth("&$D$12&") ="&$E$10&" and LocalDay("&$D$12&")="&$F$10&" and Barix("&$D$12&",reference:=StartOfSession)="&A68&"", "Bar", "", "Close","5","0","PrimaryOnly",,,"False","T","EveryTick") -> 2754 | AA68: 0.001545595054
A69: 68 | B69: 14:10:00 | C69: =C68+1 -> -9 | D69: =RTD("cqg.rtd",,"StudyData", $D$12, "Tick", "FlatTicks=0", "Tick","D",C69,"PrimaryOnly") -> 2762.5 | H69: =RTD("cqg.rtd",,"StudyData", "Close("&$D$12&") when LocalYear("&$D$12&")="&$D$1&" and localMonth("&$D$12&") ="&$E$1&" and LocalDay("&$D$12&")="&$F$1&" and Barix("&$D$12&",reference:=StartOfSession)="&A69&"", "Bar", "", "Close","5","0","PrimaryOnly",,,"False","T","EveryTick") ->  | J69: =RTD("cqg.rtd",,"StudyData", "Close("&$D$12&") when LocalYear("&$D$12&")="&$D$2&" and localMonth("&$D$12&") ="&$E$2&" and LocalDay("&$D$12&")="&$F$2&" and Barix("&$D$12&",reference:=StartOfSession)="&A69&"", "Bar", "", "Close","5","0","PrimaryOnly",,,"False","T","EveryTick") -> 2782.5 | K69: -0.002151694459 | L69: =RTD("cqg.rtd",,"StudyData", "Close("&$D$12&") when LocalYear("&$D$12&")="&$D$3&" and localMonth("&$D$12&") ="&$E$3&" and LocalDay("&$D$12&")="&$F$3&" and Barix("&$D$12&",reference:=StartOfSession)="&A69&"", "Bar", "", "Close","5","0","PrimaryOnly",,,"False","T","EveryTick") -> 2786.5 | M69: 0.002698812522 | N69: =RTD("cqg.rtd",,"StudyData", "Close("&$D$12&") when LocalYear("&$D$12&")="&$D$4&" and localMonth("&$D$12&") ="&$E$4&" and LocalDay("&$D$12&")="&$F$4&" and Barix("&$D$12&",reference:=StartOfSession)="&A69&"", "Bar", "", "Close","5","0","PrimaryOnly",,,"False","T","EveryTick") -> 2791 | O69: 0.0009862817179 | P69: =RTD("cqg.rtd",,"StudyData", "Close("&$D$12&") when LocalYear("&$D$12&")="&$D$5&" and localMonth("&$D$12&") ="&$E$5&" and LocalDay("&$D$12&")="&$F$5&" and Barix("&$D$12&",reference:=StartOfSession)="&A69&"", "Bar", "", "Close","5","0","PrimaryOnly",,,"False","T","EveryTick") -> 2786.5 | Q69: -8.971023594e-05 | R69: =RTD("cqg.rtd",,"StudyData", "Close("&$D$12&") when LocalYear("&$D$12&")="&$D$6&" and localMonth("&$D$12&") ="&$E$6&" and LocalDay("&$D$12&")="&$F$6&" and Barix("&$D$12&",reference:=StartOfSession)="&A69&"", "Bar", "", "Close","5","0","PrimaryOnly",,,"False","T","EveryTick") -> 2791.75 | S69: 0.003324348607 | T69: =RTD("cqg.rtd",,"StudyData", "Close("&$D$12&") when LocalYear("&$D$12&")="&$D$7&" and localMonth("&$D$12&") ="&$E$7&" and LocalDay("&$D$12&")="&$F$7&" and Barix("&$D$12&",reference:=StartOfSession)="&A69&"", "Bar", "", "Close","5","0","PrimaryOnly",,,"False","T","EveryTick") -> 2780.25 | U69: 0.001530979827 | V69: =RTD("cqg.rtd",,"StudyData", "Close("&$D$12&") when LocalYear("&$D$12&")="&$D$8&" and localMonth("&$D$12&") ="&$E$8&" and LocalDay("&$D$12&")="&$F$8&" and Barix("&$D$12&",reference:=StartOfSession)="&A69&"", "Bar", "", "Close","5","0","PrimaryOnly",,,"False","T","EveryTick") -> 2770.75 | W69: -0.001891210375 | X69: =RTD("cqg.rtd",,"StudyData", "Close("&$D$12&") when LocalYear("&$D$12&")="&$D$9&" and localMonth("&$D$12&") ="&$E$9&" and LocalDay("&$D$12&")="&$F$9&" and Barix("&$D$12&",reference:=StartOfSession)="&A69&"", "Bar", "", "Close","5","0","PrimaryOnly",,,"False","T","EveryTick") -> 2770.5 | Y69: 0.005443658138 | Z69: =RTD("cqg.rtd",,"StudyData", "Close("&$D$12&") when LocalYear("&$D$12&")="&$D$10&" and localMonth("&$D$12&") ="&$E$10&" and LocalDay("&$D$12&")="&$F$10&" and Barix("&$D$12&",reference:=StartOfSession)="&A69&"", "Bar", "", "Close","5","0","PrimaryOnly",,,"False","T","EveryTick") -> 2752 | AA69: 0.0008182562051
A70: 69 | B70: 14:15:00 | C70: -8 | D70: =RTD("cqg.rtd",,"StudyData", $D$12, "Tick", "FlatTicks=0", "Tick","D",C70,"PrimaryOnly") -> 2762.75 | H70: =RTD("cqg.rtd",,"StudyData", "Close("&$D$12&") when LocalYear("&$D$12&")="&$D$1&" and localMonth("&$D$12&") ="&$E$1&" and LocalDay("&$D$12&")="&$F$1&" and Barix("&$D$12&",reference:=StartOfSession)="&A70&"", "Bar", "", "Close","5","0","PrimaryOnly",,,"False","T","EveryTick") ->  | J70: =RTD("cqg.rtd",,"StudyData", "Close("&$D$12&") when LocalYear("&$D$12&")="&$D$2&" and localMonth("&$D$12&") ="&$E$2&" and LocalDay("&$D$12&")="&$F$2&" and Barix("&$D$12&",reference:=StartOfSession)="&A70&"", "Bar", "", "Close","5","0","PrimaryOnly",,,"False","T","EveryTick") -> 2781 | K70: -0.002689618074 | L70: =RTD("cqg.rtd",,"StudyData", "Close("&$D$12&") when LocalYear("&$D$12&")="&$D$3&" and localMonth("&$D$12&") ="&$E$3&" and LocalDay("&$D$12&")="&$F$3&" and Barix("&$D$12&",reference:=StartOfSession)="&A70&"", "Bar", "", "Close","5","0","PrimaryOnly",,,"False","T","EveryTick") -> 2785.75 | M70: 0.00242893127 | N70: =RTD("cqg.rtd",,"StudyData", "Close("&$D$12&") when LocalYear("&$D$12&")="&$D$4&" and localMonth("&$D$12&") ="&$E$4&" and LocalDay("&$D$12&")="&$F$4&" and Barix("&$D$12&",reference:=StartOfSession)="&A70&"", "Bar", "", "Close","5","0","PrimaryOnly",,,"False","T","EveryTick") -> 2790.5 | O70: 0.0008069577692 | P70: =RTD("cqg.rtd",,"StudyData", "Close("&$D$12&") when LocalYear("&$D$12&")="&$D$5&" and localMonth("&$D$12&") ="&$E$5&" and LocalDay("&$D$12&")="&$F$5&" and Barix("&$D$12&",reference:=StartOfSession)="&A70&"", "Bar", "", "Close","5","0","PrimaryOnly",,,"False","T","EveryTick") -> 2787.5 | Q70: 0.0002691307078 | R70: =RTD("cqg.rtd",,"StudyData", "Close("&$D$12&") when LocalYear("&$D$12&")="&$D$6&" and localMonth("&$D$12&") ="&$E$6&" and LocalDay("&$D$12&")="&$F$6&" and Barix("&$D$12&",reference:=StartOfSession)="&A70&"", "Bar", "", "Close","5","0","PrimaryOnly",,,"False","T","EveryTick") -> 2791.5 | S70: 0.003234501348 | T70: =RTD("cqg.rtd",,"StudyData", "Close("&$D$12&") when LocalYear("&$D$12&")="&$D$7&" and localMonth("&$D$12&") ="&$E$7&" and LocalDay("&$D$12&")="&$F$7&" and Barix("&$D$12&",reference:=StartOfSession)="&A70&"", "Bar", "", "Close","5","0","PrimaryOnly",,,"False","T","EveryTick") -> 2777.75 | U70: 0.0006304034582 | V70: =RTD("cqg.rtd",,"StudyData", "Close("&$D$12&") when LocalYear("&$D$12&")="&$D$8&" and localMonth("&$D$12&") ="&$E$8&" and LocalDay("&$D$12&")="&$F$8&" and Barix("&$D$12&",reference:=StartOfSession)="&A70&"", "Bar", "", "Close","5","0","PrimaryOnly",,,"False","T","EveryTick") -> 2771.75 | W70: -0.001530979827 | X70: =RTD("cqg.rtd",,"StudyData", "Close("&$D$12&") when LocalYear("&$D$12&")="&$D$9&" and localMonth("&$D$12&") ="&$E$9&" and LocalDay("&$D$12&")="&$F$9&" and Barix("&$D$12&",reference:=StartOfSession)="&A70&"", "Bar", "", "Close","5","0","PrimaryOnly",,,"False","T","EveryTick") -> 2771.5 | Y70: 0.005806568681 | Z70: =RTD("cqg.rtd",,"StudyData", "Close("&$D$12&") when LocalYear("&$D$12&")="&$D$10&" and localMonth("&$D$12&") ="&$E$10&" and LocalDay("&$D$12&")="&$F$10&" and Barix("&$D$12&",reference:=StartOfSession)="&A70&"", "Bar", "", "Close","5","0","PrimaryOnly",,,"False","T","EveryTick") -> 2752 | AA70: 0.0008182562051
A71: 70 | B71: 14:20:00 | C71: -7 | D71: =RTD("cqg.rtd",,"StudyData", $D$12, "Tick", "FlatTicks=0", "Tick","D",C71,"PrimaryOnly") -> 2762.5 | H71: =RTD("cqg.rtd",,"StudyData", "Close("&$D$12&") when LocalYear("&$D$12&")="&$D$1&" and localMonth("&$D$12&") ="&$E$1&" and LocalDay("&$D$12&")="&$F$1&" and Barix("&$D$12&",reference:=StartOfSession)="&A71&"", "Bar", "", "Close","5","0","PrimaryOnly",,,"False","T","EveryTick") ->  | J71: =RTD("cqg.rtd",,"StudyData", "Close("&$D$12&") when LocalYear("&$D$12&")="&$D$2&" and localMonth("&$D$12&") ="&$E$2&" and LocalDay("&$D$12&")="&$F$2&" and Barix("&$D$12&",reference:=StartOfSession)="&A71&"", "Bar", "", "Close","5","0","PrimaryOnly",,,"False","T","EveryTick") -> 2781.75 | K71: -0.002420656267 | L71: =RTD("cqg.rtd",,"StudyData", "Close("&$D$12&") when LocalYear("&$D$12&")="&$D$3&" and localMonth("&$D$12&") ="&$E$3&" and LocalDay("&$D$12&")="&$F$3&" and Barix("&$D$12&",reference:=StartOfSession)="&A71&"", "Bar", "", "Close","5","0","PrimaryOnly",,,"False","T","EveryTick") -> 2786.75 | M71: 0.00278877294 | N71: =RTD("cqg.rtd",,"StudyData", "Close("&$D$12&") when LocalYear("&$D$12&")="&$D$4&" and localMonth("&$D$12&") ="&$E$4&" and LocalDay("&$D$12&")="&$F$4&" and Barix("&$D$12&",reference:=StartOfSession)="&A71&"", "Bar", "", "Close","5","0","PrimaryOnly",,,"False","T","EveryTick") -> 2789.75 | O71: 0.0005379718461 | P71: =RTD("cqg.rtd",,"StudyData", "Close("&$D$12&") when LocalYear("&$D$12&")="&$D$5&" and localMonth("&$D$12&") ="&$E$5&" and LocalDay("&$D$12&")="&$F$5&" and Barix("&$D$12&",reference:=StartOfSession)="&A71&"", "Bar", "", "Close","5","0","PrimaryOnly",,,"False","T","EveryTick") -> 2787.75 | Q71: 0.0003588409438 | R71: =RTD("cqg.rtd",,"StudyData", "Close("&$D$12&") when LocalYear("&$D$12&")="&$D$6&" and localMonth("&$D$12&") ="&$E$6&" and LocalDay("&$D$12&")="&$F$6&" and Barix("&$D$12&",reference:=StartOfSession)="&A71&"", "Bar", "", "Close","5","0","PrimaryOnly",,,"False","T","EveryTick") -> 2792 | S71: 0.003414195867 | T71: =RTD("cqg.rtd",,"StudyData", "Close("&$D$12&") when LocalYear("&$D$12&")="&$D$7&" and localMonth("&$D$12&") ="&$E$7&" and LocalDay("&$D$12&")="&$F$7&" and Barix("&$D$12&",reference:=StartOfSession)="&A71&"", "Bar", "", "Close","5","0","PrimaryOnly",,,"False","T","EveryTick") -> 2779.75 | U71: 0.001350864553 | V71: =RTD("cqg.rtd",,"StudyData", "Close("&$D$12&") when LocalYear("&$D$12&")="&$D$8&" and localMonth("&$D$12&") ="&$E$8&" and LocalDay("&$D$12&")="&$F$8&" and Barix("&$D$12&",reference:=StartOfSession)="&A71&"", "Bar", "", "Close","5","0","PrimaryOnly",,,"False","T","EveryTick") -> 2774.25 | W71: -0.0006304034582 | X71: =RTD("cqg.rtd",,"StudyData", "Close("&$D$12&") when LocalYear("&$D$12&")="&$D$9&" and localMonth("&$D$12&") ="&$E$9&" and LocalDay("&$D$12&")="&$F$9&" and Barix("&$D$12&",reference:=StartOfSession)="&A71&"", "Bar", "", "Close","5","0","PrimaryOnly",,,"False","T","EveryTick") -> 2771.5 | Y71: 0.005806568681 | Z71: =RTD("cqg.rtd",,"StudyData", "Close("&$D$12&") when LocalYear("&$D$12&")="&$D$10&" and localMonth("&$D$12&") ="&$E$10&" and LocalDay("&$D$12&")="&$F$10&" and Barix("&$D$12&",reference:=StartOfSession)="&A71&"", "Bar", "", "Close","5","0","PrimaryOnly",,,"False","T","EveryTick") -> 2750.5 | AA71: 0.0002727520684
A72: 71 | B72: 14:25:00 | C72: -6 | D72: =RTD("cqg.rtd",,"StudyData", $D$12, "Tick", "FlatTicks=0", "Tick","D",C72,"PrimaryOnly") -> 2762.75 | H72: =RTD("cqg.rtd",,"StudyData", "Close("&$D$12&") when LocalYear("&$D$12&")="&$D$1&" and localMonth("&$D$12&") ="&$E$1&" and LocalDay("&$D$12&")="&$F$1&" and Barix("&$D$12&",reference:=StartOfSession)="&A72&"", "Bar", "", "Close","5","0","PrimaryOnly",,,"False","T","EveryTick") ->  | J72: =RTD("cqg.rtd",,"StudyData", "Close("&$D$12&") when LocalYear("&$D$12&")="&$D$2&" and localMonth("&$D$12&") ="&$E$2&" and LocalDay("&$D$12&")="&$F$2&" and Barix("&$D$12&",reference:=StartOfSession)="&A72&"", "Bar", "", "Close","5","0","PrimaryOnly",,,"False","T","EveryTick") -> 2783.75 | K72: -0.00170342478 | L72: =RTD("cqg.rtd",,"StudyData", "Close("&$D$12&") when LocalYear("&$D$12&")="&$D$3&" and localMonth("&$D$12&") ="&$E$3&" and LocalDay("&$D$12&")="&$F$3&" and Barix("&$D$12&",reference:=StartOfSession)="&A72&"", "Bar", "", "Close","5","0","PrimaryOnly",,,"False","T","EveryTick") -> 2787.5 | M72: 0.003058654192 | N72: =RTD("cqg.rtd",,"StudyData", "Close("&$D$12&") when LocalYear("&$D$12&")="&$D$4&" and localMonth("&$D$12&") ="&$E$4&" and LocalDay("&$D$12&")="&$F$4&" and Barix("&$D$12&",reference:=StartOfSession)="&A72&"", "Bar", "", "Close","5","0","PrimaryOnly",,,"False","T","EveryTick") -> 2787.25 | O72: -0.0003586478974 | P72: =RTD("cqg.rtd",,"StudyData", "Close("&$D$12&") when LocalYear("&$D$12&")="&$D$5&" and localMonth("&$D$12&") ="&$E$5&" and LocalDay("&$D$12&")="&$F$5&" and Barix("&$D$12&",reference:=StartOfSession)="&A72&"", "Bar", "", "Close","5","0","PrimaryOnly",,,"False","T","EveryTick") -> 2788.25 | Q72: 0.0005382614156 | R72: =RTD("cqg.rtd",,"StudyData", "Close("&$D$12&") when LocalYear("&$D$12&")="&$D$6&" and localMonth("&$D$12&") ="&$E$6&" and LocalDay("&$D$12&")="&$F$6&" and Barix("&$D$12&",reference:=StartOfSession)="&A72&"", "Bar", "", "Close","5","0","PrimaryOnly",,,"False","T","EveryTick") -> 2792.5 | S72: 0.003593890386 | T72: =RTD("cqg.rtd",,"StudyData", "Close("&$D$12&") when LocalYear("&$D$12&")="&$D$7&" and localMonth("&$D$12&") ="&$E$7&" and LocalDay("&$D$12&")="&$F$7&" and Barix("&$D$12&",reference:=StartOfSession)="&A72&"", "Bar", "", "Close","5","0","PrimaryOnly",,,"False","T","EveryTick") -> 2780.25 | U72: 0.001530979827 | V72: =RTD("cqg.rtd",,"StudyData", "Close("&$D$12&") when LocalYear("&$D$12&")="&$D$8&" and localMonth("&$D$12&") ="&$E$8&" and LocalDay("&$D$12&")="&$F$8&" and Barix("&$D$12&",reference:=StartOfSession)="&A72&"", "Bar", "", "Close","5","0","PrimaryOnly",,,"False","T","EveryTick") -> 2774 | W72: -0.0007204610951 | X72: =RTD("cqg.rtd",,"StudyData", "Close("&$D$12&") when LocalYear("&$D$12&")="&$D$9&" and localMonth("&$D$12&") ="&$E$9&" and LocalDay("&$D$12&")="&$F$9&" and Barix("&$D$12&",reference:=StartOfSession)="&A72&"", "Bar", "", "Close","5","0","PrimaryOnly",,,"False","T","EveryTick") -> 2771 | Y72: 0.00562511341 | Z72: =RTD("cqg.rtd",,"StudyData", "Close("&$D$12&") when LocalYear("&$D$12&")="&$D$10&" and localMonth("&$D$12&") ="&$E$10&" and LocalDay("&$D$12&")="&$F$10&" and Barix("&$D$12&",reference:=StartOfSession)="&A72&"", "Bar", "", "Close","5","0","PrimaryOnly",,,"False","T","EveryTick") -> 2751.5 | AA72: 0.0006364214929
A73: 72 | B73: 14:30:00 | C73: -5 | D73: =RTD("cqg.rtd",,"StudyData", $D$12, "Tick", "FlatTicks=0", "Tick","D",C73,"PrimaryOnly") -> 2762.5 | H73: =RTD("cqg.rtd",,"StudyData", "Close("&$D$12&") when LocalYear("&$D$12&")="&$D$1&" and localMonth("&$D$12&") ="&$E$1&" and LocalDay("&$D$12&")="&$F$1&" and Barix("&$D$12&",reference:=StartOfSession)="&A73&"", "Bar", "", "Close","5","0","PrimaryOnly",,,"False","T","EveryTick") ->  | J73: =RTD("cqg.rtd",,"StudyData", "Close("&$D$12&") when LocalYear("&$D$12&")="&$D$2&" and localMonth("&$D$12&") ="&$E$2&" and LocalDay("&$D$12&")="&$F$2&" and Barix("&$D$12&",reference:=StartOfSession)="&A73&"", "Bar", "", "Close","5","0","PrimaryOnly",,,"False","T","EveryTick") -> 2783 | K73: -0.001972386588 | L73: =RTD("cqg.rtd",,"StudyData", "Close("&$D$12&") when LocalYear("&$D$12&")="&$D$3&" and localMonth("&$D$12&") ="&$E$3&" and LocalDay("&$D$12&")="&$F$3&" and Barix("&$D$12&",reference:=StartOfSession)="&A73&"", "Bar", "", "Close","5","0","PrimaryOnly",,,"False","T","EveryTick") -> 2788 | M73: 0.003238575027 | N73: =RTD("cqg.rtd",,"StudyData", "Close("&$D$12&") when LocalYear("&$D$12&")="&$D$4&" and localMonth("&$D$12&") ="&$E$4&" and LocalDay("&$D$12&")="&$F$4&" and Barix("&$D$12&",reference:=StartOfSession)="&A73&"", "Bar", "", "Close","5","0","PrimaryOnly",,,"False","T","EveryTick") -> 2786.75 | O73: -0.0005379718461 | P73: =RTD("cqg.rtd",,"StudyData", "Close("&$D$12&") when LocalYear("&$D$12&")="&$D$5&" and localMonth("&$D$12&") ="&$E$5&" and LocalDay("&$D$12&")="&$F$5&" and Barix("&$D$12&",reference:=StartOfSession)="&A73&"", "Bar", "", "Close","5","0","PrimaryOnly",,,"False","T","EveryTick") -> 2788.5 | Q73: 0.0006279716516 | R73: =RTD("cqg.rtd",,"StudyData", "Close("&$D$12&") when LocalYear("&$D$12&")="&$D$6&" and localMonth("&$D$12&") ="&$E$6&" and LocalDay("&$D$12&")="&$F$6&" and Barix("&$D$12&",reference:=StartOfSession)="&A73&"", "Bar", "", "Close","5","0","PrimaryOnly",,,"False","T","EveryTick") -> 2792.25 | S73: 0.003504043127 | T73: =RTD("cqg.rtd",,"StudyData", "Close("&$D$12&") when LocalYear("&$D$12&")="&$D$7&" and localMonth("&$D$12&") ="&$E$7&" and LocalDay("&$D$12&")="&$F$7&" and Barix("&$D$12&",reference:=StartOfSession)="&A73&"", "Bar", "", "Close","5","0","PrimaryOnly",,,"False","T","EveryTick") -> 2780.25 | U73: 0.001530979827 | V73: =RTD("cqg.rtd",,"StudyData", "Close("&$D$12&") when LocalYear("&$D$12&")="&$D$8&" and localMonth("&$D$12&") ="&$E$8&" and LocalDay("&$D$12&")="&$F$8&" and Barix("&$D$12&",reference:=StartOfSession)="&A73&"", "Bar", "", "Close","5","0","PrimaryOnly",,,"False","T","EveryTick") -> 2773.25 | W73: -0.0009906340058 | X73: =RTD("cqg.rtd",,"StudyData", "Close("&$D$12&") when LocalYear("&$D$12&")="&$D$9&" and localMonth("&$D$12&") ="&$E$9&" and LocalDay("&$D$12&")="&$F$9&" and Barix("&$D$12&",reference:=StartOfSession)="&A73&"", "Bar", "", "Close","5","0","PrimaryOnly",,,"False","T","EveryTick") -> 2771 | Y73: 0.00562511341 | Z73: =RTD("cqg.rtd",,"StudyData", "Close("&$D$12&") when LocalYear("&$D$12&")="&$D$10&" and localMonth("&$D$12&") ="&$E$10&" and LocalDay("&$D$12&")="&$F$10&" and Barix("&$D$12&",reference:=StartOfSession)="&A73&"", "Bar", "", "Close","5","0","PrimaryOnly",,,"False","T","EveryTick") -> 2751.5 | AA73: 0.0006364214929
A74: 73 | B74: 14:35:00 | C74: -4 | D74: =RTD("cqg.rtd",,"StudyData", $D$12, "Tick", "FlatTicks=0", "Tick","D",C74,"PrimaryOnly") -> 2762.75 | H74: =RTD("cqg.rtd",,"StudyData", "Close("&$D$12&") when LocalYear("&$D$12&")="&$D$1&" and localMonth("&$D$12&") ="&$E$1&" and LocalDay("&$D$12&")="&$F$1&" and Barix("&$D$12&",reference:=StartOfSession)="&A74&"", "Bar", "", "Close","5","0","PrimaryOnly",,,"False","T","EveryTick") ->  | J74: =RTD("cqg.rtd",,"StudyData", "Close("&$D$12&") when LocalYear("&$D$12&")="&$D$2&" and localMonth("&$D$12&") ="&$E$2&" and LocalDay("&$D$12&")="&$F$2&" and Barix("&$D$12&",reference:=StartOfSession)="&A74&"", "Bar", "", "Close","5","0","PrimaryOnly",,,"False","T","EveryTick") -> 2783.25 | K74: -0.001882732652 | L74: =RTD("cqg.rtd",,"StudyData", "Close("&$D$12&") when LocalYear("&$D$12&")="&$D$3&" and localMonth("&$D$12&") ="&$E$3&" and LocalDay("&$D$12&")="&$F$3&" and Barix("&$D$12&",reference:=StartOfSession)="&A74&"", "Bar", "", "Close","5","0","PrimaryOnly",,,"False","T","EveryTick") -> 2788 | M74: 0.003238575027 | N74: =RTD("cqg.rtd",,"StudyData", "Close("&$D$12&") when LocalYear("&$D$12&")="&$D$4&" and localMonth("&$D$12&") ="&$E$4&" and LocalDay("&$D$12&")="&$F$4&" and Barix("&$D$12&",reference:=StartOfSession)="&A74&"", "Bar", "", "Close","5","0","PrimaryOnly",,,"False","T","EveryTick") -> 2785.25 | O74: -0.001075943692 | P74: =RTD("cqg.rtd",,"StudyData", "Close("&$D$12&") when LocalYear("&$D$12&")="&$D$5&" and localMonth("&$D$12&") ="&$E$5&" and LocalDay("&$D$12&")="&$F$5&" and Barix("&$D$12&",reference:=StartOfSession)="&A74&"", "Bar", "", "Close","5","0","PrimaryOnly",,,"False","T","EveryTick") -> 2788.5 | Q74: 0.0006279716516 | R74: =RTD("cqg.rtd",,"StudyData", "Close("&$D$12&") when LocalYear("&$D$12&")="&$D$6&" and localMonth("&$D$12&") ="&$E$6&" and LocalDay("&$D$12&")="&$F$6&" and Barix("&$D$12&",reference:=StartOfSession)="&A74&"", "Bar", "", "Close","5","0","PrimaryOnly",,,"False","T","EveryTick") -> 2791.25 | S74: 0.003144654088 | T74: =RTD("cqg.rtd",,"StudyData", "Close("&$D$12&") when LocalYear("&$D$12&")="&$D$7&" and localMonth("&$D$12&") ="&$E$7&" and LocalDay("&$D$12&")="&$F$7&" and Barix("&$D$12&",reference:=StartOfSession)="&A74&"", "Bar", "", "Close","5","0","PrimaryOnly",,,"False","T","EveryTick") -> 2781.25 | U74: 0.001891210375 | V74: =RTD("cqg.rtd",,"StudyData", "Close("&$D$12&") when LocalYear("&$D$12&")="&$D$8&" and localMonth("&$D$12&") ="&$E$8&" and LocalDay("&$D$12&")="&$F$8&" and Barix("&$D$12&",reference:=StartOfSession)="&A74&"", "Bar", "", "Close","5","0","PrimaryOnly",,,"False","T","EveryTick") -> 2775 | W74: -0.0003602305476 | X74: =RTD("cqg.rtd",,"StudyData", "Close("&$D$12&") when LocalYear("&$D$12&")="&$D$9&" and localMonth("&$D$12&") ="&$E$9&" and LocalDay("&$D$12&")="&$F$9&" and Barix("&$D$12&",reference:=StartOfSession)="&A74&"", "Bar", "", "Close","5","0","PrimaryOnly",,,"False","T","EveryTick") -> 2771 | Y74: 0.00562511341 | Z74: =RTD("cqg.rtd",,"StudyData", "Close("&$D$12&") when LocalYear("&$D$12&")="&$D$10&" and localMonth("&$D$12&") ="&$E$10&" and LocalDay("&$D$12&")="&$F$10&" and Barix("&$D$12&",reference:=StartOfSession)="&A74&"", "Bar", "", "Close","5","0","PrimaryOnly",,,"False","T","EveryTick") -> 2752 | AA74: 0.0008182562051
A75: 74 | B75: 14:40:00 | C75: -3 | D75: =RTD("cqg.rtd",,"StudyData", $D$12, "Tick", "FlatTicks=0", "Tick","D",C75,"PrimaryOnly") -> 2762.5 | H75: =RTD("cqg.rtd",,"StudyData", "Close("&$D$12&") when LocalYear("&$D$12&")="&$D$1&" and localMonth("&$D$12&") ="&$E$1&" and LocalDay("&$D$12&")="&$F$1&" and Barix("&$D$12&",reference:=StartOfSession)="&A75&"", "Bar", "", "Close","5","0","PrimaryOnly",,,"False","T","EveryTick") ->  | J75: =RTD("cqg.rtd",,"StudyData", "Close("&$D$12&") when LocalYear("&$D$12&")="&$D$2&" and localMonth("&$D$12&") ="&$E$2&" and LocalDay("&$D$12&")="&$F$2&" and Barix("&$D$12&",reference:=StartOfSession)="&A75&"", "Bar", "", "Close","5","0","PrimaryOnly",,,"False","T","EveryTick") -> 2782.75 | K75: -0.002062040524 | L75: =RTD("cqg.rtd",,"StudyData", "Close("&$D$12&") when LocalYear("&$D$12&")="&$D$3&" and localMonth("&$D$12&") ="&$E$3&" and LocalDay("&$D$12&")="&$F$3&" and Barix("&$D$12&",reference:=StartOfSession)="&A75&"", "Bar", "", "Close","5","0","PrimaryOnly",,,"False","T","EveryTick") -> 2789.75 | M75: 0.003868297949 | N75: =RTD("cqg.rtd",,"StudyData", "Close("&$D$12&") when LocalYear("&$D$12&")="&$D$4&" and localMonth("&$D$12&") ="&$E$4&" and LocalDay("&$D$12&")="&$F$4&" and Barix("&$D$12&",reference:=StartOfSession)="&A75&"", "Bar", "", "Close","5","0","PrimaryOnly",,,"False","T","EveryTick") -> 2786 | O75: -0.0008069577692 | P75: =RTD("cqg.rtd",,"StudyData", "Close("&$D$12&") when LocalYear("&$D$12&")="&$D$5&" and localMonth("&$D$12&") ="&$E$5&" and LocalDay("&$D$12&")="&$F$5&" and Barix("&$D$12&",reference:=StartOfSession)="&A75&"", "Bar", "", "Close","5","0","PrimaryOnly",,,"False","T","EveryTick") -> 2787.75 | Q75: 0.0003588409438 | R75: =RTD("cqg.rtd",,"StudyData", "Close("&$D$12&") when LocalYear("&$D$12&")="&$D$6&" and localMonth("&$D$12&") ="&$E$6&" and LocalDay("&$D$12&")="&$F$6&" and Barix("&$D$12&",reference:=StartOfSession)="&A75&"", "Bar", "", "Close","5","0","PrimaryOnly",,,"False","T","EveryTick") -> 2790 | S75: 0.00269541779 | T75: =RTD("cqg.rtd",,"StudyData", "Close("&$D$12&") when LocalYear("&$D$12&")="&$D$7&" and localMonth("&$D$12&") ="&$E$7&" and LocalDay("&$D$12&")="&$F$7&" and Barix("&$D$12&",reference:=StartOfSession)="&A75&"", "Bar", "", "Close","5","0","PrimaryOnly",,,"False","T","EveryTick") -> 2780.75 | U75: 0.001711095101 | V75: =RTD("cqg.rtd",,"StudyData", "Close("&$D$12&") when LocalYear("&$D$12&")="&$D$8&" and localMonth("&$D$12&") ="&$E$8&" and LocalDay("&$D$12&")="&$F$8&" and Barix("&$D$12&",reference:=StartOfSession)="&A75&"", "Bar", "", "Close","5","0","PrimaryOnly",,,"False","T","EveryTick") -> 2773.25 | W75: -0.0009906340058 | X75: =RTD("cqg.rtd",,"StudyData", "Close("&$D$12&") when LocalYear("&$D$12&")="&$D$9&" and localMonth("&$D$12&") ="&$E$9&" and LocalDay("&$D$12&")="&$F$9&" and Barix("&$D$12&",reference:=StartOfSession)="&A75&"", "Bar", "", "Close","5","0","PrimaryOnly",,,"False","T","EveryTick") -> 2771.25 | Y75: 0.005715841045 | Z75: =RTD("cqg.rtd",,"StudyData", "Close("&$D$12&") when LocalYear("&$D$12&")="&$D$10&" and localMonth("&$D$12&") ="&$E$10&" and LocalDay("&$D$12&")="&$F$10&" and Barix("&$D$12&",reference:=StartOfSession)="&A75&"", "Bar", "", "Close","5","0","PrimaryOnly",,,"False","T","EveryTick") -> 2751.25 | AA75: 0.0005455041367
A76: 75 | B76: 14:45:00 | C76: -2 | D76: =RTD("cqg.rtd",,"StudyData", $D$12, "Tick", "FlatTicks=0", "Tick","D",C76,"PrimaryOnly") -> 2762.75 | H76: =RTD("cqg.rtd",,"StudyData", "Close("&$D$12&") when LocalYear("&$D$12&")="&$D$1&" and localMonth("&$D$12&") ="&$E$1&" and LocalDay("&$D$12&")="&$F$1&" and Barix("&$D$12&",reference:=StartOfSession)="&A76&"", "Bar", "", "Close","5","0","PrimaryOnly",,,"False","T","EveryTick") ->  | J76: =RTD("cqg.rtd",,"StudyData", "Close("&$D$12&") when LocalYear("&$D$12&")="&$D$2&" and localMonth("&$D$12&") ="&$E$2&" and LocalDay("&$D$12&")="&$F$2&" and Barix("&$D$12&",reference:=StartOfSession)="&A76&"", "Bar", "", "Close","5","0","PrimaryOnly",,,"False","T","EveryTick") -> 2783 | K76: -0.001972386588 | L76: =RTD("cqg.rtd",,"StudyData", "Close("&$D$12&") when LocalYear("&$D$12&")="&$D$3&" and localMonth("&$D$12&") ="&$E$3&" and LocalDay("&$D$12&")="&$F$3&" and Barix("&$D$12&",reference:=StartOfSession)="&A76&"", "Bar", "", "Close","5","0","PrimaryOnly",,,"False","T","EveryTick") -> 2789.5 | M76: 0.003778337531 | N76: =RTD("cqg.rtd",,"StudyData", "Close("&$D$12&") when LocalYear("&$D$12&")="&$D$4&" and localMonth("&$D$12&") ="&$E$4&" and LocalDay("&$D$12&")="&$F$4&" and Barix("&$D$12&",reference:=StartOfSession)="&A76&"", "Bar", "", "Close","5","0","PrimaryOnly",,,"False","T","EveryTick") -> 2782.75 | O76: -0.001972563436 | P76: =RTD("cqg.rtd",,"StudyData", "Close("&$D$12&") when LocalYear("&$D$12&")="&$D$5&" and localMonth("&$D$12&") ="&$E$5&" and LocalDay("&$D$12&")="&$F$5&" and Barix("&$D$12&",reference:=StartOfSession)="&A76&"", "Bar", "", "Close","5","0","PrimaryOnly",,,"False","T","EveryTick") -> 2788.25 | Q76: 0.0005382614156 | R76: =RTD("cqg.rtd",,"StudyData", "Close("&$D$12&") when LocalYear("&$D$12&")="&$D$6&" and localMonth("&$D$12&") ="&$E$6&" and LocalDay("&$D$12&")="&$F$6&" and Barix("&$D$12&",reference:=StartOfSession)="&A76&"", "Bar", "", "Close","5","0","PrimaryOnly",,,"False","T","EveryTick") -> 2792 | S76: 0.003414195867 | T76: =RTD("cqg.rtd",,"StudyData", "Close("&$D$12&") when LocalYear("&$D$12&")="&$D$7&" and localMonth("&$D$12&") ="&$E$7&" and LocalDay("&$D$12&")="&$F$7&" and Barix("&$D$12&",reference:=StartOfSession)="&A76&"", "Bar", "", "Close","5","0","PrimaryOnly",,,"False","T","EveryTick") -> 2780.75 | U76: 0.001711095101 | V76: =RTD("cqg.rtd",,"StudyData", "Close("&$D$12&") when LocalYear("&$D$12&")="&$D$8&" and localMonth("&$D$12&") ="&$E$8&" and LocalDay("&$D$12&")="&$F$8&" and Barix("&$D$12&",reference:=StartOfSession)="&A76&"", "Bar", "", "Close","5","0","PrimaryOnly",,,"False","T","EveryTick") -> 2771.75 | W76: -0.001530979827 | X76: =RTD("cqg.rtd",,"StudyData", "Close("&$D$12&") when LocalYear("&$D$12&")="&$D$9&" and localMonth("&$D$12&") ="&$E$9&" and LocalDay("&$D$12&")="&$F$9&" and Barix("&$D$12&",reference:=StartOfSession)="&A76&"", "Bar", "", "Close","5","0","PrimaryOnly",,,"False","T","EveryTick") -> 2771.25 | Y76: 0.005715841045 | Z76: =RTD("cqg.rtd",,"StudyData", "Close("&$D$12&") when LocalYear("&$D$12&")="&$D$10&" and localMonth("&$D$12&") ="&$E$10&" and LocalDay("&$D$12&")="&$F$10&" and Barix("&$D$12&",reference:=StartOfSession)="&A76&"", "Bar", "", "Close","5","0","PrimaryOnly",,,"False","T","EveryTick") -> 2753.5 | AA76: 0.001363760342
A77: 76 | B77: 14:50:00 | C77: -1 | D77: =RTD("cqg.rtd",,"StudyData", $D$12, "Tick", "FlatTicks=0", "Tick","D",C77,"PrimaryOnly") -> 2762.5 | H77: =RTD("cqg.rtd",,"StudyData", "Close("&$D$12&") when LocalYear("&$D$12&")="&$D$1&" and localMonth("&$D$12&") ="&$E$1&" and LocalDay("&$D$12&")="&$F$1&" and Barix("&$D$12&",reference:=StartOfSession)="&A77&"", "Bar", "", "Close","5","0","PrimaryOnly",,,"False","T","EveryTick") ->  | J77: =RTD("cqg.rtd",,"StudyData", "Close("&$D$12&") when LocalYear("&$D$12&")="&$D$2&" and localMonth("&$D$12&") ="&$E$2&" and LocalDay("&$D$12&")="&$F$2&" and Barix("&$D$12&",reference:=StartOfSession)="&A77&"", "Bar", "", "Close","5","0","PrimaryOnly",,,"False","T","EveryTick") -> 2781.25 | K77: -0.002599964138 | L77: =RTD("cqg.rtd",,"StudyData", "Close("&$D$12&") when LocalYear("&$D$12&")="&$D$3&" and localMonth("&$D$12&") ="&$E$3&" and LocalDay("&$D$12&")="&$F$3&" and Barix("&$D$12&",reference:=StartOfSession)="&A77&"", "Bar", "", "Close","5","0","PrimaryOnly",,,"False","T","EveryTick") -> 2787 | M77: 0.002878733357 | N77: =RTD("cqg.rtd",,"StudyData", "Close("&$D$12&") when LocalYear("&$D$12&")="&$D$4&" and localMonth("&$D$12&") ="&$E$4&" and LocalDay("&$D$12&")="&$F$4&" and Barix("&$D$12&",reference:=StartOfSession)="&A77&"", "Bar", "", "Close","5","0","PrimaryOnly",,,"False","T","EveryTick") -> 2782.5 | O77: -0.00206222541 | P77: =RTD("cqg.rtd",,"StudyData", "Close("&$D$12&") when LocalYear("&$D$12&")="&$D$5&" and localMonth("&$D$12&") ="&$E$5&" and LocalDay("&$D$12&")="&$F$5&" and Barix("&$D$12&",reference:=StartOfSession)="&A77&"", "Bar", "", "Close","5","0","PrimaryOnly",,,"False","T","EveryTick") -> 2791 | Q77: 0.001525074011 | R77: =RTD("cqg.rtd",,"StudyData", "Close("&$D$12&") when LocalYear("&$D$12&")="&$D$6&" and localMonth("&$D$12&") ="&$E$6&" and LocalDay("&$D$12&")="&$F$6&" and Barix("&$D$12&",reference:=StartOfSession)="&A77&"", "Bar", "", "Close","5","0","PrimaryOnly",,,"False","T","EveryTick") -> 2788.25 | S77: 0.002066486972 | T77: =RTD("cqg.rtd",,"StudyData", "Close("&$D$12&") when LocalYear("&$D$12&")="&$D$7&" and localMonth("&$D$12&") ="&$E$7&" and LocalDay("&$D$12&")="&$F$7&" and Barix("&$D$12&",reference:=StartOfSession)="&A77&"", "Bar", "", "Close","5","0","PrimaryOnly",,,"False","T","EveryTick") -> 2782.25 | U77: 0.002251440922 | V77: =RTD("cqg.rtd",,"StudyData", "Close("&$D$12&") when LocalYear("&$D$12&")="&$D$8&" and localMonth("&$D$12&") ="&$E$8&" and LocalDay("&$D$12&")="&$F$8&" and Barix("&$D$12&",reference:=StartOfSession)="&A77&"", "Bar", "", "Close","5","0","PrimaryOnly",,,"False","T","EveryTick") -> 2774.25 | W77: -0.0006304034582 | X77: =RTD("cqg.rtd",,"StudyData", "Close("&$D$12&") when LocalYear("&$D$12&")="&$D$9&" and localMonth("&$D$12&") ="&$E$9&" and LocalDay("&$D$12&")="&$F$9&" and Barix("&$D$12&",reference:=StartOfSession)="&A77&"", "Bar", "", "Close","5","0","PrimaryOnly",,,"False","T","EveryTick") -> 2772.5 | Y77: 0.006169479223 | Z77: =RTD("cqg.rtd",,"StudyData", "Close("&$D$12&") when LocalYear("&$D$12&")="&$D$10&" and localMonth("&$D$12&") ="&$E$10&" and LocalDay("&$D$12&")="&$F$10&" and Barix("&$D$12&",reference:=StartOfSession)="&A77&"", "Bar", "", "Close","5","0","PrimaryOnly",,,"False","T","EveryTick") -> 2753 | AA77: 0.00118192563
A78: 77 | B78: 14:55:00 | C78: =C77+1 -> 0 | D78: =RTD("cqg.rtd",,"StudyData", $D$12, "Tick", "FlatTicks=0", "Tick","D",C78,"PrimaryOnly") -> 2762.75 | H78: =RTD("cqg.rtd",,"StudyData", "Close("&$D$12&") when LocalYear("&$D$12&")="&$D$1&" and localMonth("&$D$12&") ="&$E$1&" and LocalDay("&$D$12&")="&$F$1&" and Barix("&$D$12&",reference:=StartOfSession)="&A78&"", "Bar", "", "Close","5","0","PrimaryOnly",,,"False","T","EveryTick") ->  | J78: =RTD("cqg.rtd",,"StudyData", "Close("&$D$12&") when LocalYear("&$D$12&")="&$D$2&" and localMonth("&$D$12&") ="&$E$2&" and LocalDay("&$D$12&")="&$F$2&" and Barix("&$D$12&",reference:=StartOfSession)="&A78&"", "Bar", "", "Close","5","0","PrimaryOnly",,,"False","T","EveryTick") -> 2784.75 | K78: -0.001344809037 | L78: =RTD("cqg.rtd",,"StudyData", "Close("&$D$12&") when LocalYear("&$D$12&")="&$D$3&" and localMonth("&$D$12&") ="&$E$3&" and LocalDay("&$D$12&")="&$F$3&" and Barix("&$D$12&",reference:=StartOfSession)="&A78&"", "Bar", "", "Close","5","0","PrimaryOnly",,,"False","T","EveryTick") -> 2787.75 | M78: 0.00314861461 | N78: =RTD("cqg.rtd",,"StudyData", "Close("&$D$12&") when LocalYear("&$D$12&")="&$D$4&" and localMonth("&$D$12&") ="&$E$4&" and LocalDay("&$D$12&")="&$F$4&" and Barix("&$D$12&",reference:=StartOfSession)="&A78&"", "Bar", "", "Close","5","0","PrimaryOnly",,,"False","T","EveryTick") -> 2780.5 | O78: -0.002779521205 | P78: =RTD("cqg.rtd",,"StudyData", "Close("&$D$12&") when LocalYear("&$D$12&")="&$D$5&" and localMonth("&$D$12&") ="&$E$5&" and LocalDay("&$D$12&")="&$F$5&" and Barix("&$D$12&",reference:=StartOfSession)="&A78&"", "Bar", "", "Close","5","0","PrimaryOnly",,,"False","T","EveryTick") -> 2790.5 | Q78: 0.001345653539 | R78: =RTD("cqg.rtd",,"StudyData", "Close("&$D$12&") when LocalYear("&$D$12&")="&$D$6&" and localMonth("&$D$12&") ="&$E$6&" and LocalDay("&$D$12&")="&$F$6&" and Barix("&$D$12&",reference:=StartOfSession)="&A78&"", "Bar", "", "Close","5","0","PrimaryOnly",,,"False","T","EveryTick") -> 2786.5 | S78: 0.001437556155 | T78: =RTD("cqg.rtd",,"StudyData", "Close("&$D$12&") when LocalYear("&$D$12&")="&$D$7&" and localMonth("&$D$12&") ="&$E$7&" and LocalDay("&$D$12&")="&$F$7&" and Barix("&$D$12&",reference:=StartOfSession)="&A78&"", "Bar", "", "Close","5","0","PrimaryOnly",,,"False","T","EveryTick") -> 2782.5 | U78: 0.002341498559 | V78: =RTD("cqg.rtd",,"StudyData", "Close("&$D$12&") when LocalYear("&$D$12&")="&$D$8&" and localMonth("&$D$12&") ="&$E$8&" and LocalDay("&$D$12&")="&$F$8&" and Barix("&$D$12&",reference:=StartOfSession)="&A78&"", "Bar", "", "Close","5","0","PrimaryOnly",,,"False","T","EveryTick") -> 2774 | W78: -0.0007204610951 | X78: =RTD("cqg.rtd",,"StudyData", "Close("&$D$12&") when LocalYear("&$D$12&")="&$D$9&" and localMonth("&$D$12&") ="&$E$9&" and LocalDay("&$D$12&")="&$F$9&" and Barix("&$D$12&",reference:=StartOfSession)="&A78&"", "Bar", "", "Close","5","0","PrimaryOnly",,,"False","T","EveryTick") -> 2776.5 | Y78: 0.007621121394 | Z78: =RTD("cqg.rtd",,"StudyData", "Close("&$D$12&") when LocalYear("&$D$12&")="&$D$10&" and localMonth("&$D$12&") ="&$E$10&" and LocalDay("&$D$12&")="&$F$10&" and Barix("&$D$12&",reference:=StartOfSession)="&A78&"", "Bar", "", "Close","5","0","PrimaryOnly",,,"False","T","EveryTick") -> 2753.5 | AA78: 0.001363760342
A79: 78 | B79: 15:00:00 | H79: =RTD("cqg.rtd",,"StudyData", "Close("&$D$12&") when LocalYear("&$D$12&")="&$D$1&" and localMonth("&$D$12&") ="&$E$1&" and LocalDay("&$D$12&")="&$F$1&" and Barix("&$D$12&",reference:=StartOfSession)="&A79&"", "Bar", "", "Close","5","0","PrimaryOnly",,,"False","T","EveryTick") ->  | J79: =RTD("cqg.rtd",,"StudyData", "Close("&$D$12&") when LocalYear("&$D$12&")="&$D$2&" and localMonth("&$D$12&") ="&$E$2&" and LocalDay("&$D$12&")="&$F$2&" and Barix("&$D$12&",reference:=StartOfSession)="&A79&"", "Bar", "", "Close","5","0","PrimaryOnly",,,"False","T","EveryTick") -> 2784 | K79: -0.001613770845 | L79: =RTD("cqg.rtd",,"StudyData", "Close("&$D$12&") when LocalYear("&$D$12&")="&$D$3&" and localMonth("&$D$12&") ="&$E$3&" and LocalDay("&$D$12&")="&$F$3&" and Barix("&$D$12&",reference:=StartOfSession)="&A79&"", "Bar", "", "Close","5","0","PrimaryOnly",,,"False","T","EveryTick") -> 2788.75 | M79: 0.003508456279 | N79: =RTD("cqg.rtd",,"StudyData", "Close("&$D$12&") when LocalYear("&$D$12&")="&$D$4&" and localMonth("&$D$12&") ="&$E$4&" and LocalDay("&$D$12&")="&$F$4&" and Barix("&$D$12&",reference:=StartOfSession)="&A79&"", "Bar", "", "Close","5","0","PrimaryOnly",,,"False","T","EveryTick") -> 2782 | O79: -0.002241549359 | P79: =RTD("cqg.rtd",,"StudyData", "Close("&$D$12&") when LocalYear("&$D$12&")="&$D$5&" and localMonth("&$D$12&") ="&$E$5&" and LocalDay("&$D$12&")="&$F$5&" and Barix("&$D$12&",reference:=StartOfSession)="&A79&"", "Bar", "", "Close","5","0","PrimaryOnly",,,"False","T","EveryTick") -> 2789 | Q79: 0.0008073921234 | R79: =RTD("cqg.rtd",,"StudyData", "Close("&$D$12&") when LocalYear("&$D$12&")="&$D$6&" and localMonth("&$D$12&") ="&$E$6&" and LocalDay("&$D$12&")="&$F$6&" and Barix("&$D$12&",reference:=StartOfSession)="&A79&"", "Bar", "", "Close","5","0","PrimaryOnly",,,"False","T","EveryTick") -> 2785.75 | S79: 0.001168014376 | T79: =RTD("cqg.rtd",,"StudyData", "Close("&$D$12&") when LocalYear("&$D$12&")="&$D$7&" and localMonth("&$D$12&") ="&$E$7&" and LocalDay("&$D$12&")="&$F$7&" and Barix("&$D$12&",reference:=StartOfSession)="&A79&"", "Bar", "", "Close","5","0","PrimaryOnly",,,"False","T","EveryTick") -> 2782.25 | U79: 0.002251440922 | V79: =RTD("cqg.rtd",,"StudyData", "Close("&$D$12&") when LocalYear("&$D$12&")="&$D$8&" and localMonth("&$D$12&") ="&$E$8&" and LocalDay("&$D$12&")="&$F$8&" and Barix("&$D$12&",reference:=StartOfSession)="&A79&"", "Bar", "", "Close","5","0","PrimaryOnly",,,"False","T","EveryTick") -> 2778 | W79: 0.0007204610951 | X79: =RTD("cqg.rtd",,"StudyData", "Close("&$D$12&") when LocalYear("&$D$12&")="&$D$9&" and localMonth("&$D$12&") ="&$E$9&" and LocalDay("&$D$12&")="&$F$9&" and Barix("&$D$12&",reference:=StartOfSession)="&A79&"", "Bar", "", "Close","5","0","PrimaryOnly",,,"False","T","EveryTick") -> 2775.75 | Y79: 0.007348938487 | Z79: =RTD("cqg.rtd",,"StudyData", "Close("&$D$12&") when LocalYear("&$D$12&")="&$D$10&" and localMonth("&$D$12&") ="&$E$10&" and LocalDay("&$D$12&")="&$F$10&" and Barix("&$D$12&",reference:=StartOfSession)="&A79&"", "Bar", "", "Close","5","0","PrimaryOnly",,,"False","T","EveryTick") -> 2754.75 | AA79: 0.001818347122
A80: 79 | B80: 15:05:00 | H80: =RTD("cqg.rtd",,"StudyData", "Close("&$D$12&") when LocalYear("&$D$12&")="&$D$1&" and localMonth("&$D$12&") ="&$E$1&" and LocalDay("&$D$12&")="&$F$1&" and Barix("&$D$12&",reference:=StartOfSession)="&A80&"", "Bar", "", "Close","5","0","PrimaryOnly",,,"False","T","EveryTick") ->  | J80: =RTD("cqg.rtd",,"StudyData", "Close("&$D$12&") when LocalYear("&$D$12&")="&$D$2&" and localMonth("&$D$12&") ="&$E$2&" and LocalDay("&$D$12&")="&$F$2&" and Barix("&$D$12&",reference:=StartOfSession)="&A80&"", "Bar", "", "Close","5","0","PrimaryOnly",,,"False","T","EveryTick") -> 2784.25 | K80: -0.001524116909 | L80: =RTD("cqg.rtd",,"StudyData", "Close("&$D$12&") when LocalYear("&$D$12&")="&$D$3&" and localMonth("&$D$12&") ="&$E$3&" and LocalDay("&$D$12&")="&$F$3&" and Barix("&$D$12&",reference:=StartOfSession)="&A80&"", "Bar", "", "Close","5","0","PrimaryOnly",,,"False","T","EveryTick") -> 2788.5 | M80: 0.003418495862 | N80: =RTD("cqg.rtd",,"StudyData", "Close("&$D$12&") when LocalYear("&$D$12&")="&$D$4&" and localMonth("&$D$12&") ="&$E$4&" and LocalDay("&$D$12&")="&$F$4&" and Barix("&$D$12&",reference:=StartOfSession)="&A80&"", "Bar", "", "Close","5","0","PrimaryOnly",,,"False","T","EveryTick") -> 2782 | O80: -0.002241549359 | P80: =RTD("cqg.rtd",,"StudyData", "Close("&$D$12&") when LocalYear("&$D$12&")="&$D$5&" and localMonth("&$D$12&") ="&$E$5&" and LocalDay("&$D$12&")="&$F$5&" and Barix("&$D$12&",reference:=StartOfSession)="&A80&"", "Bar", "", "Close","5","0","PrimaryOnly",,,"False","T","EveryTick") -> 2788 | Q80: 0.0004485511797 | R80: =RTD("cqg.rtd",,"StudyData", "Close("&$D$12&") when LocalYear("&$D$12&")="&$D$6&" and localMonth("&$D$12&") ="&$E$6&" and LocalDay("&$D$12&")="&$F$6&" and Barix("&$D$12&",reference:=StartOfSession)="&A80&"", "Bar", "", "Close","5","0","PrimaryOnly",,,"False","T","EveryTick") -> 2784.5 | S80: 0.0007187780773 | T80: =RTD("cqg.rtd",,"StudyData", "Close("&$D$12&") when LocalYear("&$D$12&")="&$D$7&" and localMonth("&$D$12&") ="&$E$7&" and LocalDay("&$D$12&")="&$F$7&" and Barix("&$D$12&",reference:=StartOfSession)="&A80&"", "Bar", "", "Close","5","0","PrimaryOnly",,,"False","T","EveryTick") -> 2782.5 | U80: 0.002341498559 | V80: =RTD("cqg.rtd",,"StudyData", "Close("&$D$12&") when LocalYear("&$D$12&")="&$D$8&" and localMonth("&$D$12&") ="&$E$8&" and LocalDay("&$D$12&")="&$F$8&" and Barix("&$D$12&",reference:=StartOfSession)="&A80&"", "Bar", "", "Close","5","0","PrimaryOnly",,,"False","T","EveryTick") -> 2777.75 | W80: 0.0006304034582 | X80: =RTD("cqg.rtd",,"StudyData", "Close("&$D$12&") when LocalYear("&$D$12&")="&$D$9&" and localMonth("&$D$12&") ="&$E$9&" and LocalDay("&$D$12&")="&$F$9&" and Barix("&$D$12&",reference:=StartOfSession)="&A80&"", "Bar", "", "Close","5","0","PrimaryOnly",,,"False","T","EveryTick") -> 2775.5 | Y80: 0.007258210851 | Z80: =RTD("cqg.rtd",,"StudyData", "Close("&$D$12&") when LocalYear("&$D$12&")="&$D$10&" and localMonth("&$D$12&") ="&$E$10&" and LocalDay("&$D$12&")="&$F$10&" and Barix("&$D$12&",reference:=StartOfSession)="&A80&"", "Bar", "", "Close","5","0","PrimaryOnly",,,"False","T","EveryTick") -> 2754.75 | AA80: 0.001818347122
A81: 80 | B81: 15:10:00 | H81: =RTD("cqg.rtd",,"StudyData", "Close("&$D$12&") when LocalYear("&$D$12&")="&$D$1&" and localMonth("&$D$12&") ="&$E$1&" and LocalDay("&$D$12&")="&$F$1&" and Barix("&$D$12&",reference:=StartOfSession)="&A81&"", "Bar", "", "Close","5","0","PrimaryOnly",,,"False","T","EveryTick") ->  | J81: =RTD("cqg.rtd",,"StudyData", "Close("&$D$12&") when LocalYear("&$D$12&")="&$D$2&" and localMonth("&$D$12&") ="&$E$2&" and LocalDay("&$D$12&")="&$F$2&" and Barix("&$D$12&",reference:=StartOfSession)="&A81&"", "Bar", "", "Close","5","0","PrimaryOnly",,,"False","T","EveryTick") -> 2784.5 | K81: -0.001434462973 | L81: =RTD("cqg.rtd",,"StudyData", "Close("&$D$12&") when LocalYear("&$D$12&")="&$D$3&" and localMonth("&$D$12&") ="&$E$3&" and LocalDay("&$D$12&")="&$F$3&" and Barix("&$D$12&",reference:=StartOfSession)="&A81&"", "Bar", "", "Close","5","0","PrimaryOnly",,,"False","T","EveryTick") -> 2788.5 | M81: 0.003418495862 | N81: =RTD("cqg.rtd",,"StudyData", "Close("&$D$12&") when LocalYear("&$D$12&")="&$D$4&" and localMonth("&$D$12&") ="&$E$4&" and LocalDay("&$D$12&")="&$F$4&" and Barix("&$D$12&",reference:=StartOfSession)="&A81&"", "Bar", "", "Close","5","0","PrimaryOnly",,,"False","T","EveryTick") -> 2779 | O81: -0.003317493051 | P81: =RTD("cqg.rtd",,"StudyData", "Close("&$D$12&") when LocalYear("&$D$12&")="&$D$5&" and localMonth("&$D$12&") ="&$E$5&" and LocalDay("&$D$12&")="&$F$5&" and Barix("&$D$12&",reference:=StartOfSession)="&A81&"", "Bar", "", "Close","5","0","PrimaryOnly",,,"False","T","EveryTick") -> 2788.25 | Q81: 0.0005382614156 | R81: =RTD("cqg.rtd",,"StudyData", "Close("&$D$12&") when LocalYear("&$D$12&")="&$D$6&" and localMonth("&$D$12&") ="&$E$6&" and LocalDay("&$D$12&")="&$F$6&" and Barix("&$D$12&",reference:=StartOfSession)="&A81&"", "Bar", "", "Close","5","0","PrimaryOnly",,,"False","T","EveryTick") -> 2786.75 | S81: 0.001527403414 | T81: =RTD("cqg.rtd",,"StudyData", "Close("&$D$12&") when LocalYear("&$D$12&")="&$D$7&" and localMonth("&$D$12&") ="&$E$7&" and LocalDay("&$D$12&")="&$F$7&" and Barix("&$D$12&",reference:=StartOfSession)="&A81&"", "Bar", "", "Close","5","0","PrimaryOnly",,,"False","T","EveryTick") -> 2782.5 | U81: 0.002341498559 | V81: =RTD("cqg.rtd",,"StudyData", "Close("&$D$12&") when LocalYear("&$D$12&")="&$D$8&" and localMonth("&$D$12&") ="&$E$8&" and LocalDay("&$D$12&")="&$F$8&" and Barix("&$D$12&",reference:=StartOfSession)="&A81&"", "Bar", "", "Close","5","0","PrimaryOnly",,,"False","T","EveryTick") -> 2776 | W81: 0 | X81: =RTD("cqg.rtd",,"StudyData", "Close("&$D$12&") when LocalYear("&$D$12&")="&$D$9&" and localMonth("&$D$12&") ="&$E$9&" and LocalDay("&$D$12&")="&$F$9&" and Barix("&$D$12&",reference:=StartOfSession)="&A81&"", "Bar", "", "Close","5","0","PrimaryOnly",,,"False","T","EveryTick") -> 2776 | Y81: 0.007439666122 | Z81: =RTD("cqg.rtd",,"StudyData", "Close("&$D$12&") when LocalYear("&$D$12&")="&$D$10&" and localMonth("&$D$12&") ="&$E$10&" and LocalDay("&$D$12&")="&$F$10&" and Barix("&$D$12&",reference:=StartOfSession)="&A81&"", "Bar", "", "Close","5","0","PrimaryOnly",,,"False","T","EveryTick") -> 2755.5 | AA81: 0.002091099191

Sheet Sheet4 (hidden)
B1: =Sheet3!I1 -> -0.007811097145 | C1: =Sheet3!K1 -> -0.00448269679 | E1: =Sheet3!M1 -> 0.003508456279 | G1: =Sheet3!O1 -> 0.001255267641 | I1: =Sheet3!Q1 -> 0.001435363775 | K1: =Sheet3!S1 -> 0.0008984725966 | M1: =Sheet3!U1 -> -0.002971902017 | O1: =Sheet3!W1 -> 0.0007204610951 | Q1: =Sheet3!Y1 -> 0.001179459263 | S1: =Sheet3!AA1 -> 0.0006364214929
B2: =Sheet3!I2 ->  | C2: =Sheet3!K2 -> -0.004662004662 | D2: =CORREL($B$1:B2,$C$1:C2) ->  | E2: =Sheet3!M2 -> 0.003778337531 | F2: =CORREL($B$1:B2,$E$1:E2) ->  | G2: =Sheet3!O2 -> 0.001613915538 | H2: =CORREL($B$1:B2,$G$1:G2) ->  | I2: =Sheet3!Q2 -> 0.0008971023594 | J2: =CORREL($B$1:B2,$I$1:I2) ->  | K2: =Sheet3!S2 -> 0.001078167116 | L2: =CORREL($B$1:B2,$K$1:K2) ->  | M2: =Sheet3!U2 -> -0.002521613833 | N2: =CORREL($B$1:B2,$M$1:M2) ->  | O2: =Sheet3!W2 -> 0.0009005763689 | P2: =CORREL($B$1:B2,$O$1:O2) ->  | Q2: =Sheet3!Y2 -> 0.001542369806 | R2: =CORREL($B$1:B2,$Q$1:Q2) ->  | S2: =Sheet3!AA2 -> 0.0004545867806 | T2: =CORREL($B$1:B2,$S$1:S2) -> 
B3: =Sheet3!I3 ->  | C3: =Sheet3!K3 -> -0.005020620405 | D3: =CORREL($B$1:B3,$C$1:C3) ->  | E3: =Sheet3!M3 -> 0.003508456279 | F3: =CORREL($B$1:B3,$E$1:E3) ->  | G3: =Sheet3!O3 -> 0.001613915538 | H3: =CORREL($B$1:B3,$G$1:G3) ->  | I3: =Sheet3!Q3 -> 0.0006279716516 | J3: =CORREL($B$1:B3,$I$1:I3) ->  | K3: =Sheet3!S3 -> 0.001796945193 | L3: =CORREL($B$1:B3,$K$1:K3) ->  | M3: =Sheet3!U3 -> -0.002431556196 | N3: =CORREL($B$1:B3,$M$1:M3) ->  | O3: =Sheet3!W3 -> 0.001530979827 | P3: =CORREL($B$1:B3,$O$1:O3) ->  | Q3: =Sheet3!Y3 -> 0.00145164217 | R3: =CORREL($B$1:B3,$Q$1:Q3) ->  | S3: =Sheet3!AA3 -> 0.0009091735612 | T3: =CORREL($B$1:B3,$S$1:S3) -> 
B4: =Sheet3!I4 ->  | C4: =Sheet3!K4 -> -0.004124081047 | D4: =CORREL($B$1:B4,$C$1:C4) ->  | E4: =Sheet3!M4 -> 0.003238575027 | F4: =CORREL($B$1:B4,$E$1:E4) ->  | G4: =Sheet3!O4 -> 0.001793239487 | H4: =CORREL($B$1:B4,$G$1:G4) ->  | I4: =Sheet3!Q4 -> 0.0003588409438 | J4: =CORREL($B$1:B4,$I$1:I4) ->  | K4: =Sheet3!S4 -> 0.001437556155 | L4: =CORREL($B$1:B4,$K$1:K4) ->  | M4: =Sheet3!U4 -> -0.002701729107 | N4: =CORREL($B$1:B4,$M$1:M4) ->  | O4: =Sheet3!W4 -> 0.002341498559 | P4: =CORREL($B$1:B4,$O$1:O4) ->  | Q4: =Sheet3!Y4 -> 0.0004536381782 | R4: =CORREL($B$1:B4,$Q$1:Q4) ->  | S4: =Sheet3!AA4 -> 0.001000090917 | T4: =CORREL($B$1:B4,$S$1:S4) -> 
B5: =Sheet3!I5 ->  | C5: =Sheet3!K5 -> -0.004393042855 | D5: =CORREL($B$1:B5,$C$1:C5) ->  | E5: =Sheet3!M5 -> 0.00314861461 | F5: =CORREL($B$1:B5,$E$1:E5) ->  | G5: =Sheet3!O5 -> 0.001344929615 | H5: =CORREL($B$1:B5,$G$1:G5) ->  | I5: =Sheet3!Q5 -> 0.0002691307078 | J5: =CORREL($B$1:B5,$I$1:I5) ->  | K5: =Sheet3!S5 -> 0.001078167116 | L5: =CORREL($B$1:B5,$K$1:K5) ->  | M5: =Sheet3!U5 -> -0.002161383285 | N5: =CORREL($B$1:B5,$M$1:M5) ->  | O5: =Sheet3!W5 -> 0.002071325648 | P5: =CORREL($B$1:B5,$O$1:O5) ->  | Q5: =Sheet3!Y5 -> 0.0009072763564 | R5: =CORREL($B$1:B5,$Q$1:Q5) ->  | S5: =Sheet3!AA5 -> 0.001091008273 | T5: =CORREL($B$1:B5,$S$1:S5) -> 
B6: =Sheet3!I6 ->  | C6: =Sheet3!K6 -> -0.004034427111 | D6: =CORREL($B$1:B6,$C$1:C6) ->  | E6: =Sheet3!M6 -> 0.00314861461 | F6: =CORREL($B$1:B6,$E$1:E6) ->  | G6: =Sheet3!O6 -> 0.001165605667 | H6: =CORREL($B$1:B6,$G$1:G6) ->  | I6: =Sheet3!Q6 -> 0.0002691307078 | J6: =CORREL($B$1:B6,$I$1:I6) ->  | K6: =Sheet3!S6 -> 0.0008984725966 | L6: =CORREL($B$1:B6,$K$1:K6) ->  | M6: =Sheet3!U6 -> -0.0009906340058 | N6: =CORREL($B$1:B6,$M$1:M6) ->  | O6: =Sheet3!W6 -> 0.001711095101 | P6: =CORREL($B$1:B6,$O$1:O6) ->  | Q6: =Sheet3!Y6 -> -0.0001814552713 | R6: =CORREL($B$1:B6,$Q$1:Q6) ->  | S6: =Sheet3!AA6 -> 0.00118192563 | T6: =CORREL($B$1:B6,$S$1:S6) -> 
B7: =Sheet3!I7 ->  | C7: =Sheet3!K7 -> -0.003765465304 | D7: =CORREL($B$1:B7,$C$1:C7) ->  | E7: =Sheet3!M7 -> 0.004587981288 | F7: =CORREL($B$1:B7,$E$1:E7) ->  | G7: =Sheet3!O7 -> 0.00143459159 | H7: =CORREL($B$1:B7,$G$1:G7) ->  | I7: =Sheet3!Q7 -> 0.0008073921234 | J7: =CORREL($B$1:B7,$I$1:I7) ->  | K7: =Sheet3!S7 -> 0.0006289308176 | L7: =CORREL($B$1:B7,$K$1:K7) ->  | M7: =Sheet3!U7 -> -0.001801152738 | N7: =CORREL($B$1:B7,$M$1:M7) ->  | O7: =Sheet3!W7 -> 0.002161383285 | P7: =CORREL($B$1:B7,$O$1:O7) ->  | Q7: =Sheet3!Y7 -> -0.001088731628 | R7: =CORREL($B$1:B7,$Q$1:Q7) ->  | S7: =Sheet3!AA7 -> 0.002000181835 | T7: =CORREL($B$1:B7,$S$1:S7) -> 
B8: =Sheet3!I8 ->  | C8: =Sheet3!K8 -> -0.00448269679 | D8: =CORREL($B$1:B8,$C$1:C8) ->  | E8: =Sheet3!M8 -> 0.004947822958 | F8: =CORREL($B$1:B8,$E$1:E8) ->  | G8: =Sheet3!O8 -> 0.001703577513 | H8: =CORREL($B$1:B8,$G$1:G8) ->  | I8: =Sheet3!Q8 -> 0.0009868125953 | J8: =CORREL($B$1:B8,$I$1:I8) ->  | K8: =Sheet3!S8 -> 0.001257861635 | L8: =CORREL($B$1:B8,$K$1:K8) ->  | M8: =Sheet3!U8 -> -0.001621037464 | N8: =CORREL($B$1:B8,$M$1:M8) ->  | O8: =Sheet3!W8 -> 0.0007204610951 | P8: =CORREL($B$1:B8,$O$1:O8) ->  | Q8: =Sheet3!Y8 -> -0.0008165487207 | R8: =CORREL($B$1:B8,$Q$1:Q8) ->  | S8: =Sheet3!AA8 -> 0.001818347122 | T8: =CORREL($B$1:B8,$S$1:S8) -> 
B9: =Sheet3!I9 ->  | C9: =Sheet3!K9 -> -0.004393042855 | D9: =CORREL($B$1:B9,$C$1:C9) ->  | E9: =Sheet3!M9 -> 0.005037783375 | F9: =CORREL($B$1:B9,$E$1:E9) ->  | G9: =Sheet3!O9 -> 0.001703577513 | H9: =CORREL($B$1:B9,$G$1:G9) ->  | I9: =Sheet3!Q9 -> 0.001166233067 | J9: =CORREL($B$1:B9,$I$1:I9) ->  | K9: =Sheet3!S9 -> 0.001796945193 | L9: =CORREL($B$1:B9,$K$1:K9) ->  | M9: =Sheet3!U9 -> -0.001801152738 | N9: =CORREL($B$1:B9,$M$1:M9) ->  | O9: =Sheet3!W9 -> 0.0006304034582 | P9: =CORREL($B$1:B9,$O$1:O9) ->  | Q9: =Sheet3!Y9 -> -0.0003629105426 | R9: =CORREL($B$1:B9,$Q$1:Q9) ->  | S9: =Sheet3!AA9 -> 0.00163651241 | T9: =CORREL($B$1:B9,$S$1:S9) -> 
B10: =Sheet3!I10 ->  | C10: =Sheet3!K10 -> -0.004662004662 | D10: =CORREL($B$1:B10,$C$1:C10) ->  | E10: =Sheet3!M10 -> 0.005037783375 | F10: =CORREL($B$1:B10,$E$1:E10) ->  | G10: =Sheet3!O10 -> 0.001882901461 | H10: =CORREL($B$1:B10,$G$1:G10) ->  | I10: =Sheet3!Q10 -> 0.0008073921234 | J10: =CORREL($B$1:B10,$I$1:I10) ->  | K10: =Sheet3!S10 -> 0.001437556155 | L10: =CORREL($B$1:B10,$K$1:K10) ->  | M10: =Sheet3!U10 -> -0.001530979827 | N10: =CORREL($B$1:B10,$M$1:M10) ->  | O10: =Sheet3!W10 -> 0.0007204610951 | P10: =CORREL($B$1:B10,$O$1:O10) ->  | Q10: =Sheet3!Y10 -> -0.0008165487207 | R10: =CORREL($B$1:B10,$Q$1:Q10) ->  | S10: =Sheet3!AA10 -> 0.001727429766 | T10: =CORREL($B$1:B10,$S$1:S10) -> 
B11: =Sheet3!I11 ->  | C11: =Sheet3!K11 -> -0.005199928277 | D11: =CORREL($B$1:B11,$C$1:C11) ->  | E11: =Sheet3!M11 -> 0.004587981288 | F11: =CORREL($B$1:B11,$E$1:E11) ->  | G11: =Sheet3!O11 -> 0.001972563436 | H11: =CORREL($B$1:B11,$G$1:G11) ->  | I11: =Sheet3!Q11 -> 0.0004485511797 | J11: =CORREL($B$1:B11,$I$1:I11) ->  | K11: =Sheet3!S11 -> 0.001707097934 | L11: =CORREL($B$1:B11,$K$1:K11) ->  | M11: =Sheet3!U11 -> -0.001621037464 | N11: =CORREL($B$1:B11,$M$1:M11) ->  | O11: =Sheet3!W11 -> -0.0001801152738 | P11: =CORREL($B$1:B11,$O$1:O11) ->  | Q11: =Sheet3!Y11 -> 0 | R11: =CORREL($B$1:B11,$Q$1:Q11) ->  | S11: =Sheet3!AA11 -> 0.001363760342 | T11: =CORREL($B$1:B11,$S$1:S11) -> 
B12: =Sheet3!I12 ->  | C12: =Sheet3!K12 -> -0.005379236148 | D12: =CORREL($B$1:B12,$C$1:C12) ->  | E12: =Sheet3!M12 -> 0.004677941706 | F12: =CORREL($B$1:B12,$E$1:E12) ->  | G12: =Sheet3!O12 -> 0.002151887385 | H12: =CORREL($B$1:B12,$G$1:G12) ->  | I12: =Sheet3!Q12 -> 0.0001794204719 | J12: =CORREL($B$1:B12,$I$1:I12) ->  | K12: =Sheet3!S12 -> 0.001617250674 | L12: =CORREL($B$1:B12,$K$1:K12) ->  | M12: =Sheet3!U12 -> -0.002071325648 | N12: =CORREL($B$1:B12,$M$1:M12) ->  | O12: =Sheet3!W12 -> -0.0001801152738 | P12: =CORREL($B$1:B12,$O$1:O12) ->  | Q12: =Sheet3!Y12 -> 0 | R12: =CORREL($B$1:B12,$Q$1:Q12) ->  | S12: =Sheet3!AA12 -> 0.002000181835 | T12: =CORREL($B$1:B12,$S$1:S12) -> 
B13: =Sheet3!I13 ->  | C13: =Sheet3!K13 -> -0.006813699121 | D13: =CORREL($B$1:B13,$C$1:C13) ->  | E13: =Sheet3!M13 -> 0.003418495862 | F13: =CORREL($B$1:B13,$E$1:E13) ->  | G13: =Sheet3!O13 -> 0.00206222541 | H13: =CORREL($B$1:B13,$G$1:G13) ->  | I13: =Sheet3!Q13 -> 0.0007176818875 | J13: =CORREL($B$1:B13,$I$1:I13) ->  | K13: =Sheet3!S13 -> 0.001617250674 | L13: =CORREL($B$1:B13,$K$1:K13) ->  | M13: =Sheet3!U13 -> -0.00261167147 | N13: =CORREL($B$1:B13,$M$1:M13) ->  | O13: =Sheet3!W13 -> -0.001080691643 | P13: =CORREL($B$1:B13,$O$1:O13) ->  | Q13: =Sheet3!Y13 -> -0.0002721829069 | R13: =CORREL($B$1:B13,$Q$1:Q13) ->  | S13: =Sheet3!AA13 -> 0.001454677698 | T13: =CORREL($B$1:B13,$S$1:S13) -> 
B14: =Sheet3!I14 ->  | C14: =Sheet3!K14 -> -0.007620584544 | D14: =CORREL($B$1:B14,$C$1:C14) ->  | E14: =Sheet3!M14 -> 0.003328535444 | F14: =CORREL($B$1:B14,$E$1:E14) ->  | G14: =Sheet3!O14 -> 0.001613915538 | H14: =CORREL($B$1:B14,$G$1:G14) ->  | I14: =Sheet3!Q14 -> 0.0003588409438 | J14: =CORREL($B$1:B14,$I$1:I14) ->  | K14: =Sheet3!S14 -> 0.001347708895 | L14: =CORREL($B$1:B14,$K$1:K14) ->  | M14: =Sheet3!U14 -> -0.003061959654 | N14: =CORREL($B$1:B14,$M$1:M14) ->  | O14: =Sheet3!W14 -> -0.00144092219 | P14: =CORREL($B$1:B14,$O$1:O14) ->  | Q14: =Sheet3!Y14 -> 0.0001814552713 | R14: =CORREL($B$1:B14,$Q$1:Q14) ->  | S14: =Sheet3!AA14 -> 0.0008182562051 | T14: =CORREL($B$1:B14,$S$1:S14) -> 
B15: =Sheet3!I15 ->  | C15: =Sheet3!K15 -> -0.006275775507 | D15: =CORREL($B$1:B15,$C$1:C15) ->  | E15: =Sheet3!M15 -> 0.003328535444 | F15: =CORREL($B$1:B15,$E$1:E15) ->  | G15: =Sheet3!O15 -> 0.001613915538 | H15: =CORREL($B$1:B15,$G$1:G15) ->  | I15: =Sheet3!Q15 -> 0.0008073921234 | J15: =CORREL($B$1:B15,$I$1:I15) ->  | K15: =Sheet3!S15 -> 0.001437556155 | L15: =CORREL($B$1:B15,$K$1:K15) ->  | M15: =Sheet3!U15 -> -0.002791786744 | N15: =CORREL($B$1:B15,$M$1:M15) ->  | O15: =Sheet3!W15 -> -0.0009005763689 | P15: =CORREL($B$1:B15,$O$1:O15) ->  | Q15: =Sheet3!Y15 -> -0.0002721829069 | R15: =CORREL($B$1:B15,$Q$1:Q15) ->  | S15: =Sheet3!AA15 -> 0.0006364214929 | T15: =CORREL($B$1:B15,$S$1:S15) -> 
